Workbook

Sheet HESAP (hidden)
AV1: YEM FİYAT | BN1: AHIR GÜNLÜK YEM TÜKETİMİ (kg/gün) | CF1: AHIR TOPLAM YEM TÜKETİMİ (KG) | CX1: AHIR TOPLAM YEM MASRAFI (TL) | GG1: GELİR GİDER | GT1: MADDE BALANS
B2: HAYVAN CİNSİ | C2: CA (kg) | D2: LAKTASYON SIRASI | E2: AHIR GCAA (g) | F2: TOPLAM BAKIM SÜRESİ (gün) | G2: AHIR BAKIM SÜRESİ (gün) | H2: HAYVAN SAYISI | I2: SATILAN HAYVAN SAYISI | J2: DOĞUM ORANI (%) | K2: BUZAĞI YAŞAMA ORANI (%) | L2: DANA YAŞAMA ORANI (%) | M2: SATILAN HAYVAN SAYISI (baş) | N2: İNEK BBHB | O2: BBHB CİNSİNDEN HAYVAN VARLIĞI | P2: BBHB CİNSİNDEN TOPLAM HAYVAN VARLIĞI | Q2: KARKAS RANDIMANI % | R2: TAHMİNİ KARKAS AĞIRLIĞI (KG) | S2: TOPLAM KARKAS AĞIRLIĞI (KG) | T2: KARKASTAN ELDE EDİLEN KEMİKSİZ ET MİKTARI (KG) | U2: İNSAN TÜKETİMİNE SUNULAN ET PROTEİNİ MİKTARI (KG) | V2: İNSAN TÜKETİMİNE SUNULAN TOPLAM ET PROTEİNİ MİKTARI (KG) | W2: İNSAN TÜKETİMİNE SUNULAN ET PROTEİNİN GENEL TOPLAMI (KG) | X2: İNSAN TÜKETİMİNE SUNULAN TOPLAM PROTEİN (KG) | Y2: İNSAN TÜKETİMİNE SUNULAN SÜT PROTEİNİN GENEL TOPLAMI (KG) | Z2: İNSAN TÜKETİMİNE SUNULAN TOPLAM SÜT PROTEİN (KG) | AA2: TOPLAM SÜT ÜRETİMİ (KG) | AB2: LAKTASYON SÜT VERİMİ (KG) | AC2: SÜT PROTEİN ORANI AHIR (%) | AD2: TOPLAM AHIR SÜT VERİMİ (KG) | AE2: LAKTASYON AHIR SÜT VERİMİ (KG) | AF2: AHIR GÜNLÜK SÜT VERİMİ (KG) | AG2: AHIR SAĞIM SÜRESİ (GÜN) | AH2: BİRİM KARKAS FİTATI (TL/KG) | AI2: BİRİM HAYVAN FİTATI (TL/BAŞ) | AJ2: TOPLAM SATILAN HAYVAN GELİRİ (TL) | AK2: BİRİM AHIR SÜT FİTATI (TL/KG) | AL2: HAYVAN BAŞI SÜT GELİRİ (TL/BAŞ) | AM2: TOPLAM SÜT GELİRİ (TL) | AN2: AHIR GÜBRE BİRİM FİYATI (TL/KG) | AP2: AHIR GÜNLÜK GÜBRE ÜRETİMİ (KG/BAŞ) | AQ2: TOPLAM AHIR GÜBRE ÜRETİMİ (KG) | AR2: AHIR GÜBRE GELİRİ (TL) | AS2: TOPLAM GÜBRE GELİRİ (TL) | AT2: TOPLAM GELİR (TL) | AU2: TOPLAM İŞLETME GELİR (TL) | AV2: =İNEK!A3 -> Sığır Süt Yemi, 24 HP, 3100 ME | AW2: =İNEK!A4 -> Sığır Süt Yemi,18 HP, 2600 ME | AX2: =İNEK!A5 -> Yulaf Kuru Otu, Başaklı | AY2: =İNEK!A6 -> Arpa , Ezme | AZ2: =İNEK!A7 -> Buğday Samanı | BA2: =İNEK!A8 -> Çayır Merası, Soğuk Mevsim, Bakımlı | BB2: =İNEK!A9 -> Yonca Kuru Otu, 5. Kalite %13-15 HP, <%48-54 NDF | BC2: =İNEK!A10 -> Sığır Süt Yemi,16 HP, 2400 ME | BD2: =İNEK!A11 -> Pamuk Tohumu Küspesi, Pres, % 28 HP | BE2: =İNEK!A12 -> Baklagil Kuru Otu, Olgun >%46 NDF | BF2: =İNEK!A13 -> Ayçiçeği Küspesi, Solvent, %32 HP | BG2: =İNEK!A14 -> Soya Küspesi , Solvent, %51 | BH2: =İNEK!A15 -> Çayır Kuru Otu , Soğuk Mevsim,Olgun >%60 NDF | BI2: =İNEK!A16 -> Mısır Silajı, %33-40 KM | BJ2: =İNEK!A17 -> MIsır Gluteni,63 | BK2: =İNEK!A18 -> Yağ, Bitkisel | BL2: =İNEK!A19 -> Kalsiyum Karbonat, CaCO3 | BM2: =İNEK!A20 -> Amonyum Fosfat (Monobazik), (NH4) 2HPO4 | BN2: =AV2 -> Sığır Süt Yemi, 24 HP, 3100 ME | BO2: Sığır Süt Yemi,18 HP, 2600 ME | BP2: Yulaf Kuru Otu, Başaklı | BQ2: Arpa , Ezme | BR2: Buğday Samanı | BS2: Çayır Merası, Soğuk Mevsim, Bakımlı | BT2: Yonca Kuru Otu, 5. Kalite %13-15 HP, <%48-54 NDF | BU2: Sığır Süt Yemi,16 HP, 2400 ME | BV2: Pamuk Tohumu Küspesi, Pres, % 28 HP | BW2: Baklagil Kuru Otu, Olgun >%46 NDF | BX2: Ayçiçeği Küspesi, Solvent, %32 HP | BY2: Soya Küspesi , Solvent, %51 | BZ2: Çayır Kuru Otu , Soğuk Mevsim,Olgun >%60 NDF | CA2: Mısır Silajı, %33-40 KM | CB2: MIsır Gluteni,63 | CC2: Yağ, Bitkisel | CD2: Kalsiyum Karbonat, CaCO3 | CE2: Amonyum Fosfat (Monobazik), (NH4) 2HPO4 | CF2: =AV2 -> Sığır Süt Yemi, 24 HP, 3100 ME | CG2: Sığır Süt Yemi,18 HP, 2600 ME | CH2: Yulaf Kuru Otu, Başaklı | CI2: Arpa , Ezme | CJ2: Buğday Samanı | CK2: Çayır Merası, Soğuk Mevsim, Bakımlı | CL2: Yonca Kuru Otu, 5. Kalite %13-15 HP, <%48-54 NDF | CM2: Sığır Süt Yemi,16 HP, 2400 ME | CN2: Pamuk Tohumu Küspesi, Pres, % 28 HP | CO2: Baklagil Kuru Otu, Olgun >%46 NDF | CP2: Ayçiçeği Küspesi, Solvent, %32 HP | CQ2: Soya Küspesi , Solvent, %51 | CR2: Çayır Kuru Otu , Soğuk Mevsim,Olgun >%60 NDF | CS2: Mısır Silajı, %33-40 KM | CT2: MIsır Gluteni,63 | CU2: Yağ, Bitkisel | CV2: Kalsiyum Karbonat, CaCO3 | CW2: Amonyum Fosfat (Monobazik), (NH4) 2HPO4 | CX2: Sığır Süt Yemi, 24 HP, 3100 ME | CY2: Sığır Süt Yemi,18 HP, 2600 ME | CZ2: Yulaf Kuru Otu, Başaklı | DA2: Arpa , Ezme | DB2: Buğday Samanı | DC2: Çayır Merası, Soğuk Mevsim, Bakımlı | DD2: Yonca Kuru Otu, 5. Kalite %13-15 HP, <%48-54 NDF | DE2: Sığır Süt Yemi,16 HP, 2400 ME | DF2: Pamuk Tohumu Küspesi, Pres, % 28 HP | DG2: Baklagil Kuru Otu, Olgun >%46 NDF | DH2: Ayçiçeği Küspesi, Solvent, %32 HP | DI2: Soya Küspesi , Solvent, %51 | DJ2: Çayır Kuru Otu , Soğuk Mevsim,Olgun >%60 NDF | DK2: Mısır Silajı, %33-40 KM | DL2: MIsır Gluteni,63 | DM2: Yağ, Bitkisel | DN2: Kalsiyum Karbonat, CaCO3 | DO2: Amonyum Fosfat (Monobazik), (NH4) 2HPO4 | DP2: TOPLAM YEM MASRAFI (TL) | DQ2: AHIRDA BİRİM İŞÇİYE DÜŞEN HAYVAN SAYISI (BAŞ/KİŞİ) | DR2: AHIRDA İŞÇİ SAYISI (BAŞ/KİŞİ) | DS2: AHIRDA TOPLAM İŞÇİ MALİYETİ (TL) | DT2: TOPLAM İŞÇİ MALİYETİ (TL) | DU2: GENEL TOPLAM İŞÇİ MALİYETİ (TL) | DV2: HER 100 BAŞ İÇİN DÜŞEN YILLIK VETERİNER MUAYENE SAYISI | DW2: TOPLAM VETERİNER ZİYARET SAYISI | DX2: TOPLAM VETERİNER ZİYARET MASRAFI (TL) | DY2: TOPLAM VETERİNER ZİYARET MASRAFI (TL) | DZ2: SUNİ TOHUMLAMA SAYISI | EA2: SUNİ TOHUMLAMA MASRAFI (TL) | EB2: 100 BAŞ İÇİN DÜŞEN YILLIK KUTU İLAÇ SAYISI | EC2: 100 BAŞ İÇİN DÜŞEN YILLIK AŞI SAYISI | ED2: 100 BAŞ İÇİN DÜŞEN YILLIK KUTU DEZENFAKTAN SAYISI | EE2: YILLIK AŞI SAYISI | EF2: YILLIK KUTU İLAÇ SAYISI | EG2: YILLIK KUTU DEZENFAKTAN SAYISI | EH2: YILLIK AŞI MASRAFI (TL) | EI2: YILLIK KUTU İLAÇ MASRAFI (TL) | EJ2: YILLIK KUTU DEZENFAKTAN MASRAFI (TL) | EK2: YILLIK TOPLAM İLAÇ AŞI VE DEZENFEKTAN MASRAFI | EL2: ELEKTİRİK TÜKETİM KWh | EM2: SU TÜKETİMİ (TON) | EN2: DOĞALGAZ TÜKETİMİ (m3) | EO2: MAZOT TÜKETİMİ (lt) | EP2: NAKLİYE (ADET) | EQ2: HABERLEŞME (ADET) | ER2: ULAŞIM (ADET) | ES2: ELEKTİRİK TÜKETİM (TL) | ET2: SU TÜKETİMİ (TL) | EU2: DOĞALGAZ TÜKETİMİ (TL) | EV2: MAZOT TÜKETİMİ (TL) | EW2: NAKLİYE (TL) | EX2: HABERLEŞME (TL) | EY2: ULAŞIM (TL) | EZ2: TOPLAM DİĞER HARCAMALAR (TL) | FA2: =GENELVERİ!C1 -> Bina 1 | FB2: =GENELVERİ!D1 -> Bina 2 | FC2: =GENELVERİ!E1 -> Alet Ekipman 1 | FD2: =GENELVERİ!F1 -> Alet Ekipman 2 | FE2: =GENELVERİ!G1 -> Alet Ekipman 3 | FF2: TOPLAM BİNA (TL) | FG2: BİNA GENEL TOLAM (TL) | FH2: TOPLAM ALET EKİPMAN(TL) | FI2: ALET EKİPMAN GENEL TOLAM(TL) | FJ2: BİNA AMORTİSMAN % | FK2: BİNA AMORTİSMAN TL | FL2: TOPLAM BİNA AMORTİSMAN TL | FM2: ALET EKİPMAN AMORTİSMAN % | FN2: ALET EKİPMAN AMORTİSMAN TL | FO2: TOPLAM ALET EKİPMAN AMORTİSMAN TL | FP2: =GENELVERİ!H1 -> Teşvik | FQ2: TEŞVİK GENEL TOPLAM (TL) | FR2: =GENELVERİ!I1 -> Vergi | FS2: VERGİ GENEL TOPLAM (TL) | FT2: =GENELVERİ!J1 -> Faiz | FU2: FAİZ GENEL TOPLAM (TL) | FV2: AHIR YEM ENERJİ TOPLAM MJ/bakım süresi (gün) | FW2: TOPLAM İNEK YEM ENERJİSİ (MJ/YIL) | FX2: TOPLAM YEM ENERJİSİ (MJ/YIL) | FY2: 1 KG HAYVANSAL PROTEİN İÇİN TÜKETİLEN YEM ENERJİSİ (MJ) | FZ2: =İNEK!A26 -> KM (kg/gün) | GA2: =İNEK!A36 -> ADF (% KM en az) | GB2: =İNEK!A37 -> NDF (% KM en az) | GC2: =İNEK!A27 -> ME (Mcal/gün) | GD2: AHIR METAN SALINIM TOPLAMI | GE2: D AHIR METAN SALINIM TOPLAMI | GF2: METAN SALINIM TOPLAMI | GG2: TOPLAM METAN SALINIMI (MJ/GÜN) | GH2: 1 KG HAYVANSAL PROTEİN İÇİN METAN SALINIMI (MJ) | GI2: BÜRÜT GELİR (TL) | GJ2: BÜRÜT GELİR TOPLAMI (TL) | GK2: TOPLAM BÜRÜT GELİR (TL) | GL2: MASRAFLAR TOPLAMI (TL) | GM2: TOPLAM MASRAF (TL) | GN2: NET GELİR (TL) | GO2: TOPLAM NET GELİR (TL) | GP2: AHIR GİREN YEM KM (KG) | GQ2: AHIR ÇIKAN SÜT KM(KG) | GR2: AHIR ÇIKAN CA KM(KG) | GS2: AHIR ÇIKAN GÜBRE KM (solunum dahil) (KG) | GT2: TOPLAM GİREN YEM KM (KG) | GU2: TOPLAM ÇIKAN ÜRÜN KM(KG) | GV2: GİREN MADDE (su hariç) (KG) | GW2: ÇIKAN MADDE (KG) | GX2: HAYVAN TÜKETİMİNE SUNULAN SU | GY2: FARK (KG)
B3: İnek Kuru dönem | C3: =İNEK!L3 -> 700 | D3: =İNEK!J2 -> 3 | F3: =G3 -> 60 | G3: =İNEK!L5 -> 60 | H3: =İNEK!D23 -> 100 | I3: =M3 -> 25 | J3: =GENELVERİ!B11 -> 0,90 | K3: =GENELVERİ!B12 -> 0,95 | L3: =GENELVERİ!B13 -> 0,95 | M3: =İNEK!L9 -> 25 | N3: =POWER(C3,3/4)/POWER(500,3/4)*H3 -> 128.7051801 | O3: =(N6+N5+N4+N3)/4 -> 103.3516767 | P3: =O3+O10+O15 -> 163.2780003 | Q3: =İNEK!L10/100 -> 0.5 | R3: =Q3*C3 -> 350 | S3: =M3*R3 -> 8750 | T3: =I3*R3*İNEK!L11/100 -> 7000 | U3: =T3*İNEK!L12/100 -> 1400 | V3: =U3+U4+U5+U6 -> 1400 | AA3: =SUM(AD4:AD6) -> 627000 | AB3: =SUM(AE4:AE6) -> 7125 | AH3: =GENELVERİ!B2 -> 30 | AI3: =AH3*R3 -> 10500 | AJ3: =AI3*I3 -> 262500 | AK3: =GENELVERİ!G11 -> 2 | AN3: =GENELVERİ!G12 -> 0,01 | AP3: =FZ3/0.3 -> 49 | AQ3: =AP3*H3*G3 -> 294000 | AR3: =AN3*AQ3 -> 2940 | AS3: =AR3 -> 2940 | AT3: =AM3+AJ3+AS3 -> 265440 | AV3: =İNEK!B3 -> 2.4 | AW3: =İNEK!B4 -> 2.2 | AX3: =İNEK!B5 -> 0.6 | AY3: =İNEK!B6 -> 1.5 | AZ3: =İNEK!B7 -> 0.5 | BA3: =İNEK!B8 -> 0.01 | BB3: =İNEK!B9 -> 1 | BC3: =İNEK!B10 -> 2 | BD3: =İNEK!B11 -> 2.5 | BE3: =İNEK!B12 -> 1 | BF3: =İNEK!B13 -> 2 | BG3: =İNEK!B14 -> 5 | BH3: =İNEK!B15 -> 0.7 | BI3: =İNEK!B16 -> 0.5 | BJ3: =İNEK!B17 -> 10 | BK3: =İNEK!B18 -> 15 | BL3: =İNEK!B19 -> 1 | BM3: =İNEK!B20 -> 1 | BN3: =İNEK!C3 -> 0 | BO3: =İNEK!C4 -> 0 | BP3: =İNEK!C5 -> 0 | BQ3: =İNEK!C6 -> 0 | BR3: =İNEK!C7 -> 7.169810696 | BS3: =İNEK!C8 -> 0 | BT3: =İNEK!C9 -> 0 | BU3: =İNEK!C10 -> 0 | BV3: =İNEK!C11 -> 0 | BW3: =İNEK!C12 -> 0 | BX3: =İNEK!C13 -> 0 | BY3: =İNEK!C14 -> 0 | BZ3: =İNEK!C15 -> 0 | CA3: =İNEK!C16 -> 19.78339034 | CB3: =İNEK!C17 -> 0 | CC3: =İNEK!C18 -> 1 | CD3: =İNEK!C19 -> 0.009600953259 | CE3: =İNEK!C20 -> 0.02088096156 | CF3: =BN3*$H3*$G3 -> 0 | CG3: 0 | CH3: 0 | CI3: 0 | CJ3: 43018.86418 | CK3: 0 | CL3: 0 | CM3: 0 | CN3: 0 | CO3: 0 | CP3: =BX3*$H3*$G3 -> 0 | CQ3: 0 | CR3: 0 | CS3: 118700.342 | CT3: 0 | CU3: 6000 | CV3: 57.60571955 | CW3: 125.2857694 | CX3: =CF3*AV3 -> 0 | CY3: 0 | CZ3: 0 | DA3: 0 | DB3: 21509.43209 | DC3: 0 | DD3: 0 | DE3: 0 | DF3: 0 | DG3: 0 | DH3: =CP3*BF3 -> 0 | DI3: 0 | DJ3: 0 | DK3: 59350.17101 | DL3: 0 | DM3: 90000 | DN3: 57.60571955 | DO3: 125.2857694 | DP3: =SUM(CX3:DO3) -> 171042.4946 | DQ3: =İNEK!L13 -> 50 | DR3: =H3/DQ3 -> 2 | DS3: =GENELVERİ!$D$11/20*HESAP!DR3*HESAP!G3 -> 0 | DT3: =DS3 -> 0 | DV3: =GENELVERİ!N2 -> 0 | DW3: =DV3*H3/100 -> 0 | DX3: =DW3*GENELVERİ!$D$12 -> 0 | DZ3: =GENELVERİ!B22 -> 0 | EA3: =DZ3*GENELVERİ!D13 -> 0 | EB3: =GENELVERİ!O2 -> 0 | EC3: =GENELVERİ!P2 -> 0 | ED3: =GENELVERİ!Q2 -> 0 | EE3: =EB3*$H3/100 -> 0 | EF3: 0 | EG3: 0 | EH3: =EE3*GENELVERİ!$D$16 -> 0 | EI3: =EF3*GENELVERİ!$D$14 -> 0 | EJ3: =EG3*GENELVERİ!$D$15 -> 0 | EL3: =GENELVERİ!B15 -> 0 | EM3: =GENELVERİ!B16 -> 0 | EN3: =GENELVERİ!B17 -> 0 | EO3: =GENELVERİ!B18 -> 0 | EP3: =GENELVERİ!B19 -> 0 | EQ3: =GENELVERİ!B20 -> 0 | ER3: =GENELVERİ!B21 -> 0 | ES3: =EL3*GENELVERİ!D17 -> 0 | ET3: =EM3*GENELVERİ!G16 -> 0 | EU3: =EN3*GENELVERİ!G17 -> 0 | EV3: =EO3*GENELVERİ!D18 -> 0 | EW3: =EP3*GENELVERİ!G13 -> 0 | EX3: =EQ3*GENELVERİ!G14 -> 0 | EY3: =ER3*GENELVERİ!G15 -> 0 | FA3: =GENELVERİ!C2 -> 0 | FB3: =GENELVERİ!D2 -> 0 | FC3: =GENELVERİ!E2 -> 0 | FD3: =GENELVERİ!F2 -> 0 | FE3: =GENELVERİ!G2 -> 0 | FF3: =FA3+FB3 -> 0 | FH3: =FC3+FD3+FE3 -> 0 | FJ3: =GENELVERİ!L2 -> 0,05 | FK3: =FF3*FJ3 -> 0 | FM3: =GENELVERİ!M2 -> 0,10 | FN3: =FH3*FM3 -> 0 | FP3: =GENELVERİ!H2 -> 0 | FQ3: =FP3 -> 0 | FR3: =GENELVERİ!I2 -> 0 | FT3: =GENELVERİ!J2 -> 0 | FV3: =İNEK!C27*4.183*H3*G3 -> 775471.407 | FW3: =FV3+FV4+FV5+FV6 -> 6209459.598 | FZ3: =İNEK!C26 -> 14.7 | GA3: =İNEK!C36 -> 30.0861888 | GB3: =İNEK!C37 -> 55.18284084 | GC3: =İNEK!C27 -> 30.89773715 | GD3: =5.58+0.848*FZ3*GB3/100 -> 12.45887221 | GE3: =IF(GD3=5.58,0,IF(GD3>5.6,GD3)) -> 12.45887221 | GF3: =SUM(GE3:GE3)*H3*G3 -> 74753.23325 | GI3: =AT3 -> 265440 | GJ3: =FP3+GI3 -> 265440 | GL3: =DP3+DT3+DX3+EA3+EH3+EI3+EJ3+ES3+ET3+EU3+EV3+EW3+EX3+EY3+FK3+FN3+FR3+FT3 -> 171042.4946 | GN3: =GJ3-GL3 -> 94397.50541 | GP3: =(FZ3*G3)*H3 -> 88200 | GR3: =C3*I3*0.3 -> 5250 | GS3: =AQ3*0.3 -> 88200 | GT3: =GP3 -> 88200 | GU3: =GQ3+GR3+GS3 -> 93450 | GV3: =EO3+EM3*1000+CW3+CV3+CU3+CT3+CS3+CR3+CQ3+CP3+CO3+CN3+CM3+CL3+CK3+CJ3+CI3+CH3+CG3+CF3+C3*H3-C3*H3 -> 167902.0977 | GW3: =AQ3+AD3+I3*C3 -> 311500 | GX3: =GV3-GW3 -> -143597.9023
B4: İnek Lakbaşı | C4: =İNEK!M3 -> 500 | F4: =G4 -> 75 | G4: =İNEK!M5 -> 75 | H4: =İNEK!D23-(İNEK!M2+(1-J3)*H3) -> 88 | I4: =M4 -> 0 | M4: =İNEK!M9 -> 0 | N4: =POWER(C4,3/4)/POWER(500,3/4)*H4 -> 88 | Q4: =İNEK!M10/100 -> 0.5 | R4: =Q4*C4 -> 250 | S4: =M4*R4 -> 0 | T4: =I4*R4*İNEK!M11/100 -> 0 | U4: =T4*İNEK!M12/100 -> 0 | Z4: =AC4*AD4/100 -> 7840.8 | AC4: =1.9+İNEK!M7*0.4 -> 3.3 | AD4: =AE4*H4 -> 237600 | AE4: =AF4*AG4 -> 2700 | AF4: =İNEK!M6 -> 30 | AG4: =İNEK!M8 -> 90 | AH4: =GENELVERİ!B3 -> 25 | AI4: =AH4*R4 -> 6250 | AJ4: =AI4*I4 -> 0 | AK4: =GENELVERİ!G11 -> 2 | AL4: =AE4*AK4 -> 5400 | AM4: =AL4*H4 -> 475200 | AP4: =FZ4/0.3 -> 60.16666667 | AQ4: =AP4*H4*G4 -> 397100 | AR4: =AN3*AQ4 -> 3971 | AS4: =AR4 -> 3971 | AT4: =AM4+AJ4+AS4 -> 479171 | AV4: =AV3 -> 2.4 | AW4: =AW3 -> 2.2 | AX4: 0.6 | AY4: 1.5 | AZ4: 0.5 | BA4: 0.01 | BB4: 1 | BC4: 2 | BD4: 2.5 | BE4: 1 | BF4: 2 | BG4: 5 | BH4: 0.7 | BI4: 0.5 | BJ4: 10 | BK4: =BK3 -> 15 | BL4: 1 | BM4: 1 | BN4: =İNEK!D3 -> 8.714034926 | BO4: =İNEK!D4 -> 0 | BP4: =İNEK!D5 -> 0 | BQ4: =İNEK!D6 -> 2.124764004 | BR4: =İNEK!D7 -> 0 | BS4: =İNEK!D8 -> 0 | BT4: =İNEK!D9 -> 0 | BU4: =İNEK!D10 -> 0 | BV4: =İNEK!D11 -> 4.60126345 | BW4: =İNEK!D12 -> 0 | BX4: =İNEK!D13 -> 0 | BY4: =İNEK!D14 -> 0 | BZ4: =İNEK!D15 -> 0 | CA4: =İNEK!D16 -> 7.348169032 | CB4: =İNEK!D17 -> 1.521774869 | CC4: =İNEK!D18 -> 0.2734167576 | CD4: =İNEK!D19 -> 0 | CE4: =İNEK!D20 -> 0 | CF4: 57512.63051 | CG4: 0 | CH4: 0 | CI4: 14023.44243 | CJ4: 0 | CK4: 0 | CL4: 0 | CM4: 0 | CN4: 30368.33877 | CO4: 0 | CP4: 0 | CQ4: 0 | CR4: 0 | CS4: 48497.91561 | CT4: 10043.71413 | CU4: 1804.5506 | CV4: 0 | CW4: 0 | CX4: 138030.3132 | CY4: 0 | CZ4: 0 | DA4: 21035.16364 | DB4: 0 | DC4: 0 | DD4: 0 | DE4: 0 | DF4: 75920.84692 | DG4: 0 | DH4: 0 | DI4: 0 | DJ4: 0 | DK4: 24248.95781 | DL4: 100437.1413 | DM4: 27068.259 | DN4: 0 | DO4: 0 | DP4: =SUM(CX4:DO4) -> 386740.6819 | DQ4: =İNEK!M13 -> 40 | DR4: =H4/DQ4 -> 2.2 | DS4: =GENELVERİ!$D$11/20*HESAP!DR4*HESAP!G4 -> 0 | DT4: =DS4 -> 0 | DV4: =GENELVERİ!N3 -> 1 | DW4: =DV4*H4/100 -> 0.88 | DX4: =DW4*GENELVERİ!$D$12 -> 0 | EB4: =GENELVERİ!O3 -> 100 | EC4: =GENELVERİ!P3 -> 1 | ED4: =GENELVERİ!Q3 -> 1 | EE4: 88 | EF4: 0.88 | EG4: 0.88 | EH4: =EE4*GENELVERİ!$D$16 -> 0 | EI4: =EF4*GENELVERİ!$D$14 -> 0 | EJ4: =EG4*GENELVERİ!$D$15 -> 0 | FA4: =GENELVERİ!C3 -> 0 | FB4: =GENELVERİ!D3 -> 0 | FC4: =GENELVERİ!E3 -> 0 | FD4: =GENELVERİ!F3 -> 0 | FE4: =GENELVERİ!G3 -> 0 | FF4: =FA4+FB4 -> 0 | FH4: =FC4+FD4+FE4 -> 0 | FJ4: =GENELVERİ!L3 -> 0,05 | FK4: =FF4*FJ4 -> 0 | FM4: =GENELVERİ!M3 -> 0,10 | FN4: =FH4*FM4 -> 0 | FP4: =GENELVERİ!H3 -> 0 | FQ4: =FP4 -> 0 | FR4: =GENELVERİ!I3 -> 0 | FT4: =GENELVERİ!J3 -> 0 | FV4: =İNEK!F27*4.183*H4*G4 -> 1509310.363 | FZ4: =İNEK!F26 -> 18.05 | GA4: =İNEK!F36 -> 18.9999999 | GB4: =İNEK!F37 -> 33.42182868 | GC4: =İNEK!F27 -> 54.66970795 | GD4: =5.58+0.848*FZ4*GB4/100 -> 10.69567879 | GE4: =IF(GD4=5.58,0,IF(GD4>5.6,GD4)) -> 10.69567879 | GF4: =SUM(GE4:GE4)*H4*G4 -> 70591.47998 | GI4: =AT4 -> 479171 | GJ4: =FP4+GI4 -> 479171 | GL4: =DP4+DT4+DX4+EA4+EH4+EI4+EJ4+ES4+ET4+EU4+EV4+EW4+EX4+EY4+FK4+FN4+FR4+FT4 -> 386740.6819 | GN4: =GJ4-GL4 -> 92430.31807 | GP4: =(FZ4*G4)*H4 -> 119130 | GQ4: =(AD4*(6.809+1.223*İNEK!M7))/100 -> 26348.652 | GR4: =C4*I4*0.3 -> 0 | GS4: =AQ4*0.3 -> 119130 | GT4: =GP4 -> 119130 | GU4: =GQ4+GR4+GS4 -> 145478.652 | GV4: =EO4+EM4*1000+CW4+CV4+CU4+CT4+CS4+CR4+CQ4+CP4+CO4+CN4+CM4+CL4+CK4+CJ4+CI4+CH4+CG4+CF4+C4*H4-C4*H4 -> 162250.592 | GW4: =AQ4+AD4+I4*C4 -> 634700 | GX4: =GV4-GW4 -> -472449.408
B5: İnek lak ort | C5: =İNEK!N3 -> 560 | F5: =G5 -> 160 | G5: =İNEK!N5 -> 160 | H5: =H4-İNEK!N2 -> 88 | I5: =M5 -> 0 | M5: =İNEK!N9 -> 0 | N5: =POWER(C5,3/4)/POWER(500,3/4)*H5 -> 95.80676788 | Q5: =İNEK!N10/100 -> 0.5 | R5: =Q5*C5 -> 280 | S5: =M5*R5 -> 0 | T5: =I5*R5*İNEK!N11/100 -> 0 | U5: =T5*İNEK!N12/100 -> 0 | Z5: =AC5*AD5/100 -> 8923.2 | AC5: =1.9+İNEK!N7*0.4 -> 3.38 | AD5: =AE5*H5 -> 264000 | AE5: =AF5*AG5 -> 3000 | AF5: =İNEK!N6 -> 25 | AG5: =İNEK!N8 -> 120 | AH5: =GENELVERİ!B4 -> 26 | AI5: =AH5*R5 -> 7280 | AJ5: =AI5*I5 -> 0 | AK5: =GENELVERİ!G11 -> 2 | AL5: =AE5*AK5 -> 6000 | AM5: =AL5*H5 -> 528000 | AP5: =FZ5/0.3 -> 62.58333333 | AQ5: =AP5*H5*G5 -> 881173.3333 | AR5: =AN3*AQ5 -> 8811.733333 | AS5: =AR5 -> 8811.733333 | AT5: =AM5+AJ5+AS5 -> 536811.7333 | AV5: =AV4 -> 2.4 | AW5: 2.2 | AX5: 0.6 | AY5: 1.5 | AZ5: 0.5 | BA5: 0.01 | BB5: 1 | BC5: 2 | BD5: 2.5 | BE5: 1 | BF5: 2 | BG5: 5 | BH5: 0.7 | BI5: 0.5 | BJ5: 10 | BK5: 15 | BL5: 1 | BM5: 1 | BN5: =İNEK!E3 -> 0.124076937 | BO5: =İNEK!E4 -> 0 | BP5: =İNEK!E5 -> 0 | BQ5: =İNEK!E6 -> 8.694779768 | BR5: =İNEK!E7 -> 0 | BS5: =İNEK!E8 -> 52.63618444 | BT5: =İNEK!E9 -> 0 | BU5: =İNEK!E10 -> 0 | BV5: =İNEK!E11 -> 0 | BW5: =İNEK!E12 -> 0 | BX5: =İNEK!E13 -> 0 | BY5: =İNEK!E14 -> 0 | BZ5: =İNEK!E15 -> 0 | CA5: =İNEK!E16 -> 0 | CB5: =İNEK!E17 -> 0 | CC5: =İNEK!E18 -> 0 | CD5: =İNEK!E19 -> 0.0866177825 | CE5: =İNEK!E20 -> 0.08583108318 | CF5: 1747.003273 | CG5: 0 | CH5: 0 | CI5: 122422.4991 | CJ5: 0 | CK5: 741117.4768 | CL5: 0 | CM5: 0 | CN5: 0 | CO5: 0 | CP5: 0 | CQ5: 0 | CR5: 0 | CS5: 0 | CT5: 0 | CU5: 0 | CV5: 1219.578378 | CW5: 1208.501651 | CX5: 4192.807856 | CY5: 0 | CZ5: 0 | DA5: 183633.7487 | DB5: 0 | DC5: 7411.174768 | DD5: 0 | DE5: 0 | DF5: 0 | DG5: 0 | DH5: 0 | DI5: 0 | DJ5: 0 | DK5: 0 | DL5: 0 | DM5: 0 | DN5: 1219.578378 | DO5: 1208.501651 | DP5: =SUM(CX5:DO5) -> 197665.8114 | DQ5: =İNEK!N13 -> 40 | DR5: =H5/DQ5 -> 2.2 | DS5: =GENELVERİ!$D$11/20*HESAP!DR5*HESAP!G5 -> 0 | DT5: =DS5 -> 0 | DV5: =GENELVERİ!N4 -> 0 | DW5: =DV5*H5/100 -> 0 | DX5: =DW5*GENELVERİ!$D$12 -> 0 | EB5: =GENELVERİ!O4 -> 0 | EC5: =GENELVERİ!P4 -> 0 | ED5: =GENELVERİ!Q4 -> 0 | EE5: 0 | EF5: 0 | EG5: 0 | EH5: =EE5*GENELVERİ!$D$16 -> 0 | EI5: =EF5*GENELVERİ!$D$14 -> 0 | EJ5: =EG5*GENELVERİ!$D$15 -> 0 | FA5: =GENELVERİ!C4 -> 0 | FB5: =GENELVERİ!D4 -> 0 | FC5: =GENELVERİ!E4 -> 0 | FD5: =GENELVERİ!F4 -> 0 | FE5: =GENELVERİ!G4 -> 0 | FF5: =FA5+FB5 -> 0 | FH5: =FC5+FD5+FE5 -> 0 | FJ5: =GENELVERİ!L4 -> 0,05 | FK5: =FF5*FJ5 -> 0 | FM5: =GENELVERİ!M4 -> 0,10 | FN5: =FH5*FM5 -> 0 | FP5: =GENELVERİ!H4 -> 0 | FQ5: =FP5 -> 0 | FR5: =GENELVERİ!I4 -> 0 | FT5: =GENELVERİ!J4 -> 0 | FV5: =İNEK!I27*4.183*H5*G5 -> 2916240.487 | FZ5: =İNEK!I26 -> 18.775 | GA5: =İNEK!I36 -> 22.38951859 | GB5: =İNEK!I37 -> 42.10019408 | GC5: =İNEK!I27 -> 49.51454764 | GD5: =5.58+0.848*FZ5*GB5/100 -> 12.2828561 | GE5: =IF(GD5=5.58,0,IF(GD5>5.6,GD5)) -> 12.2828561 | GF5: =SUM(GE5:GE5)*H5*G5 -> 172942.6139 | GI5: =AT5 -> 536811.7333 | GJ5: =FP5+GI5 -> 536811.7333 | GL5: =DP5+DT5+DX5+EA5+EH5+EI5+EJ5+ES5+ET5+EU5+EV5+EW5+EX5+EY5+FK5+FN5+FR5+FT5 -> 197665.8114 | GN5: =GJ5-GL5 -> 339145.922 | GP5: =(FZ5*G5)*H5 -> 264352 | GQ5: =(AD5*(6.809+1.223*İNEK!N7))/100 -> 29922.024 | GR5: =C5*I5*0.3 -> 0 | GS5: =AQ5*0.3 -> 264352 | GT5: =GP5 -> 264352 | GU5: =GQ5+GR5+GS5 -> 294274.024 | GV5: =EO5+EM5*1000+CW5+CV5+CU5+CT5+CS5+CR5+CQ5+CP5+CO5+CN5+CM5+CL5+CK5+CJ5+CI5+CH5+CG5+CF5+C5*H5-C5*H5 -> 867715.0593 | GW5: =AQ5+AD5+I5*C5 -> 1145173.333 | GX5: =GV5-GW5 -> -277458.274
B6: inek lakson | C6: =İNEK!O3 -> 600 | F6: =G6 -> 75 | G6: =İNEK!O5 -> 75 | H6: =H5-İNEK!O2 -> 88 | I6: =M6 -> 0 | M6: =İNEK!O9 -> 0 | N6: =POWER(C6,3/4)/POWER(500,3/4)*H6 -> 100.8947589 | Q6: =İNEK!O10/100 -> 0.5 | R6: =Q6*C6 -> 300 | S6: =M6*R6 -> 0 | T6: =I6*R6*İNEK!O11/100 -> 0 | U6: =T6*İNEK!O12/100 -> 0 | Z6: =AC6*AD6/100 -> 4338.84 | AC6: =1.9+İNEK!O7*0.4 -> 3.46 | AD6: =AE6*H6 -> 125400 | AE6: =AF6*AG6 -> 1425 | AF6: =İNEK!O6 -> 15 | AG6: =İNEK!O8 -> 95 | AH6: =GENELVERİ!B5 -> 30 | AI6: =AH6*R6 -> 9000 | AJ6: =AI6*I6 -> 0 | AK6: =GENELVERİ!G11 -> 2 | AL6: =AE6*AK6 -> 2850 | AM6: =AL6*H6 -> 250800 | AP6: =FZ6/0.3 -> 42.88732487 | AQ6: =AP6*H6*G6 -> 283056.3442 | AR6: =AN3*AQ6 -> 2830.563442 | AS6: =AR6 -> 2830.563442 | AT6: =AM6+AJ6+AS6 -> 253630.5634 | AV6: =AV5 -> 2.4 | AW6: 2.2 | AX6: 0.6 | AY6: 1.5 | AZ6: 0.5 | BA6: 0.01 | BB6: 1 | BC6: 2 | BD6: 2.5 | BE6: 1 | BF6: 2 | BG6: 5 | BH6: 0.7 | BI6: 0.5 | BJ6: 10 | BK6: 15 | BL6: 1 | BM6: 1 | BN6: =İNEK!F3 -> 3.98271 | BO6: =İNEK!F4 -> 0 | BP6: =İNEK!F5 -> 0 | BQ6: =İNEK!F6 -> 6.003219951 | BR6: =İNEK!F7 -> 1.497443935e-08 | BS6: =İNEK!F8 -> 0 | BT6: =İNEK!F9 -> 0 | BU6: =İNEK!F10 -> 0 | BV6: =İNEK!F11 -> 0 | BW6: =İNEK!F12 -> 0 | BX6: =İNEK!F13 -> 0 | BY6: =İNEK!F14 -> 0 | BZ6: =İNEK!F15 -> 0 | CA6: =İNEK!F16 -> 10.14565302 | CB6: =İNEK!F17 -> 0 | CC6: =İNEK!F18 -> 0.1313707964 | CD6: =İNEK!F19 -> 0.04275646848 | CE6: =İNEK!F20 -> 0.08282130481 | CF6: 26285.886 | CG6: 0 | CH6: 0 | CI6: 39621.25168 | CJ6: 9.883129973e-05 | CK6: 0 | CL6: 0 | CM6: 0 | CN6: 0 | CO6: 0 | CP6: 0 | CQ6: 0 | CR6: 0 | CS6: 66961.30995 | CT6: 0 | CU6: 867.0472562 | CV6: 282.1926919 | CW6: 546.6206117 | CX6: 63086.12639 | CY6: 0 | CZ6: 0 | DA6: 59431.87752 | DB6: 4.941564986e-05 | DC6: 0 | DD6: 0 | DE6: 0 | DF6: 0 | DG6: 0 | DH6: 0 | DI6: 0 | DJ6: 0 | DK6: 33480.65497 | DL6: 0 | DM6: 13005.70884 | DN6: 282.1926919 | DO6: 546.6206117 | DP6: =SUM(CX6:DO6) -> 169833.1811 | DQ6: =İNEK!O13 -> 40 | DR6: =H6/DQ6 -> 2.2 | DS6: =GENELVERİ!$D$11/20*HESAP!DR6*HESAP!G6 -> 0 | DT6: =DS6 -> 0 | DV6: =GENELVERİ!N5 -> 0 | DW6: =DV6*H6/100 -> 0 | DX6: =DW6*GENELVERİ!$D$12 -> 0 | EB6: =GENELVERİ!O5 -> 0 | EC6: =GENELVERİ!P5 -> 0 | ED6: =GENELVERİ!Q5 -> 0 | EE6: 0 | EF6: 0 | EG6: 0 | EH6: =EE6*GENELVERİ!$D$16 -> 0 | EI6: =EF6*GENELVERİ!$D$14 -> 0 | EJ6: =EG6*GENELVERİ!$D$15 -> 0 | FA6: =GENELVERİ!C5 -> 0 | FB6: =GENELVERİ!D5 -> 0 | FC6: =GENELVERİ!E5 -> 0 | FD6: =GENELVERİ!F5 -> 0 | FE6: =GENELVERİ!G5 -> 0 | FF6: =FA6+FB6 -> 0 | FH6: =FC6+FD6+FE6 -> 0 | FJ6: =GENELVERİ!L5 -> 0,05 | FK6: =FF6*FJ6 -> 0 | FM6: =GENELVERİ!M5 -> 0,10 | FN6: =FH6*FM6 -> 0 | FP6: =GENELVERİ!H5 -> 0 | FQ6: =FP6 -> 0 | FR6: =GENELVERİ!I5 -> 0 | FT6: =GENELVERİ!J5 -> 0 | FV6: =İNEK!L27*4.183*H6*G6 -> 1008437.34 | FZ6: =İNEK!L26 -> 12.86619746 | GA6: =İNEK!L36 -> 18.99999998 | GB6: =İNEK!L37 -> 36.43091691 | GC6: =İNEK!L27 -> 36.52726187 | GD6: =5.58+0.848*FZ6*GB6/100 -> 9.554808103 | GE6: =IF(GD6=5.58,0,IF(GD6>5.6,GD6)) -> 9.554808103 | GF6: =SUM(GE6:GE6)*H6*G6 -> 63061.73348 | GI6: =AT6 -> 253630.5634 | GJ6: =FP6+GI6 -> 253630.5634 | GL6: =DP6+DT6+DX6+EA6+EH6+EI6+EJ6+ES6+ET6+EU6+EV6+EW6+EX6+EY6+FK6+FN6+FR6+FT6 -> 169833.1811 | GN6: =GJ6-GL6 -> 83797.38236 | GP6: =(FZ6*G6)*H6 -> 84916.90325 | GQ6: =(AD6*(6.809+1.223*İNEK!O7))/100 -> 14519.6898 | GR6: =C6*I6*0.3 -> 0 | GS6: =AQ6*0.3 -> 84916.90325 | GT6: =GP6 -> 84916.90325 | GU6: =GQ6+GR6+GS6 -> 99436.59305 | GV6: =EO6+EM6*1000+CW6+CV6+CU6+CT6+CS6+CR6+CQ6+CP6+CO6+CN6+CM6+CL6+CK6+CJ6+CI6+CH6+CG6+CF6+C6*H6-C6*H6 -> 134564.3083 | GW6: =AQ6+AD6+I6*C6 -> 408456.3442 | GX6: =GV6-GW6 -> -273892.0359
B7: E.DOĞUM
B8: D.DOĞUM
H9: =H3+H10+H13+H15+H18 -> 268 | I9: =SUM(I3:I6,I10:I13,I15:I18) -> 84 | S9: =SUM(S3:S6,S10:S13,S15:S18) -> 27098.57 | W9: =SUM(V3+V10+V15) -> 3141.78262 | X9: =W9+Y9 -> 24244.62262 | Y9: =SUM(Z4:Z6) -> 21102.84 | AA9: =AA3 -> 627000 | AJ9: =SUM(AJ3:AJ6,AJ10:AJ13,AJ15:AJ18) -> 873841.1 | AM9: =SUM(AM4:AM8) -> 1254000 | AS9: =SUM(AS3:AS6,AS10:AS13,AS15:AS18) -> 29949.89667 | AT9: =AJ9+AM9+AS9 -> 2157790.997 | AU9: =SUM(AT3:AT6,AT10:AT13,AT15:AT18) -> 2157790.997 | AV9: ='E.BUZAĞI-TOSUN'!A3 -> Çayır-Baklagil Kuru Otu, Olgun> %53 NDF | AW9: ='E.BUZAĞI-TOSUN'!A4 -> Yağ, Ca Sabunları | AX9: ='E.BUZAĞI-TOSUN'!A5 -> Buğday, Ezme | AY9: ='E.BUZAĞI-TOSUN'!A6 -> Buzağı Başlangıç Yemi | AZ9: ='E.BUZAĞI-TOSUN'!A7 -> Buzağı Büyütme Yemi | BA9: ='E.BUZAĞI-TOSUN'!A8 -> Sığır Besi Yemi | BB9: ='E.BUZAĞI-TOSUN'!A9 -> Mısır Silajı, %33-40 KM | BC9: ='E.BUZAĞI-TOSUN'!A10 -> Çayır Merası, Soğuk Mevsim, Bakımlı | BD9: ='E.BUZAĞI-TOSUN'!A11 -> Soya Küspesi, Ekspeller, %45 HP | BE9: ='E.BUZAĞI-TOSUN'!A12 -> Çayır Kuru Otu, Soğuk Mevsim | BF9: ='E.BUZAĞI-TOSUN'!A13 -> Buğday Samanı | BG9: ='E.BUZAĞI-TOSUN'!A14 -> Çayır Merası, Soğuk Mevsim, Bakımlı | BH9: ='E.BUZAĞI-TOSUN'!A15 -> Melas, Şeker Pancarı | BI9: ='E.BUZAĞI-TOSUN'!A16 -> Arpa , Ezme | BJ9: ='E.BUZAĞI-TOSUN'!A17 -> Amonyum Fosfat (Dibazik), (NH4) 2HPO4 | BK9: ='E.BUZAĞI-TOSUN'!A18 -> Kalsiyum Karbonat, CaCO3 | BL9: ='E.BUZAĞI-TOSUN'!A19 -> Süt | BM9: ='E.BUZAĞI-TOSUN'!A20 -> Süt İkamesi, 18 HP, 20 YAĞ | BN9: =AV9 -> Çayır-Baklagil Kuru Otu, Olgun> %53 NDF | BO9: Yağ, Ca Sabunları | BP9: Buğday, Ezme | BQ9: Buzağı Başlangıç Yemi | BR9: Buzağı Büyütme Yemi | BS9: Sığır Besi Yemi | BT9: Mısır Silajı, %33-40 KM | BU9: Çayır Merası, Soğuk Mevsim, Bakımlı | BV9: Soya Küspesi, Ekspeller, %45 HP | BW9: Çayır Kuru Otu, Soğuk Mevsim | BX9: Buğday Samanı | BY9: Çayır Merası, Soğuk Mevsim, Bakımlı | BZ9: Melas, Şeker Pancarı | CA9: Arpa , Ezme | CB9: Amonyum Fosfat (Dibazik), (NH4) 2HPO4 | CC9: Kalsiyum Karbonat, CaCO3 | CD9: Süt | CE9: Süt İkamesi, 18 HP, 20 YAĞ | CF9: =AV9 -> Çayır-Baklagil Kuru Otu, Olgun> %53 NDF | CG9: Yağ, Ca Sabunları | CH9: Buğday, Ezme | CI9: Buzağı Başlangıç Yemi | CJ9: Buzağı Büyütme Yemi | CK9: Sığır Besi Yemi | CL9: Mısır Silajı, %33-40 KM | CM9: Çayır Merası, Soğuk Mevsim, Bakımlı | CN9: Soya Küspesi, Ekspeller, %45 HP | CO9: Çayır Kuru Otu, Soğuk Mevsim | CP9: Buğday Samanı | CQ9: Çayır Merası, Soğuk Mevsim, Bakımlı | CR9: Melas, Şeker Pancarı | CS9: Arpa , Ezme | CT9: Amonyum Fosfat (Dibazik), (NH4) 2HPO4 | CU9: Kalsiyum Karbonat, CaCO3 | CV9: Süt | CW9: Süt İkamesi, 18 HP, 20 YAĞ | DP9: =SUM(DP3:DP6,DP10:DP13,DP15:DP18) -> 1597415.499 | DU9: =SUM(DT3:DT6,DT10:DT13,DT15:DT18) -> 0 | DY9: =DX3+DX4+DX5+DX6+DX10+DX11+DX12+DX13+DX15+DX16+DX17+DX18 -> 0 | EA9: =EA3 -> 0 | EK9: =SUM(EH3:EJ6,EH10:EJ13,EH15:EJ18) -> 0 | EZ9: =ES3+ET3+EU3+EV3+EW3+EX3+EY3 -> 0 | FL9: =FK3+FK4+FK5+FK6+FK10+FK11+FK12+FK13+FK15+FK16+FK17+FK18 -> 0 | FO9: =FN3+FN4+FN5+FN6+FN10+FN11+FN12+FN13+FN15+FN16+FN17+FN18 -> 0 | FQ9: =FP3+FP4+FP5+FP6+FP10+FP11+FP12+FP13+FP15+FP16+FP17+FP18 -> 0 | FS9: =FR3+FR4+FR5+FR6+FR10+FR11+FR12+FR13+FR15+FR16+FR17+FR18 -> 0 | FU9: =FT3+FT4+FT5+FT6+FT10+FT11+FT12+FT13+FT15+FT16+FT17+FT18 -> 0 | FX9: =SUM(FW3,FV10:FV13,FV15:FV18) -> 9877822.985 | FY9: =FX9/X9 -> 407.4232517 | GG9: =SUM(GF3:GF6,GF10:GF13,GF15:GF18) -> 755562.8779 | GH9: =GG9/X9 -> 31.16414265 | GI9: =AU9 -> 2157790.997 | GK9: =SUM(GJ3:GJ6,GJ10:GJ13,GJ15:GJ18) -> 2157790.997 | GM9: =SUM(GL3:GL6,GL10:GL13,GL15:GL18) -> 1597415.499 | GO9: =SUM(GN3:GN6,GN10:GN13,GN15:GN18) -> 560375.4977 | GT9: =SUM(GT3:GT6,GT10:GT13,GT15:GT18) -> 898496.9002 | GU9: =SUM(GU3:GU6,GU10:GU13,GU15:GU18) -> 974537.266 | GV9: =SUM(GV3:GV6,GV10:GV13,GV15:GV18) -> 1918339.295 | GW9: =SUM(GW3:GW6,GW10:GW13,GW15:GW18) -> 3670351.067 | GX9: =SUM(GX3:GX6,GX10:GX13,GX15:GX18) -> -1752011.772 | GY9: =GV9-GW9-GX9 -> 0
B10: Erkek Buzağı | C10: ='E.BUZAĞI-TOSUN'!O21 -> 89 | E10: ='E.BUZAĞI-TOSUN'!L4 -> 750 | F10: =G10 -> 60 | G10: ='E.BUZAĞI-TOSUN'!L5 -> 60 | H10: ='E.BUZAĞI-TOSUN'!L2 -> 40 | I10: =M10 -> 0 | M10: ='E.BUZAĞI-TOSUN'!L6 -> 0 | N10: =POWER(C10,3/4)/POWER(500,3/4)*H10 -> 10.96162632 | O10: =(N13+N12+N11+N10)/4 -> 25.45882144 | Q10: ='E.BUZAĞI-TOSUN'!L7/100 -> 0.5 | R10: =Q10*C10 -> 44.5 | S10: =I10*R10 -> 0 | T10: =S10*'E.BUZAĞI-TOSUN'!L8/100 -> 0 | U10: =T10*'E.BUZAĞI-TOSUN'!L9/100 -> 0 | V10: =U10+U11+U12+U13 -> 1704.752 | AH10: =GENELVERİ!B6 -> 40 | AI10: =AH10*R10 -> 1780 | AJ10: =AI10*I10 -> 0 | AP10: =FZ10/0.3 -> 4.158244589 | AQ10: =AP10*H10*G10 -> 9979.787014 | AR10: =AN3*AQ10 -> 99.79787014 | AS10: =AR10 -> 99.79787014 | AT10: =AM10+AJ10+AS10 -> 99.79787014 | AV10: ='E.BUZAĞI-TOSUN'!B3 -> 1 | AW10: ='E.BUZAĞI-TOSUN'!B4 -> 15 | AX10: ='E.BUZAĞI-TOSUN'!B5 -> 1.5 | AY10: ='E.BUZAĞI-TOSUN'!B6 -> 2.5 | AZ10: ='E.BUZAĞI-TOSUN'!B7 -> 3 | BA10: ='E.BUZAĞI-TOSUN'!B8 -> 2 | BB10: ='E.BUZAĞI-TOSUN'!B9 -> 0.6 | BC10: ='E.BUZAĞI-TOSUN'!B10 -> 0.01 | BD10: ='E.BUZAĞI-TOSUN'!B11 -> 5 | BE10: ='E.BUZAĞI-TOSUN'!B12 -> 1 | BF10: ='E.BUZAĞI-TOSUN'!B13 -> 0.6 | BG10: ='E.BUZAĞI-TOSUN'!B14 -> 0.01 | BH10: ='E.BUZAĞI-TOSUN'!B15 -> 3 | BI10: ='E.BUZAĞI-TOSUN'!B16 -> 1.5 | BJ10: ='E.BUZAĞI-TOSUN'!B17 -> 1 | BK10: ='E.BUZAĞI-TOSUN'!B18 -> 1 | BL10: ='E.BUZAĞI-TOSUN'!B19 -> 2 | BM10: ='E.BUZAĞI-TOSUN'!B20 -> 1 | BN10: ='E.BUZAĞI-TOSUN'!C3 -> 0 | BO10: ='E.BUZAĞI-TOSUN'!C4 -> 0.3160167121 | BP10: ='E.BUZAĞI-TOSUN'!C5 -> 0 | BQ10: ='E.BUZAĞI-TOSUN'!C6 -> 0 | BR10: ='E.BUZAĞI-TOSUN'!C7 -> 0 | BS10: ='E.BUZAĞI-TOSUN'!C8 -> 0 | BT10: ='E.BUZAĞI-TOSUN'!C9 -> 0 | BU10: ='E.BUZAĞI-TOSUN'!C10 -> 0 | BV10: ='E.BUZAĞI-TOSUN'!C11 -> 0.4423094356 | BW10: ='E.BUZAĞI-TOSUN'!C12 -> 0 | BX10: ='E.BUZAĞI-TOSUN'!C13 -> 0 | BY10: ='E.BUZAĞI-TOSUN'!C14 -> 0 | BZ10: ='E.BUZAĞI-TOSUN'!C15 -> 0 | CA10: ='E.BUZAĞI-TOSUN'!C16 -> 0 | CB10: ='E.BUZAĞI-TOSUN'!C17 -> 1.958120812e-07 | CC10: ='E.BUZAĞI-TOSUN'!C18 -> 0 | CD10: ='E.BUZAĞI-TOSUN'!C19 -> 4.4 | CE10: ='E.BUZAĞI-TOSUN'!C20 -> 0 | CF10: =BN10*$H10*$G10 -> 0 | CG10: 758.4401092 | CH10: 0 | CI10: 0 | CJ10: 0 | CK10: 0 | CL10: 0 | CM10: 0 | CN10: 1061.542645 | CO10: 0 | CP10: =BX10*$H10*$G10 -> 0 | CQ10: 0 | CR10: 0 | CS10: 0 | CT10: 0.0004699489949 | CU10: 0 | CV10: 10560 | CW10: 0 | CX10: =CF10*AV10 -> 0 | CY10: 11376.60164 | CZ10: 0 | DA10: 0 | DB10: 0 | DC10: 0 | DD10: 0 | DE10: 0 | DF10: 5307.713227 | DG10: 0 | DH10: =CP10*BF10 -> 0 | DI10: 0 | DJ10: 0 | DK10: 0 | DL10: 0.0004699489949 | DM10: 0 | DN10: 21120 | DO10: 0 | DP10: =SUM(CX10:DO10) -> 37804.31533 | DQ10: ='E.BUZAĞI-TOSUN'!L10 -> 70 | DR10: =H10/DQ10 -> 0.5714285714 | DS10: =GENELVERİ!$D$11/20*HESAP!DR10*HESAP!G10 -> 0 | DT10: =DS10 -> 0 | DV10: =GENELVERİ!N6 -> 1 | DW10: =DV10*H10/100 -> 0.4 | DX10: =DW10*GENELVERİ!$D$12 -> 0 | EB10: =GENELVERİ!O6 -> 0 | EC10: =GENELVERİ!P6 -> 1 | ED10: =GENELVERİ!Q6 -> 1 | EE10: =EB10*$H10/100 -> 0 | EF10: =EC10*$H10/100 -> 0.4 | EG10: =ED10*$H10/100 -> 0.4 | EH10: =EE10*GENELVERİ!$D$16 -> 0 | EI10: =EF10*GENELVERİ!$D$14 -> 0 | EJ10: =EG10*GENELVERİ!$D$15 -> 0 | FA10: =GENELVERİ!C6 -> 0 | FB10: =GENELVERİ!D6 -> 0 | FC10: =GENELVERİ!E6 -> 0 | FD10: =GENELVERİ!F6 -> 0 | FE10: =GENELVERİ!G6 -> 0 | FF10: =FA10+FB10 -> 0 | FH10: =FC10+FD10+FE10 -> 0 | FJ10: =GENELVERİ!L6 -> 0,05 | FK10: =FF10*FJ10 -> 0 | FM10: =GENELVERİ!M6 -> 0,10 | FN10: =FH10*FM10 -> 0 | FP10: =GENELVERİ!H6 -> 0 | FQ10: =FP10 -> 0 | FR10: =GENELVERİ!I6 -> 0 | FT10: =GENELVERİ!J6 -> 0 | FV10: ='E.BUZAĞI-TOSUN'!C25*4.183*H10*G10 -> 62970.62327 | FZ10: ='E.BUZAĞI-TOSUN'!C24 -> 1.247473377 | GA10: ='E.BUZAĞI-TOSUN'!C34 -> 0 | GB10: ='E.BUZAĞI-TOSUN'!C35 -> 0 | GC10: ='E.BUZAĞI-TOSUN'!C25 -> 6.272474228 | GD10: =5.58+0.848*FZ10*GB10/100 -> 5.58 | GE10: =IF(GD10=5.58,0,IF(GD10>5.6,GD10)) -> 0 | GF10: =SUM(GE10:GE10)*H10*G10 -> 0 | GI10: =AT10 -> 99.79787014 | GJ10: =FP10+GI10 -> 99.79787014 | GL10: =DP10+DT10+DX10+EA10+EH10+EI10+EJ10+ES10+ET10+EU10+EV10+EW10+EX10+EY10+FK10+FN10+FR10+FT10 -> 37804.31533 | GN10: =GJ10-GL10 -> -37704.51746 | GP10: =(FZ10*G10)*H10 -> 2993.936104 | GR10: =I10*C10*0.3 -> 0 | GS10: =AQ10*0.3 -> 2993.936104 | GT10: =GP10 -> 2993.936104 | GU10: =GQ10+GR10+GS10 -> 2993.936104 | GV10: =EO10+EM10*1000+CW10+CV10+CU10+CT10+CS10+CR10+CQ10+CP10+CO10+CN10+CM10+CL10+CK10+CJ10+CI10+CH10+CG10+CF10+C10*H10-C10*H10 -> 12379.98322 | GW10: =AQ10+AD10+I10*C10 -> 9979.787014 | GX10: =GV10-GW10 -> 2400.19621
B11: Tosun Başlangıç | C11: ='E.BUZAĞI-TOSUN'!O23 -> 191 | E11: ='E.BUZAĞI-TOSUN'!M4 -> 850 | F11: =G11 -> 120 | G11: ='E.BUZAĞI-TOSUN'!M5 -> 120 | H11: ='E.BUZAĞI-TOSUN'!M2 -> 40 | I11: 0 | M11: ='E.BUZAĞI-TOSUN'!M6 -> 0 | N11: =POWER(C11,3/4)/POWER(500,3/4)*H11 -> 19.43602789 | Q11: ='E.BUZAĞI-TOSUN'!M7/100 -> 0.55 | R11: =Q11*C11 -> 105.05 | S11: =M11*R11 -> 0 | T11: =S11*'E.BUZAĞI-TOSUN'!M8/100 -> 0 | U11: =T11*'E.BUZAĞI-TOSUN'!M9/100 -> 0 | AH11: =GENELVERİ!B8 -> 35 | AI11: =AH11*R11 -> 3676.75 | AJ11: =AI11*I11 -> 0 | AP11: =FZ11/0.3 -> 14.855674 | AQ11: =AP11*H11*G11 -> 71307.23521 | AR11: =AN3*AQ11 -> 713.0723521 | AS11: =AR11 -> 713.0723521 | AT11: =AM11+AJ11+AS11 -> 713.0723521 | AV11: =AV10 -> 1 | AW11: =AW10 -> 15 | AX11: 1.5 | AY11: 2.5 | AZ11: 3 | BA11: 2 | BB11: 0.6 | BC11: 0.01 | BD11: 5 | BE11: 1 | BF11: 0.6 | BG11: 0.01 | BH11: 3 | BI11: 1.5 | BJ11: 1 | BK11: 1 | BL11: 2 | BM11: 1 | BN11: ='E.BUZAĞI-TOSUN'!D3 -> 0 | BO11: ='E.BUZAĞI-TOSUN'!D4 -> 0.7728106164 | BP11: ='E.BUZAĞI-TOSUN'!D5 -> 1.602710586 | BQ11: ='E.BUZAĞI-TOSUN'!D6 -> 0 | BR11: ='E.BUZAĞI-TOSUN'!D7 -> 0 | BS11: ='E.BUZAĞI-TOSUN'!D8 -> 0 | BT11: ='E.BUZAĞI-TOSUN'!D9 -> 4.307233898 | BU11: ='E.BUZAĞI-TOSUN'!D10 -> 0 | BV11: ='E.BUZAĞI-TOSUN'!D11 -> 0.7090434246 | BW11: ='E.BUZAĞI-TOSUN'!D12 -> 0 | BX11: ='E.BUZAĞI-TOSUN'!D13 -> 0 | BY11: ='E.BUZAĞI-TOSUN'!D14 -> 0 | BZ11: ='E.BUZAĞI-TOSUN'!D15 -> 0 | CA11: ='E.BUZAĞI-TOSUN'!D16 -> 0 | CB11: ='E.BUZAĞI-TOSUN'!D17 -> 0.068988244 | CC11: ='E.BUZAĞI-TOSUN'!D18 -> 0.0540312337 | CD11: ='E.BUZAĞI-TOSUN'!D19 -> 0 | CE11: ='E.BUZAĞI-TOSUN'!D20 -> 0 | CF11: 0 | CG11: 3709.490959 | CH11: 7693.010811 | CI11: 0 | CJ11: 0 | CK11: 0 | CL11: 20674.72271 | CM11: 0 | CN11: 3403.408438 | CO11: 0 | CP11: 0 | CQ11: 0 | CR11: 0 | CS11: 0 | CT11: 331.1435712 | CU11: 259.3499217 | CV11: 0 | CW11: 0 | CX11: 0 | CY11: 55642.36438 | CZ11: 11539.51622 | DA11: 0 | DB11: 0 | DC11: 0 | DD11: 12404.83363 | DE11: 0 | DF11: 17017.04219 | DG11: 0 | DH11: 0 | DI11: 0 | DJ11: 0 | DK11: 0 | DL11: 331.1435712 | DM11: 259.3499217 | DN11: 0 | DO11: 0 | DP11: 97194.2499 | DQ11: ='E.BUZAĞI-TOSUN'!M10 -> 70 | DR11: =H11/DQ11 -> 0.5714285714 | DS11: =GENELVERİ!$D$11/20*HESAP!DR11*HESAP!G11 -> 0 | DT11: =DS11 -> 0 | DV11: =GENELVERİ!N8 -> 0 | DW11: =DV11*H11/100 -> 0 | DX11: =DW11*GENELVERİ!$D$12 -> 0 | EB11: =GENELVERİ!O8 -> 0 | EC11: =GENELVERİ!P8 -> 0 | ED11: =GENELVERİ!Q8 -> 0 | EE11: 0 | EF11: 0 | EG11: 0 | EH11: =EE11*GENELVERİ!$D$16 -> 0 | EI11: =EF11*GENELVERİ!$D$14 -> 0 | EJ11: =EG11*GENELVERİ!$D$15 -> 0 | FA11: =GENELVERİ!C8 -> 0 | FB11: =GENELVERİ!D8 -> 0 | FC11: =GENELVERİ!E8 -> 0 | FD11: =GENELVERİ!F8 -> 0 | FE11: =GENELVERİ!G8 -> 0 | FF11: =FA11+FB11 -> 0 | FH11: =FC11+FD11+FE11 -> 0 | FJ11: =GENELVERİ!L8 -> 0,05 | FK11: 0 | FM11: =GENELVERİ!M8 -> 0,10 | FN11: =FH11*FM11 -> 0 | FP11: =GENELVERİ!H8 -> 0 | FQ11: =FP11 -> 0 | FR11: =GENELVERİ!I8 -> 0 | FT11: =GENELVERİ!J8 -> 0 | FV11: ='E.BUZAĞI-TOSUN'!F25*4.183*H11*G11 -> 290273.1623 | FZ11: ='E.BUZAĞI-TOSUN'!F24 -> 4.456702201 | GA11: ='E.BUZAĞI-TOSUN'!F34 -> 19.00000084 | GB11: ='E.BUZAĞI-TOSUN'!F35 -> 34.48065319 | GC11: ='E.BUZAĞI-TOSUN'!F25 -> 14.45698673 | GD11: =5.58+0.848*FZ11*GB11/100 -> 6.883121625 | GE11: =IF(GD11=5.58,0,IF(GD11>5.6,GD11)) -> 6.883121625 | GF11: =SUM(GE11:GE11)*H11*G11 -> 33038.9838 | GI11: =AT11 -> 713.0723521 | GJ11: =FP11+GI11 -> 713.0723521 | GL11: =DP11+DT11+DX11+EA11+EH11+EI11+EJ11+ES11+ET11+EU11+EV11+EW11+EX11+EY11+FK11+FN11+FR11+FT11 -> 97194.2499 | GN11: =GJ11-GL11 -> -96481.17755 | GP11: =(FZ11*G11)*H11 -> 21392.17056 | GR11: =I11*C13*0.3 -> 0 | GS11: =AQ11*0.3 -> 21392.17056 | GT11: =GP11 -> 21392.17056 | GU11: =GQ11+GR11+GS11 -> 21392.17056 | GV11: =EO11+EM11*1000+CW11+CV11+CU11+CT11+CS11+CR11+CQ11+CP11+CO11+CN11+CM11+CL11+CK11+CJ11+CI11+CH11+CG11+CF11+C11*H11-C11*H11 -> 36071.12641 | GW11: =AQ11+AD11+I11*C11 -> 71307.23521 | GX11: =GV11-GW11 -> -35236.1088
B12: Tosun Besleme Ortası | C12: ='E.BUZAĞI-TOSUN'!O25 -> 371 | E12: ='E.BUZAĞI-TOSUN'!N4 -> 1000 | F12: =G12 -> 180 | G12: ='E.BUZAĞI-TOSUN'!N5 -> 180 | H12: ='E.BUZAĞI-TOSUN'!N2 -> 40 | I12: 0 | M12: ='E.BUZAĞI-TOSUN'!N6 -> 0 | N12: =POWER(C12,3/4)/POWER(500,3/4)*H12 -> 31.97885577 | Q12: ='E.BUZAĞI-TOSUN'!N7/100 -> 0.6 | R12: =Q12*C12 -> 222.6 | S12: =M12*R12 -> 0 | T12: =S12*'E.BUZAĞI-TOSUN'!M9/100 -> 0 | U12: =T12*'E.BUZAĞI-TOSUN'!N91/100 -> 0 | AH12: =GENELVERİ!B8 -> 35 | AI12: =AH12*R12 -> 7791 | AJ12: =AI12*I12 -> 0 | AP12: =FZ12/0.3 -> 24.5525463 | AQ12: =AP12*H12*G12 -> 176778.3334 | AR12: =AN3*AQ12 -> 1767.783334 | AS12: =AR12 -> 1767.783334 | AT12: =AM12+AJ12+AS12 -> 1767.783334 | AV12: =AV11 -> 1 | AW12: 15 | AX12: 1.5 | AY12: 2.5 | AZ12: 3 | BA12: 2 | BB12: 0.6 | BC12: 0.01 | BD12: 5 | BE12: 1 | BF12: 0.6 | BG12: 0.01 | BH12: 3 | BI12: 1.5 | BJ12: 1 | BK12: 1 | BL12: 2 | BM12: 1 | BN12: ='E.BUZAĞI-TOSUN'!E3 -> 0 | BO12: ='E.BUZAĞI-TOSUN'!E4 -> 0 | BP12: ='E.BUZAĞI-TOSUN'!E5 -> 0 | BQ12: ='E.BUZAĞI-TOSUN'!E6 -> 0 | BR12: ='E.BUZAĞI-TOSUN'!E7 -> 0 | BS12: ='E.BUZAĞI-TOSUN'!E8 -> 0 | BT12: ='E.BUZAĞI-TOSUN'!E9 -> 0 | BU12: ='E.BUZAĞI-TOSUN'!E10 -> 25 | BV12: ='E.BUZAĞI-TOSUN'!E11 -> 0 | BW12: ='E.BUZAĞI-TOSUN'!E12 -> 0 | BX12: ='E.BUZAĞI-TOSUN'!E13 -> 0 | BY12: ='E.BUZAĞI-TOSUN'!E14 -> 0 | BZ12: ='E.BUZAĞI-TOSUN'!E15 -> 0 | CA12: ='E.BUZAĞI-TOSUN'!E16 -> 2.5 | CB12: ='E.BUZAĞI-TOSUN'!E17 -> 0.02264508266 | CC12: ='E.BUZAĞI-TOSUN'!E18 -> 0.04311880782 | CD12: ='E.BUZAĞI-TOSUN'!E19 -> 0 | CE12: ='E.BUZAĞI-TOSUN'!E20 -> 0 | CF12: 0 | CG12: 0 | CH12: 0 | CI12: 0 | CJ12: 0 | CK12: 0 | CL12: 0 | CM12: 180000 | CN12: 0 | CO12: 0 | CP12: 0 | CQ12: 0 | CR12: 0 | CS12: 18000 | CT12: 163.0445952 | CU12: 310.4554163 | CV12: 0 | CW12: 0 | CX12: 0 | CY12: 0 | CZ12: 0 | DA12: 0 | DB12: 0 | DC12: 0 | DD12: 0 | DE12: 1800 | DF12: 0 | DG12: 0 | DH12: 0 | DI12: 0 | DJ12: 0 | DK12: 27000 | DL12: 163.0445952 | DM12: 310.4554163 | DN12: 0 | DO12: 0 | DP12: 29273.50001 | DQ12: ='E.BUZAĞI-TOSUN'!N10 -> 70 | DR12: =H12/DQ12 -> 0.5714285714 | DS12: =GENELVERİ!$D$11/20*HESAP!DR12*HESAP!G12 -> 0 | DT12: =DS12 -> 0 | DV12: =GENELVERİ!N8 -> 0 | DW12: =DV12*H12/100 -> 0 | DX12: =DW12*GENELVERİ!$D$12 -> 0 | EB12: =GENELVERİ!O8 -> 0 | EC12: =GENELVERİ!P8 -> 0 | ED12: =GENELVERİ!Q8 -> 0 | EE12: 0 | EF12: 0 | EG12: 0 | EH12: =EE12*GENELVERİ!$D$16 -> 0 | EI12: =EF12*GENELVERİ!$D$14 -> 0 | EJ12: =EG12*GENELVERİ!$D$15 -> 0 | FA12: =GENELVERİ!C8 -> 0 | FB12: =GENELVERİ!D8 -> 0 | FC12: =GENELVERİ!E8 -> 0 | FD12: =GENELVERİ!F8 -> 0 | FE12: =GENELVERİ!G8 -> 0 | FF12: =FA12+FB12 -> 0 | FH12: =FC12+FD12+FE12 -> 0 | FJ12: =GENELVERİ!L8 -> 0,05 | FK12: 0 | FM12: =GENELVERİ!M8 -> 0,10 | FN12: =FH12*FM12 -> 0 | FP12: =GENELVERİ!H8 -> 0 | FQ12: =FP12 -> 0 | FR12: =GENELVERİ!I8 -> 0 | FT12: =GENELVERİ!J8 -> 0 | FV12: ='E.BUZAĞI-TOSUN'!I25*4.183*H12*G12 -> 572369.9292 | FZ12: ='E.BUZAĞI-TOSUN'!I24 -> 7.36576389 | GA12: ='E.BUZAĞI-TOSUN'!I34 -> 23.32603597 | GB12: ='E.BUZAĞI-TOSUN'!I35 -> 43.42342932 | GC12: ='E.BUZAĞI-TOSUN'!I25 -> 19.0045 | GD12: =5.58+0.848*FZ12*GB12/100 -> 8.292300251 | GE12: =IF(GD12=5.58,0,IF(GD12>5.6,GD12)) -> 8.292300251 | GF12: =SUM(GE12:GE12)*H12*G12 -> 59704.56181 | GI12: =AT12 -> 1767.783334 | GJ12: =FP12+GI12 -> 1767.783334 | GL12: =DP12+DT12+DX12+EA12+EH12+EI12+EJ12+ES12+ET12+EU12+EV12+EW12+EX12+EY12+FK12+FN12+FR12+FT12 -> 29273.50001 | GN12: =GJ12-GL12 -> -27505.71668 | GP12: =(FZ12*G12)*H12 -> 53033.50001 | GS12: =AQ12*0.3 -> 53033.50001 | GT12: =GP12 -> 53033.50001 | GU12: =GQ12+GR12+GS12 -> 53033.50001 | GV12: =EO12+EM12*1000+CW12+CV12+CU12+CT12+CS12+CR12+CQ12+CP12+CO12+CN12+CM12+CL12+CK12+CJ12+CI12+CH12+CG12+CF12+C12*H12-C12*H12 -> 198473.5 | GW12: =AQ12+AD12+I12*C12 -> 176778.3334 | GX12: =GV12-GW12 -> 21695.16664
B13: Tosun Bitiş | C13: ='E.BUZAĞI-TOSUN'!O27 -> 491 | E13: ='E.BUZAĞI-TOSUN'!O4 -> 1200 | F13: =G13 -> 100 | G13: ='E.BUZAĞI-TOSUN'!O5 -> 100 | H13: ='E.BUZAĞI-TOSUN'!O2 -> 40 | I13: 40 | M13: ='E.BUZAĞI-TOSUN'!O6 -> 40 | N13: =POWER(C13,3/4)/POWER(500,3/4)*H13 -> 39.45877579 | Q13: ='E.BUZAĞI-TOSUN'!O7/100 -> 0.62 | R13: =Q13*C13 -> 304.42 | S13: =M13*R13 -> 12176.8 | T13: =S13*'E.BUZAĞI-TOSUN'!M10/100 -> 8523.76 | U13: =T13*'E.BUZAĞI-TOSUN'!O9/100 -> 1704.752 | AH13: =GENELVERİ!B8 -> 35 | AI13: =AH13*R13 -> 10654.7 | AJ13: =AI13*I13 -> 426188 | AP13: =FZ13/0.3 -> 31.22040595 | AQ13: =AP13*H13*G13 -> 124881.6238 | AR13: =AN3*AQ13 -> 1248.816238 | AS13: =AR13 -> 1248.816238 | AT13: =AM13+AJ13+AS13 -> 427436.8162 | AV13: =AV12 -> 1 | AW13: 15 | AX13: 1.5 | AY13: 2.5 | AZ13: 3 | BA13: 2 | BB13: 0.6 | BC13: 0.01 | BD13: 5 | BE13: 1 | BF13: 0.6 | BG13: 0.01 | BH13: 3 | BI13: 1.5 | BJ13: 1 | BK13: 1 | BL13: 2 | BM13: 1 | BN13: ='E.BUZAĞI-TOSUN'!F3 -> 0 | BO13: ='E.BUZAĞI-TOSUN'!F4 -> 0.9224594806 | BP13: ='E.BUZAĞI-TOSUN'!F5 -> 2 | BQ13: ='E.BUZAĞI-TOSUN'!F6 -> 0 | BR13: ='E.BUZAĞI-TOSUN'!F7 -> 0 | BS13: ='E.BUZAĞI-TOSUN'!F8 -> 0 | BT13: ='E.BUZAĞI-TOSUN'!F9 -> 8.624264245 | BU13: ='E.BUZAĞI-TOSUN'!F10 -> 0 | BV13: ='E.BUZAĞI-TOSUN'!F11 -> 0.4030662785 | BW13: ='E.BUZAĞI-TOSUN'!F12 -> 0 | BX13: ='E.BUZAĞI-TOSUN'!F13 -> 0 | BY13: ='E.BUZAĞI-TOSUN'!F14 -> 0 | BZ13: ='E.BUZAĞI-TOSUN'!F15 -> 0 | CA13: ='E.BUZAĞI-TOSUN'!F16 -> 3.515468807 | CB13: ='E.BUZAĞI-TOSUN'!F17 -> 0.02022481472 | CC13: ='E.BUZAĞI-TOSUN'!F18 -> 0.05695527823 | CD13: ='E.BUZAĞI-TOSUN'!F19 -> 0 | CE13: ='E.BUZAĞI-TOSUN'!F20 -> 0 | CF13: 0 | CG13: 3689.837922 | CH13: 8000 | CI13: 0 | CJ13: 0 | CK13: 0 | CL13: 34497.05698 | CM13: 0 | CN13: 1612.265114 | CO13: 0 | CP13: 0 | CQ13: 0 | CR13: 0 | CS13: 14061.87523 | CT13: 80.89925887 | CU13: 227.8211129 | CV13: 0 | CW13: 0 | CX13: 0 | CY13: 55347.56884 | CZ13: 12000 | DA13: 0 | DB13: 0 | DC13: 0 | DD13: 20698.23419 | DE13: 0 | DF13: 8061.32557 | DG13: 0 | DH13: 0 | DI13: 0 | DJ13: 0 | DK13: 21092.81284 | DL13: 80.89925887 | DM13: 227.8211129 | DN13: 0 | DO13: 0 | DP13: 117508.6618 | DQ13: ='E.BUZAĞI-TOSUN'!O10 -> 70 | DR13: =H13/DQ13 -> 0.5714285714 | DS13: =GENELVERİ!$D$11/20*HESAP!DR13*HESAP!G13 -> 0 | DT13: =DS13 -> 0 | DV13: =GENELVERİ!N8 -> 0 | DW13: =DV13*H13/100 -> 0 | DX13: =DW13*GENELVERİ!$D$12 -> 0 | EB13: =GENELVERİ!O8 -> 0 | EC13: =GENELVERİ!P8 -> 0 | ED13: =GENELVERİ!Q8 -> 0 | EE13: 0 | EF13: 0 | EG13: 0 | EH13: =EE13*GENELVERİ!$D$16 -> 0 | EI13: =EF13*GENELVERİ!$D$14 -> 0 | EJ13: =EG13*GENELVERİ!$D$15 -> 0 | FA13: =GENELVERİ!C8 -> 0 | FB13: =GENELVERİ!D8 -> 0 | FC13: =GENELVERİ!E8 -> 0 | FD13: =GENELVERİ!F8 -> 0 | FE13: =GENELVERİ!G8 -> 0 | FF13: =FA13+FB13 -> 0 | FH13: =FC13+FD13+FE13 -> 0 | FJ13: =GENELVERİ!L8 -> 0,05 | FK13: 0 | FM13: =GENELVERİ!M8 -> 0,10 | FN13: =FH13*FM13 -> 0 | FP13: =GENELVERİ!H8 -> 0 | FQ13: =FP13 -> 0 | FR13: =GENELVERİ!I8 -> 0 | FT13: =GENELVERİ!J8 -> 0 | FV13: ='E.BUZAĞI-TOSUN'!L25*4.183*H13*G13 -> 467072.1597 | FZ13: ='E.BUZAĞI-TOSUN'!L24 -> 9.366121785 | GA13: ='E.BUZAĞI-TOSUN'!L34 -> 19 | GB13: ='E.BUZAĞI-TOSUN'!L35 -> 35.62377358 | GC13: ='E.BUZAĞI-TOSUN'!L25 -> 27.91490316 | GD13: =5.58+0.848*FZ13*GB13/100 -> 8.409407983 | GE13: =IF(GD13=5.58,0,IF(GD13>5.6,GD13)) -> 8.409407983 | GF13: =SUM(GE13:GE13)*H13*G13 -> 33637.63193 | GI13: =AT13 -> 427436.8162 | GJ13: =FP13+GI13 -> 427436.8162 | GL13: =DP13+DT13+DX13+EA13+EH13+EI13+EJ13+ES13+ET13+EU13+EV13+EW13+EX13+EY13+FK13+FN13+FR13+FT13 -> 117508.6618 | GN13: =GJ13-GL13 -> 309928.1544 | GP13: =(FZ13*G13)*H13 -> 37464.48714 | GS13: =AQ13*0.3 -> 37464.48714 | GT13: =GP13 -> 37464.48714 | GU13: =GQ13+GR13+GS13 -> 37464.48714 | GV13: =EO13+EM13*1000+CW13+CV13+CU13+CT13+CS13+CR13+CQ13+CP13+CO13+CN13+CM13+CL13+CK13+CJ13+CI13+CH13+CG13+CF13+C13*H13-C13*H13 -> 62169.75562 | GW13: =AQ13+AD13+I13*C13 -> 144521.6238 | GX13: =GV13-GW13 -> -82351.86818
AV14: ='D.BUZAĞI-DÜVE'!A3 -> Çayır-Baklagil Kuru Otu, Orta Olgun, %47-53 NDF | AW14: ='D.BUZAĞI-DÜVE'!A4 -> Arpa , Ezme | AX14: ='D.BUZAĞI-DÜVE'!A5 -> Yonca Kuru Otu, 2. Kalite %19-21 HP, <%37-40 NDF | AY14: ='D.BUZAĞI-DÜVE'!A6 -> Buzağı Başlangıç Yemi | AZ14: ='D.BUZAĞI-DÜVE'!A7 -> Buzağı Büyütme Yemi | BA14: ='D.BUZAĞI-DÜVE'!A8 -> Düve Yemi 1. Sınıf (TS11110) | BB14: ='D.BUZAĞI-DÜVE'!A9 -> Düve Yemi 2. Sınıf (TS11110) | BC14: ='D.BUZAĞI-DÜVE'!A10 -> Yonca Kuru Otu, 1. Kalite >%21 HP, <%37 NDF | BD14: ='D.BUZAĞI-DÜVE'!A11 -> Çayır Merası, Soğuk Mevsim, Bakımlı | BE14: ='D.BUZAĞI-DÜVE'!A12 -> Çayır Kuru Otu, Soğuk Mevsim | BF14: ='D.BUZAĞI-DÜVE'!A13 -> Yağ, Bitkisel | BG14: ='D.BUZAĞI-DÜVE'!A14 -> Mısır Silajı, %29-33 KM | BH14: ='D.BUZAĞI-DÜVE'!A15 -> Buğday Samanı | BI14: ='D.BUZAĞI-DÜVE'!A16 -> Soya Küspesi , Solvent, %51 | BJ14: ='D.BUZAĞI-DÜVE'!A17 -> Amonyum Fosfat (Dibazik), (NH4) 2HPO4 | BK14: ='D.BUZAĞI-DÜVE'!A18 -> Kalsiyum Karbonat, CaCO3 | BL14: ='D.BUZAĞI-DÜVE'!A19 -> Süt | BM14: ='D.BUZAĞI-DÜVE'!A20 -> Süt İkamesi, 18 HP, 20 YAĞ | BN14: =AV14 -> Çayır-Baklagil Kuru Otu, Orta Olgun, %47-53 NDF | BO14: Arpa , Ezme | BP14: Yonca Kuru Otu, 2. Kalite %19-21 HP, <%37-40 NDF | BQ14: Buzağı Başlangıç Yemi | BR14: Buzağı Büyütme Yemi | BS14: Düve Yemi 1. Sınıf (TS11110) | BT14: Düve Yemi 2. Sınıf (TS11110) | BU14: Yonca Kuru Otu, 1. Kalite >%21 HP, <%37 NDF | BV14: Çayır Merası, Soğuk Mevsim, Bakımlı | BW14: Çayır Kuru Otu, Soğuk Mevsim | BX14: Yağ, Bitkisel | BY14: Mısır Silajı, %29-33 KM | BZ14: Buğday Samanı | CA14: Soya Küspesi , Solvent, %51 | CB14: Amonyum Fosfat (Dibazik), (NH4) 2HPO4 | CC14: Kalsiyum Karbonat, CaCO3 | CD14: Süt | CE14: Süt İkamesi, 18 HP, 20 YAĞ | CF14: =AV14 -> Çayır-Baklagil Kuru Otu, Orta Olgun, %47-53 NDF | CG14: Arpa , Ezme | CH14: Yonca Kuru Otu, 2. Kalite %19-21 HP, <%37-40 NDF | CI14: Buzağı Başlangıç Yemi | CJ14: Buzağı Büyütme Yemi | CK14: Düve Yemi 1. Sınıf (TS11110) | CL14: Düve Yemi 2. Sınıf (TS11110) | CM14: Yonca Kuru Otu, 1. Kalite >%21 HP, <%37 NDF | CN14: Çayır Merası, Soğuk Mevsim, Bakımlı | CO14: Çayır Kuru Otu, Soğuk Mevsim | CP14: Yağ, Bitkisel | CQ14: Mısır Silajı, %29-33 KM | CR14: Buğday Samanı | CS14: Soya Küspesi , Solvent, %51 | CT14: Amonyum Fosfat (Dibazik), (NH4) 2HPO4 | CU14: Kalsiyum Karbonat, CaCO3 | CV14: Süt | CW14: Süt İkamesi, 18 HP, 20 YAĞ
B15: Dişi Buzağı | C15: ='D.BUZAĞI-DÜVE'!O21 -> 78 | E15: ='D.BUZAĞI-DÜVE'!L4 -> 700 | F15: =G15 -> 60 | G15: ='D.BUZAĞI-DÜVE'!L5 -> 60 | H15: ='D.BUZAĞI-DÜVE'!L2 -> 44 | I15: 0 | M15: ='D.BUZAĞI-DÜVE'!L6 -> 0 | N15: =POWER(C15,3/4)/POWER(500,3/4)*H15 -> 10.92184793 | O15: =(N18+N17+N16+N15)/4 -> 34.46750212 | Q15: ='D.BUZAĞI-DÜVE'!L7/100 -> 0.5 | R15: =Q15*C15 -> 39 | S15: =M15*R15 -> 0 | T15: =S15*'D.BUZAĞI-DÜVE'!L8/100 -> 0 | U15: =T15*'D.BUZAĞI-DÜVE'!L9/100 -> 0 | V15: =U15+U16+U17+U18 -> 37.03062 | AH15: =GENELVERİ!B7 -> 40 | AI15: =AH15*R15 -> 1560 | AJ15: =AI15*I15 -> 0 | AP15: =FZ15/0.3 -> 3.623130181 | AQ15: =AP15*H15*G15 -> 9565.063677 | AR15: =AN3*AQ15 -> 95.65063677 | AS15: =AR15 -> 95.65063677 | AT15: =AM15+AJ15+AS15 -> 95.65063677 | AV15: ='D.BUZAĞI-DÜVE'!B3 -> 1 | AW15: ='D.BUZAĞI-DÜVE'!B4 -> 1.5 | AX15: ='D.BUZAĞI-DÜVE'!B5 -> 1 | AY15: ='D.BUZAĞI-DÜVE'!B6 -> 2.8 | AZ15: ='D.BUZAĞI-DÜVE'!B7 -> 2.5 | BA15: ='D.BUZAĞI-DÜVE'!B8 -> 2 | BB15: ='D.BUZAĞI-DÜVE'!B9 -> 2 | BC15: ='D.BUZAĞI-DÜVE'!B10 -> 1 | BD15: ='D.BUZAĞI-DÜVE'!B11 -> 0.01 | BE15: ='D.BUZAĞI-DÜVE'!B12 -> 1 | BF15: ='D.BUZAĞI-DÜVE'!B13 -> 15 | BG15: ='D.BUZAĞI-DÜVE'!B14 -> 0.5 | BH15: ='D.BUZAĞI-DÜVE'!B15 -> 0.6 | BI15: ='D.BUZAĞI-DÜVE'!B16 -> 5 | BJ15: ='D.BUZAĞI-DÜVE'!B17 -> 1 | BK15: ='D.BUZAĞI-DÜVE'!B18 -> 1 | BL15: ='D.BUZAĞI-DÜVE'!B19 -> 2 | BM15: ='D.BUZAĞI-DÜVE'!B20 -> 1 | BN15: ='D.BUZAĞI-DÜVE'!C3 -> 0 | BO15: ='D.BUZAĞI-DÜVE'!C4 -> 0 | BP15: ='D.BUZAĞI-DÜVE'!C5 -> 0 | BQ15: ='D.BUZAĞI-DÜVE'!C6 -> 0 | BR15: ='D.BUZAĞI-DÜVE'!C7 -> 0 | BS15: ='D.BUZAĞI-DÜVE'!C8 -> 0.05334200739 | BT15: ='D.BUZAĞI-DÜVE'!C9 -> 0 | BU15: ='D.BUZAĞI-DÜVE'!C10 -> 0 | BV15: ='D.BUZAĞI-DÜVE'!C11 -> 0 | BW15: ='D.BUZAĞI-DÜVE'!C12 -> 0 | BX15: ='D.BUZAĞI-DÜVE'!C13 -> 0.3081182442 | BY15: ='D.BUZAĞI-DÜVE'!C14 -> 0 | BZ15: ='D.BUZAĞI-DÜVE'!C15 -> 0 | CA15: ='D.BUZAĞI-DÜVE'!C16 -> 0.414852605 | CB15: ='D.BUZAĞI-DÜVE'!C17 -> 0 | CC15: ='D.BUZAĞI-DÜVE'!C18 -> 0 | CD15: ='D.BUZAĞI-DÜVE'!C19 -> 2.88 | CE15: ='D.BUZAĞI-DÜVE'!C20 -> 0 | CF15: =BN15*$H15*$G15 -> 0 | CG15: 0 | CH15: 0 | CI15: 0 | CJ15: 0 | CK15: 140.8228995 | CL15: 0 | CM15: 0 | CN15: 0 | CO15: 0 | CP15: =BX15*$H15*$G15 -> 813.4321646 | CQ15: 0 | CR15: 0 | CS15: 1095.210877 | CT15: 0 | CU15: 0 | CV15: 7603.2 | CW15: 0 | CX15: =CF15*AV15 -> 0 | CY15: 0 | CZ15: 0 | DA15: 0 | DB15: 0 | DC15: 281.645799 | DD15: 0 | DE15: 0 | DF15: 0 | DG15: 0 | DH15: =CP15*BF15 -> 12201.48247 | DI15: 0 | DJ15: 0 | DK15: 5476.054386 | DL15: 0 | DM15: 0 | DN15: 15206.4 | DO15: 0 | DP15: 33165.58265 | DQ15: ='D.BUZAĞI-DÜVE'!L10 -> 70 | DR15: =H15/DQ15 -> 0.6285714286 | DS15: =GENELVERİ!$D$11/20*HESAP!DR15*HESAP!G15 -> 0 | DT15: =DS15 -> 0 | DV15: =GENELVERİ!N7 -> 1 | DW15: =DV15*H15/100 -> 0.44 | DX15: =DW15*GENELVERİ!$D$12 -> 0 | EB15: =GENELVERİ!O7 -> 0 | EC15: =GENELVERİ!P7 -> 1 | ED15: =GENELVERİ!Q7 -> 1 | EE15: 0 | EF15: 0.44 | EG15: 0.44 | EH15: =EE15*GENELVERİ!$D$16 -> 0 | EI15: =EF15*GENELVERİ!$D$14 -> 0 | EJ15: =EG15*GENELVERİ!$D$15 -> 0 | FA15: =GENELVERİ!C7 -> 0 | FB15: =GENELVERİ!D7 -> 0 | FC15: =GENELVERİ!E7 -> 0 | FD15: =GENELVERİ!F7 -> 0 | FE15: =GENELVERİ!G7 -> 0 | FF15: =FA15+FB15 -> 0 | FH15: =FC15+FD15+FE15 -> 0 | FJ15: =GENELVERİ!L7 -> 0,05 | FK15: 0 | FM15: =GENELVERİ!M7 -> 0,10 | FN15: =FH15*FM15 -> 0 | FP15: =GENELVERİ!H7 -> 0 | FQ15: =FP15 -> 0 | FR15: =GENELVERİ!I7 -> 0 | FT15: =GENELVERİ!J7 -> 0 | FV15: ='D.BUZAĞI-DÜVE'!C25*4.183*H15*G15 -> 61024.19175 | FZ15: ='D.BUZAĞI-DÜVE'!C24 -> 1.086939054 | GA15: ='D.BUZAĞI-DÜVE'!C34 -> 0 | GB15: ='D.BUZAĞI-DÜVE'!C35 -> 0 | GC15: ='D.BUZAĞI-DÜVE'!C25 -> 5.525991907 | GD15: =5.58+0.848*FZ15*GB15/100 -> 5.58 | GE15: =IF(GD15=5.58,0,IF(GD15>5.6,GD15)) -> 0 | GF15: =SUM(GE15:GE15)*H15*G15 -> 0 | GI15: =AT15 -> 95.65063677 | GJ15: =FP15+GI15 -> 95.65063677 | GL15: =DP15+DT15+DX15+EA15+EH15+EI15+EJ15+ES15+ET15+EU15+EV15+EW15+EX15+EY15+FK15+FN15+FR15+FT15 -> 33165.58265 | GN15: =GJ15-GL15 -> -33069.93202 | GP15: =(FZ15*G15)*H15 -> 2869.519103 | GR15: =I15*C15*0.3 -> 0 | GS15: =AQ15*0.3 -> 2869.519103 | GT15: =GP15 -> 2869.519103 | GU15: =GQ15+GR15+GS15 -> 2869.519103 | GV15: =EO15+EM15*1000+CW15+CV15+CU15+CT15+CS15+CR15+CQ15+CP15+CO15+CN15+CM15+CL15+CK15+CJ15+CI15+CH15+CG15+CF15+C15*H15-C15*H15 -> 9652.665941 | GW15: =AQ15+AD15+I15*C15 -> 9565.063677 | GX15: =GV15-GW15 -> 87.60226417
B16: Düve Başlangıç | C16: ='D.BUZAĞI-DÜVE'!O23 -> 358 | E16: ='D.BUZAĞI-DÜVE'!M4 -> 700 | F16: =G16 -> 400 | G16: ='D.BUZAĞI-DÜVE'!M5 -> 400 | H16: ='D.BUZAĞI-DÜVE'!M2 -> 44 | I16: 0 | M16: ='D.BUZAĞI-DÜVE'!M6 -> 0 | N16: =POWER(C16,3/4)/POWER(500,3/4)*H16 -> 34.24817573 | Q16: ='D.BUZAĞI-DÜVE'!M7/100 -> 0.5 | R16: =Q16*C16 -> 179 | S16: =M16*R16 -> 0 | T16: =S16*'D.BUZAĞI-DÜVE'!L9/100 -> 0 | U16: =T16*'D.BUZAĞI-DÜVE'!M9/100 -> 0 | AH16: =GENELVERİ!B9 -> 30 | AI16: =AH16*R16 -> 5370 | AJ16: =AI16*I16 -> 0 | AP16: =FZ16/0.3 -> 18.31379428 | AQ16: =AP16*H16*G16 -> 322322.7792 | AR16: =AN3*AQ16 -> 3223.227792 | AS16: =AR16 -> 3223.227792 | AT16: =AM16+AJ16+AS16 -> 3223.227792 | AV16: =AV15 -> 1 | AW16: 1.5 | AX16: 1 | AY16: 2.8 | AZ16: 2.5 | BA16: 2 | BB16: 2 | BC16: 1 | BD16: 0.01 | BE16: 1 | BF16: =BF15 -> 15 | BG16: 0.5 | BH16: 0.6 | BI16: 5 | BJ16: 1 | BK16: 1 | BL16: 2 | BM16: 1 | BN16: ='D.BUZAĞI-DÜVE'!D3 -> 0 | BO16: ='D.BUZAĞI-DÜVE'!D4 -> 1.393347521 | BP16: ='D.BUZAĞI-DÜVE'!D5 -> 1.494115019 | BQ16: ='D.BUZAĞI-DÜVE'!D6 -> 0 | BR16: ='D.BUZAĞI-DÜVE'!D7 -> 0 | BS16: ='D.BUZAĞI-DÜVE'!D8 -> 0 | BT16: ='D.BUZAĞI-DÜVE'!D9 -> 0 | BU16: ='D.BUZAĞI-DÜVE'!D10 -> 0 | BV16: ='D.BUZAĞI-DÜVE'!D11 -> 0 | BW16: ='D.BUZAĞI-DÜVE'!D12 -> 2.732928585 | BX16: ='D.BUZAĞI-DÜVE'!D13 -> 0 | BY16: ='D.BUZAĞI-DÜVE'!D14 -> 0 | BZ16: ='D.BUZAĞI-DÜVE'!D15 -> 0 | CA16: ='D.BUZAĞI-DÜVE'!D16 -> 0.4960901034 | CB16: ='D.BUZAĞI-DÜVE'!D17 -> 0.06010833022 | CC16: ='D.BUZAĞI-DÜVE'!D18 -> 0 | CD16: ='D.BUZAĞI-DÜVE'!D19 -> 0 | CE16: ='D.BUZAĞI-DÜVE'!D20 -> 0 | CF16: 0 | CG16: 24522.91637 | CH16: 26296.42433 | CI16: 0 | CJ16: 0 | CK16: 0 | CL16: 0 | CM16: 0 | CN16: 0 | CO16: 48099.5431 | CP16: 0 | CQ16: 0 | CR16: 0 | CS16: 8731.18582 | CT16: 1057.906612 | CU16: 0 | CV16: 0 | CW16: 0 | CX16: 0 | CY16: 36784.37455 | CZ16: 26296.42433 | DA16: 0 | DB16: 0 | DC16: 0 | DD16: 0 | DE16: 0 | DF16: 0 | DG16: 48099.5431 | DH16: 0 | DI16: 0 | DJ16: 0 | DK16: 43655.9291 | DL16: 1057.906612 | DM16: 0 | DN16: 0 | DO16: 0 | DP16: 155894.1777 | DQ16: ='D.BUZAĞI-DÜVE'!M10 -> 70 | DR16: =H16/DQ16 -> 0.6285714286 | DS16: =GENELVERİ!$D$11/20*HESAP!DR16*HESAP!G16 -> 0 | DT16: =DS16 -> 0 | DV16: =GENELVERİ!N9 -> 0 | DW16: =DV16*H16/100 -> 0 | DX16: =DW16*GENELVERİ!$D$12 -> 0 | EB16: =GENELVERİ!O9 -> 0 | EC16: =GENELVERİ!P9 -> 0 | ED16: =GENELVERİ!Q9 -> 0 | EE16: 0 | EF16: 0 | EG16: 0 | EH16: =EE16*GENELVERİ!$D$16 -> 0 | EI16: =EF16*GENELVERİ!$D$14 -> 0 | EJ16: =EG16*GENELVERİ!$D$15 -> 0 | FA16: =GENELVERİ!C9 -> 0 | FB16: =GENELVERİ!D9 -> 0 | FC16: =GENELVERİ!E9 -> 0 | FD16: =GENELVERİ!F9 -> 0 | FE16: =GENELVERİ!G9 -> 0 | FF16: =FA16+FB16 -> 0 | FH16: =FC16+FD16+FE16 -> 0 | FJ16: =GENELVERİ!L9 -> 0,05 | FK16: 0 | FM16: =GENELVERİ!M9 -> 0,10 | FN16: =FH16*FM16 -> 0 | FP16: =GENELVERİ!H9 -> 0 | FQ16: =FP16 -> 0 | FR16: =GENELVERİ!I9 -> 0 | FT16: =GENELVERİ!J9 -> 0 | FV16: ='D.BUZAĞI-DÜVE'!F25*4.183*H16*G16 -> 905332.9767 | FZ16: ='D.BUZAĞI-DÜVE'!F24 -> 5.494138283 | GA16: ='D.BUZAĞI-DÜVE'!F34 -> 25.87074236 | GB16: ='D.BUZAĞI-DÜVE'!F35 -> 43.55330147 | GC16: ='D.BUZAĞI-DÜVE'!F25 -> 12.29724448 | GD16: =5.58+0.848*FZ16*GB16/100 -> 7.609161061 | GE16: =IF(GD16=5.58,0,IF(GD16>5.6,GD16)) -> 7.609161061 | GF16: =SUM(GE16:GE16)*H16*G16 -> 133921.2347 | GI16: =AT16 -> 3223.227792 | GJ16: =FP16+GI16 -> 3223.227792 | GL16: =DP16+DT16+DX16+EA16+EH16+EI16+EJ16+ES16+ET16+EU16+EV16+EW16+EX16+EY16+FK16+FN16+FR16+FT16 -> 155894.1777 | GN16: =GJ16-GL16 -> -152670.9499 | GP16: =(FZ16*G16)*H16 -> 96696.83377 | GR16: =I16*C18*0.3 -> 0 | GS16: =AQ16*0.3 -> 96696.83377 | GT16: =GP16 -> 96696.83377 | GU16: =GQ16+GR16+GS16 -> 96696.83377 | GV16: =EO16+EM16*1000+CW16+CV16+CU16+CT16+CS16+CR16+CQ16+CP16+CO16+CN16+CM16+CL16+CK16+CJ16+CI16+CH16+CG16+CF16+C16*H16-C16*H16 -> 108707.9762 | GW16: =AQ16+AD16+I16*C16 -> 322322.7792 | GX16: =GV16-GW16 -> -213614.803
B17: Düve Besleme Ortası | C17: ='D.BUZAĞI-DÜVE'!O25 -> 482.6 | E17: ='D.BUZAĞI-DÜVE'!N4 -> 700 | F17: =G17 -> 178 | G17: ='D.BUZAĞI-DÜVE'!N5 -> 178 | H17: ='D.BUZAĞI-DÜVE'!N2 -> 44 | I17: 0 | M17: ='D.BUZAĞI-DÜVE'!N6 -> 0 | N17: =POWER(C17,3/4)/POWER(500,3/4)*H17 -> 42.84653057 | Q17: ='D.BUZAĞI-DÜVE'!N7/100 -> 0.55 | R17: =Q17*C17 -> 265.43 | S17: =M17*R17 -> 0 | T17: =S17*'D.BUZAĞI-DÜVE'!L10/100 -> 0 | U17: =T17*'D.BUZAĞI-DÜVE'!N9/100 -> 0 | AH17: =GENELVERİ!B9 -> 30 | AI17: =AH17*R17 -> 7962.9 | AJ17: =AI17*I17 -> 0 | AP17: =FZ17/0.3 -> 30.06953836 | AQ17: =AP17*H17*G17 -> 235504.6245 | AR17: =AN3*AQ17 -> 2355.046245 | AS17: =AR17 -> 2355.046245 | AT17: =AM17+AJ17+AS17 -> 2355.046245 | AV17: 1 | AW17: 1.5 | AX17: 1 | AY17: 2.8 | AZ17: 2.5 | BA17: 2 | BB17: 2 | BC17: 1 | BD17: 0.01 | BE17: 1 | BF17: 15 | BG17: 0.5 | BH17: 0.6 | BI17: 5 | BJ17: 1 | BK17: 1 | BL17: 2 | BM17: 1 | BN17: ='D.BUZAĞI-DÜVE'!E3 -> 0 | BO17: ='D.BUZAĞI-DÜVE'!E4 -> 5.571037525 | BP17: ='D.BUZAĞI-DÜVE'!E5 -> 0 | BQ17: ='D.BUZAĞI-DÜVE'!E6 -> 0 | BR17: ='D.BUZAĞI-DÜVE'!E7 -> 0 | BS17: ='D.BUZAĞI-DÜVE'!E8 -> 0 | BT17: ='D.BUZAĞI-DÜVE'!E9 -> 0 | BU17: ='D.BUZAĞI-DÜVE'!E10 -> 0 | BV17: ='D.BUZAĞI-DÜVE'!E11 -> 0 | BW17: ='D.BUZAĞI-DÜVE'!E12 -> 0 | BX17: ='D.BUZAĞI-DÜVE'!E13 -> 0.1740171825 | BY17: ='D.BUZAĞI-DÜVE'!E14 -> 0.7872339289 | BZ17: ='D.BUZAĞI-DÜVE'!E15 -> 3.74424598 | CA17: ='D.BUZAĞI-DÜVE'!E16 -> 0 | CB17: ='D.BUZAĞI-DÜVE'!E17 -> 0.01184920399 | CC17: ='D.BUZAĞI-DÜVE'!E18 -> 0.04803073236 | CD17: ='D.BUZAĞI-DÜVE'!E19 -> 0 | CE17: ='D.BUZAĞI-DÜVE'!E20 -> 0 | CF17: 0 | CG17: 43632.36589 | CH17: 0 | CI17: 0 | CJ17: 0 | CK17: 0 | CL17: 0 | CM17: 0 | CN17: 0 | CO17: 0 | CP17: 1362.902573 | CQ17: 6165.616131 | CR17: 29324.93451 | CS17: 0 | CT17: 92.80296564 | CU17: 376.1766958 | CV17: 0 | CW17: 0 | CX17: 0 | CY17: 65448.54884 | CZ17: 0 | DA17: 0 | DB17: 0 | DC17: 0 | DD17: 0 | DE17: 0 | DF17: 0 | DG17: 0 | DH17: 20443.5386 | DI17: 3082.808066 | DJ17: 17594.96071 | DK17: 0 | DL17: 92.80296564 | DM17: 376.1766958 | DN17: 0 | DO17: 0 | DP17: 107038.8359 | DQ17: ='D.BUZAĞI-DÜVE'!N10 -> 70 | DR17: =H17/DQ17 -> 0.6285714286 | DS17: =GENELVERİ!$D$11/20*HESAP!DR17*HESAP!G17 -> 0 | DT17: =DS17 -> 0 | DV17: =GENELVERİ!N9 -> 0 | DW17: =DV17*H17/100 -> 0 | DX17: =DW17*GENELVERİ!$D$12 -> 0 | EB17: =GENELVERİ!O9 -> 0 | EC17: =GENELVERİ!P9 -> 0 | ED17: =GENELVERİ!Q9 -> 0 | EE17: 0 | EF17: 0 | EG17: 0 | EH17: =EE17*GENELVERİ!$D$16 -> 0 | EI17: =EF17*GENELVERİ!$D$14 -> 0 | EJ17: =EG17*GENELVERİ!$D$15 -> 0 | FA17: =GENELVERİ!C9 -> 0 | FB17: =GENELVERİ!D9 -> 0 | FC17: =GENELVERİ!E9 -> 0 | FD17: =GENELVERİ!F9 -> 0 | FE17: =GENELVERİ!G9 -> 0 | FF17: =FA17+FB17 -> 0 | FH17: =FC17+FD17+FE17 -> 0 | FJ17: =GENELVERİ!L9 -> 0,05 | FK17: 0 | FM17: =GENELVERİ!M9 -> 0,10 | FN17: =FH17*FM17 -> 0 | FP17: =GENELVERİ!H9 -> 0 | FQ17: =FP17 -> 0 | FR17: =GENELVERİ!I9 -> 0 | FT17: =GENELVERİ!J9 -> 0 | FV17: ='D.BUZAĞI-DÜVE'!I25*4.183*H17*G17 -> 705495.5006 | FZ17: ='D.BUZAĞI-DÜVE'!I24 -> 9.020861509 | GA17: ='D.BUZAĞI-DÜVE'!I34 -> 19.00000265 | GB17: ='D.BUZAĞI-DÜVE'!I35 -> 41.68294622 | GC17: ='D.BUZAĞI-DÜVE'!I25 -> 21.53444607 | GD17: =5.58+0.848*FZ17*GB17/100 -> 8.768616402 | GE17: =IF(GD17=5.58,0,IF(GD17>5.6,GD17)) -> 8.768616402 | GF17: =SUM(GE17:GE17)*H17*G17 -> 68675.80366 | GI17: =AT17 -> 2355.046245 | GJ17: =FP17+GI17 -> 2355.046245 | GL17: =DP17+DT17+DX17+EA17+EH17+EI17+EJ17+ES17+ET17+EU17+EV17+EW17+EX17+EY17+FK17+FN17+FR17+FT17 -> 107038.8359 | GN17: =GJ17-GL17 -> -104683.7896 | GP17: =(FZ17*G17)*H17 -> 70651.38734 | GS17: =AQ17*0.3 -> 70651.38734 | GT17: =GP17 -> 70651.38734 | GU17: =GQ17+GR17+GS17 -> 70651.38734 | GV17: =EO17+EM17*1000+CW17+CV17+CU17+CT17+CS17+CR17+CQ17+CP17+CO17+CN17+CM17+CL17+CK17+CJ17+CI17+CH17+CG17+CF17+C17*H17-C17*H17 -> 80954.79877 | GW17: =AQ17+AD17+I17*C17 -> 235504.6245 | GX17: =GV17-GW17 -> -154549.8257
B18: Düve Bitiş | C18: ='D.BUZAĞI-DÜVE'!O27 -> 590.6 | E18: ='D.BUZAĞI-DÜVE'!O4 -> 1000 | F18: =G18 -> 108 | G18: ='D.BUZAĞI-DÜVE'!O5 -> 108 | H18: ='D.BUZAĞI-DÜVE'!O2 -> 44 | I18: 19 | M18: ='D.BUZAĞI-DÜVE'!O6 -> 19 | N18: =POWER(C18,3/4)/POWER(500,3/4)*H18 -> 49.85345426 | Q18: ='D.BUZAĞI-DÜVE'!O7/100 -> 0.55 | R18: =Q18*C18 -> 324.83 | S18: =M18*R18 -> 6171.77 | T18: =S18*'D.BUZAĞI-DÜVE'!L11/100 -> 185.1531 | U18: =T18*'D.BUZAĞI-DÜVE'!O9/100 -> 37.03062 | AH18: =GENELVERİ!B9 -> 30 | AI18: =AH18*R18 -> 9744.9 | AJ18: =AI18*I18 -> 185153.1 | AP18: =FZ18/0.3 -> 39.8401816 | AQ18: =AP18*H18*G18 -> 189320.543 | AR18: =AN3*AQ18 -> 1893.20543 | AS18: =AR18 -> 1893.20543 | AT18: =AM18+AJ18+AS18 -> 187046.3054 | AV18: 1 | AW18: 1.5 | AX18: 1 | AY18: 2.8 | AZ18: 2.5 | BA18: 2 | BB18: 2 | BC18: 1 | BD18: 0.01 | BE18: 1 | BF18: 15 | BG18: 0.5 | BH18: 0.6 | BI18: 5 | BJ18: 1 | BK18: 1 | BL18: 2 | BM18: 1 | BN18: ='D.BUZAĞI-DÜVE'!F3 -> 0 | BO18: ='D.BUZAĞI-DÜVE'!F4 -> 8.31656157 | BP18: ='D.BUZAĞI-DÜVE'!F5 -> 0 | BQ18: ='D.BUZAĞI-DÜVE'!F6 -> 0 | BR18: ='D.BUZAĞI-DÜVE'!F7 -> 0 | BS18: ='D.BUZAĞI-DÜVE'!F8 -> 0 | BT18: ='D.BUZAĞI-DÜVE'!F9 -> 0 | BU18: ='D.BUZAĞI-DÜVE'!F10 -> 0 | BV18: ='D.BUZAĞI-DÜVE'!F11 -> 0 | BW18: ='D.BUZAĞI-DÜVE'!F12 -> 0 | BX18: ='D.BUZAĞI-DÜVE'!F13 -> 0.2097236389 | BY18: ='D.BUZAĞI-DÜVE'!F14 -> 4.962889221 | BZ18: ='D.BUZAĞI-DÜVE'!F15 -> 2.716879669 | CA18: ='D.BUZAĞI-DÜVE'!F16 -> 0 | CB18: ='D.BUZAĞI-DÜVE'!F17 -> 0.0261769977 | CC18: ='D.BUZAĞI-DÜVE'!F18 -> 0.07615103676 | CD18: ='D.BUZAĞI-DÜVE'!F19 -> 0 | CE18: ='D.BUZAĞI-DÜVE'!F20 -> 0 | CF18: 0 | CG18: 39520.30058 | CH18: 0 | CI18: 0 | CJ18: 0 | CK18: 0 | CL18: 0 | CM18: 0 | CN18: 0 | CO18: 0 | CP18: 996.6067319 | CQ18: 23583.64958 | CR18: 12910.61219 | CS18: 0 | CT18: 124.393093 | CU18: 361.8697267 | CV18: 0 | CW18: 0 | CX18: 0 | CY18: 59280.45087 | CZ18: 0 | DA18: 0 | DB18: 0 | DC18: 0 | DD18: 0 | DE18: 0 | DF18: 0 | DG18: 0 | DH18: 14949.10098 | DI18: 11791.82479 | DJ18: 7746.367311 | DK18: 0 | DL18: 124.393093 | DM18: 361.8697267 | DN18: 0 | DO18: 0 | DP18: 94254.00677 | DQ18: ='D.BUZAĞI-DÜVE'!O10 -> 70 | DR18: =H18/DQ18 -> 0.6285714286 | DS18: =GENELVERİ!$D$11/20*HESAP!DR18*HESAP!G18 -> 0 | DT18: =DS18 -> 0 | DV18: =GENELVERİ!N9 -> 0 | DW18: =DV18*H18/100 -> 0 | DX18: =DW18*GENELVERİ!$D$12 -> 0 | EB18: =GENELVERİ!O9 -> 0 | EC18: =GENELVERİ!P9 -> 0 | ED18: =GENELVERİ!Q9 -> 0 | EE18: 0 | EF18: 0 | EG18: 0 | EH18: =EE18*GENELVERİ!$D$16 -> 0 | EI18: =EF18*GENELVERİ!$D$14 -> 0 | EJ18: =EG18*GENELVERİ!$D$15 -> 0 | FA18: =GENELVERİ!C9 -> 0 | FB18: =GENELVERİ!D9 -> 0 | FC18: =GENELVERİ!E9 -> 0 | FD18: =GENELVERİ!F9 -> 0 | FE18: =GENELVERİ!G9 -> 0 | FF18: =FA18+FB18 -> 0 | FH18: =FC18+FD18+FE18 -> 0 | FJ18: =GENELVERİ!L9 -> 0,05 | FK18: 0 | FM18: =GENELVERİ!M9 -> 0,10 | FN18: =FH18*FM18 -> 0 | FP18: =GENELVERİ!H9 -> 0 | FQ18: =FP18 -> 0 | FR18: =GENELVERİ!I9 -> 0 | FT18: =GENELVERİ!J9 -> 0 | FV18: ='D.BUZAĞI-DÜVE'!L25*4.183*H18*G18 -> 603824.8436 | FZ18: ='D.BUZAĞI-DÜVE'!L24 -> 11.95205448 | GA18: ='D.BUZAĞI-DÜVE'!L34 -> 19.00000012 | GB18: ='D.BUZAĞI-DÜVE'!L35 -> 38.86673314 | GC18: ='D.BUZAĞI-DÜVE'!L25 -> 30.37712589 | GD18: =5.58+0.848*FZ18*GB18/100 -> 9.519276405 | GE18: =IF(GD18=5.58,0,IF(GD18>5.6,GD18)) -> 9.519276405 | GF18: =SUM(GE18:GE18)*H18*G18 -> 45235.60148 | GI18: =AT18 -> 187046.3054 | GJ18: =FP18+GI18 -> 187046.3054 | GL18: =DP18+DT18+DX18+EA18+EH18+EI18+EJ18+ES18+ET18+EU18+EV18+EW18+EX18+EY18+FK18+FN18+FR18+FT18 -> 94254.00677 | GN18: =GJ18-GL18 -> 92792.29866 | GP18: =(FZ18*G18)*H18 -> 56796.16289 | GS18: =AQ18*0.3 -> 56796.16289 | GT18: =GP18 -> 56796.16289 | GU18: =GQ18+GR18+GS18 -> 56796.16289 | GV18: =EO18+EM18*1000+CW18+CV18+CU18+CT18+CS18+CR18+CQ18+CP18+CO18+CN18+CM18+CL18+CK18+CJ18+CI18+CH18+CG18+CF18+C18*H18-C18*H18 -> 77497.4319 | GW18: =AQ18+AD18+I18*C18 -> 200541.943 | GX18: =GV18-GW18 -> -123044.5111

Sheet GENELVERİ (hidden)
B1: Birim Karkas Fiyatı (tl/kg) | C1: Bina 1 | D1: Bina 2 | E1: Alet Ekipman 1 | F1: Alet Ekipman 2 | G1: Alet Ekipman 3 | H1: Teşvik | I1: Vergi | J1: Faiz | L1: Bina Amortisman (%) | M1: Alet EkipmanAmortisman (%) | N1: Yıllık Veteriner Muayene Sayısı (100 baş) | O1: Yıllık Aşı Sayısı (100 baş için) | P1: Yıllık İlaç Kutu Sayısı (100 baş için) | Q1: Yıllık Dezenfektan Kutu Sayısı (100 baş)
A2: İnek Kuru | B2: 30 | C2: 0 | D2: 0 | E2: 0 | F2: 0 | G2: 0 | H2: 0 | I2: 0 | J2: 0 | L2: 0,05 | M2: 0,10 | N2: 0 | O2: 0 | P2: 0 | Q2: 0
A3: İnek lak başı | B3: 25 | C3: 0 | D3: 0 | E3: 0 | F3: 0 | G3: 0 | H3: 0 | I3: 0 | J3: 0 | L3: 0,05 | M3: 0,10 | N3: 1 | O3: 100 | P3: 1 | Q3: 1
A4: İnek lak ortası | B4: 26 | C4: 0 | D4: 0 | E4: 0 | F4: 0 | G4: 0 | H4: 0 | I4: 0 | J4: 0 | L4: 0,05 | M4: 0,10 | N4: 0 | O4: 0 | P4: 0 | Q4: 0
A5: İnek lak sonu | B5: 30 | C5: 0 | D5: 0 | E5: 0 | F5: 0 | G5: 0 | H5: 0 | I5: 0 | J5: 0 | L5: 0,05 | M5: 0,10 | N5: 0 | O5: 0 | P5: 0 | Q5: 0
A6: E. Buzağı | B6: 40 | C6: 0 | D6: 0 | E6: 0 | F6: 0 | G6: 0 | H6: 0 | I6: 0 | J6: 0 | L6: 0,05 | M6: 0,10 | N6: 1 | O6: 0 | P6: 1 | Q6: 1
A7: D. Buzağı | B7: 40 | C7: 0 | D7: 0 | E7: 0 | F7: 0 | G7: 0 | H7: 0 | I7: 0 | J7: 0 | L7: 0,05 | M7: 0,10 | N7: 1 | O7: 0 | P7: 1 | Q7: 1
A8: Tosun | B8: 35 | C8: 0 | D8: 0 | E8: 0 | F8: 0 | G8: 0 | H8: 0 | I8: 0 | J8: 0 | L8: 0,05 | M8: 0,10 | N8: 0 | O8: 0 | P8: 0 | Q8: 0
A9: Düve | B9: 30 | C9: 0 | D9: 0 | E9: 0 | F9: 0 | G9: 0 | H9: 0 | I9: 0 | J9: 0 | L9: 0,05 | M9: 0,10 | N9: 0 | O9: 0 | P9: 0 | Q9: 0
A11: Doğum Oranı % | B11: 0,90 | C11: Ahır birim işçilik fiyatı (tl/ay) | D11: 0 | E11: Birim süt fiyatı (tl/kg) | F11: Ahır | G11: 2
A12: E. Buzağı Yaşama oranı % | B12: 0,95 | C12: Veteriner Muayene Ücreti (tl) | D12: 0 | E12: Birim gübre fiyatı (tl/kg) | F12: Ahır | G12: 0,01
A13: D. Buzağı Yaşama Oranı % | B13: 0,95 | C13: Suni tohumlama ücreti (tl) | D13: 0 | E13: Nakliye fiyatı (tl/Adet) | G13: 0
A14: Melez Oranı % | B14: 0 | C14: Bir kutu ilaç fiyatı (tl) | D14: 0 | E14: Haberleşme fiyatı (tl/Adet) | G14: 0
A15: Elektirik Tüketim Kwh | B15: 0 | C15: Bir kutu dezenfektan fiyatı (tl) | D15: 0 | E15: Ulaşım fiyatı (tl/Adet) | G15: 0
A16: Su Tüketimi (Ton) | B16: 0 | C16: Bir Aşı ücreti (tl/adet) | D16: 0 | E16: Su fiyatı (tl/Ton) | G16: 0
A17: Doğalgaz Tüketimi (M3) | B17: 0 | C17: Elektirik ücreti tl/Kwh | D17: 0 | E17: Doğalgaz fiyatı (tl/M3) | G17: 0
A18: Mazot Tüketimi (Lt) | B18: 0 | C18: Mazot fiyatı (tl/Lt) | D18: 0
A19: Nakliye (Adet) | B19: 0
A20: Haberleşme (Adet) | B20: 0
A21: Ulaşım (Adet) | B21: 0
A22: Suni Tohumlama Sayısı | B22: 0
A23: Diğer Masraflar (%) | B23: 0,1

Sheet KULLANMA KLAVUZU
C3: 0 | G3: 0
C4: 0 | G4: 0
C5: 0 | G5: 0
C6: 0 | G6: 0
C7: 0 | G7: 0
C8: 0 | G8: 0
C9: 0 | G9: 0
C10: 0 | G10: 0
C11: 0 | G11: 0
C12: 0 | G12: 0
C13: 0 | G13: 0
C14: 0 | G14: 0
C15: 0 | G15: 0
C16: 0 | G16: 0
C17: 0 | G17: 0
C18: 0 | G18: 0
C19: 0 | G19: 0
C20: 0 | G20: 0
B26: 0 | C26: 0 | N26: 0
B28: 0 | C28: 0
B30: 0 | C30: 0
B33: 0 | C33: 0
C35: 0
B36: 0 | C36: 0
B37: 0 | C37: 0

Sheet İNEK
A1: Yem Adı | B1: Yem Birim Fiyatı (tl/kg) | C1: Yem Tüketimi (kg/gün/baş) | G1: Günlük Max Yem (kg/baş) | H1: Kuru Gebelik süresi | I1: Lak Sonu Gebelik süresi | J1: Lak Sır. | K1: Doğum Ağırlığı | L1: İnek Kuru | M1: İnek Lak. Başı | N1: İnek Lak. Ortası | O1: İnek Lak. Sonu | P1: 180 gün <gebelikten gelen GCAA(g/gün) | X1: Kondisyon Skoru | AD1: ME | AH1: NEI | AP1: KM (kg/gün) | AQ1: ME (Mcal/gün) | AR1: Nel (Mcal/gün) | AS1: HP (g/gün) | AT1: MBP (g/gün) | AU1: Rumende Yıkıma Dirençli Protein (g/gün) | AV1: Ca (g/gün) | AW1: P (g/gün) | AX1: ADF (kg/gün) | AY1: NDF (kg/gün) | BA1: Rasyon özeti | BB1: Yem | BC1: KM | BD1: ME | BE1: NEl | BF1: HP | BG1: MBP | BH1: Rumende Yıkıma Dirençli Protein | BI1: Ca | BJ1: P | BK1: ADF | BL1: NDF | BM1: Vit A
C2: Kuru | D2: Lakt. başı | E2: Lak. Ort | F2: Lak. sonu | H2: 0 | I2: 240 | J2: 3 | K2: 40 | L2: Çıkan inek sayısı | M2: 2 | N2: 0 | O2: 0 | W2: İnek Kuru | X2: İNDİS | Y2: =INDEX($AB$2:$AB$6,L14) -> 4 | Z2: SATIR | AA2: =MATCH(L14,AB2:AB6,0) -> 4 | AB2: 1 | AC2: lak sır | AD2: kuru | AE2: lak baş | AF2: lak ort | AG2: lak son | AH2: kuru | AI2: lak baş | AJ2: lak ort | AK2: lak son | BA2: Yem maddeleri | BB2: kg/gün | BC2: kg/gün | BD2: Mcal/gün | BE2: Mcal/gün | BF2: g/gün | BG2: (g/gün) | BH2: (g/gün) | BI2: g/gün | BJ2: g/gün | BK2: kg/gün | BL2: kg/gün | BM2: IU | BN2: YEM MADDESİ | BO2: ME | BP2: NEI | BQ2: KM | BR2: HP | BS2: NDF | BT2: ADF | BU2: RUP | BV2: CA | BW2: P | BX2: Vit A
A3: Sığır Süt Yemi, 24 HP, 3100 ME | B3: 2.4 | C3: 0 | D3: 8.714034926 | E3: 0.124076937 | F3: 3.98271 | G3: 10 | H3: Canlı Ağırlık | K3: kg | L3: 700 | M3: 500 | N3: 560 | O3: 600 | W3: İnek Lak. Başı | X3: İNDİS | Y3: =INDEX($AB$2:$AB$6,M14) -> 2 | Z3: SATIR | AA3: =MATCH(M14,AB2:AB6,0) -> 2 | AB3: 2 | AC3: 1 | AD3: =AH3/AD36 -> 3.133244975 | AE3: =AI3/AD37 -> 7.597072956 | AF3: =AJ3/AD38 -> 2.325042548 | AG3: =AK3/AD39 -> 6.54852735 | AH3: =AF29+AG29 -> 1.879946985 | AI3: =AG30 -> 4.558243773 | AJ3: =AG31 -> 1.395025529 | AK3: =AG32+AF32 -> 3.92911641 | AO3: =MATCH(A3,BA3:BA408,0) -> 208 | AP3: =(INDEX($BC$3:$BC$408,AO3)) -> 0.89 | AQ3: =(INDEX($BD$3:$BD$408,AO3)) -> 3.0972 | AR3: =(INDEX($BE$3:$BE$408,AO3)) -> 2.2072 | AS3: =INDEX($BF$3:$BF$408,AO3) -> 239.944 | AT3: =INDEX($BG$3:$BG$408,AO3) -> 0 | AU3: =INDEX($BH$3:$BH$408,AO3) -> 53.4355288 | AV3: =INDEX($BI$3:$BI$408,AO3) -> 10.591 | AW3: =INDEX($BJ$3:$BJ$408,AO3) -> 5.251 | AX3: =INDEX($BK$3:$BK$408,AO3) -> 10.5 | AY3: =INDEX($BL$3:$BL$408,AO3) -> 23.7 | BA3: =BN3 -> Baklagil Kuru Otu | BB3: 1 | BC3: =BQ3*10/1000 -> 0.878 | BD3: =BO3*BQ3/100 -> 1.82624 | BE3: =BP3*BQ3/100 -> 1.11506 | BF3: =BR3*BQ3/10 -> 177.356 | BH3: =BF3*BU3/100 -> 33.342928 | BI3: =BQ3*BV3/10 -> 13.3456 | BJ3: =BW3*BQ3/10 -> 2.2828 | BK3: =BT3 -> 31.2 | BL3: =BS3 -> 39.6 | BM3: =BX3 -> 0 | BN3: Baklagil Kuru Otu | BO3: 2.08 | BP3: 1.27 | BQ3: 87.8 | BR3: 20.2 | BS3: 39.6 | BT3: 31.2 | BU3: 18.8 | BV3: 1.52 | BW3: 0.26
A4: Sığır Süt Yemi,18 HP, 2600 ME | B4: 2.2 | C4: 0 | D4: 0 | E4: 0 | F4: 0 | G4: 10 | H4: Günlük Canlı Ağırlıkm Artışı | K4: g | L4: 900 | M4: 800 | N4: 250 | O4: 800 | P4: =700*K2/45 -> 622.2222222 | W4: İnek Lak. Ortası | X4: İNDİS | Y4: =INDEX($AB$2:$AB$6,N14) -> 3 | Z4: SATIR | AA4: =MATCH(N14,AB2:AB6,0) -> 3 | AB4: 3 | AC4: 2 | AD4: =AH4/AD36 -> 3.133244975 | AE4: =AI4/AD37 -> 7.597072956 | AF4: =AJ4/AD38 -> 2.325042548 | AG4: =AK4/AD39 -> 6.54852735 | AH4: =AF29+AH29 -> 1.879946985 | AI4: =AH30 -> 4.558243773 | AJ4: =AH31 -> 1.395025529 | AK4: =AF32+AH32 -> 3.92911641 | AO4: =MATCH(A4,BA3:BA408,0) -> 194 | AP4: 0.89 | AQ4: 2.5899 | AR4: 1.6643 | AS4: 181.738 | AT4: 0 | AU4: 40.4730526 | AV4: 10.591 | AW4: 5.251 | AX4: 8.17 | AY4: 18.75 | BA4: =BN4 -> Baklagil Kuru Otu, Körpe < %40 NDF | BB4: =BB3 -> 1 | BC4: =BQ4*10/1000 -> 0.842 | BD4: =BO4*BQ4/100 -> 1.87766 | BE4: =BP4*BQ4/100 -> 1.16196 | BF4: =BR4*BQ4/10 -> 191.976 | BH4: =BF4*BU4/100 -> 31.292088 | BI4: 13.1352 | BJ4: =BW4*BQ4/10 -> 2.6102 | BK4: =BT4 -> 28.6 | BL4: =BS4 -> 36.3 | BM4: =BX4 -> 0 | BN4: Baklagil Kuru Otu, Körpe < %40 NDF | BO4: 2.23 | BP4: 1.38 | BQ4: 84.2 | BR4: 22.8 | BS4: 36.3 | BT4: 28.6 | BU4: 16.3 | BV4: 1.56 | BW4: 0.31
A5: Yulaf Kuru Otu, Başaklı | B5: 0.6 | C5: 0 | D5: 0 | E5: 0 | F5: 0 | G5: 10 | H5: Bakım Süresi | K5: gün | L5: 60 | M5: 75 | N5: 160 | O5: 75 | W5: İnek Lak. Sonu | X5: İNDİS | Y5: =INDEX($AB$2:$AB$6,O14) -> 4 | Z5: SATIR | AA5: =MATCH(O14,AB2:AB6,0) -> 4 | AB5: 4 | AC5: 3 | AD5: =AH5/AD36 -> 3.133244975 | AE5: =AI5/AD37 -> 7.597072956 | AF5: =AJ5/AD38 -> 2.325042548 | AG5: =AK5/AD39 -> 6.54852735 | AH5: =AF29+AH29 -> 1.879946985 | AI5: =AH30 -> 4.558243773 | AJ5: =AH31 -> 1.395025529 | AK5: =AF32+AH32 -> 3.92911641 | AO5: =MATCH(A5,BA3:BA408,0) -> 39 | AP5: 0.919 | AQ5: 1.68177 | AR5: 1.0109 | AS5: 83.629 | AT5: 0 | AU5: 31.026359 | AV5: 3.4003 | AW5: 2.0218 | AX5: 36.4 | AY5: 58 | BA5: Baklagil Kuru Otu, Olgun >%46 NDF | BB5: =BB4 -> 1 | BC5: 0.838 | BD5: 1.57544 | BE5: 0.94694 | BF5: 188.55 | BH5: 33.5619 | BI5: 10.2236 | BJ5: 2.3464 | BK5: 39.5 | BL5: 50.9 | BM5: 0 | BN5: Baklagil Kuru Otu, Olgun >%46 NDF | BO5: 1.88 | BP5: 1.13 | BQ5: 83.8 | BR5: 22.5 | BS5: 50.9 | BT5: 39.5 | BU5: 17.8 | BV5: 1.22 | BW5: 0.28
A6: Arpa , Ezme | B6: 1.5 | C6: 0 | D6: 2.124764004 | E6: 8.694779768 | F6: 6.003219951 | G6: 10 | H6: Günlük Süt Verimi | K6: kg | M6: 30 | N6: 25 | O6: 15 | P6: SÜTÜN YEM MALİYETİ (TL/KG) | AB6: 5 | AC6: SATIR | AD6: =MATCH(J2,AC3:AC5,0) -> 3 | AE6: =MATCH(J2,AC3:AC5,0) -> 3 | AF6: =MATCH(J2,AC3:AC5,0) -> 3 | AG6: =MATCH(J2,AC3:AC5,0) -> 3 | AH6: =MATCH(J2,AC3:AC5,0) -> 3 | AI6: =MATCH(J2,AC3:AC5,0) -> 3 | AJ6: =MATCH(J2,AC3:AC5,0) -> 3 | AK6: =MATCH(J2,AC3:AC5,0) -> 3 | AO6: =MATCH(A6,BA3:BA408,0) -> 114 | AP6: 0.91 | AQ6: 2.6572 | AR6: 1.6926 | AS6: 112.84 | AT6: 0 | AU6: 20.42404 | AV6: 0.546 | AW6: 3.549 | AX6: 7.2 | AY6: 20.8 | BA6: Baklagil Kuru Otu, Orta Olgun, %40-46 NDF | BB6: 1 | BC6: 0.839 | BD6: 1.75351 | BE6: 1.07392 | BF6: 174.512 | BH6: 30.714112 | BI6: 11.4943 | BJ6: 2.517 | BK6: 33.4 | BL6: 42.9 | BM6: 0 | BN6: Baklagil Kuru Otu, Orta Olgun, %40-46 NDF | BO6: 2.09 | BP6: 1.28 | BQ6: 83.9 | BR6: 20.8 | BS6: 42.9 | BT6: 33.4 | BU6: 17.6 | BV6: 1.37 | BW6: 0.3
A7: Buğday Samanı | B7: 0.5 | C7: 7.169810696 | D7: 0 | E7: 0 | F7: 1.497443935e-08 | G7: 10 | H7: Süt Yağı | K7: % | M7: 3.5 | N7: 3.7 | O7: 3.9 | AC7: İNDİS | AD7: =INDEX($AD$3:$AD$5,J2) -> 3.133244975 | AE7: =INDEX($AE$3:$AE$5,J2) -> 7.597072956 | AF7: =INDEX($AF$3:$AF$5,J2) -> 2.325042548 | AG7: =INDEX($AG$3:$AG$5,J2) -> 6.54852735 | AH7: =INDEX($AH$3:$AH$5,J2) -> 1.879946985 | AI7: =INDEX($AI$3:$AI$5,J2) -> 4.558243773 | AJ7: =INDEX($AJ$3:$AJ$5,J2) -> 1.395025529 | AK7: =INDEX($AK$3:$AK$5,J2) -> 3.92911641 | AO7: =MATCH(A7,BA3:BA408,0) -> 6 | AP7: 0.927 | AQ7: 1.33488 | AR7: 0.76014 | AS7: 44.496 | AT7: 0 | AU7: 7.386336 | AV7: 3.3372 | AW7: 3.2445 | AX7: 35.2 | AY7: 73 | BA7: Buğday Kuru Otu, Başaklı | BB7: 1 | BC7: 0.868 | BD7: 1.48428 | BE7: 0.87668 | BF7: 81.592 | BH7: 30.107448 | BI7: 2.6908 | BJ7: 1.736 | BK7: 38.1 | BL7: 61.1 | BM7: 0 | BN7: Buğday Kuru Otu, Başaklı | BO7: 1.71 | BP7: 1.01 | BQ7: 86.8 | BR7: 9.4 | BS7: 61.1 | BT7: 38.1 | BU7: 36.9 | BV7: 0.31 | BW7: 0.2
A8: Çayır Merası, Soğuk Mevsim, Bakımlı | B8: 0.01 | C8: 0 | D8: 0 | E8: 52.63618444 | F8: 0 | G8: 100 | H8: Sağım Süresi | K8: gün | M8: 90 | N8: 120 | O8: 95 | AD8: HP | AH8: NDF | AO8: =MATCH(A8,BA3:BA408,0) -> 48 | AP8: 0.201 | AQ8: 0.49446 | AR8: 0.30954 | AS8: 53.265 | AT8: 0 | AU8: 11.82483 | AV8: 1.1256 | AW8: 0.8844 | AX8: 25 | AY8: 45.8 | BA8: Buğday Samanı | BB8: 1 | BC8: 0.927 | BD8: 1.33488 | BE8: 0.76014 | BF8: 44.496 | BH8: 7.386336 | BI8: 3.3372 | BJ8: 3.2445 | BK8: 35.2 | BL8: 73 | BM8: 0 | BN8: Buğday Samanı | BO8: 1.44 | BP8: 0.82 | BQ8: 92.7 | BR8: 4.8 | BS8: 73 | BT8: 35.2 | BU8: 16.6 | BV8: 0.36 | BW8: 0.35
A9: Yonca Kuru Otu, 5. Kalite %13-15 HP, <%48-54 NDF | B9: 1 | C9: 0 | D9: 0 | E9: 0 | F9: 0 | G9: 10 | H9: Satılan Hayvan | K9: baş | L9: 25 | P9: Lakt. başı | Q9: =AC88 -> 1.953235767 | AC9: lak sır | AD9: kuru | AE9: lak baş | AF9: lak ort | AG9: lak son | AH9: kuru | AI9: lak baş | AJ9: lak ort | AK9: lak son | AO9: =MATCH(A9,BA3:BA408,0) -> 33 | AP9: 0.9127 | AQ9: 1.64286 | AR9: 0.976589 | AS9: 130.69864 | AT9: 0 | AU9: 41.95426344 | AV9: 10.76986 | AW9: 1.91667 | AX9: 41.8 | AY9: 52.7 | BA9: Çayır Kuru Otu, Soğuk Mevsim | BB9: 1 | BC9: 0.881 | BD9: 1.63866 | BE9: 0.98672 | BF9: 93.386 | BH9: 21.385394 | BI9: 3.3478 | BJ9: 2.5549 | BK9: 37.6 | BL9: 64.4 | BM9: 0 | BN9: Çayır Kuru Otu, Soğuk Mevsim | BO9: 1.86 | BP9: 1.12 | BQ9: 88.1 | BR9: 10.6 | BS9: 64.4 | BT9: 37.6 | BU9: 22.9 | BV9: 0.38 | BW9: 0.29
A10: Sığır Süt Yemi,16 HP, 2400 ME | B10: 2 | C10: 0 | D10: 0 | E10: 0 | F10: 0 | G10: 10 | H10: Karkas Ranıman | K10: % | L10: 50 | M10: 50 | N10: 50 | O10: 50 | AC10: 1 | AD10: =(70.7+2.77*(POWER(L3,3/4)))*0.2 -> 89.53339405 | AE10: =(70.7+2.77*(POWER(M3,3/4)))*0.2 -> 72.71836799 | AF10: =(70.7+2.77*(POWER(N3,3/4)))*0.2 -> 77.91504665 | AG10: =(70.7+2.77*(POWER(O3,3/4)))*0.2 -> 81.30193538 | AH10: =0.08*(POWER(L3,3/4))*0.1 -> 1.088713271 | AI10: =0.08*(POWER(M3,3/4))*0.1 -> 0.8458970108 | AJ10: =0.08*(POWER(N3,3/4))*0.1 -> 0.9209393019 | AK10: =0.08*(POWER(O3,3/4))*0.1 -> 0.9698474422 | AO10: =MATCH(A10,BA3:BA408,0) -> 189 | AP10: 0.89 | AQ10: 2.4119 | AR10: 1.5308 | AS10: 162.87 | AT10: 0 | AU10: 36.271149 | AV10: 10.591 | AW10: 4.984 | AX10: 11.9 | AY10: 26.07 | BA10: Çayır Kuru Otu, Soğuk Mevsim, Körpe <%55 NDF | BB10: 1 | BC10: 0.84 | BD10: 1.8648 | BE10: 1.1508 | BF10: 151.2 | BH10: 36.7416 | BI10: 3.612 | BJ10: 3.528 | BK10: 34.9 | BL10: 49.6 | BM10: 0 | BN10: Çayır Kuru Otu, Soğuk Mevsim, Körpe <%55 NDF | BO10: 2.22 | BP10: 1.37 | BQ10: 84 | BR10: 18 | BS10: 49.6 | BT10: 34.9 | BU10: 24.3 | BV10: 0.43 | BW10: 0.42
A11: Pamuk Tohumu Küspesi, Pres, % 28 HP | B11: 2.5 | C11: 0 | D11: 4.60126345 | E11: 0 | F11: 0 | G11: 10 | H11: Karkas Et Oranı | K11: % | L11: 80 | M11: 80 | N11: 80 | O11: 80 | P11: Lak. Ort | Q11: =AD88 -> 0.5615506004 | AB11: COAT | AC11: 2 | AD11: =(70.7+2.77*(POWER(L3,3/4)))*0.1 -> 44.76669702 | AE11: =(70.7+2.77*(POWER(M3,3/4)))*0.1 -> 36.359184 | AF11: =(70.7+2.77*(POWER(N3,3/4)))*0.1 -> 38.95752333 | AG11: =(70.7+2.77*(POWER(O3,3/4)))*0.1 -> 40.65096769 | AH11: =0.08*(POWER(L3,3/4))*0.1 -> 1.088713271 | AI11: =0.08*(POWER(M3,3/4))*0.1 -> 0.8458970108 | AJ11: =0.08*(POWER(N3,3/4))*0.1 -> 0.9209393019 | AK11: =0.08*(POWER(O3,3/4))*0.1 -> 0.9698474422 | AO11: =MATCH(A11,BA3:BA408,0) -> 96 | AP11: 0.905 | AQ11: 2.172 | AR11: 1.3575 | AS11: 279.645 | AT11: 0 | AU11: 117.4509 | AV11: 1.81 | AW11: 9.05 | AX11: 28 | AY11: 38 | BA11: Çayır Kuru Otu , Soğuk Mevsim,Olgun >%60 NDF | BB11: 1 | BC11: 0.844 | BD11: 1.5614 | BE11: 0.93684 | BF11: 91.152 | BH11: 20.235744 | BI11: =BQ11*BV11/10 -> 3.9668 | BJ11: 3.7136 | BK11: 25 | BL11: 69.1 | BM11: 0 | BN11: Çayır Kuru Otu , Soğuk Mevsim,Olgun >%60 NDF | BO11: 1.85 | BP11: 1.11 | BQ11: 84.4 | BR11: 10.8 | BS11: 69.1 | BT11: 25 | BU11: 22.2 | BV11: 0.47 | BW11: 0.44
A12: Baklagil Kuru Otu, Olgun >%46 NDF | B12: 1 | C12: 0 | D12: 0 | E12: 0 | F12: 0 | G12: 2 | H12: Et Protein Oranı | K12: % | L12: 20 | M12: 20 | N12: 20 | O12: 20 | V12: İnek Kuru | W12: İNDİS | X12: =INDEX($AB$12:$AB$15,Z12) -> 1 | Y12: SATIR | Z12: =MATCH(L15,AA12:AA15,0) -> 1 | AA12: Kuru-temiz | AB12: 1 | AC12: 3 | AD12: 0 | AE12: 0 | AF12: 0 | AG12: 0 | AH12: 0 | AI12: 0 | AJ12: 0 | AK12: 0 | AO12: =MATCH(A12,BA3:BA408,0) -> 3 | AP12: 0.838 | AQ12: 1.57544 | AR12: 0.94694 | AS12: 188.55 | AT12: 0 | AU12: 33.5619 | AV12: 10.2236 | AW12: 2.3464 | AX12: 39.5 | AY12: 50.9 | BA12: Çayır Kuru Otu , Soğuk Mevsim,Orta Olgun.,%55-60 NDF | BB12: 1 | BC12: 0.838 | BD12: 1.69276 | BE12: 1.03074 | BF12: 111.454 | BH12: 27.640592 | BI12: 4.609 | BJ12: 2.4302 | BK12: 40.3 | BL12: 57.7 | BM12: 0 | BN12: Çayır Kuru Otu , Soğuk Mevsim,Orta Olgun.,%55-60 NDF | BO12: 2.02 | BP12: 1.23 | BQ12: 83.8 | BR12: 13.3 | BS12: 57.7 | BT12: 40.3 | BU12: 24.8 | BV12: 0.55 | BW12: 0.29
A13: Ayçiçeği Küspesi, Solvent, %32 HP | B13: 2 | C13: 0 | D13: 0 | E13: 0 | F13: 0 | G13: 5 | H13: Birim İşçiye düşen hayvan say | K13: baş | L13: 50 | M13: 40 | N13: 40 | O13: 40 | P13: Lak. sonu | Q13: =AE88 -> 1.715486678 | V13: İnek Lak. Başı | W13: İNDİS | X13: =INDEX($AB$12:$AB$15,Z13) -> 1 | Y13: SATIR | Z13: =MATCH(M15,AA12:AA15,0) -> 1 | AA13: Bacaklar çamur | AB13: 0.8 | AC13: İNDİS | AD13: =INDEX($AD$10:$AD$12,J2) -> 0 | AE13: =INDEX($AE$10:$AE$12,J2) -> 0 | AF13: =INDEX($AF$10:$AF$12,J2) -> 0 | AG13: =INDEX($AG$10:$AG$12,J2) -> 0 | AH13: =INDEX($AH$10:$AH$12,J2) -> 0 | AI13: =INDEX($AI$10:$AI$12,J2) -> 0 | AJ13: =INDEX($AJ$10:$AJ$12,J2) -> 0 | AK13: =INDEX($AK$10:$AK$12,J2) -> 0 | AO13: =MATCH(A13,BA3:BA408,0) -> 79 | AP13: 0.922 | AQ13: 2.2128 | AR13: 1.4752 | AS13: 328.232 | AT13: 0 | AU13: 60.394688 | AV13: 4.4256 | AW13: 9.22 | AX13: 26 | AY13: 36 | BA13: Çayır-Baklagil Kuru Otu (Baklagil Yoğun), Körpe <%44 NDF | BB13: 1 | BC13: 0.838 | BD13: 1.8017 | BE13: 1.10616 | BF13: 171.79 | BH13: 32.81189 | BI13: 4.7766 | BJ13: 3.0168 | BK13: 32.9 | BL13: 41.7 | BM13: 0 | BN13: Çayır-Baklagil Kuru Otu (Baklagil Yoğun), Körpe <%44 NDF | BO13: 2.15 | BP13: 1.32 | BQ13: 83.8 | BR13: 20.5 | BS13: 41.7 | BT13: 32.9 | BU13: 19.1 | BV13: 0.57 | BW13: 0.36
A14: Soya Küspesi , Solvent, %51 | B14: 5 | C14: 0 | D14: 0 | E14: 0 | F14: 0 | G14: 2 | H14: Vücut Kondisyon Skoru | K14: puan | L14: 4 | M14: 2 | N14: 3 | O14: 4 | V14: İnek Lak. Ortası | W14: İNDİS | X14: =INDEX($AB$12:$AB$15,Z14) -> 1 | Y14: SATIR | Z14: =MATCH(N15,AA12:AA15,0) -> 1 | AA14: Islak-paspaslı | AB14: 0.5 | AH14: MP | AO14: =MATCH(A14,BA3:BA408,0) -> 107 | AP14: 0.895 | AQ14: 3.05195 | AR14: 1.97795 | AS14: 510.15 | AT14: 0 | AU14: 157.1262 | AV14: 3.1325 | AW14: 6.265 | AX14: 6.2 | AY14: 9.8 | BA14: Çayır-Baklagil kUru Otu (Çayır OtuYoğun), Körpe <%51NDF | BB14: 1 | BC14: 0.843 | BD14: 1.83774 | BE14: 1.12962 | BF14: 155.112 | BH14: 51.031848 | BI14: 4.7208 | BJ14: 2.6133 | BK14: 41.1 | BL14: 49.6 | BM14: 0 | BN14: Çayır-Baklagil kUru Otu (Çayır OtuYoğun), Körpe <%51NDF | BO14: 2.18 | BP14: 1.34 | BQ14: 84.3 | BR14: 18.4 | BS14: 49.6 | BT14: 41.1 | BU14: 32.9 | BV14: 0.56 | BW14: 0.31
A15: Çayır Kuru Otu , Soğuk Mevsim,Olgun >%60 NDF | B15: 0.7 | C15: 0 | D15: 0 | E15: 0 | F15: 0 | G15: 10 | H15: Dış İzolasyon | L15: Kuru-temiz | M15: Kuru-temiz | N15: Kuru-temiz | O15: Kuru-temiz | P15: GENEL | Q15: =AF88 -> 1.39407869 | V15: İnek Lak. Sonu | W15: İNDİS | X15: =INDEX($AB$12:$AB$15,Z15) -> 1 | Y15: SATIR | Z15: =MATCH(O15,AA12:AA15,0) -> 1 | AA15: Kar-çamur kaplı | AB15: 0.2 | AH15: kuru | AI15: lak baş | AJ15: lak ort | AK15: lak son | AO15: =MATCH(A15,BA3:BA408,0) -> 9 | AP15: 0.844 | AQ15: 1.5614 | AR15: 0.93684 | AS15: 91.152 | AT15: 0 | AU15: 20.235744 | AV15: 3.9668 | AW15: 3.7136 | AX15: 25 | AY15: 69.1 | BA15: Çayır-Baklagil Kuru Otu , Olgun> %50 NDF | BB15: 1 | BC15: 0.843 | BD15: 1.55112 | BE15: 0.9273 | BF15: 144.996 | BH15: 33.639072 | BI15: 5.058 | BJ15: 3.0348 | BK15: 35.2 | BL15: 53.6 | BM15: 0 | BN15: Çayır-Baklagil Kuru Otu , Olgun> %50 NDF | BO15: 1.84 | BP15: 1.1 | BQ15: 84.3 | BR15: 17.2 | BS15: 53.6 | BT15: 35.2 | BU15: 23.2 | BV15: 0.6 | BW15: 0.36
A16: Mısır Silajı, %33-40 KM | B16: 0.5 | C16: 19.78339034 | D16: 7.348169032 | E16: 0 | F16: 10.14565302 | G16: 30 | H16: Rüzgar | K16: km/saat | L16: 1 | M16: 1 | N16: 1 | O16: 1 | AH16: =(IF(AJ29>0,AJ29,AD34)*(268-(29.4*((0.0635*(POWER((0.96*0.891*(478/(0.96*L3))*(0.96*L3-20)),3/4)*(POWER((0.956*IF(AJ29>0,AJ29,AD34)),1.097))))/IF(AJ29>0,AJ29,AD34)))))/0.28908 -> 123.8769732 | AI16: =((M4+0.00000001)/1000*(268-(29.4*((0.0635*(POWER((0.96*0.891*(478/(0.96*M3))*(0.96*M3-20)),3/4)*(POWER((0.956*(M4+0.00000001)/1000),1.097))))/(M4+0.00000001)/1000))))/0.28908 -> 741.6627836 | AJ16: =((N4+0.00000001)/1000*(268-(29.4*((0.0635*(POWER((0.96*0.891*(478/(0.96*N3))*(0.96*N3-20)),3/4)*(POWER((0.956*(N4+0.00000001)/1000),1.097))))/(N4+0.00000001)/1000))))/0.28908 -> 231.7696336 | AK16: =(IF(AJ32>0,AJ32,AD34)*(268-(29.4*((0.0635*(POWER((0.96*0.891*(478/(0.96*O3))*(0.96*O3-20)),3/4)*(POWER((0.956*IF(AJ32>0,AJ32,AD34)),1.097))))/IF(AJ32>0,AJ32,AD34)))))/0.28908 -> 83.39842168 | AO16: =MATCH(A16,BA3:BA408,0) -> 65 | AP16: 0.355 | AQ16: 0.72065 | AR16: 0.4402 | AS16: 25.915 | AT16: 0 | AU16: 8.75927 | AV16: 0.923 | AW16: 0.8875 | AX16: 29.8 | AY16: 51.6 | BA16: Çayır-Baklagil Kuru Otu, Olgun> %53 NDF | BB16: 1 | BC16: 0.897 | BD16: 1.66842 | BE16: 1.00464 | BF16: 163.254 | BH16: 27.589926 | BI16: 10.4052 | BJ16: 3.2292 | BK16: 31.1 | BL16: 56 | BM16: 0 | BN16: Çayır-Baklagil Kuru Otu, Olgun> %53 NDF | BO16: 1.86 | BP16: 1.12 | BQ16: 89.7 | BR16: 18.2 | BS16: 56 | BT16: 31.1 | BU16: 16.9 | BV16: 1.16 | BW16: 0.36
A17: MIsır Gluteni,63 | B17: 10 | C17: 0 | D17: 1.521774869 | E17: 0 | F17: 0 | G17: 10 | H17: Kıl Kalınlığı | K17: cm | L17: 0.8 | M17: 1 | N17: 0.8 | O17: 0.67 | P17: BİRİM YEM MALİYETİ(TL) | AH17: =(IF(AJ29>0,AJ29,AD34)*(268-(29.4*((0.0635*(POWER((0.96*0.891*(478/(0.96*L3))*(0.96*L3-20)),3/4)*(POWER((0.956*IF(AJ29>0,AJ29,AD34)),1.097))))/IF(AJ29>0,AJ29,AD34)))))/0.28908 -> 123.8769732 | AI17: =((M4+0.00000001)/1000*(268-(29.4*((0.0635*(POWER((0.96*0.891*(478/(0.96*M3))*(0.96*M3-20)),3/4)*(POWER((0.956*(M4+0.00000001)/1000),1.097))))/(M4+0.00000001)/1000))))/0.28908 -> 741.6627836 | AJ17: =((N4+0.00000001)/1000*(268-(29.4*((0.0635*(POWER((0.96*0.891*(478/(0.96*N3))*(0.96*N3-20)),3/4)*(POWER((0.956*(N4+0.00000001)/1000),1.097))))/(N4+0.00000001)/1000))))/0.28908 -> 231.7696336 | AK17: =(IF(AJ32>0,AJ32,AD34)*(268-(29.4*((0.0635*(POWER((0.96*0.891*(478/(0.96*O3))*(0.96*O3-20)),3/4)*(POWER((0.956*IF(AJ32>0,AJ32,AD34)),1.097))))/IF(AJ32>0,AJ32,AD34)))))/0.28908 -> 83.39842168 | AO17: =MATCH(A17,BA3:BA408,0) -> 94 | AP17: 0.864 | AQ17: 3.16224 | AR17: 2.05632 | AS17: 561.6 | AT17: 0 | AU17: 358.3008 | AV17: 0.5184 | AW17: 5.184 | AX17: 8.2 | AY17: 11.1 | BA17: Çayır-Baklagil Kuru Otu, Olgun> %57 NDF | BB17: 1 | BC17: 0.847 | BD17: 1.62624 | BE17: 0.98252 | BF17: 112.651 | BH17: 19.713925 | BI17: 9.1476 | BJ17: 2.9645 | BK17: 30.8 | BL17: 62.5 | BM17: 0 | BN17: Çayır-Baklagil Kuru Otu, Olgun> %57 NDF | BO17: 1.92 | BP17: 1.16 | BQ17: 84.7 | BR17: 13.3 | BS17: 62.5 | BT17: 30.8 | BU17: 17.5 | BV17: 1.08 | BW17: 0.35
A18: Yağ, Bitkisel | B18: 15 | C18: 1 | D18: 0.2734167576 | E18: 0 | F18: 0.1313707964 | G18: 1 | H18: Mevcut Çevre Isısı | K18: 0C | L18: -25 | M18: 5 | N18: 18 | O18: 5 | V18: YPMP | W18: BüyümeMP | X18: GebelikMP | Y18: VerimMP | Z18: YPME | AA18: toplamMP | AB18: %SP | AD18: İnek Kuru | AE18: İnek lak başı | AF18: İnek lak ortası | AG18: İnek lak sonu | AH18: =(IF(AJ29>0,AJ29,AD34)*(268-(29.4*((0.0635*(POWER((0.96*0.891*(478/(0.96*L3))*(0.96*L3-20)),3/4)*(POWER((0.956*IF(AJ29>0,AJ29,AD34)),1.097))))/IF(AJ29>0,AJ29,AD34)))))/0.28908 -> 123.8769732 | AI18: =((M4+0.00000001)/1000*(268-(29.4*((0.0635*(POWER((0.96*0.891*(478/(0.96*M3))*(0.96*M3-20)),3/4)*(POWER((0.956*(M4+0.00000001)/1000),1.097))))/(M4+0.00000001)/1000))))/0.28908 -> 741.6627836 | AJ18: =((N4+0.00000001)/1000*(268-(29.4*((0.0635*(POWER((0.96*0.891*(478/(0.96*N3))*(0.96*N3-20)),3/4)*(POWER((0.956*(N4+0.00000001)/1000),1.097))))/(N4+0.00000001)/1000))))/0.28908 -> 231.7696336 | AK18: =(IF(AJ32>0,AJ32,AD34)*(268-(29.4*((0.0635*(POWER((0.96*0.891*(478/(0.96*O3))*(0.96*O3-20)),3/4)*(POWER((0.956*IF(AJ32>0,AJ32,AD34)),1.097))))/IF(AJ32>0,AJ32,AD34)))))/0.28908 -> 83.39842168 | AO18: =MATCH(A18,BA3:BA408,0) -> 132 | AP18: 1 | AQ18: 7.07 | AR18: 5.65 | AS18: 0 | AT18: 0 | AU18: 0 | AV18: 0 | AW18: 0 | AX18: 0 | AY18: 0 | BA18: Çayır-Baklagil Kuru Otu, Orta Olgun, %47-53 NDF | BB18: 1 | BC18: 0.853 | BD18: 1.74865 | BE18: 1.06625 | BF18: 156.952 | BH18: 28.565264 | BI18: 8.7006 | BJ18: 2.9002 | BK18: 31.8 | BL18: 50.8 | BM18: 0 | BN18: Çayır-Baklagil Kuru Otu, Orta Olgun, %47-53 NDF | BO18: 2.05 | BP18: 1.25 | BQ18: 85.3 | BR18: 18.4 | BS18: 50.8 | BT18: 31.8 | BU18: 18.2 | BV18: 1.02 | BW18: 0.34
A19: Kalsiyum Karbonat, CaCO3 | B19: 1 | C19: 0.009600953259 | D19: 0 | E19: 0.0866177825 | F19: 0.04275646848 | G19: 10 | H19: Önceden Maruz Kaldığı Çevre Isısı | K19: 0C | L19: 5 | M19: -25 | N19: 5 | O19: 18 | P19: Kuru | Q19: =AB87 -> 1.018703738 | U19: İnek Kuru | V19: =3.8*POWER(L3,0.75) -> 517.1388039 | W19: =AH20 -> 123.8769732 | X19: =IF(H2>180,((((0.69*H2)-69.2)*K2/45)/0.33),0) -> 0 | Z19: =0.133*(POWER((L3-IF(H2>180,V27,0)),3/4)) -> 18.09985814 | AA19: =V19+W19+X19+Y19 -> 641.0157771 | AC19: yemmph | AD19: =C27*36.5 -> 1127.767406 | AE19: =F27*36.5 -> 1995.44434 | AF19: =I27*36.5 -> 1807.280989 | AG19: =L27*36.5 -> 1333.245058 | AH19: =MATCH(J2,AC10:AC12,0) -> 3 | AI19: =MATCH(J2,AC10:AC12,0) -> 3 | AJ19: =MATCH(J2,AC10:AC12,0) -> 3 | AK19: =MATCH(J2,AC10:AC12,0) -> 3 | AO19: =MATCH(A19,BA3:BA408,0) -> 230 | AP19: 1 | AQ19: 0 | AR19: 0 | AS19: 0 | AT19: 0 | AU19: 0 | AV19: 390 | AW19: 0.4 | AX19: 0 | AY19: 0 | BA19: Çayır-Baklagil Silajı, Orta Olgun> %51-57 NDF | BB19: 1 | BC19: 0.873 | BD19: 1.80711 | BE19: 1.09998 | BF19: 151.902 | BH19: 42.988266 | BI19: 9.2538 | BJ19: 2.8809 | BK19: 42.1 | BL19: 55.1 | BM19: 0 | BN19: Çayır-Baklagil Silajı, Orta Olgun> %51-57 NDF | BO19: 2.07 | BP19: 1.26 | BQ19: 87.3 | BR19: 17.4 | BS19: 55.1 | BT19: 42.1 | BU19: 28.3 | BV19: 1.06 | BW19: 0.33
A20: Amonyum Fosfat (Monobazik), (NH4) 2HPO4 | B20: 1 | C20: 0.02088096156 | D20: 0 | E20: 0.08583108318 | F20: 0.08282130481 | G20: 10 | H20: Meradan Ahıra Olan Mesafe | K20: m | N20: 1000 | U20: İnek Lak. Başı | V20: =3.8*POWER(M3,0.75) -> 401.8010801 | W20: =AI20 -> 741.6627836 | Y20: =M6*AB20*15.3 -> 1514.7 | Z20: =0.133*(POWER(M3,3/4)) -> 14.0630378 | AA20: =V20+W20+X20+Y20 -> 2658.163864 | AB20: =1.9+0.4*M7 -> 3.3 | AC20: yemmphp | AD20: =(C29-C32) -> 620.2723707 | AE20: =F29-F32 -> 3003.340039 | AF20: =I29-I32 -> 3068.784488 | AG20: =L29-L32 -> 1530.378878 | AH20: =INDEX($AH$16:$AH$18,J2) -> 123.8769732 | AI20: =INDEX($AI$16:$AI$18,J2) -> 741.6627836 | AJ20: =INDEX($AJ$16:$AJ$18,J2) -> 231.7696336 | AK20: =INDEX($AK$16:$AK$18,J2) -> 83.39842168 | AO20: =MATCH(A20,BA3:BA408,0) -> 219 | AP20: 1 | AQ20: 0 | AR20: 0 | AS20: 709 | AT20: 0 | AU20: 0 | AV20: 2.8 | AW20: 247.4 | AX20: 0 | AY20: 0 | BA20: Çayır-Baklagil Silajı, Orta Olgun> %44-50 NDF | BB20: 1 | BC20: 0.842 | BD20: 1.70084 | BE20: 1.03566 | BF20: 160.822 | BH20: 42.457008 | BI20: 9.8514 | BJ20: 2.7786 | BK20: 41.6 | BL20: 47.2 | BM20: 0 | BN20: Çayır-Baklagil Silajı, Orta Olgun> %44-50 NDF | BO20: 2.02 | BP20: 1.23 | BQ20: 84.2 | BR20: 19.1 | BS20: 47.2 | BT20: 41.6 | BU20: 26.4 | BV20: 1.17 | BW20: 0.33
D21: Kuru Dönemde İnek Sayısı (Baş) | H21: Meradan Ahıra Günlük Seyahat Sayısı | K21: adet | N21: 2 | P21: Lakt. başı | Q21: =AC87 -> 2.383601052 | U21: İnek Lak. Ortası | V21: =3.8*POWER(N3,0.75) -> 437.4461684 | W21: =AJ20 -> 231.7696336 | Y21: =N6*AB21*15.3 -> 1292.85 | Z21: =0.133*(POWER(N3,3/4)) -> 15.31061589 | AA21: =V21+W21+X21+Y21 -> 1962.065802 | AB21: =1.9+0.4*N7 -> 3.38 | BA21: Fiğ Kuru Otu | BB21: 1 | BC21: 0.91 | BD21: 1.9565 | BE21: 1.2285 | BF21: 159.25 | BH21: 28.028 | BI21: 12.467 | BJ21: 2.73 | BK21: 31.4 | BL21: 42.9 | BM21: 0 | BN21: Fiğ Kuru Otu | BO21: 2.15 | BP21: 1.35 | BQ21: 91 | BR21: 17.5 | BS21: 42.9 | BT21: 31.4 | BU21: 17.6 | BV21: 1.37 | BW21: 0.3
H22: Merada otluyormu? | L22: hayır | M22: hayır | N22: evet | O22: hayır | U22: İnek Lak. Sonu | V22: =3.8*POWER(O3,0.75) -> 460.6775351 | W22: =AK20 -> 83.39842168 | X22: =IF(I2>180,((((0.69*H2)-69.2)*K2/45)/0.33),0) -> -186.3973064 | Y22: =O6*AB22*15.3 -> 794.07 | Z22: =0.133*(POWER((O3-IF(I2>180,W27,0)),3/4)) -> 15.23765931 | AA22: =V22+W22+Y22+IF(H2>180,X22,0) -> 1338.145957 | AB22: =1.9+0.4*O7 -> 3.46 | AC22: 1 | AD22: TAMAM | AP22: İnek Kuru | AQ22: İnek lak başı | AR22: İnek lak ortası | AS22: İnek lak sonu | BA22: Fiğ Kuru Otu, Erken Biçim | BB22: 1 | BC22: 0.91 | BD22: 2.1112 | BE22: 1.2558 | BF22: 184.73 | BH22: 32.51248 | BI22: 12.467 | BJ22: 2.73 | BK22: 31.4 | BL22: 42.9 | BM22: 0 | BN22: Fiğ Kuru Otu, Erken Biçim | BO22: 2.32 | BP22: 1.38 | BQ22: 91 | BR22: 20.3 | BS22: 42.9 | BT22: 31.4 | BU22: 17.6 | BV22: 1.37 | BW22: 0.3
D23: 100 | H23: Mera eğimi varmı? | L23: yok | M23: yok | N23: yok | O23: yok | P23: Lak. Ort | Q23: =AD87 -> 0.2278003698 | AC23: 1 | AD23: FAZLA | AP23: =C26/$B26 -> 1 | AQ23: =F26/E26 -> 1 | AR23: =I26/H26 -> 1 | AS23: =L26/K26 -> 1.000000001 | BA23: Fiğ Kuru Otu, Geç Biçim | BB23: 1 | BC23: 0.91 | BD23: 1.8018 | BE23: 1.183 | BF23: 146.51 | BH23: 22.85556 | BI23: 12.467 | BJ23: 2.73 | BK23: 31.4 | BL23: 42.9 | BM23: 0 | BN23: Fiğ Kuru Otu, Geç Biçim | BO23: 1.98 | BP23: 1.3 | BQ23: 91 | BR23: 16.1 | BS23: 42.9 | BT23: 31.4 | BU23: 15.6 | BV23: 1.37 | BW23: 0.3
B24: Kuru Dönem (bir baş için) | E24: Lakt. Başı (bir baş için) | H24: Lak. Ortası (bir baş için) | K24: Lak. Sonu (bir baş için) | N24: NET GELİR (TL) | AC24: 2 | AD24: EKSİK | AP24: 0.8526314841 | AQ24: =F27/E27 -> 0.8874043591 | AR24: =I27/H27 -> 0.9537732668 | AS24: =L27/K27 -> 0.9079932995 | BA24: Karışık Çayır-Baklagil Kuru Otu,Körpe<%47NDF | BB24: 1 | BC24: 0.831 | BD24: 1.8282 | BE24: 1.12185 | BF24: 163.707 | BH24: 29.303553 | BI24: 9.972 | BJ24: 2.5761 | BK24: 30.8 | BL24: 45.4 | BM24: 0 | BN24: Karışık Çayır-Baklagil Kuru Otu,Körpe<%47NDF | BO24: 2.2 | BP24: 1.35 | BQ24: 83.1 | BR24: 19.7 | BS24: 45.4 | BT24: 30.8 | BU24: 17.9 | BV24: 1.2 | BW24: 0.31
B25: İHTİYAÇ | C25: RASYON | E25: İHTİYAÇ | F25: RASYON | H25: İHTİYAÇ | I25: RASYON | K25: İHTİYAÇ | L25: RASYON | P25: Lak. sonu | Q25: =AE87 -> 1.262096787 | AP25: 0.9099054905 | AQ25: =F28/E28 -> 1 | AR25: =I28/H28 -> 1 | AS25: =L28/K28 -> 1 | BA25: Köpek Dişi (Bermudagrass) Kuru Otu, Başak, Başı | BB25: 1 | BC25: 0.871 | BD25: 1.50683 | BE25: 0.88842 | BF25: 90.584 | BH25: 25.001184 | BI25: 4.2679 | BJ25: 2.3517 | BK25: 36.8 | BL25: 73.3 | BM25: 0 | BN25: Köpek Dişi (Bermudagrass) Kuru Otu, Başak, Başı | BO25: 1.73 | BP25: 1.02 | BQ25: 87.1 | BR25: 10.4 | BS25: 73.3 | BT25: 36.8 | BU25: 27.6 | BV25: 0.49 | BW25: 0.27
A26: KM (kg/gün) | B26: =V29 -> 14.7 | C26: =C3*AP3+C4*AP4+C5*AP5+C6*AP6+C7*AP7+C8*AP8+C9*AP9+C10*AP10+C11*AP11+C12*AP12+C13*AP13+C14*AP14+C15*AP15+C16*AP16+C17*AP17+C18*AP18+C19*AP19+C20*AP20 -> 14.7 | D26: =IF(AP23<$AQ$37,$AR$39,IF(AND(AP23>$AQ$38),$AR$38,IF(AND(AP23=$AQ$38),$AR$37,IF(AND(AP23=$AQ$37),$AR$37,IF(AND(AP23<$AQ$38,AP23>$AQ$37),$AR$37,0))))) -> TAMAM | E26: =V30 -> 18.05 | F26: =D3*AP3+D4*AP4+D5*AP5+D6*AP6+D7*AP7+D8*AP8+D9*AP9+D10*AP10+D11*AP11+D12*AP12+D13*AP13+D14*AP14+D15*AP15+D16*AP16+D17*AP17+D18*AP18+D19*AP19+D20*AP20 -> 18.05 | G26: =IF(AQ23<$AQ$37,$AR$39,IF(AND(AQ23>$AQ$38),$AR$38,IF(AND(AQ23=$AQ$38),$AR$37,IF(AND(AQ23=$AQ$37),$AR$37,IF(AND(AQ23<$AQ$38,AQ23>$AQ$37),$AR$37,0))))) -> TAMAM | H26: =V31 -> 18.775 | I26: =E3*AP3+E4*AP4+E5*AP5+E6*AP6+E7*AP7+E8*AP8+E9*AP9+E10*AP10+E11*AP11+E12*AP12+E13*AP13+E14*AP14+E15*AP15+E16*AP16+E17*AP17+E18*AP18+E19*AP19+E20*AP20 -> 18.775 | J26: =IF(AR23<$AQ$37,$AR$39,IF(AND(AR23>$AQ$38),$AR$38,IF(AND(AR23=$AQ$38),$AR$37,IF(AND(AR23=$AQ$37),$AR$37,IF(AND(AR23<$AQ$38,AR23>$AQ$37),$AR$37,0))))) -> TAMAM | K26: =V32 -> 12.86619744 | L26: =F3*AP3+F4*AP4+F5*AP5+F6*AP6+F7*AP7+F8*AP8+F9*AP9+F10*AP10+F11*AP11+F12*AP12+F13*AP13+F14*AP14+F15*AP15+F16*AP16+F17*AP17+F18*AP18+F19*AP19+F20*AP20 -> 12.86619746 | M26: =IF(AS23<$AQ$37,$AR$39,IF(AND(AS23>$AQ$38),$AR$38,IF(AND(AS23=$AQ$38),$AR$37,IF(AND(AS23=$AQ$37),$AR$37,IF(AND(AS23<$AQ$38,AS23>$AQ$37),$AR$37,0))))) -> TAMAM | N26: ='NET GELİR'!E7 -> 560375.4977 | V26: Kuru | W26: Lak Sonu | AG26: KURU | AP26: 0.6399930882 | AQ26: =F29/E29 -> 1.298276958 | AR26: =I29/H29 -> 1.495132142 | AS26: =L29/K29 -> 1.133948934 | BA26: Köpek Dişi (Bermudagrass,Tifton-85) Kuru Otu, 3-4 | BB26: 1 | BC26: 0.873 | BD26: 1.62378 | BE26: 0.97776 | BF26: 119.601 | BH26: 32.770674 | BI26: 3.4047 | BJ26: 1.9206 | BK26: 36.2 | BL26: 76.9 | BM26: 0 | BN26: Köpek Dişi (Bermudagrass,Tifton-85) Kuru Otu, 3-4 | BO26: 1.86 | BP26: 1.12 | BQ26: 87.3 | BR26: 13.7 | BS26: 76.9 | BT26: 36.2 | BU26: 27.4 | BV26: 0.39 | BW26: 0.22
A27: ME (Mcal/gün) | B27: =X29 -> 36.23809081 | C27: =C3*AQ3+C4*AQ4+C5*AQ5+C6*AQ6+C7*AQ7+C8*AQ8+C9*AQ9+C10*AQ10+C11*AQ11+C12*AQ12+C13*AQ13+C14*AQ14+C15*AQ15+C16*AQ16+C17*AQ17+C18*AQ18+C19*AQ19+C20*AQ20 -> 30.89773715 | D27: EKSİK | E27: =X30 -> 61.60630989 | F27: =D3*AQ3+D4*AQ4+D5*AQ5+D6*AQ6+D7*AQ7+D8*AQ8+D9*AQ9+D10*AQ10+D11*AQ11+D12*AQ12+D13*AQ13+D14*AQ14+D15*AQ15+D16*AQ16+D17*AQ17+D18*AQ18+D19*NQ19+D20*AQ20 -> 54.66970795 | G27: EKSİK | H27: =X31 -> 51.91437983 | I27: =E3*AQ3+E4*AQ4+E5*AQ5+E6*AQ6+E7*AQ7+E8*AQ8+E9*AQ9+E10*AQ10+E11*AQ11+E12*AQ12+E13*AQ13+E14*AQ14+E15*AQ15+E16*AQ16+E17*AQ17+E18*AQ18+E19*AQ19+E20*AQ20 -> 49.51454764 | J27: TAMAM | K27: =X32 -> 40.22855883 | L27: =F3*AQ3+F4*AQ4+F5*AQ5+F6*AQ6+F7*AQ7+F8*AQ8+F9*AQ9+F10*AQ10+F11*AQ11+F12*AQ12+F13*AQ13+F14*AQ14+F15*AQ15+F16*AQ16+F17*AQ17+F18*AQ18+F19*AQ19+F20*AQ20 -> 36.52726187 | M27: TAMAM | P27: GENEL | Q27: =AF87 -> 0.942727539 | U27: Fötüs ağırlığı | V27: =1.7111*K2-(280-H2)*0.7*K2/45 -> -105.7782222 | W27: =1.7111*K2-(280-I2)*0.7*K2/45 -> 43.55511111 | AA27: ME sıcaklık stres | AE27: önceki sıcaklık NE | AG27: 1.lak | AH27: 2.lak | AI27: NE Süt verimi | AP27: 1 | AQ27: 1 | AR27: 1 | AS27: 0.9999999994 | BA27: Mercimek Samanı | BB27: 1 | BC27: 0.929 | BD27: 1.66291 | BE27: 0.8361 | BF27: 65.03 | BH27: 32.515 | BI27: 21.4599 | BJ27: 1.3006 | BK27: 39.8 | BL27: 60.6 | BM27: 0 | BN27: Mercimek Samanı | BO27: 1.79 | BP27: 0.9 | BQ27: 92.9 | BR27: 7 | BS27: 60.6 | BT27: 39.8 | BU27: 50 | BV27: 2.31 | BW27: 0.14
A28: Nel (Mcal/gün) | B28: =Y29 -> 21.77007232 | C28: =C3*AR3+C4*AR4+C5*AR5+C6*AR6+C7*AR7+C8*AR8+C9*AR9+C10*AR10+C11*AR11+C12*AR12+C13*AR13+C14*AR14+C15*AR15+C16*AR16+C17*AR17+C18*AR18+C19*AR19+C20*AR20 -> 19.80870833 | D28: TAMAM | E28: =Y30 -> 36.98493336 | F28: =D3*AR3+D4*AR4+D5*AR5+D6*AR6+D7*AR7+D8*AR8+D9*AR9+D10*AR10+D11*AR11+D12*AR12+D13*AR13+D14*AR14+D15*AR15+D16*AR16+D17*AR17+D18*AR18+D19*AR19+D20*AR20 -> 36.98493336 | G28: TAMAM | H28: =Y31 -> 31.28365138 | I28: =E3*AR3+E4*AR4+E5*AR5+E6*AR6+E7*AR7+E8*AR8+E9*AR9+E10*AR10+E11*AR11+E12*AR12+E13*AR13+E14*AR14+E15*AR15+E16*AR16+E17*AR17+E18*AR18+E19*AR19+E20*AR20 -> 31.28365138 | J28: TAMAM | K28: =Y32 -> 24.16004907 | L28: =F3*AR3+F4*AR4+F5*AR5+F6*AR6+F7*AR7+F8*AR8+F9*AR9+F10*AR10+F11*AR11+F12*AR12+F13*AR13+F14*AR14+F15*AR15+F16*AR16+F17*AR17+F18*AR18+F19*AR19+F20*AR20 -> 24.16004907 | M28: TAMAM | N28: 1 KG HAYVANSAL PROTEİN İÇİN TÜKETİLEN YEM METABOLİK ENERJİSİ (MJ) | V28: KM | W28: ME | X28: ME | Y28: NE | Z28: Nem | AA28: 28 | AB28: 31 | AC28: Sıcaklık stres | AD28: SCSTME | AF28: NE gebelik | AG28: NE büyüme | AH28: NE büyüme | AP28: 0.4689475412 | AQ28: 0.8874043591 | AR28: 0.9537732668 | AS28: 0.9079932995 | BA28: Nohut Samanı | BB28: 1 | BC28: 0.904 | BD28: 1.31984 | BE28: 0.74128 | BF28: 48.816 | BH28: 24.408 | BI28: 8.4976 | BJ28: 1.4464 | BK28: 46.9 | BL28: 65.6 | BM28: 0 | BN28: Nohut Samanı | BO28: 1.46 | BP28: 0.82 | BQ28: 90.4 | BR28: 5.4 | BS28: 65.6 | BT28: 46.9 | BU28: 50 | BV28: 0.94 | BW28: 0.16
A29: HP (g/gün) | B29: =B31+B32 -> 1322.700315 | C29: =C3*AS3+C4*AS4+C5*AS5+C6*AS6+C7*AS7+C8*AS8+C9*AS9+C10*AS10+C11*AS11+C12*AS12+C13*AS13+C14*AS14+C15*AS15+C16*AS16+C17*AS17+C18*AS18+C19*AS19+C20*AS20 -> 846.5190591 | D29: EKSİK | E29: =E32+E31 -> 3591.233459 | F29: =D3*AS3+D4*AS4+D5*AS5+D6*AS6+D7*AS7+D8*AS8+D9*AS9+D10*AS10+D11*AS11+D12*AS12+D13*AS13+D14*AS14+D15*AS15+D16*AS16+D17*AS17+D18*AS18+D19*AS19+D20*AS20 -> 4662.415651 | G29: FAZLA | H29: =H32+H31 -> 2592.0191 | I29: =E3*AS3+E4*AS4+E5*AS5+E6*AS6+E7*AS7+E8*AS8+E9*AS9+E10*AS10+E11*AS11+E12*AS12+E13*AS13+E14*AS14+E15*AS15+E16*AS16+E17*AS17+E18*AS18+E19*AS19+E20*AS20 -> 3875.411068 | J29: FAZLA | K29: =K32+K31 -> 1723.777458 | L29: =F3*AS3+F4*AS4+F5*AS5+F6*AS6+F7*AS7+F8*AS8+F9*AS9+F10*AS10+F11*AS11+F12*AS12+F13*AS13+F14*AS14+F15*AS15+F16*AS16+F17*AS17+F18*AS18+F19*AS19+F20*AS20 -> 1954.675611 | M29: FAZLA | P29: BİRİM YEM KM MALİYETİ (TL) | U29: İnek Kuru | V29: =0.021*(L3-IF(H2>180,V27,0)) -> 14.7 | W29: =Z19+AD7+AI29/AD36 -> 21.23310311 | X29: =W29+AE29/AD36+IF(L20>0,AF36/AD36,0)+AH36/AD36+AE41+AE36/AD36 -> 36.23809081 | Y29: =Z29+AH7+AE29+AE36+IF(L20>0,AF36,0)+AH36+AH41 -> 21.77007232 | Z29: =(0.08*POWER((L3-IF(H2>180,V27,0)),3/4)) -> 10.88713271 | AA29: =Z29*AC29/AD36 -> 1.270165483 | AB29: =Z29*AC30/AD36 -> 3.266139814 | AC29: 0.07 | AD29: =IF(L18<$AB$36,$AC$36,IF(AND(L18=$AA$28),$AA$29,IF(AND($AA$28<L18,L18<$AB$28),$AA$29,IF(AND($AB$28=L18),$AB$29,IF(AND(L18>$AB$28),$AB$29,0))))) -> 12.62342742 | AE29: =(0.0007*(20-L19))*POWER(L3,0.75) -> 1.428936169 | AF29: =IF(H2>180,(((0.00318*H2-0.0352)*(K2/45))/0.218),0) -> 0 | AG29: =0.0635*(POWER(0.96*((L3-IF(H2>180,V27,0)-K2)),3/4))*(POWER(0.956*IF(AJ29>0,AJ29,0),1.097)) -> 1.879946985 | AH29: =0.0635*(POWER(0.96*((L3-IF(H2>180,V27,0)-K2)),3/4))*(POWER(0.956*IF(AJ29>0,AJ29,0),1.097)) -> 1.879946985 | AJ29: =(((L4+1)-700*K2/45))/1000 -> 0.2787777778 | AP29: 22624.66883 | AQ29: 1.235715568 | AR29: 1.157044035 | AS29: 1.661074765 | BA29: Sorgum, Sudan Kuru Otu | BB29: 1 | BC29: 0.865 | BD29: 1.53105 | BE29: 0.90825 | BF29: 81.31 | BH29: 33.66234 | BI29: 4.671 | BJ29: 1.73 | BK29: 40 | BL29: 64.8 | BM29: 0 | BN29: Sorgum, Sudan Kuru Otu | BO29: 1.77 | BP29: 1.05 | BQ29: 86.5 | BR29: 9.4 | BS29: 64.8 | BT29: 40 | BU29: 41.4 | BV29: 0.54 | BW29: 0.2
A30: Metabolik Protein | B30: =AA19 -> 641.0157771 | C30: =C31*0.8+C32*0.64 -> 641.0157771 | D30: TAMAM | E30: =AA20 -> 2658.163864 | F30: =F31*0.8+F32*0.64 -> 2658.163864 | G30: TAMAM | H30: =AA21 -> 1962.065802 | I30: =I31*0.8+I32*0.64 -> 1962.065802 | J30: TAMAM | K30: =AA22 -> 1338.145957 | L30: =L31*0.8+L32*0.64 -> 1338.145956 | M30: TAMAM | N30: =HESAP!FY9 -> 407.4232517 | U30: İnek Lak. Başı | V30: =0.025*M3+0.2*M6*(0.4+0.15*M7) -> 18.05 | W30: =Z20+AE7+AI30/AD37 -> 56.05511076 | X30: =W30+AE30/AD36+IF(M20>0,AF37/AD37,0)+AH37/AD37+AE42+AE37/AD37 -> 61.60630989 | Y30: =Z30+AI7+AI30+AE30+AE37+IF(M20>0,AF37,0)+AH37+AH42 -> 36.98493336 | Z30: =(0.08*POWER(M3,3/4)) -> 8.458970108 | AA30: =Z30*AC29/AD37 -> 0.9868798459 | AB30: =Z30*AC30/AD37 -> 2.537691032 | AC30: 0.18 | AD30: =IF(M18<$AB$37,$AC$37,IF(AND(M18=$AA$28),$AA$30,IF(AND($AA$28<M18,M18<$AB$28),$AA$30,IF(AND($AB$28=M18),$AB$30,IF(AND(M18>$AB$28),$AB$30,0))))) -> 0 | AE30: =(0.0007*(20-M19))*POWER(M3,0.75) -> 3.33071948 | AG30: =0.0635*(POWER(0.96*(M3-K2),3/4))*(POWER(0.956*M4/1000,1.097)) -> 4.558243773 | AH30: =0.0635*(POWER(0.96*(M3-K2),3/4))*(POWER(0.956*M4/1000,1.097)) -> 4.558243773 | AI30: =M6*(0.3512+0.0962*M7) -> 20.637 | AP30: 1 | AQ30: 1 | AR30: 1 | AS30: 0.9999999979 | BA30: Yerfıstığı Sapı | BB30: 1 | BC30: 0.89 | BD30: 1.7978 | BE30: 1.1125 | BF30: 97.9 | BH30: 27.8036 | BI30: 10.947 | BJ30: 1.513 | BK30: 35 | BL30: 60 | BM30: 0 | BN30: Yerfıstığı Sapı | BO30: 2.02 | BP30: 1.25 | BQ30: 89 | BR30: 11 | BS30: 60 | BT30: 35 | BU30: 28.4 | BV30: 1.23 | BW30: 0.17
A31: Rumende Yıkılabilir protein (g/gün) | B31: =X29*36.5 -> 1322.690315 | C31: =IF(AD19<AD20,AD19,AD20) -> 620.2723707 | D31: EKSİK | E31: =X30*36.5 -> 2248.630311 | F31: =IF(AE19<AE20,AE19,AE20) -> 1995.44434 | G31: EKSİK | H31: =X31*36.5 -> 1894.874864 | I31: =IF(AF19<AF20,AF19,AF20) -> 1807.280989 | J31: TAMAM | K31: =X32*36.5 -> 1468.342397 | L31: =IF(AG19<AG20,AG19,AG20) -> 1333.245058 | M31: TAMAM | N31: 1 KG HAYVANSAL PROTEİN İÇİN METAN SALINIMI (MJ) | P31: Kuru | Q31: =AH87 -> 1.487431358 | U31: İnek Lak. Ortası | V31: =0.025*N3+0.2*N6*(0.4+0.15*N7) -> 18.775 | W31: =Z21+AF7+AI31/AD38 -> 47.09982511 | X31: =W31+AE31/AD36+IF(N20>0,AF38/AD38,0)+AH38/AD38+AE43+AE38/AD38 -> 51.91437983 | Y31: =Z31+AJ7+AI31+AE31+AE38+IF(N20>0,AF38,0)+AH38+AH43 -> 31.28365138 | Z31: =(0.08*POWER(N3,3/4)) -> 9.209393019 | AA31: =Z31*AC29/AD38 -> 1.074429186 | AB31: =Z31*AC30/AD38 -> 2.762817906 | AD31: =IF(N18<$AB$38,$AC$38,IF(AND(N18=$AA$28),$AA$31,IF(AND($AA$28<N18,N18<$AB$28),$AA$31,IF(AND($AB$28=N18),$AB$31,IF(AND(N18>$AB$28),$AB$31,0))))) -> 0 | AE31: =(0.0007*(20-N19))*POWER(N3,0.75) -> 1.208732834 | AG31: =0.0635*(POWER(0.96*(N3-K2),3/4))*(POWER(0.956*N4/1000,1.097)) -> 1.395025529 | AH31: =0.0635*(POWER(0.96*(N3-K2),3/4))*(POWER(0.956*N4/1000,1.097)) -> 1.395025529 | AI31: =N6*(0.3512+0.0962*N7) -> 17.6785 | AP31: 1.63840399 | AQ31: 1.580202312 | AR31: 1.570037619 | AS31: 1.545572039 | BA31: Yonca Kuru Otu, 1. Kalite >%21 HP, <%37 NDF | BB31: 1 | BC31: 0.846 | BD31: 1.74276 | BE31: 1.06596 | BF31: 192.8034 | BH31: 37.7894664 | BI31: 11.9286 | BJ31: 1.8612 | BK31: 27.2 | BL31: 36.8 | BM31: 0 | BN31: Yonca Kuru Otu, 1. Kalite >%21 HP, <%37 NDF | BO31: 2.06 | BP31: 1.26 | BQ31: 84.6 | BR31: 22.79 | BS31: 36.8 | BT31: 27.2 | BU31: 19.6 | BV31: 1.41 | BW31: 0.22
A32: Rumende Yıkıma Dirençli Protein (g/gün) | B32: =IF((B30-B31*0.8)/0.64>0,((B30-B31*0.8)/0.64),0)+0.01 -> 0.01 | C32: =C3*AU3+C4*AU4+C5*AU5+C6*AU6+C7*AU7+C8*AU8+C9*AU9+C10*AU10+C11*AU11+C12*AU12+C13*AU13+C14*AU14+C15*AU15+C16*AU16+C17*AU17+C18*AU18+C19*AU19+C20*AU20 -> 226.2466883 | D32: FAZLA | E32: =IF((E30-E31*0.8)/0.64>0,(E30-E31*0.8)/0.64,0)+0.01 -> 1342.603148 | F32: =D3*AU3+D4*AU4+D5*AU5+D6*AU6+D7*AU7+D8*AU8+D9*AU9+D10*AU10+D11*AU11+D12*AU12+D13*AU13+D14*AU14+D15*AU15+D16*AU16+D17*AU17+D18*AU18+D19*AU19+D20*AU20 -> 1659.075612 | G32: FAZLA | H32: =IF((H30-H31*0.8)/0.64>0,(H30-H31*0.8)/0.64,0)+0.01 -> 697.1442358 | I32: =E3*AU3+E4*AU4+E5*AU5+E6*AU6+E7*AU7+E8*AU8+E9*AU9+E10*AU10+E11*AU11+E12*AU12+E13*AU13+E14*AU14+E15*AU15+E16*AU16+E17*AU17+E18*AU18+E19*AU19+E20*AU20 -> 806.6265793 | J32: FAZLA | K32: =IF((K30-K31*0.8)/0.64>0,(K30-K31*0.8)/0.64,0)+0.01 -> 255.4350608 | L32: =F3*AU3+F4*AU4+F5*AU5+F6*AU6+F7*AU7+F8*AU8+F9*AU9+F10*AU10+F11*AU11+F12*AU12+F13*AU13+F14*AU14+F15*AU15+F16*AU16+F17*AU17+F18*AU18+F19*AU19+F20*AU20 -> 424.2967336 | M32: FAZLA | U32: İnek Lak. Sonu | V32: =0.023*(O3-IF(I2>180,W27,0)+0.2*O6*(0.4+0.15*O7)) -> 12.86619744 | W32: =Z22+AG7+AI32/AD39 -> 39.94568666 | X32: =W32+AE32/AD36+IF(O20>0,AF39/AD39,0)+AH39/AD39+AE44+AE39/AD39 -> 40.22855883 | Y32: =Z32+AK7+AI32+AE32+AE39+IF(O20>0,AF39,0)+AH39+AH44 -> 24.16004907 | Z32: =(0.08*POWER((O3-IF(I2>180,W27,0)),3/4)) -> 9.165509359 | AA32: =Z32*AC29/AD39 -> 1.069309425 | AB32: =Z32*AC30/AD39 -> 2.749652808 | AD32: =IF(O18<$AB$39,$AC$39,IF(AND(O18=$AA$28),$AA$32,IF(AND($AA$28<O18,O18<$AB$28),$AA$32,IF(AND($AB$28=O18),$AB$32,IF(AND(O18>$AB$28),$AB$32,0))))) -> 0 | AE32: =(0.0007*(20-O19))*POWER(O3,0.75) -> 0.1697233024 | AF32: =IF(I2>180,(((0.00318*I2-0.0352)*(K2/45))/0.218),0) -> 2.968399592 | AG32: =0.0635*(POWER(0.96*((O3-IF(I2>180,W27,0)-K2)),3/4))*(POWER(0.956*IF(AJ32>0,AJ32,0),1.097)) -> 0.9607168176 | AH32: =0.0635*(POWER(0.96*((O3-IF(I2>180,W27,0)-K2)),3/4))*(POWER(0.956*IF(AJ32>0,AJ32,0),1.097)) -> 0.9607168176 | AI32: =O6*(0.3512+0.0962*O7) -> 10.8957 | AJ32: =(((O4+1)-700*K2/45))/1000 -> 0.1787777778 | BA32: Yonca Kuru Otu, 2. Kalite %19-21 HP, <%37-40 NDF | BB32: 1 | BC32: 0.8797 | BD32: 1.741806 | BE32: 1.05564 | BF32: 177.6994 | BH32: 51.7105254 | BI32: 12.40377 | BJ32: 1.93534 | BK32: 29.4 | BL32: 39.6 | BM32: 0 | BN32: Yonca Kuru Otu, 2. Kalite %19-21 HP, <%37-40 NDF | BO32: 1.98 | BP32: 1.2 | BQ32: 87.97 | BR32: 20.2 | BS32: 39.6 | BT32: 29.4 | BU32: 29.1 | BV32: 1.41 | BW32: 0.22
A33: Ca (g/gün) | B33: =0.0657*L3 -> 45.99 | C33: =C3*AV3+C4*AV4+C5*AV5+C6*AV6+C7*AV7+C8*AV8+C9*AV9+C10*AV10+C11*AV11+C12*AV12+C13*AV13+C14*AV14+C15*AV15+C16*AV16+C17*AV17+C18*AV18+C19*AV19+C20*AV20 -> 45.99 | D33: TAMAM | E33: =0.0405*M3+M6*(1.29+0.48*M7) -> 109.35 | F33: =D3*AV3+D4*AV4+D5*AV5+D6*AV6+D7*AV7+D8*AV8+D9*AV9+D10*AV10+D11*AV11+D12*AV12+D13*AV13+D14*AV14+D15*AV15+D16*AV16+D17*AV17+D18*AV18+D19*AV19+D20*AV20 -> 109.35 | G33: TAMAM | H33: =0.0405*N3+N6*(1.29+0.48*N7) -> 99.33 | I33: =E3*AV3+E4*AV4+E5*AV5+E6*AV6+E7*AV7+E8*AV8+E9*AV9+E10*AV10+E11*AV11+E12*AV12+E13*AV13+E14*AV14+E15*AV15+E16*AV16+E17*AV17+E18*AV18+E19*AV19+E20*AV20 -> 99.33 | J33: TAMAM | K33: =0.0405*O3+O6*(1.29+0.48*O7) -> 71.73 | L33: =F3*AV3+F4*AV4+F5*AV5+F6*AV6+F7*AV7+F8*AV8+F9*AV9+F10*AV10+F11*AV11+F12*AV12+F13*AV13+F14*AV14+F15*AV15+F16*AV16+F17*AV17+F18*AV18+F19*AV19+F20*AV20 -> 71.72999985 | M33: TAMAM | N33: =HESAP!GH9 -> 31.16414265 | P33: Lakt. başı | Q33: =AI87 -> 2.796538851 | BA33: Yonca Kuru Otu, 3. Kalite %17-19 HP, <%40-44 NDF | BB33: 1 | BC33: 0.9082 | BD33: 1.752826 | BE33: 1.035348 | BF33: 162.84026 | BH33: 51.13184164 | BI33: 12.44234 | BJ33: 1.99804 | BK33: 32.3 | BL33: 43.4 | BM33: 0 | BN33: Yonca Kuru Otu, 3. Kalite %17-19 HP, <%40-44 NDF | BO33: 1.93 | BP33: 1.14 | BQ33: 90.82 | BR33: 17.93 | BS33: 43.4 | BT33: 32.3 | BU33: 31.4 | BV33: 1.37 | BW33: 0.22
A34: P (g/gün) | B34: =0.0401*L3 -> 28.07 | C34: =C3*AW3+C4*AW4+C5*AW5+C6*AW6+C7*AW7+C8*AW8+C9*AW9+C10*AW10+C11*AW11+C12*AW12+C13*AW13+C14*AW14+C15*AW15+C16*AW16+C17*AW17+C18*AW18+C19*AW19+C20*AW20+AD34 -> 45.99 | D34: FAZLA | E34: =0.0286*M3+M6*(0.78+0.3*M7) -> 69.2 | F34: =D3*AW3+D4*AW4+D5*AW5+D6*AW6+D7*AW7+D8*AW8+D9*AW9+D10*AW10+D11*AW11+D12*AW12+D13*AW13+D14*AW14+D15*AW15+D16*AW16+D17*AW17+D18*AW18+D19*AW19+D20*AW20+AD34 -> 109.35 | G34: FAZLA | H34: =0.0286*N3+N6*(0.78+0.3*N7) -> 63.266 | I34: =E3*AW3+E4*AW4+E5*AW5+E6*AW6+E7*AW7+E8*AW8+E9*AW9+E10*AW10+E11*AW11+E12*AW12+E13*AW13+E14*AW14+E15*AW15+E16*AW16+E17*AW17+E18*AW18+E19*AW19+E20*AW20+AD34 -> 99.33 | J34: FAZLA | K34: =0.0286*O3+O6*(0.78+0.3*O7) -> 46.41 | L34: =F3*AW3+F4*AW4+F5*AW5+F6*AW6+F7*AW7+F8*AW8+F9*AW9+F10*AW10+F11*AW11+F12*AW12+F13*AW13+F14*AW14+F15*AW15+F16*AW16+F17*AW17+F18*AW18+F19*AW19+F20*AW20+AD34 -> 71.72999832 | M34: FAZLA | N34: SÜT FİYATI (TL/KG) | U34: ADF | V34: 19 | AD34: 1e-11 | AP34: =C37/$B37 -> 2.04380892 | AQ34: =F37/E37 -> 1.237845507 | AR34: =I37/H37 -> 1.559266447 | AS34: =L37/K37 -> 1.349293219 | BA34: Yonca Kuru Otu, 4. Kalite %15-17 HP, <%44-48 NDF | BB34: 1 | BC34: 0.9127 | BD34: 1.679368 | BE34: 1.00397 | BF34: 146.76216 | BH34: 46.9638912 | BI34: 10.86113 | BJ34: 2.19048 | BK34: 37.7 | BL34: 47.4 | BM34: 0 | BN34: Yonca Kuru Otu, 4. Kalite %15-17 HP, <%44-48 NDF | BO34: 1.84 | BP34: 1.1 | BQ34: 91.27 | BR34: 16.08 | BS34: 47.4 | BT34: 37.7 | BU34: 32 | BV34: 1.19 | BW34: 0.24
A35: Ca/P | B35: 1:1-1:2 | C35: =C33/C34 -> 1 | D35: =IF(C35<$AC$22,$AD$24,IF(AND(C35>$AC$24),$AD$23,IF(AND(C35=$AC$22),$AD$22,IF(AND(C35=$AC$24),$AD$22,IF(AND(C35<$AC$2,C35>$AC$22),$AD$22,0))))) -> EKSİK | E35: 1:1-1:2 | F35: =F33/F34 -> 1 | G35: =IF(F35<$AC$23,$AD$24,IF(AND(F35>$AC$24),$AD$23,IF(AND(F35=$AC$23),$AD$22,IF(AND(F35=$AC$24),$AD$22,IF(AND(F35<$AC$24,F35>$AC$23),$AD$22,0))))) -> EKSİK | H35: 1:1-1:2 | I35: =I33/I34 -> 1 | J35: =IF(I35<$AC$23,$AD$24,IF(AND(I35>$AC$24),$AD$23,IF(AND(I35=$AC$23),$AD$22,IF(AND(I35=$AC$24),$AD$22,IF(AND(I35<$AC$24,I35>$AC$23),$AD$22,0))))) -> TAMAM | K35: 1:1-1:2 | L35: =L33/L34 -> 1.000000021 | M35: =IF(L35<$AC$23,$AD$24,IF(AND(L35>$AC$24),$AD$23,IF(AND(L35=$AC$23),$AD$22,IF(AND(L35=$AC$24),$AD$22,IF(AND(L35<$AC$24,L35>$AC$23),$AD$22,0))))) -> TAMAM | P35: Lak. Ort | Q35: =AJ87 -> 0.6610732526 | U35: NDF | V35: 27 | W35: SA | X35: HP | Y35: EI | Z35: TI | AA35: INS | AB35: LCT | AC35: MECS | AD35: km | AE35: NEMcs | AF35: NE Mesafe | AG35: NE topoğrafya | AH35: eğim durumu | BA35: Yonca Kuru Otu, 5. Kalite %13-15 HP, <%48-54 NDF | BB35: 1 | BC35: 0.9127 | BD35: 1.64286 | BE35: 0.976589 | BF35: 130.69864 | BH35: 41.95426344 | BI35: 10.76986 | BJ35: 1.91667 | BK35: 41.8 | BL35: 52.7 | BM35: 0 | BN35: Yonca Kuru Otu, 5. Kalite %13-15 HP, <%48-54 NDF | BO35: 1.8 | BP35: 1.07 | BQ35: 91.27 | BR35: 14.32 | BS35: 52.7 | BT35: 41.8 | BU35: 32.1 | BV35: 1.18 | BW35: 0.21
A36: ADF (% KM en az) | B36: 19 | C36: =(C3*AX3+C4*AX4+C5*AX5+C6*AX6+C7*AX7+C8*AX8+C9*AX9+C10*AX10+C11*AX11+C12*AX12+C13*AX13+C14*AX14+C15*AX15+C16*AX16+C17*AX17+C18*AX18+C19*AX19+C20*AX20)/(C3+C4+C5+C6+C7+C8+C9+C10+C11+C12+C13+C14+C15+C16+C17+C18+C19+C20+AD34) -> 30.0861888 | D36: =IF(C36<$V$34,$AD$24,IF(AND(C36>$V$34),$AD$22,IF(AND(C36=$V$34),$AD$22,0))) -> TAMAM | E36: 19 | F36: =(D3*AX3+D4*AX4+D5*AX5+D6*AX6+D7*AX7+D8*AX8+D9*AX9+D10*AX10+D11*AX11+D12*AX12+D13*AX13+D14*AX14+D15*AX15+D16*AX16+D17*AX17+D18*AX18+D19*AX19+D20*AX20)/(D3+D4+D5+D6+D7+D8+D9+D10+D11+D12+D13+D14+D15+D16+D17+D18+D19+D20+AD34) -> 18.9999999 | G36: =IF(F36<$V$34,$AD$24,IF(AND(F36>$V$34),$AD$22,IF(AND(F36=$V$34),$AD$22,0))) -> EKSİK | H36: 19 | I36: =(E3*AX3+E4*AX4+E5*AX5+E6*AX6+E7*AX7+E8*AX8+E9*AX9+E10*AX10+E11*AX11+E12*AX12+E13*AX13+E14*AX14+E15*AX15+E16*AX16+E17*AX17+E18*AX18+E19*AX19+E20*AX20)/(E3+E4+E5+E6+E7+E8+E9+E10+E11+E12+E13+E14+E15+E16+E17+E18+E19+E20+AD34) -> 22.38951859 | J36: =IF(I36<$V$34,$AD$24,IF(AND(I36>$V$34),$AD$22,IF(AND(I36=$V$34),$AD$22,0))) -> TAMAM | K36: 19 | L36: =(F3*AX3+F4*AX4+F5*AX5+F6*AX6+F7*AX7+F8*AX8+F9*AX9+F10*AX10+F11*AX11+F12*AX12+F13*AX13+F14*AX14+F15*AX15+F16*AX16+F17*AX17+F18*AX18+F19*AX19+F20*AX20)/(F3+F4+F5+F6+F7+F8+F9+F10+F11+F12+F13+F14+F15+F16+F17+F18+F19+F20+AD34) -> 18.99999998 | M36: =IF(L36<$V$34,$AD$24,IF(AND(L36>$V$34),$AD$22,IF(AND(L36=$V$34),$AD$22,0))) -> EKSİK | N36: ='NET GELİR'!H3/'NET GELİR'!F3 -> 2 | V36: İnek Kuru | W36: =0.09*POWER((0.96*L3),0.67) -> 7.056346887 | X36: =((W29-AH7)/W36) -> 2.742659401 | Y36: =((7.36-(0.296*L16)+2.55*L17))*X12*0.8 -> 7.2832 | Z36: =5.25+(0.75*L14) -> 8.25 | AA36: =Y36+Z36 -> 15.5332 | AB36: =39-X36*AA36*0.85 -> 2.788064543 | AC36: =W36*(AB36-L18)/AA36 -> 12.62342742 | AD36: 0.6 | AE36: =AD29*AD36 -> 7.574056449 | AF36: =((L20/1000)*L21)*(0.00045*L3)+(0.0012*L3) -> 0.84 | AG36: =0.006*L3*L20*L21/1000 -> 0 | AH36: =IF(AK36=AI36,AG36,0) -> 0 | AI36: var | AJ36: İNDİS | AK36: =INDEX(AI36:AI37,AM36) -> yok | AL36: SATIR | AM36: =MATCH(L23,AI36:AI37,0) -> 2 | BA36: Yonca Kuru Otu, 6. Kalite <%13 HP, >%54 NDF | BB36: 1 | BC36: 0.936 | BD36: 1.60056 | BE36: 0.89856 | BF36: 116.4384 | BH36: 40.4041248 | BI36: 11.0448 | BJ36: 1.9656 | BK36: 42.1 | BL36: 54.8 | BM36: 0 | BN36: Yonca Kuru Otu, 6. Kalite <%13 HP, >%54 NDF | BO36: 1.71 | BP36: 0.96 | BQ36: 93.6 | BR36: 12.44 | BS36: 54.8 | BT36: 42.1 | BU36: 34.7 | BV36: 1.18 | BW36: 0.21
A37: NDF (% KM en az) | B37: 27 | C37: =(C3*AY3+C4*AY4+C5*AY5+C6*AY6+C7*AY7+C8*AY8+C9*AY9+C10*AY10+C11*AY11+C12*AY12+C13*AY13+C14*AY14+C15*AY15+C16*AY16+C17*AY17+C18*AY18+C19*AY19+C20*AY20)/(C3+C4+C5+C6+C7+C8+C9+C10+C11+C12+C13+C14+C15+C16+C17+C18+C19+C20+AD34) -> 55.18284084 | D37: =IF(C37<$V$35,$AD$24,IF(AND(C37>$V$35),$AD$22,IF(AND(C37=$V$35),$AD$22,0))) -> TAMAM | E37: 27 | F37: =(D3*AY3+D4*AY4+D5*AY5+D6*AY6+D7*AY7+D8*AY8+D9*AY9+D10*AY10+D11*AY11+D12*AY12+D13*AY13+D14*AY14+D15*AY15+D16*AY16+D17*AY17+D18*AY18+D19*AY19+D20*AY20)/(D3+D4+D5+D6+D7+D8+D9+D10+D11+D12+D13+D14+D15+D16+D17+D18+D19+D20+AD34) -> 33.42182868 | G37: =IF(F37<$V$35,$AD$24,IF(AND(F37>$V$35),$AD$22,IF(AND(F37=$V$35),$AD$22,0))) -> TAMAM | H37: 27 | I37: =(E3*AY3+E4*AY4+E5*AY5+E6*AY6+E7*AY7+E8*AY8+E9*AY9+E10*AY10+E11*AY11+E12*AY12+E13*AY13+E14*AY14+E15*AY15+E16*AY16+E17*AY17+E18*AY18+E19*AY19+E20*AY20)/(E3+E4+E5+E6+E7+E8+E9+E10+E11+E12+E13+E14+E15+E16+E17+E18+E19+E20+AD34) -> 42.10019408 | J37: =IF(I37<$V$35,$AD$24,IF(AND(I37>$V$35),$AD$22,IF(AND(I37=$V$35),$AD$22,0))) -> TAMAM | K37: 27 | L37: =(F3*AY3+F4*AY4+F5*AY5+F6*AY6+F7*AY7+F8*AY8+F9*AY9+F10*AY10+F11*AY11+F12*AY12+F13*AY13+F14*AY14+F15*AY15+F16*AY16+F17*AY17+F18*AY18+F19*AY19+F20*AY20)/(F3+F4+F5+F6+F7+F8+F9+F10+F11+F12+F13+F14+F15+F16+F17+F18+F19+F20+AD34) -> 36.43091691 | M37: =IF(L37<$V$35,$AD$24,IF(AND(L37>$V$35),$AD$22,IF(AND(L37=$V$35),$AD$22,0))) -> TAMAM | P37: Lak. sonu | Q37: =AK87 -> 1.600974724 | V37: İnek Lak. Başı | W37: =0.09*POWER((0.96*M3),0.67) -> 5.632149037 | X37: =((W30-(AI7+AI30))/W37) -> 5.479234798 | Y37: =((7.36-(0.296*M16)+2.55*M17))*X13*0.8 -> 7.6912 | Z37: =5.25+(0.75*M14) -> 6.75 | AA37: =Y37+Z37 -> 14.4412 | AB37: =39-X37*AA37*0.85 -> -28.25771672 | AC37: =W37*(AB37-M18)/AA37 -> -12.97069615 | AD37: 0.6 | AE37: =AD30*AD37 -> 0 | AF37: =((M20/1000)*M21)*(0.00045*M3)+(0.0012*M3) -> 0.6 | AG37: =0.006*M3*M20*M21/1000 -> 0 | AH37: =IF(AK37=AI36,AG37,0) -> 0 | AI37: yok | AJ37: İNDİS | AK37: =INDEX(AI36:AI37,AM37) -> yok | AL37: SATIR | AM37: =MATCH(M23,AI36:AI37,0) -> 2 | AQ37: 0.9 | AR37: TAMAM | BA37: Yonca Kuru Otu, Erken Vejetatif | BB37: 1 | BC37: 0.9381 | BD37: 2.542251 | BE37: 1.613532 | BF37: 281.61762 | BH37: 49.56470112 | BI37: 14.0715 | BJ37: 3.09573 | BK37: 20.3 | BL37: 27 | BM37: 0 | BN37: Yonca Kuru Otu, Erken Vejetatif | BO37: 2.71 | BP37: 1.72 | BQ37: 93.81 | BR37: 30.02 | BS37: 27 | BT37: 20.3 | BU37: 17.6 | BV37: 1.5 | BW37: 0.33
A38: AÇIKLAMA | C38: Soğuk iklim ilkbahar mera | N38: YILLIK SÜT-YEM GELİR(TL) | V38: İnek Lak. Ortası | W38: =0.09*POWER((0.96*N3),0.67) -> 6.076453988 | X38: =((W31-(AJ7+AI31))/W38) -> 4.612278746 | Y38: =((7.36-(0.296*N16)+2.55*N17))*X14*0.8 -> 7.2832 | Z38: =5.25+(0.75*N14) -> 7.5 | AA38: =Y38+Z38 -> 14.7832 | AB38: =39-X38*AA38*0.85 -> -18.95660329 | AC38: =W38*(AB38-N18)/AA38 -> -15.19056087 | AD38: 0.6 | AE38: =AD31*AD38 -> 0 | AF38: =((M20/1000)*M21)*(0.00045*N3)+(0.0012*N3) -> 0.672 | AG38: =0.006*N3*N20*N21/1000 -> 6.72 | AH38: =IF(AK38=AI36,AG38,0) -> 0 | AJ38: İNDİS | AK38: =INDEX(AI36:AI37,AM38) -> yok | AL38: SATIR | AM38: =MATCH(N23,AI36:AI37,0) -> 2 | AQ38: 1.1 | AR38: FAZLA | BA38: Yonca Kuru Otu, Geç Vejetatif | BB38: 1 | BC38: 0.9373 | BD38: 2.090179 | BE38: 1.293474 | BF38: 218.29717 | BH38: 39.07519343 | BI38: 14.0595 | BJ38: 3.09309 | BK38: 28.6 | BL38: 37.3 | BM38: 0 | BN38: Yonca Kuru Otu, Geç Vejetatif | BO38: 2.23 | BP38: 1.38 | BQ38: 93.73 | BR38: 23.29 | BS38: 37.3 | BT38: 28.6 | BU38: 17.9 | BV38: 1.5 | BW38: 0.33
N39: ='İNEK GİZLİ'!AQ3 -> 328717.831 | P39: GENEL | Q39: =AL87 -> 1.636137836 | V39: İnek Lak. Sonu | W39: =0.09*POWER((0.96*O3),0.67) -> 6.363932628 | X39: =((W32-(AK7+AI32))/W39) -> 3.947381551 | Y39: =((7.36-(0.296*O16)+2.55*O17))*X15*0.8 -> 7.018 | Z39: =5.25+(0.75*O14) -> 8.25 | AA39: =Y39+Z39 -> 15.268 | AB39: =39-X39*AA39*0.85 -> -12.2283283 | AC39: =W39*(AB39-O18)/AA39 -> -7.181027022 | AD39: 0.6 | AE39: =AD32*AD39 -> 0 | AF39: =((O20/1000)*O21)*(0.00045*O3)+(0.0012*O3) -> 0.72 | AG39: =0.006*O3*O20*O21/1000 -> 0 | AH39: =IF(AK39=AI36,AG39,0) -> 0 | AJ39: İNDİS | AK39: =INDEX(AI36:AI37,AM39) -> yok | AL39: SATIR | AM39: =MATCH(O23,AI36:AI37,0) -> 2 | AR39: EKSİK | BA39: Yonca Kuru Otu, 6. Kalite <%13 HP, >%54 NDF | BB39: 1 | BC39: 0.936 | BD39: 1.60056 | BE39: 0.89856 | BF39: 116.4384 | BH39: 40.4041248 | BI39: 11.0448 | BJ39: 1.9656 | BK39: 42.1 | BL39: 54.8 | BM39: 0 | BN39: Yonca Kuru Otu, 6. Kalite <%13 HP, >%54 NDF | BO39: 1.71 | BP39: 0.96 | BQ39: 93.6 | BR39: 12.44 | BS39: 54.8 | BT39: 42.1 | BU39: 34.7 | BV39: 1.18 | BW39: 0.21
AE40: ME mera | AG40: NE mera | AI40: Otluyormu | BA40: Yosun, Kurutulmuş | BB40: 1 | BC40: 0.91 | BD40: 0.91 | BE40: 0.5278 | BF40: 63.7 | BH40: 12.5489 | BI40: 24.752 | BJ40: 2.821 | BK40: 10 | BL40: 25 | BM40: 0 | BN40: Yosun, Kurutulmuş | BO40: 1 | BP40: 0.58 | BQ40: 91 | BR40: 7 | BS40: 25 | BT40: 10 | BU40: 19.7 | BV40: 2.72 | BW40: 0.31
AB41: =W29-AH7 -> 19.35315613 | AD41: İnek Kuru | AE41: =IF(AJ41=AH45,AF41,0) -> 0 | AF41: =L3*0.003 -> 2.1 | AG41: =L3*0.002 -> 1.4 | AH41: =IF(AJ41=AH45,AG41,0) -> 0 | AI41: İNDİS | AJ41: =INDEX(AH45:AH46,AL41) -> hayır | AK41: SATIR | AL41: =MATCH(L22,AH45:AH46,0) -> 2 | BA41: Yulaf Kuru Otu, Başaklı | BB41: 1 | BC41: 0.919 | BD41: 1.68177 | BE41: 1.0109 | BF41: 83.629 | BH41: 31.026359 | BI41: 3.4003 | BJ41: 2.0218 | BK41: 36.4 | BL41: 58 | BM41: 0 | BN41: Yulaf Kuru Otu, Başaklı | BO41: 1.83 | BP41: 1.1 | BQ41: 91.9 | BR41: 9.1 | BS41: 58 | BT41: 36.4 | BU41: 37.1 | BV41: 0.37 | BW41: 0.22
AB42: =W30-AI7-AI30 -> 30.85986699 | AD42: İnek Lak. Başı | AE42: =IF(AJ42=AH45,AF42,0) -> 0 | AF42: =M3*0.003 -> 1.5 | AG42: =M3*0.002 -> 1 | AH42: =IF(AJ42=AH45,AG42,0) -> 0 | AI42: İNDİS | AJ42: =INDEX(AH45:AH46,AL42) -> hayır | AK42: SATIR | AL42: =MATCH(M22,AH45:AH46,0) -> 2 | BA42: Arpa Silajı, Başaklı | BB42: 1 | BC42: 0.355 | BD42: 0.72065 | BE42: 0.4402 | BF42: 42.6 | BH42: 10.3518 | BI42: 1.704 | BJ42: 1.065 | BK42: 34.5 | BL42: 56.3 | BM42: 0 | BN42: Arpa Silajı, Başaklı | BO42: 2.03 | BP42: 1.24 | BQ42: 35.5 | BR42: 12 | BS42: 56.3 | BT42: 34.5 | BU42: 24.3 | BV42: 0.48 | BW42: 0.3
AD43: İnek Lak. Ortası | AE43: =IF(AJ43=AH45,AF43,0) -> 1.68 | AF43: =N3*0.003 -> 1.68 | AG43: =N3*0.002 -> 1.12 | AH43: =IF(AJ43=AH45,AG43,0) -> 1.12 | AI43: İNDİS | AJ43: =INDEX(AH45:AH46,AL43) -> evet | AK43: SATIR | AL43: =MATCH(N22,AH45:AH46,0) -> 1 | BA43: Baklagil Merası,Bakımlı | BB43: 1 | BC43: 0.214 | BD43: 0.52644 | BE43: 0.32956 | BF43: 56.71 | BH43: 13.15672 | BI43: 2.8034 | BJ43: 0.7918 | BK43: 23.9 | BL43: 33.1 | BM43: 0 | BN43: Baklagil Merası,Bakımlı | BO43: 2.46 | BP43: 1.54 | BQ43: 21.4 | BR43: 26.5 | BS43: 33.1 | BT43: 23.9 | BU43: 23.2 | BV43: 1.31 | BW43: 0.37
W44: ='NET GELİR'!E7 -> 560375.4977 | AD44: İnek Lak. Sonu | AE44: =IF(AJ44=AH45,AF44,0) -> 0 | AF44: =O3*0.003 -> 1.8 | AG44: =O3*0.002 -> 1.2 | AH44: =IF(AJ44=AH45,AG44,0) -> 0 | AI44: İNDİS | AJ44: =INDEX(AH45:AH46,AL44) -> hayır | AK44: SATIR | AL44: =MATCH(O22,AH45:AH46,0) -> 2 | BA44: Baklagil Silajı | BB44: 1 | BC44: 0.391 | BD44: 0.77418 | BE44: 0.4692 | BF44: 7.82 | BH44: 1.47798 | BI44: 5.2394 | BJ44: 1.2512 | BK44: 37 | BL44: 45.7 | BM44: 0 | BN44: Baklagil Silajı | BO44: 1.98 | BP44: 1.2 | BQ44: 39.1 | BR44: 2 | BS44: 45.7 | BT44: 37 | BU44: 18.9 | BV44: 1.34 | BW44: 0.32
AH45: evet | BA45: Baklagil Silajı, Körpe < %40 NDF | BB45: 1 | BC45: 0.412 | BD45: 0.89816 | BE45: 0.55208 | BF45: 95.584 | BH45: 15.77136 | BI45: 5.7268 | BJ45: 1.4832 | BK45: 30.2 | BL45: 36.7 | BM45: 0 | BN45: Baklagil Silajı, Körpe < %40 NDF | BO45: 2.18 | BP45: 1.34 | BQ45: 41.2 | BR45: 23.2 | BS45: 36.7 | BT45: 30.2 | BU45: 16.5 | BV45: 1.39 | BW45: 0.36
AH46: hayır | BA46: Baklagil Silajı, Olgun >%46 NDF | BB46: 1 | BC46: 0.426 | BD46: 0.78384 | BE46: 0.4686 | BF46: 86.478 | BH46: 21.360066 | BI46: 5.538 | BJ46: 1.4058 | BK46: 40.9 | BL46: 50 | BM46: 0 | BN46: Baklagil Silajı, Olgun >%46 NDF | BO46: 1.84 | BP46: 1.1 | BQ46: 42.6 | BR46: 20.3 | BS46: 50 | BT46: 40.9 | BU46: 24.7 | BV46: 1.3 | BW46: 0.33
V47: KM (kg/gün) | W47: =C26/B26 -> 1 | BA47: Baklagil Silajı, Orta Olgun.. %40-46NDF | BB47: 1 | BC47: 0.429 | BD47: 0.86229 | BE47: 0.52338 | BF47: 93.951 | BH47: 15.595866 | BI47: 5.8344 | BJ47: 1.5015 | BK47: 35.2 | BL47: 43.2 | BM47: 0 | BN47: Baklagil Silajı, Orta Olgun.. %40-46NDF | BO47: 2.01 | BP47: 1.22 | BQ47: 42.9 | BR47: 21.9 | BS47: 43.2 | BT47: 35.2 | BU47: 16.6 | BV47: 1.36 | BW47: 0.35
V48: ME (Mcal/gün) | W48: =C27/B27 -> 0.8526314841 | BA48: Buğday Silajı, Başak, Başı | BB48: 1 | BC48: 0.333 | BD48: 0.63603 | BE48: 0.38628 | BF48: 39.96 | BH48: 9.15084 | BI48: 1.2654 | BJ48: 0.9657 | BK48: 37.6 | BL48: 59.9 | BM48: 0 | BN48: Buğday Silajı, Başak, Başı | BO48: 1.91 | BP48: 1.16 | BQ48: 33.3 | BR48: 12 | BS48: 59.9 | BT48: 37.6 | BU48: 22.9 | BV48: 0.38 | BW48: 0.29
V49: Nel (Mcal/gün) | W49: 0.9099054905 | AC49: ='NET GELİR'!E7 -> 560375.4977 | BA49: Çavdar Silajı, Körpe | BB49: 1 | BC49: 0.297 | BD49: 0.61776 | BE49: 0.38016 | BF49: 47.817 | BH49: 11.619531 | BI49: 1.2771 | BJ49: 1.2474 | BK49: 34.9 | BL49: 57.8 | BM49: 0 | BN49: Çavdar Silajı, Körpe | BO49: 2.08 | BP49: 1.28 | BQ49: 29.7 | BR49: 16.1 | BS49: 57.8 | BT49: 34.9 | BU49: 24.3 | BV49: 0.43 | BW49: 0.42
V50: HP (g/gün) | W50: 0.6399930882 | BA50: Çayır Merası, Soğuk Mevsim, Bakımlı | BB50: 1 | BC50: 0.201 | BD50: 0.49446 | BE50: 0.30954 | BF50: 53.265 | BH50: 11.82483 | BI50: 1.1256 | BJ50: 0.8844 | BK50: 25 | BL50: 45.8 | BM50: 0 | BN50: Çayır Merası, Soğuk Mevsim, Bakımlı | BO50: 2.46 | BP50: 1.54 | BQ50: 20.1 | BR50: 26.5 | BS50: 45.8 | BT50: 25 | BU50: 22.2 | BV50: 0.56 | BW50: 0.44
V51: Metabolik Protein | W51: 1 | BA51: Çayır Silajı, Soğuk Mevsim | BB51: 1 | BC51: 0.365 | BD51: 0.6789 | BE51: 0.4088 | BF51: 46.72 | BH51: 11.58656 | BI51: 2.0075 | BJ51: 1.0585 | BK51: 40.3 | BL51: 60.7 | BM51: 0 | BN51: Çayır Silajı, Soğuk Mevsim | BO51: 1.86 | BP51: 1.12 | BQ51: 36.5 | BR51: 12.8 | BS51: 60.7 | BT51: 40.3 | BU51: 24.8 | BV51: 0.55 | BW51: 0.29
V52: Rumende Yıkılabilir protein (g/gün) | W52: 0.4689475412 | AB52: KM (kg/gün) | AC52: =C26/B26 -> 1 | BA52: Çayır Silajı, Soğuk Mevsim,Körpe<%55 NDF | BB52: 1 | BC52: 0.362 | BD52: 0.7602 | BE52: 0.46698 | BF52: 60.816 | BH52: 11.615856 | BI52: 2.0634 | BJ52: 1.3032 | BK52: 32.9 | BL52: 51 | BM52: 0 | BN52: Çayır Silajı, Soğuk Mevsim,Körpe<%55 NDF | BO52: 2.1 | BP52: 1.29 | BQ52: 36.2 | BR52: 16.8 | BS52: 51 | BT52: 32.9 | BU52: 19.1 | BV52: 0.57 | BW52: 0.36
V53: Rumende Yıkıma Dirençli Protein (g/gün) | W53: 22624.66883 | AB53: ME (Mcal/gün) | AC53: 0.8526314841 | BA53: Çayır Silajı, Soğuk Mevsim, Olgun>%60 NDF | BB53: 1 | BC53: 0.387 | BD53: 0.68112 | BE53: 0.40635 | BF53: 49.149 | BH53: 16.170021 | BI53: 2.1672 | BJ53: 1.1997 | BK53: 41.1 | BL53: 66.6 | BM53: 0 | BN53: Çayır Silajı, Soğuk Mevsim, Olgun>%60 NDF | BO53: 1.76 | BP53: 1.05 | BQ53: 38.7 | BR53: 12.7 | BS53: 66.6 | BT53: 41.1 | BU53: 32.9 | BV53: 0.56 | BW53: 0.31
V54: Ca (g/gün) | W54: 1 | X54: =F33/E33 -> 1 | AB54: Nel (Mcal/gün) | AC54: 0.9099054905 | BA54: Çayır Silajı, Soğuk Mevsim, Orta Olgun..%55-60 NDF | BB54: 1 | BC54: 0.42 | BD54: 0.8064 | BE54: 0.4872 | BF54: 70.56 | BH54: 16.36992 | BI54: 2.52 | BJ54: 1.512 | BK54: 35.2 | BL54: 58.2 | BM54: 0 | BN54: Çayır Silajı, Soğuk Mevsim, Orta Olgun..%55-60 NDF | BO54: 1.92 | BP54: 1.16 | BQ54: 42 | BR54: 16.8 | BS54: 58.2 | BT54: 35.2 | BU54: 23.2 | BV54: 0.6 | BW54: 0.36
V55: P (g/gün) | W55: 1.63840399 | X55: =F34/E34 -> 1.580202312 | AB55: HP (g/gün) | AC55: 0.6399930882 | BA55: Çayır-Baklagil Silajı, Körpe< %44 NDF | BB55: 1 | BC55: 0.432 | BD55: 0.864 | BE55: 0.52704 | BF55: 86.4 | BH55: 14.6016 | BI55: 5.0112 | BJ55: 1.5552 | BK55: 31.1 | BL55: 42.2 | BM55: 0 | BN55: Çayır-Baklagil Silajı, Körpe< %44 NDF | BO55: 2 | BP55: 1.22 | BQ55: 43.2 | BR55: 20 | BS55: 42.2 | BT55: 31.1 | BU55: 16.9 | BV55: 1.16 | BW55: 0.36
V56: Ca/P | W56: =C33/C34 -> 1 | AB56: Metabolik Protein | AC56: 1 | BA56: Çayır-Baklagil Silajı, Körpe< %47 NDF | BB56: 1 | BC56: 0.459 | BD56: 0.9639 | BE56: 0.59211 | BF56: 93.177 | BH56: 16.305975 | BI56: 4.9572 | BJ56: 1.6065 | BK56: 30.8 | BL56: 45.3 | BM56: 0 | BN56: Çayır-Baklagil Silajı, Körpe< %47 NDF | BO56: 2.1 | BP56: 1.29 | BQ56: 45.9 | BR56: 20.3 | BS56: 45.3 | BT56: 30.8 | BU56: 17.5 | BV56: 1.08 | BW56: 0.35
V57: ADF (% KM en az) | W57: 1.583483621 | AB57: Rumende Yıkılabilir protein (g/gün) | AC57: 0.4689475412 | BA57: Çayır-Baklagil Silajı, Körpe< %51 NDF | BB57: 1 | BC57: 0.471 | BD57: 1.00323 | BE57: 0.61701 | BF57: 84.78 | BH57: 15.42996 | BI57: 4.8042 | BJ57: 1.6014 | BK57: 31.8 | BL57: 49.9 | BM57: 0 | BN57: Çayır-Baklagil Silajı, Körpe< %51 NDF | BO57: 2.13 | BP57: 1.31 | BQ57: 47.1 | BR57: 18 | BS57: 49.9 | BT57: 31.8 | BU57: 18.2 | BV57: 1.02 | BW57: 0.34
V58: NDF (% KM en az) | W58: 2.04380892 | AB58: Rumende Yıkıma Dirençli Protein (g/gün) | AC58: 22624.66883 | BA58: Çayır-Baklagil Silajı, Olgun> %47 NDF | BB58: 1 | BC58: 0.428 | BD58: 0.78324 | BE58: 0.46652 | BF58: 74.472 | BH58: 21.075576 | BI58: 4.5368 | BJ58: 1.4124 | BK58: 42.1 | BL58: 57.4 | BM58: 0 | BN58: Çayır-Baklagil Silajı, Olgun> %47 NDF | BO58: 1.83 | BP58: 1.09 | BQ58: 42.8 | BR58: 17.4 | BS58: 57.4 | BT58: 42.1 | BU58: 28.3 | BV58: 1.06 | BW58: 0.33
AB59: Ca (g/gün) | AC59: 1 | AD59: =F33/E33 -> 1 | BA59: Çayır-Baklagil Silajı, Olgun> %50 NDF | BB59: 1 | BC59: 0.429 | BD59: 0.75933 | BE59: 0.45045 | BF59: 78.507 | BH59: 20.725848 | BI59: 5.0193 | BJ59: 1.4157 | BK59: 41.6 | BL59: 53.7 | BM59: 0 | BN59: Çayır-Baklagil Silajı, Olgun> %50 NDF | BO59: 1.77 | BP59: 1.05 | BQ59: 42.9 | BR59: 18.3 | BS59: 53.7 | BT59: 41.6 | BU59: 26.4 | BV59: 1.17 | BW59: 0.33
AB60: P (g/gün) | AC60: 1.63840399 | AD60: =F34/E34 -> 1.580202312 | BA60: Çayır-Baklagil Silajı, Olgun >%57 NDF | BB60: 1 | BC60: 0.385 | BD60: 0.693 | BE60: 0.4158 | BF60: 59.29 | BH60: 18.08345 | BI60: 3.2725 | BJ60: 1.2705 | BK60: 42.2 | BL60: 61.7 | BM60: 0 | BN60: Çayır-Baklagil Silajı, Olgun >%57 NDF | BO60: 1.8 | BP60: 1.08 | BQ60: 38.5 | BR60: 15.4 | BS60: 61.7 | BT60: 42.2 | BU60: 30.5 | BV60: 0.85 | BW60: 0.33
AB61: Ca/P | AC61: =C33/C34 -> 1 | BA61: Çayır-Baklagil Silajı, Orta Olgun, %44-50 NDF | BB61: 1 | BC61: 0.433 | BD61: 0.83136 | BE61: 0.50228 | BF61: 82.27 | BH61: 14.56179 | BI61: 4.9362 | BJ61: 1.4722 | BK61: 35.4 | BL61: 47 | BM61: 0 | BN61: Çayır-Baklagil Silajı, Orta Olgun, %44-50 NDF | BO61: 1.92 | BP61: 1.16 | BQ61: 43.3 | BR61: 19 | BS61: 47 | BT61: 35.4 | BU61: 17.7 | BV61: 1.14 | BW61: 0.34
AB62: ADF (% KM en az) | AC62: =C36/B36 -> 1.583483621 | BA62: Çayır-Baklagil Silajı, Orta Olgun, %47-53 NDF | BB62: 1 | BC62: 0.441 | BD62: 0.88641 | BE62: 0.54243 | BF62: 84.231 | BH62: 16.088121 | BI62: 4.8069 | BJ62: 1.5435 | BK62: 35.4 | BL62: 50.4 | BM62: 0 | BN62: Çayır-Baklagil Silajı, Orta Olgun, %47-53 NDF | BO62: 2.01 | BP62: 1.23 | BQ62: 44.1 | BR62: 19.1 | BS62: 50.4 | BT62: 35.4 | BU62: 19.1 | BV62: 1.09 | BW62: 0.35
AB63: NDF (% KM en az) | AC63: =C37/B37 -> 2.04380892 | BA63: Çayır-Baklagil Silajı,Orta Olgun, %51-57 NDF | BB63: 1 | BC63: 0.445 | BD63: 0.8722 | BE63: 0.52955 | BF63: 78.32 | BH63: 16.36888 | BI63: 3.9605 | BJ63: 1.602 | BK63: 35.7 | BL63: 54.5 | BM63: 0 | BN63: Çayır-Baklagil Silajı,Orta Olgun, %51-57 NDF | BO63: 1.96 | BP63: 1.19 | BQ63: 44.5 | BR63: 17.6 | BS63: 54.5 | BT63: 35.7 | BU63: 20.9 | BV63: 0.89 | BW63: 0.36
BA64: Mısır Silajı, % 23-26KM | BB64: 1 | BC64: 0.25 | BD64: 0.5025 | BE64: 0.305 | BF64: 18.25 | BH64: 5.621 | BI64: 0.725 | BJ64: 0.6 | BK64: 32.5 | BL64: 55.8 | BM64: 0 | BN64: Mısır Silajı, % 23-26KM | BO64: 2.01 | BP64: 1.22 | BQ64: 25 | BR64: 7.3 | BS64: 55.8 | BT64: 32.5 | BU64: 30.8 | BV64: 0.29 | BW64: 0.24
AA65: YEM FİYATI X GÜNLÜK TÜKETİM | AG65: YEM FİTARI X GÜNLÜK KM TÜKETİM | BA65: Mısır Silajı, % 26-29KM | BB65: 1 | BC65: 0.278 | BD65: 0.57824 | BE65: 0.35584 | BF65: 20.016 | BH65: 6.0048 | BI65: 0.7784 | BJ65: 0.7228 | BK65: 31.5 | BL65: 53 | BM65: 0 | BN65: Mısır Silajı, % 26-29KM | BO65: 2.08 | BP65: 1.28 | BQ65: 27.8 | BR65: 7.2 | BS65: 53 | BT65: 31.5 | BU65: 30 | BV65: 0.28 | BW65: 0.26
AB66: Kuru | AC66: Lakt. başı | AD66: Lak. Ort | AE66: Lak. sonu | AH66: Kuru | AI66: Lakt. başı | AJ66: Lak. Ort | AK66: Lak. sonu | BA66: Mısır Silajı, %29-33 KM | BB66: 1 | BC66: 0.313 | BD66: 0.63852 | BE66: 0.38812 | BF66: 22.536 | BH66: 6.715728 | BI66: 0.8764 | BJ66: 0.8138 | BK66: 31.1 | BL66: 52.9 | BM66: 0 | BN66: Mısır Silajı, %29-33 KM | BO66: 2.04 | BP66: 1.24 | BQ66: 31.3 | BR66: 7.2 | BS66: 52.9 | BT66: 31.1 | BU66: 29.8 | BV66: 0.28 | BW66: 0.26
AB67: =$B3*C3 -> 0 | AC67: =$B3*D3 -> 20.91368382 | AD67: =$B3*E3 -> 0.2977846488 | AE67: =$B3*F3 -> 9.558503999 | AH67: =$B3*C3*$AP3 -> 0 | AI67: =$B3*D3*$AP3 -> 18.6131786 | AJ67: =$B3*E3*$AP3 -> 0.2650283375 | AK67: =$B3*F3*$AP3 -> 8.507068559 | AO67: =C3*$AP3 -> 0 | AP67: =D3*$AP3 -> 7.755491084 | AQ67: 0.1104284739 | AR67: 3.5446119 | BA67: Mısır Silajı, %33-40 KM | BB67: 1 | BC67: 0.355 | BD67: 0.72065 | BE67: 0.4402 | BF67: 25.915 | BH67: 8.75927 | BI67: =BQ67*BV67/10 -> 0.923 | BJ67: 0.8875 | BK67: 29.8 | BL67: 51.6 | BM67: 0 | BN67: Mısır Silajı, %33-40 KM | BO67: 2.03 | BP67: 1.24 | BQ67: 35.5 | BR67: 7.3 | BS67: 51.6 | BT67: 29.8 | BU67: 33.8 | BV67: 0.26 | BW67: 0.25
AB68: 0 | AC68: 0 | AD68: 0 | AE68: 0 | AH68: =$B4*C4*$AP4 -> 0 | AI68: =$B4*D4*$AP4 -> 0 | AJ68: =$B4*E4*$AP4 -> 0 | AK68: =$B4*F4*$AP4 -> 0 | AO68: =C4*$AP4 -> 0 | AP68: 0 | AQ68: 0 | AR68: 0 | BA68: =BN68 -> Sorgum Silajı | BB68: 1 | BC68: =BQ68*10/1000 -> 0.288 | BD68: =BO68*BQ68/100 -> 0.5328 | BE68: =BP68*BQ68/100 -> 0.31968 | BF68: =BR68*BQ68/10 -> 26.208 | BH68: =BF68*BU68/100 -> 10.325952 | BI68: 0 | BJ68: =BW68*BQ68/10 -> 0 | BK68: =BT68 -> 38.7 | BL68: =BS68 -> 60.7 | BM68: =BX68 -> 0 | BN68: Sorgum Silajı | BO68: 1.85 | BP68: 1.11 | BQ68: 28.8 | BR68: 9.1 | BS68: 60.7 | BT68: 38.7 | BU68: 39.4 | BV68: 0 | BW68: 0
AB69: 0 | AC69: 0 | AD69: 0 | AE69: 0 | AH69: 0 | AI69: 0 | AJ69: 0 | AK69: 0 | AO69: 0 | AP69: 0 | AQ69: 0 | AR69: 0 | BA69: Sorgum, Sudan Otu Silajı | BB69: =BB68 -> 1 | BC69: 0.288 | BD69: 0.51552 | BE69: 0.30816 | BF69: 31.104 | BH69: 15.116544 | BI69: 1.44 | BJ69: 0.6048 | BK69: 40.7 | BL69: 63.3 | BM69: 0 | BN69: Sorgum, Sudan Otu Silajı | BO69: 1.79 | BP69: 1.07 | BQ69: 28.8 | BR69: 10.8 | BS69: 63.3 | BT69: 40.7 | BU69: 48.6 | BV69: 0.5 | BW69: 0.21
AB70: 0 | AC70: 3.187146006 | AD70: 13.04216965 | AE70: 9.004829927 | AH70: 0 | AI70: 2.900302865 | AJ70: 11.86837438 | AK70: 8.194395234 | AO70: 0 | AP70: 1.933535243 | AQ70: 7.912249589 | AR70: 5.462930156 | BA70: Soya Silajı, Körpe | BB70: 1 | BC70: 0.404 | BD70: 0.84436 | BE70: 0.52116 | BF70: 70.296 | BH70: 11.669136 | BI70: 2.5856 | BJ70: 0.9696 | BK70: 36.9 | BL70: 46.6 | BM70: 0 | BN70: Soya Silajı, Körpe | BO70: 2.09 | BP70: 1.29 | BQ70: 40.4 | BR70: 17.4 | BS70: 46.6 | BT70: 36.9 | BU70: 16.6 | BV70: 0.64 | BW70: 0.24
AB71: 3.584905348 | AC71: 0 | AD71: 0 | AE71: 7.487219676e-09 | AH71: 3.323207258 | AI71: 0 | AJ71: 0 | AK71: 6.94065264e-09 | AO71: 6.646414515 | AP71: 0 | AQ71: 0 | AR71: 1.388130528e-08 | BA71: Şalgam Yaprakları | BB71: 1 | BC71: 0.18 | BD71: 0.45 | BE71: 0.27 | BF71: 28.8 | BH71: 4.896 | BI71: 1.926 | BJ71: 0.666 | BK71: 13 | BL71: 25 | BM71: 0 | BN71: Şalgam Yaprakları | BO71: 2.5 | BP71: 1.5 | BQ71: 18 | BR71: 16 | BS71: 25 | BT71: 13 | BU71: 17 | BV71: 1.07 | BW71: 0.37
AB72: 0 | AC72: 0 | AD72: 0.5263618444 | AE72: 0 | AH72: 0 | AI72: 0 | AJ72: 0.1057987307 | AK72: 0 | AO72: 0 | AP72: 0 | AQ72: 10.57987307 | AR72: 0 | BA72: Şalgam, Yaprak-Kök | BB72: 1 | BC72: 0.1395 | BD72: 0.386415 | BE72: 0.2406375 | BF72: 19.809 | BH72: 6.8440095 | BI72: 4.464 | BJ72: 0.43245 | BK72: 22.45 | BL72: 33.55 | BM72: 0 | BN72: Şalgam, Yaprak-Kök | BO72: 2.77 | BP72: 1.725 | BQ72: 13.95 | BR72: 14.2 | BS72: 33.55 | BT72: 22.45 | BU72: 34.55 | BV72: 3.2 | BW72: 0.31
AB73: 0 | AC73: 0 | AD73: 0 | AE73: 0 | AH73: 0 | AI73: 0 | AJ73: 0 | AK73: 0 | AO73: 0 | AP73: 0 | AQ73: 0 | AR73: 0 | BA73: Tritikale Silajı, Başaklı | BB73: 1 | BC73: 0.32 | BD73: 0.6208 | BE73: 0.3776 | BF73: 44.16 | BH73: 10.73088 | BI73: 6.64 | BJ73: 1.024 | BK73: 39.6 | BL73: 59.7 | BM73: 0 | BN73: Tritikale Silajı, Başaklı | BO73: 1.94 | BP73: 1.18 | BQ73: 32 | BR73: 13.8 | BS73: 59.7 | BT73: 39.6 | BU73: 24.3 | BV73: 2.075 | BW73: 0.32
AB74: 0 | AC74: 0 | AD74: 0 | AE74: 0 | AH74: 0 | AI74: 0 | AJ74: 0 | AK74: 0 | AO74: 0 | AP74: 0 | AQ74: 0 | AR74: 0 | BA74: Tritikale-Bezelye Silajı(9-1) | BB74: 1 | BC74: 0.3434 | BD74: 0.6569242 | BE74: 0.3959402 | BF74: 44.60766 | BH74: 16.01861071 | BI74: 1.78568 | BJ74: 1.06454 | BK74: 38.97 | BL74: 60.51 | BM74: 0 | BN74: Tritikale-Bezelye Silajı(9-1) | BO74: 1.913 | BP74: 1.153 | BQ74: 34.34 | BR74: 12.99 | BS74: 60.51 | BT74: 38.97 | BU74: 35.91 | BV74: 0.52 | BW74: 0.31
AB75: 0 | AC75: 11.50315862 | AD75: 0 | AE75: 0 | AH75: 0 | AI75: 10.41035855 | AJ75: 0 | AK75: 0 | AO75: 0 | AP75: 4.164143422 | AQ75: 0 | AR75: 0 | BA75: Tritikale-Bezelye Silajı (APAK) | BB75: 1 | BC75: 0.3639 | BD75: 0.876999 | BE75: 0.54585 | BF75: 36.06249 | BH75: 10.47975959 | BI75: 1.01892 | BJ75: 0.94614 | BK75: 28.03 | BL75: 43.97 | BM75: 0 | BN75: Tritikale-Bezelye Silajı (APAK) | BO75: 2.41 | BP75: 1.5 | BQ75: 36.39 | BR75: 9.91 | BS75: 43.97 | BT75: 28.03 | BU75: 29.06 | BV75: 0.28 | BW75: 0.26
AB76: 0 | AC76: 0 | AD76: 0 | AE76: 0 | AH76: 0 | AI76: 0 | AJ76: 0 | AK76: 0 | AO76: 0 | AP76: 0 | AQ76: 0 | AR76: 0 | BA76: Yulaf Silajı, Başaklı | BB76: 1 | BC76: 0.346 | BD76: 0.66086 | BE76: 0.3979 | BF76: 119.716 | BH76: 44.534352 | BI76: 1.9722 | BJ76: 1.1418 | BK76: 38.9 | BL76: 60.6 | BM76: 0 | BN76: Yulaf Silajı, Başaklı | BO76: 1.91 | BP76: 1.15 | BQ76: 34.6 | BR76: 34.6 | BS76: 60.6 | BT76: 38.9 | BU76: 37.2 | BV76: 0.57 | BW76: 0.33
AB77: 0 | AC77: 0 | AD77: 0 | AE77: 0 | AH77: 0 | AI77: 0 | AJ77: 0 | AK77: 0 | AO77: 0 | AP77: 0 | AQ77: 0 | AR77: 0 | BA77: Aminoplus | BB77: 1 | BC77: 0.88 | BD77: 0 | BE77: 1.936 | BF77: 454.96 | BH77: 121.01936 | BI77: 3.344 | BJ77: 6.336 | BK77: 7.44 | BL77: 11.8 | BM77: 0 | BN77: Aminoplus | BO77: 0 | BP77: 2.2 | BQ77: 88 | BR77: 51.7 | BS77: 11.8 | BT77: 7.44 | BU77: 26.6 | BV77: 0.38 | BW77: 0.72
AB78: 0 | AC78: 0 | AD78: 0 | AE78: 0 | AH78: 0 | AI78: 0 | AJ78: 0 | AK78: 0 | AO78: 0 | AP78: 0 | AQ78: 0 | AR78: 0 | BA78: Aspir Küspesi, Solvent | BB78: 1 | BC78: 0.935 | BD78: 1.8326 | BE78: 1.11265 | BF78: 271.15 | BH78: 31.9957 | BI78: 4.488 | BJ78: 9.35 | BK78: 39.1 | BL78: 53.8 | BM78: 0 | BN78: Aspir Küspesi, Solvent | BO78: 1.96 | BP78: 1.19 | BQ78: 93.5 | BR78: 29 | BS78: 53.8 | BT78: 39.1 | BU78: 11.8 | BV78: 0.48 | BW78: 1
AB79: 0 | AC79: 0 | AD79: 0 | AE79: 0 | AH79: 0 | AI79: 0 | AJ79: 0 | AK79: 0 | AO79: 0 | AP79: 0 | AQ79: 0 | AR79: 0 | BA79: Ayçiçeği Küspesi, Solvent, %25 HP | BB79: 1 | BC79: 0.922 | BD79: 2.06528 | BE79: 1.27236 | BF79: 261.848 | BH79: 48.180032 | BI79: 4.4256 | BJ79: 9.22 | BK79: 30 | BL79: 40.3 | BM79: 0 | BN79: Ayçiçeği Küspesi, Solvent, %25 HP | BO79: 2.24 | BP79: 1.38 | BQ79: 92.2 | BR79: 28.4 | BS79: 40.3 | BT79: 30 | BU79: 18.4 | BV79: 0.48 | BW79: 1
AB80: 9.891695169 | AC80: 3.674084516 | AD80: 0 | AE80: 5.072826511 | AH80: 3.511551785 | AI80: 1.304300003 | AJ80: 0 | AK80: 1.800853411 | AO80: 7.02310357 | AP80: 2.608600006 | AQ80: 0 | AR80: 3.601706823 | BA80: Ayçiçeği Küspesi, Solvent, %28 HP | BB80: 1 | BC80: 0.922 | BD80: 2.10216 | BE80: 1.383 | BF80: 285.82 | BH80: 52.59088 | BI80: 4.4256 | BJ80: 9.22 | BK80: 28 | BL80: 38 | BM80: 0 | BN80: Ayçiçeği Küspesi, Solvent, %28 HP | BO80: 2.28 | BP80: 1.5 | BQ80: 92.2 | BR80: 31 | BS80: 38 | BT80: 28 | BU80: 18.4 | BV80: 0.48 | BW80: 1
AB81: 0 | AC81: 15.21774869 | AD81: 0 | AE81: 0 | AH81: 0 | AI81: 13.14813487 | AJ81: 0 | AK81: 0 | AO81: 0 | AP81: 1.314813487 | AQ81: 0 | AR81: 0 | BA81: Ayçiçeği Küspesi, Solvent, %32 HP | BB81: 1 | BC81: 0.922 | BD81: 2.2128 | BE81: 1.4752 | BF81: 328.232 | BH81: 60.394688 | BI81: 4.4256 | BJ81: 9.22 | BK81: 26 | BL81: 36 | BM81: 0 | BN81: Ayçiçeği Küspesi, Solvent, %32 HP | BO81: 2.4 | BP81: 1.6 | BQ81: 92.2 | BR81: 35.6 | BS81: 36 | BT81: 26 | BU81: 18.4 | BV81: 0.48 | BW81: 1
AB82: 15 | AC82: 4.101251364 | AD82: 0 | AE82: 1.970561946 | AH82: 15 | AI82: 4.101251364 | AJ82: 0 | AK82: 1.970561946 | AO82: 1 | AP82: 0.2734167576 | AQ82: 0 | AR82: 0.1313707964 | BA82: Ayçiçeği Küspesi, Solvent, %34 HP | BB82: 1 | BC82: 0.922 | BD82: 2.2128 | BE82: 1.4752 | BF82: 346.672 | BH82: 63.787648 | BI82: 4.4256 | BJ82: 9.22 | BK82: 24 | BL82: 34 | BM82: 0 | BN82: Ayçiçeği Küspesi, Solvent, %34 HP | BO82: 2.4 | BP82: 1.6 | BQ82: 92.2 | BR82: 37.6 | BS82: 34 | BT82: 24 | BU82: 18.4 | BV82: 0.48 | BW82: 1
AB83: 0.009600953259 | AC83: 0 | AD83: 0.0866177825 | AE83: 0.04275646848 | AH83: 0.009600953259 | AI83: 0 | AJ83: 0.0866177825 | AK83: 0.04275646848 | AO83: 0.009600953259 | AP83: =D19*$AP19 -> 0 | AQ83: 0.0866177825 | AR83: 0.04275646848 | BA83: Ayçiçeği Küspesi, Solvent, %36 HP | BB83: 1 | BC83: 0.922 | BD83: 2.3972 | BE83: 1.5674 | BF83: 368.8 | BH83: 67.8592 | BI83: 4.4256 | BJ83: 9.22 | BK83: 22 | BL83: 32 | BM83: 0 | BN83: Ayçiçeği Küspesi, Solvent, %36 HP | BO83: 2.6 | BP83: 1.7 | BQ83: 92.2 | BR83: 40 | BS83: 32 | BT83: 22 | BU83: 18.4 | BV83: 0.48 | BW83: 1
AB84: 0.02088096156 | AC84: 0 | AD84: 0.08583108318 | AE84: 0.08282130481 | AF84: GENEL | AH84: 0.02088096156 | AI84: 0 | AJ84: 0.08583108318 | AK84: 0.08282130481 | AL84: GENEL | AO84: 0.02088096156 | AP84: 0 | AQ84: 0.08583108318 | AR84: 0.08282130481 | BA84: Ayçiçeği Tohumu | BB84: 1 | BC84: 0.918 | BD84: 4.32378 | BE84: 3.10284 | BF84: 176.256 | BH84: 32.431104 | BI84: 6.5178 | BJ84: 4.6818 | BK84: 16.7 | BL84: 24 | BM84: 0 | BN84: Ayçiçeği Tohumu | BO84: 4.71 | BP84: 3.38 | BQ84: 91.8 | BR84: 19.2 | BS84: 24 | BT84: 16.7 | BU84: 18.4 | BV84: 0.71 | BW84: 0.51
AA85: TOPLAM GÜNLÜK YEM MASRAFI | AB85: =SUM(AB67:AB84) -> 28.50708243 | AC85: =SUM(AC67:AC84) -> 58.59707302 | AD85: =SUM(AD67:AD84) -> 14.03876501 | AE85: =SUM(AE67:AE84) -> 25.73230016 | AF85: =SUM(AB85:AE85) -> 126.8752206 | AG85: TOPLAM GÜNLÜK YEM MASRAFI | AH85: =SUM(AH67:AH84) -> 21.86524096 | AI85: =SUM(AI67:AI84) -> 50.47752626 | AJ85: =SUM(AJ67:AJ84) -> 12.41165032 | AK85: =SUM(AK67:AK84) -> 20.59845693 | AL85: =SUM(AH85:AK85) -> 105.3528745 | BA85: Balık Unu, Hamsi | BB85: 1 | BC85: 0.92 | BD85: 3.1464 | BE85: 2.0424 | BF85: 655.04 | BH85: 335.38048 | BI85: 37.352 | BJ85: 24.748 | BK85: 0 | BL85: 0 | BM85: 0 | BN85: Balık Unu, Hamsi | BO85: 3.42 | BP85: 2.22 | BQ85: 92 | BR85: 71.2 | BS85: 0 | BT85: 0 | BU85: 51.2 | BV85: 4.06 | BW85: 2.69
AA86: TOPLAM YEMTÜKETİM | AB86: =SUM(C3:C20) -> 27.98368295 | AC86: =SUM(D3:D20) -> 24.58342304 | AD86: =SUM(E3:E20) -> 61.62749001 | AE86: =SUM(F3:F20) -> 20.38853156 | AF86: =SUM(AB86:AE86) -> 134.5831276 | AG86: TOPLAM YEMTÜKETİM | AH86: =SUM(AO67:AO84) -> 14.7 | AI86: =SUM(AP67:AP84) -> 18.05 | AJ86: =SUM(AQ67:AQ84) -> 18.775 | AK86: =SUM(AR67:AR84) -> 12.86619746 | AL86: =SUM(AH86:AK86) -> 64.39119746 | BA86: Balık Unu, Ringa | BB86: 1 | BC86: 0.912 | BD86: 3.21024 | BE86: 2.12496 | BF86: 624.72 | BH86: 369.20952 | BI86: 48.7008 | BJ86: 27.816 | BK86: 0 | BL86: 0 | BM86: 0 | BN86: Balık Unu, Ringa | BO86: 3.52 | BP86: 2.33 | BQ86: 91.2 | BR86: 68.5 | BS86: 0 | BT86: 0 | BU86: 59.1 | BV86: 5.34 | BW86: 3.05
AA87: BİRİM YEM MALİYET | AB87: =AB85/AB86 -> 1.018703738 | AC87: =AC85/AC86 -> 2.383601052 | AD87: =AD85/AD86 -> 0.2278003698 | AE87: =AE85/AE86 -> 1.262096787 | AF87: =AF85/AF86 -> 0.942727539 | AG87: BİRİM YEM MALİYET | AH87: =AH85/AH86 -> 1.487431358 | AI87: =AI85/AI86 -> 2.796538851 | AJ87: =AJ85/AJ86 -> 0.6610732526 | AK87: =AK85/AK86 -> 1.600974724 | AL87: =AL85/AL86 -> 1.636137836 | BA87: Ecomass | BB87: 1 | BC87: 0.94 | BD87: 3.0644 | BE87: 1.8424 | BF87: 479.964 | BH87: 63.0192732 | BI87: 20.022 | BJ87: 4.7 | BK87: 5.32 | BL87: 18.9 | BM87: 0 | BN87: Ecomass | BO87: 3.26 | BP87: 1.96 | BQ87: 94 | BR87: 51.06 | BS87: 18.9 | BT87: 5.32 | BU87: 13.13 | BV87: 2.13 | BW87: 0.5
AA88: BİRİM SÜTÜN YEM MALİYETİ | AC88: =AC85/M6 -> 1.953235767 | AD88: =AD85/N6 -> 0.5615506004 | AE88: =AE85/O6 -> 1.715486678 | AF88: =(AB85*L5+AC85*M5+AD85*N5+AE85*O5)/(M6*M5+N6*N5+O6*O5) -> 1.39407869 | AG88: BİRİM SÜTÜN YEM MALİYETİ | AI88: =AI85/S6 ->  | AJ88: =AJ85/T6 ->  | AK88: =AK85/U6 ->  | AL88: =(AH85*R5+AI85*S5+AJ85*T5+AK85*U5)/(S6*S5+T6*T5+U6*U5) ->  | BA88: Et Unu | BB88: 1 | BC88: 0.939 | BD88: 3.14565 | BE88: 2.07519 | BF88: 540.864 | BH88: 224.45856 | BI88: 83.1954 | BJ88: 39.438 | BK88: 0 | BL88: 0 | BM88: 0 | BN88: Et Unu | BO88: 3.35 | BP88: 2.21 | BQ88: 93.9 | BR88: 57.6 | BS88: 0 | BT88: 0 | BU88: 41.5 | BV88: 8.86 | BW88: 4.2
BA89: Et-Kemik Unu | BB89: 1 | BC89: 0.94 | BD89: 2.3876 | BE89: 1.5322 | BF89: 509.48 | BH89: 261.87272 | BI89: 99.64 | BJ89: 44.462 | BK89: 0 | BL89: 0 | BM89: 0 | BN89: Et-Kemik Unu | BO89: 2.54 | BP89: 1.63 | BQ89: 94 | BR89: 54.2 | BS89: 0 | BT89: 0 | BU89: 51.4 | BV89: 10.6 | BW89: 4.73
BA90: Kan Unu, Püskürtmeli Kurutulmuş | BB90: 1 | BC90: 0.902 | BD90: 3.22916 | BE90: 2.10166 | BF90: 861.41 | BH90: 610.73969 | BI90: 2.706 | BJ90: 2.706 | BK90: 0 | BL90: 0 | BM90: 0 | BN90: Kan Unu, Püskürtmeli Kurutulmuş | BO90: 3.58 | BP90: 2.33 | BQ90: 90.2 | BR90: 95.5 | BS90: 0 | BT90: 0 | BU90: 70.9 | BV90: 0.3 | BW90: 0.3
BA91: Kan Unu, Teknede Kurutulmuş | BB91: 1 | BC91: 0.902 | BD91: 2.74208 | BE91: 1.7589 | BF91: 861.41 | BH91: 610.73969 | BI91: 2.706 | BJ91: 2.706 | BK91: 0 | BL91: 0 | BM91: 0 | BN91: Kan Unu, Teknede Kurutulmuş | BO91: 3.04 | BP91: 1.95 | BQ91: 90.2 | BR91: 95.5 | BS91: 0 | BT91: 0 | BU91: 70.9 | BV91: 0.3 | BW91: 0.3
BA92: Kanola Küspesi, Pres | BB92: 1 | BC92: 0.903 | BD92: 2.48325 | BE92: 1.58928 | BF92: 341.334 | BH92: 90.794844 | BI92: 6.7725 | BJ92: 9.933 | BK92: 20.5 | BL92: 29.9 | BM92: 0 | BN92: Kanola Küspesi, Pres | BO92: 2.75 | BP92: 1.76 | BQ92: 90.3 | BR92: 37.8 | BS92: 29.9 | BT92: 20.5 | BU92: 26.6 | BV92: 0.75 | BW92: 1.1
BA93: Kanola Tohumu | BB93: 1 | BC93: 0.899 | BD93: 4.42308 | BE93: 3.16448 | BF93: 184.295 | BH93: 28.565725 | BI93: 3.9556 | BJ93: 6.1132 | BK93: 11.6 | BL93: 17.8 | BM93: 0 | BN93: Kanola Tohumu | BO93: 4.92 | BP93: 3.52 | BQ93: 89.9 | BR93: 20.5 | BS93: 17.8 | BT93: 11.6 | BU93: 15.5 | BV93: 0.44 | BW93: 0.68
BA94: Keten Tohumu Küspesi, Solvent | BB94: 1 | BC94: 0.903 | BD94: 2.26653 | BE94: 1.41771 | BF94: 294.378 | BH94: 126.58254 | BI94: 3.612 | BJ94: 7.4949 | BK94: 22.1 | BL94: 36.1 | BM94: 0 | BN94: Keten Tohumu Küspesi, Solvent | BO94: 2.51 | BP94: 1.57 | BQ94: 90.3 | BR94: 32.6 | BS94: 36.1 | BT94: 22.1 | BU94: 43 | BV94: 0.4 | BW94: 0.83
BA95: Mısır Gluteni,44 | BB95: 1 | BC95: 0.864 | BD95: 2.62656 | BE95: 1.6848 | BF95: 404.352 | BH95: 250.3747584 | BI95: 0.5184 | BJ95: 5.184 | BK95: 8.2 | BL95: 11.1 | BM95: 0 | BN95: Mısır Gluteni,44 | BO95: 3.04 | BP95: 1.95 | BQ95: 86.4 | BR95: 46.8 | BS95: 11.1 | BT95: 8.2 | BU95: 61.92 | BV95: 0.06 | BW95: 0.6
BA96: MIsır Gluteni,63 | BB96: 1 | BC96: 0.864 | BD96: 3.16224 | BE96: 2.05632 | BF96: 561.6 | BH96: 358.3008 | BI96: 0.5184 | BJ96: 5.184 | BK96: 8.2 | BL96: 11.1 | BM96: 0 | BN96: MIsır Gluteni,63 | BO96: 3.66 | BP96: 2.38 | BQ96: 86.4 | BR96: 65 | BS96: 11.1 | BT96: 8.2 | BU96: 63.8 | BV96: 0.06 | BW96: 0.6
BA97: Pamuk Tohumu Küspesi, Pres, % 25 HP | BB97: 1 | BC97: 0.905 | BD97: 2.0815 | BE97: 1.267 | BF97: 249.78 | BH97: 104.9076 | BI97: 1.81 | BJ97: 9.05 | BK97: 30 | BL97: 40 | BM97: 0 | BN97: Pamuk Tohumu Küspesi, Pres, % 25 HP | BO97: 2.3 | BP97: 1.4 | BQ97: 90.5 | BR97: 27.6 | BS97: 40 | BT97: 30 | BU97: 42 | BV97: 0.2 | BW97: 1
BA98: Pamuk Tohumu Küspesi, Pres, % 28 HP | BB98: 1 | BC98: 0.905 | BD98: 2.172 | BE98: 1.3575 | BF98: 279.645 | BH98: 117.4509 | BI98: 1.81 | BJ98: 9.05 | BK98: 28 | BL98: 38 | BM98: 0 | BN98: Pamuk Tohumu Küspesi, Pres, % 28 HP | BO98: 2.4 | BP98: 1.5 | BQ98: 90.5 | BR98: 30.9 | BS98: 38 | BT98: 28 | BU98: 42 | BV98: 0.2 | BW98: 1
BA99: Pamuk Tohumu Küspesi, Pres, % 41 HP | BB99: 1 | BC99: 0.905 | BD99: 2.6245 | BE99: 1.629 | BF99: 406.345 | BH99: 203.1725 | BI99: 1.5385 | BJ99: 5.43 | BK99: 18 | BL99: 31 | BM99: 0 | BN99: Pamuk Tohumu Küspesi, Pres, % 41 HP | BO99: 2.9 | BP99: 1.8 | BQ99: 90.5 | BR99: 44.9 | BS99: 31 | BT99: 18 | BU99: 50 | BV99: 0.17 | BW99: 0.6
BA100: Pamuk Tohumu Küspesi, Solvent, % 32 HP | BB100: 1 | BC100: 0.905 | BD100: 2.2625 | BE100: 1.448 | BF100: 320.37 | BH100: 128.148 | BI100: 1.81 | BJ100: 9.05 | BK100: 26 | BL100: 36 | BM100: 0 | BN100: Pamuk Tohumu Küspesi, Solvent, % 32 HP | BO100: 2.5 | BP100: 1.6 | BQ100: 90.5 | BR100: 35.4 | BS100: 36 | BT100: 26 | BU100: 40 | BV100: 0.2 | BW100: 1
BA101: Pamuk Tohumu Küspesi, Solvent, % 36 HP | BB101: 1 | BC101: 0.905 | BD101: 2.353 | BE101: 1.49325 | BF101: 360.19 | BH101: 144.076 | BI101: 1.81 | BJ101: 9.05 | BK101: 22 | BL101: 32 | BM101: 0 | BN101: Pamuk Tohumu Küspesi, Solvent, % 36 HP | BO101: 2.6 | BP101: 1.65 | BQ101: 90.5 | BR101: 39.8 | BS101: 32 | BT101: 22 | BU101: 40 | BV101: 0.2 | BW101: 1
BA102: Pamuk Tohumu Küspesi, Solvent, % 41 HP | BB102: 1 | BC102: 0.905 | BD102: 2.4435 | BE102: 1.54755 | BF102: 406.345 | BH102: 162.538 | BI102: 1.81 | BJ102: 10.4075 | BK102: 19.9 | BL102: 30.8 | BM102: 0 | BN102: Pamuk Tohumu Küspesi, Solvent, % 41 HP | BO102: 2.7 | BP102: 1.71 | BQ102: 90.5 | BR102: 44.9 | BS102: 30.8 | BT102: 19.9 | BU102: 40 | BV102: 0.2 | BW102: 1.15
BA103: Pamuk Tohumu, Lintli | BB103: 1 | BC103: 0.901 | BD103: 2.62191 | BE103: 1.74794 | BF103: 211.735 | BH103: 37.477095 | BI103: 1.5317 | BJ103: 5.406 | BK103: 40.1 | BL103: 50.3 | BM103: 0 | BN103: Pamuk Tohumu, Lintli | BO103: 2.91 | BP103: 1.94 | BQ103: 90.1 | BR103: 23.5 | BS103: 50.3 | BT103: 40.1 | BU103: 17.7 | BV103: 0.17 | BW103: 0.6
BA104: Peynir Altı Suyu, Sığır | BB104: 1 | BC104: 0.208 | BD104: 0.60736 | BE104: 0.38688 | BF104: 30.368 | BH104: 1.396928 | BI104: 2.8496 | BJ104: 2.1632 | BK104: 0 | BL104: 0 | BM104: 0 | BN104: Peynir Altı Suyu, Sığır | BO104: 2.92 | BP104: 1.86 | BQ104: 20.8 | BR104: 14.6 | BS104: 0 | BT104: 0 | BU104: 4.6 | BV104: 1.37 | BW104: 1.04
BA105: Soya Fasülyesi | BB105: 1 | BC105: 0.9 | BD105: 3.645 | BE105: 2.475 | BF105: 352.8 | BH105: 75.852 | BI105: 2.88 | BJ105: 5.4 | BK105: 13.1 | BL105: 19.5 | BM105: 0 | BN105: Soya Fasülyesi | BO105: 4.05 | BP105: 2.75 | BQ105: 90 | BR105: 39.2 | BS105: 19.5 | BT105: 13.1 | BU105: 21.5 | BV105: 0.32 | BW105: 0.6
BA106: Soya Küspesi , Solvent, %44 | BB106: 1 | BC106: 0.891 | BD106: 2.673 | BE106: 1.6929 | BF106: 436.59 | BH106: 106.09137 | BI106: 3.564 | BJ106: 6.3261 | BK106: 15 | BL106: 20 | BM106: 0 | BN106: Soya Küspesi , Solvent, %44 | BO106: 3 | BP106: 1.9 | BQ106: 89.1 | BR106: 49 | BS106: 20 | BT106: 15 | BU106: 24.3 | BV106: 0.4 | BW106: 0.71
BA107: Soya Küspesi , Solvent, %46 | BB107: 1 | BC107: 0.891 | BD107: 2.673 | BE107: 1.6929 | BF107: 436.59 | BH107: 106.09137 | BI107: 3.564 | BJ107: 6.3261 | BK107: 15 | BL107: 20 | BM107: 0 | BN107: Soya Küspesi , Solvent, %46 | BO107: 3 | BP107: 1.9 | BQ107: 89.1 | BR107: 49 | BS107: 20 | BT107: 15 | BU107: 24.3 | BV107: 0.4 | BW107: 0.71
BA108: Soya Küspesi , Solvent, %48 | BB108: 1 | BC108: 0.891 | BD108: 2.94921 | BE108: 1.89783 | BF108: 479.358 | BH108: 147.642264 | BI108: 3.1185 | BJ108: 6.237 | BK108: 10 | BL108: 14.9 | BM108: 0 | BN108: Soya Küspesi , Solvent, %48 | BO108: 3.31 | BP108: 2.13 | BQ108: 89.1 | BR108: 53.8 | BS108: 14.9 | BT108: 10 | BU108: 30.8 | BV108: 0.35 | BW108: 0.7
BA109: Soya Küspesi , Solvent, %51 | BB109: 1 | BC109: 0.895 | BD109: 3.05195 | BE109: 1.97795 | BF109: 510.15 | BH109: 157.1262 | BI109: 3.1325 | BJ109: 6.265 | BK109: 6.2 | BL109: 9.8 | BM109: 0 | BN109: Soya Küspesi , Solvent, %51 | BO109: 3.41 | BP109: 2.21 | BQ109: 89.5 | BR109: 57 | BS109: 9.8 | BT109: 6.2 | BU109: 30.8 | BV109: 0.35 | BW109: 0.7
BA110: Soya Küspesi, Ekspeller, %45 HP | BB110: 1 | BC110: 0.896 | BD110: 3.23456 | BE110: 2.13248 | BF110: 448 | BH110: 259.84 | BI110: 3.2256 | BJ110: 5.9136 | BK110: 10.4 | BL110: 21.7 | BM110: 0 | BN110: Soya Küspesi, Ekspeller, %45 HP | BO110: 3.61 | BP110: 2.38 | BQ110: 89.6 | BR110: 50 | BS110: 21.7 | BT110: 10.4 | BU110: 58 | BV110: 0.36 | BW110: 0.66
BA111: Tam Yağlı Soya | BB111: 1 | BC111: 0.91 | BD111: 3.64 | BE111: 2.4752 | BF111: 391.3 | BH111: 113.8683 | BI111: 2.366 | BJ111: 5.824 | BK111: 14.7 | BL111: 22.1 | BM111: 0 | BN111: Tam Yağlı Soya | BO111: 4 | BP111: 2.72 | BQ111: 91 | BR111: 43 | BS111: 22.1 | BT111: 14.7 | BU111: 29.1 | BV111: 0.26 | BW111: 0.64
BA112: Tüy Unu Hidrolize | BB112: 1 | BC112: 0.933 | BD112: 3.09756 | BE112: 2.00595 | BF112: 858.36 | BH112: 533.04156 | BI112: 3.0789 | BJ112: 4.665 | BK112: 0 | BL112: 0 | BM112: 0 | BN112: Tüy Unu Hidrolize | BO112: 3.32 | BP112: 2.15 | BQ112: 93.3 | BR112: 92 | BS112: 0 | BT112: 0 | BU112: 62.1 | BV112: 0.33 | BW112: 0.5
BA113: Tüy Unu Hidrolize (+Biraz İç Organ ) | BB113: 1 | BC113: 0.915 | BD113: 3.2757 | BE113: 2.1594 | BF113: 777.75 | BH113: 482.98275 | BI113: 12.444 | BJ113: 7.0455 | BK113: 0 | BL113: 0 | BM113: 0 | BN113: Tüy Unu Hidrolize (+Biraz İç Organ ) | BO113: 3.58 | BP113: 2.36 | BQ113: 91.5 | BR113: 85 | BS113: 0 | BT113: 0 | BU113: 62.1 | BV113: 1.36 | BW113: 0.77
BA114: Yer Fıstığı Küspesi, Solvent | BB114: 1 | BC114: 0.923 | BD114: 2.87976 | BE114: 1.846 | BF114: 478.114 | BH114: 43.986488 | BI114: 1.846 | BJ114: 5.9072 | BK114: 13.5 | BL114: 21.4 | BM114: 0 | BN114: Yer Fıstığı Küspesi, Solvent | BO114: 3.12 | BP114: 2 | BQ114: 92.3 | BR114: 51.8 | BS114: 21.4 | BT114: 13.5 | BU114: 9.2 | BV114: 0.2 | BW114: 0.64
BA115: Yonca Unu,% 17 HP | BB115: 1 | BC115: 0.903 | BD115: 1.76988 | BE115: 1.07457 | BF115: 173.376 | BH115: 54.786816 | BI115: 13.2741 | BJ115: 2.5284 | BK115: 32.8 | BL115: 41.6 | BM115: 0 | BN115: Yonca Unu,% 17 HP | BO115: 1.96 | BP115: 1.19 | BQ115: 90.3 | BR115: 19.2 | BS115: 41.6 | BT115: 32.8 | BU115: 31.6 | BV115: 1.47 | BW115: 0.28
BA116: Arpa , Ezme | BB116: 1 | BC116: 0.91 | BD116: 2.6572 | BE116: 1.6926 | BF116: 112.84 | BH116: 20.42404 | BI116: 0.546 | BJ116: 3.549 | BK116: 7.2 | BL116: 20.8 | BM116: 0 | BN116: Arpa , Ezme | BO116: 2.92 | BP116: 1.86 | BQ116: 91 | BR116: 12.4 | BS116: 20.8 | BT116: 7.2 | BU116: 18.1 | BV116: 0.06 | BW116: 0.39
BA117: Buğday, Ezme | BB117: 1 | BC117: 0.894 | BD117: 2.7714 | BE117: 1.77906 | BF117: 126.948 | BH117: 24.881808 | BI117: 0.447 | BJ117: 3.8442 | BK117: 4.4 | BL117: 13.4 | BM117: 0 | BN117: Buğday, Ezme | BO117: 3.1 | BP117: 1.99 | BQ117: 89.4 | BR117: 14.2 | BS117: 13.4 | BT117: 4.4 | BU117: 19.6 | BV117: 0.05 | BW117: 0.43
BA118: Havuç | BB118: 1 | BC118: 0.11 | BD118: 0.363 | BE118: 0.2079 | BF118: 11 | BH118: 7.282 | BI118: 0.44 | BJ118: 0.385 | BK118: 8 | BL118: 9 | BM118: 0 | BN118: Havuç | BO118: 3.3 | BP118: 1.89 | BQ118: 11 | BR118: 10 | BS118: 9 | BT118: 8 | BU118: 66.2 | BV118: 0.4 | BW118: 0.35
BA119: Melas, Şeker Kamışı | BB119: 1 | BC119: 0.743 | BD119: 2.06554 | BE119: 1.30768 | BF119: 43.094 | BH119: 6.334818 | BI119: 7.43 | BJ119: 0.743 | BK119: 0.2 | BL119: 0.4 | BM119: 0 | BN119: Melas, Şeker Kamışı | BO119: 2.78 | BP119: 1.76 | BQ119: 74.3 | BR119: 5.8 | BS119: 0.4 | BT119: 0.2 | BU119: 14.7 | BV119: 1 | BW119: 0.1
BA120: Melas, Şeker Pancarı | BB120: 1 | BC120: 0.779 | BD120: 2.24352 | BE120: 1.43336 | BF120: 66.215 | BH120: 9.733605 | BI120: 1.1685 | BJ120: 0.2337 | BK120: 0.1 | BL120: 0.1 | BM120: 0 | BN120: Melas, Şeker Pancarı | BO120: 2.88 | BP120: 1.84 | BQ120: 77.9 | BR120: 8.5 | BS120: 0.1 | BT120: 0.1 | BU120: 14.7 | BV120: 0.15 | BW120: 0.03
BA121: Mısır Grizi | BB121: 1 | BC121: 0.885 | BD121: 2.6019 | BE121: 1.6638 | BF121: 105.315 | BH121: 25.591545 | BI121: 0.2655 | BJ121: 5.7525 | BK121: 6.2 | BL121: 21.1 | BM121: 0 | BN121: Mısır Grizi | BO121: 2.94 | BP121: 1.88 | BQ121: 88.5 | BR121: 11.9 | BS121: 21.1 | BT121: 6.2 | BU121: 24.3 | BV121: 0.03 | BW121: 0.65
BA122: Mısır Koçanı(Taneli),Öğütülmüş | BB122: 1 | BC122: 0.892 | BD122: 2.59572 | BE122: 1.65912 | BF122: 76.712 | BH122: 25.161536 | BI122: 0.5352 | BJ122: 2.5868 | BK122: 8 | BL122: 21.5 | BM122: 0 | BN122: Mısır Koçanı(Taneli),Öğütülmüş | BO122: 2.91 | BP122: 1.86 | BQ122: 89.2 | BR122: 8.6 | BS122: 21.5 | BT122: 8 | BU122: 32.8 | BV122: 0.06 | BW122: 0.29
BA123: Mısır Koçanı(Taneli),Öğütülmüş, Nemi Yüksek | BB123: 1 | BC123: 0.671 | BD123: 2.03313 | BE123: 1.30174 | BF123: 56.364 | BH123: 16.683744 | BI123: 0.3355 | BJ123: 1.8788 | BK123: 9.4 | BL123: 21 | BM123: 0 | BN123: Mısır Koçanı(Taneli),Öğütülmüş, Nemi Yüksek | BO123: 3.03 | BP123: 1.94 | BQ123: 67.1 | BR123: 8.4 | BS123: 21 | BT123: 9.4 | BU123: 29.6 | BV123: 0.05 | BW123: 0.28
BA124: Mısır, Ezilmiş, Nemi Yüksek | BB124: 1 | BC124: 0.718 | BD124: 2.23298 | BE124: 1.44318 | BF124: 66.056 | BH124: 21.732424 | BI124: 0.2154 | BJ124: 2.154 | BK124: 3.6 | BL124: 10.3 | BM124: 0 | BN124: Mısır, Ezilmiş, Nemi Yüksek | BO124: 3.11 | BP124: 2.01 | BQ124: 71.8 | BR124: 9.2 | BS124: 10.3 | BT124: 3.6 | BU124: 32.9 | BV124: 0.03 | BW124: 0.3
BA125: Mısır, Kırılmış, Kuru | BB125: 1 | BC125: 0.881 | BD125: 2.62538 | BE125: 1.68271 | BF125: 82.814 | BH125: 30.64118 | BI125: 0.3524 | BJ125: 2.643 | BK125: 3.4 | BL125: 9.5 | BM125: 0 | BN125: Mısır, Kırılmış, Kuru | BO125: 2.98 | BP125: 1.91 | BQ125: 88.1 | BR125: 9.4 | BS125: 9.5 | BT125: 3.4 | BU125: 37 | BV125: 0.04 | BW125: 0.3
BA126: Mısır, Öğütülmüş , Kuru | BB126: 1 | BC126: 0.881 | BD126: 2.74872 | BE126: 1.77081 | BF126: 82.814 | BH126: 30.64118 | BI126: 0.3524 | BJ126: 2.643 | BK126: 3.4 | BL126: 9.5 | BM126: 0 | BN126: Mısır, Öğütülmüş , Kuru | BO126: 3.12 | BP126: 2.01 | BQ126: 88.1 | BR126: 9.4 | BS126: 9.5 | BT126: 3.4 | BU126: 37 | BV126: 0.04 | BW126: 0.3
BA127: Mısır, Öğütülmüş , Nemi Yüksek | BB127: 1 | BC127: 0.718 | BD127: 2.31914 | BE127: 1.50062 | BF127: 66.056 | BH127: 21.732424 | BI127: 0.2154 | BJ127: 2.154 | BK127: 3.6 | BL127: 10.3 | BM127: 0 | BN127: Mısır, Öğütülmüş , Nemi Yüksek | BO127: 3.23 | BP127: 2.09 | BQ127: 71.8 | BR127: 9.2 | BS127: 10.3 | BT127: 3.6 | BU127: 32.9 | BV127: 0.03 | BW127: 0.3
BA128: Mısır, Pul Haline Gelmiş | BB128: 1 | BC128: 0.881 | BD128: 2.85444 | BE128: 1.84129 | BF128: 82.814 | BH128: 52.752518 | BI128: 0.3524 | BJ128: 2.643 | BK128: 3.4 | BL128: 9.5 | BM128: 0 | BN128: Mısır, Pul Haline Gelmiş | BO128: 3.24 | BP128: 2.09 | BQ128: 88.1 | BR128: 9.4 | BS128: 9.5 | BT128: 3.4 | BU128: 63.7 | BV128: 0.04 | BW128: 0.3
BA129: Patates | BB129: 1 | BC129: 0.24 | BD129: 0.7584 | BE129: 0.4368 | BF129: 22.32 | BH129: 14.77584 | BI129: 0.096 | BJ129: 0.576 | BK129: 1.4 | BL129: 9 | BM129: 0 | BN129: Patates | BO129: 3.16 | BP129: 1.82 | BQ129: 24 | BR129: 9.3 | BS129: 9 | BT129: 1.4 | BU129: 66.2 | BV129: 0.04 | BW129: 0.24
BA130: Sorgum, Kuru Ezme | BB130: 1 | BC130: 0.886 | BD130: 2.50738 | BE130: 1.5948 | BF130: 102.776 | BH130: 36.99936 | BI130: 0.6202 | BJ130: 3.101 | BK130: 5.9 | BL130: 10.9 | BM130: 0 | BN130: Sorgum, Kuru Ezme | BO130: 2.83 | BP130: 1.8 | BQ130: 88.6 | BR130: 11.6 | BS130: 10.9 | BT130: 5.9 | BU130: 36 | BV130: 0.07 | BW130: 0.35
BA131: Sorgum, Pul Haline Getirilmiş | BB131: 1 | BC131: 0.886 | BD131: 2.80862 | BE131: 1.80744 | BF131: 102.776 | BH131: 60.226736 | BI131: =BQ131*BV131/10 -> 0.6202 | BJ131: 3.101 | BK131: 5.9 | BL131: 10.9 | BM131: 0 | BN131: Sorgum, Pul Haline Getirilmiş | BO131: 3.17 | BP131: 2.04 | BQ131: 88.6 | BR131: 11.6 | BS131: 10.9 | BT131: 5.9 | BU131: 58.6 | BV131: 0.07 | BW131: 0.35
BA132: =BN132 -> Şeker Pancarı | BB132: 1 | BC132: =BQ132*10/1000 -> 0.185 | BD132: =BO132*BQ132/100 -> 0.555 | BE132: =BP132*BQ132/100 -> 0.32375 | BF132: =BR132*BQ132/10 -> 13.875 | BH132: =BF132*BU132/100 -> 9.18525 | BI132: 1.073 | BJ132: =BW132*BQ132/10 -> 0.296 | BK132: =BT132 -> 1.4 | BL132: =BS132 -> 9 | BM132: =BX132 -> 0 | BN132: Şeker Pancarı | BO132: 3 | BP132: 1.75 | BQ132: 18.5 | BR132: 7.5 | BS132: 9 | BT132: 1.4 | BU132: 66.2 | BV132: 0.58 | BW132: 0.16
BA133: Tritikale | BB133: =BB132 -> 1 | BC133: 0.89 | BD133: 2.8035 | BE133: 1.5753 | BF133: 118.37 | BH133: 23.20052 | BI133: 0.356 | BJ133: 3.026 | BK133: 5.12 | BL133: 17.3 | BM133: 0 | BN133: Tritikale | BO133: 3.15 | BP133: 1.77 | BQ133: 89 | BR133: 13.3 | BS133: 17.3 | BT133: 5.12 | BU133: 19.6 | BV133: 0.04 | BW133: 0.34
BA134: Yağ, Bitkisel | BB134: 1 | BC134: 1 | BD134: 7.07 | BE134: 5.65 | BF134: 0 | BH134: 0 | BI134: 0 | BJ134: 0 | BK134: 0 | BL134: 0 | BM134: 0 | BN134: Yağ, Bitkisel | BO134: 7.07 | BP134: 5.65 | BQ134: 100 | BR134: 0 | BS134: 0 | BT134: 0 | BU134: 0 | BV134: 0 | BW134: 0
BA135: Yağ, Ca Sabunları | BB135: 1 | BC135: 0.953 | BD135: 5.97531 | BE135: 4.78406 | BF135: 0 | BH135: 0 | BI135: 0 | BJ135: 0 | BK135: 0 | BL135: 0 | BM135: 0 | BN135: Yağ, Ca Sabunları | BO135: 6.27 | BP135: 5.02 | BQ135: 95.3 | BR135: 0 | BS135: 0 | BT135: 0 | BU135: 0 | BV135: 0 | BW135: 0
BA136: Yağ, Hidrolize(Kuyruk Yağı Yağ Asitleri) | BB136: 1 | BC136: 0.998 | BD136: 6.74648 | BE136: 5.39918 | BF136: 0 | BH136: 0 | BI136: 0 | BJ136: 0 | BK136: 0 | BL136: 0 | BM136: 0 | BN136: Yağ, Hidrolize(Kuyruk Yağı Yağ Asitleri) | BO136: 6.76 | BP136: 5.41 | BQ136: 99.8 | BR136: 0 | BS136: 0 | BT136: 0 | BU136: 0 | BV136: 0 | BW136: 0
BA137: YAĞ,Kısmi Hidrojenize Kuyruk Yağı | BB137: 1 | BC137: 1 | BD137: 3.72 | BE137: 2.97 | BF137: 0 | BH137: 0 | BI137: 0 | BJ137: 0 | BK137: 0 | BL137: 0 | BM137: 0 | BN137: YAĞ,Kısmi Hidrojenize Kuyruk Yağı | BO137: 3.72 | BP137: 2.97 | BQ137: 100 | BR137: 0 | BS137: 0 | BT137: 0 | BU137: 0 | BV137: 0 | BW137: 0
BA138: Yağ, Kuyruk | BB138: 1 | BC138: 0.998 | BD138: 5.64868 | BE138: 4.52094 | BF138: 0 | BH138: 0 | BI138: 0 | BJ138: 0 | BK138: 0 | BL138: 0 | BM138: 0 | BN138: Yağ, Kuyruk | BO138: 5.66 | BP138: 4.53 | BQ138: 99.8 | BR138: 0 | BS138: 0 | BT138: 0 | BU138: 0 | BV138: 0 | BW138: 0
BA139: Yem Şalgamı | BB139: 1 | BC139: 0.09 | BD139: 0.279 | BE139: 0.18 | BF139: 10.8 | BH139: 6.048 | BI139: 0.63 | BJ139: 0.306 | BK139: 34 | BL139: 44 | BM139: 0 | BN139: Yem Şalgamı | BO139: 3.1 | BP139: 2 | BQ139: 9 | BR139: 12 | BS139: 44 | BT139: 34 | BU139: 56 | BV139: 0.7 | BW139: 0.34
BA140: Yulaf, Ezme | BB140: 1 | BC140: 0.9 | BD140: 2.502 | BE140: 1.593 | BF140: 118.8 | BH140: 13.7808 | BI140: 0.99 | BJ140: 3.6 | BK140: 14.6 | BL140: 30 | BM140: 0 | BN140: Yulaf, Ezme | BO140: 2.78 | BP140: 1.77 | BQ140: 90 | BR140: 13.2 | BS140: 30 | BT140: 14.6 | BU140: 11.6 | BV140: 0.11 | BW140: 0.4
BA141: Arpa, Malt Cili | BB141: 1 | BC141: 0.905 | BD141: 2.1539 | BE141: 1.34845 | BF141: 181.905 | BH141: 38.56386 | BI141: 2.172 | BJ141: 4.6155 | BK141: 21.8 | BL141: 47 | BM141: 0 | BN141: Arpa, Malt Cili | BO141: 2.38 | BP141: 1.49 | BQ141: 90.5 | BR141: 20.1 | BS141: 47 | BT141: 21.8 | BU141: 21.2 | BV141: 0.24 | BW141: 0.51
BA142: Badem Kabukları | BB142: 1 | BC142: 0.869 | BD142: 1.64241 | BE142: 0.99066 | BF142: 56.485 | BH142: 28.58141 | BI142: 2.4332 | BJ142: 1.1297 | BK142: 28.7 | BL142: 36.8 | BM142: 0 | BN142: Badem Kabukları | BO142: 1.89 | BP142: 1.14 | BQ142: 86.9 | BR142: 6.5 | BS142: 36.8 | BT142: 28.7 | BU142: 50.6 | BV142: 0.28 | BW142: 0.13
BA143: Bira Posası, Kuru | BB143: 1 | BC143: 0.907 | BD143: 2.43983 | BE143: 1.55097 | BF143: 264.844 | BH143: 125.8009 | BI143: 2.721 | BJ143: 6.0769 | BK143: 22.2 | BL143: 47.4 | BM143: 0 | BN143: Bira Posası, Kuru | BO143: 2.69 | BP143: 1.71 | BQ143: 90.7 | BR143: 29.2 | BS143: 47.4 | BT143: 22.2 | BU143: 47.5 | BV143: 0.3 | BW143: 0.67
BA144: Bira Posası, Yaş | BB144: 1 | BC144: 0.218 | BD144: 0.58642 | BE144: 0.37278 | BF144: 61.912 | BH144: 18.202128 | BI144: 0.763 | BJ144: 1.2862 | BK144: 23.1 | BL144: 47.1 | BM144: 0 | BN144: Bira Posası, Yaş | BO144: 2.69 | BP144: 1.71 | BQ144: 21.8 | BR144: 28.4 | BS144: 47.1 | BT144: 23.1 | BU144: 29.4 | BV144: 0.35 | BW144: 0.59
BA145: Bon Kalite | BB145: 1 | BC145: 0.88 | BD145: 3.0536 | BE145: 1.6896 | BF145: 154.88 | BH145: 27.41376 | BI145: 1.408 | BJ145: 8.976 | BK145: 6 | BL145: 20 | BM145: 0 | BN145: Bon Kalite | BO145: 3.47 | BP145: 1.92 | BQ145: 88 | BR145: 17.6 | BS145: 20 | BT145: 6 | BU145: 17.7 | BV145: 0.16 | BW145: 1.02
BA146: Buğday, DDGS, APAK | BB146: 1 | BC146: 0.3198 | BD146: 0.889044 | BE146: 0.57564 | BF146: 78.0312 | BH146: 30.042012 | BI146: 0.70356 | BJ146: 2.65434 | BK146: 24.72 | BL146: 47.78 | BM146: 0 | BN146: Buğday, DDGS, APAK | BO146: 2.78 | BP146: 1.8 | BQ146: 31.98 | BR146: 24.4 | BS146: 47.78 | BT146: 24.72 | BU146: 38.5 | BV146: 0.22 | BW146: 0.83
BA147: Buğday, DDGS, Yas | BB147: 1 | BC147: 0.3154 | BD147: 0.955662 | BE147: 0.618184 | BF147: 90.10978 | BH147: 38.93643594 | BI147: 0.69388 | BJ147: 2.61782 | BK147: 19.43 | BL147: 54.04 | BM147: 0 | BN147: Buğday, DDGS, Yas | BO147: 3.03 | BP147: 1.96 | BQ147: 31.54 | BR147: 28.57 | BS147: 54.04 | BT147: 19.43 | BU147: 43.21 | BV147: 0.22 | BW147: 0.83
BA148: Buğday DDGS + % 20 SPP, Ambalajlı | BB148: 1 | BC148: 0.28832 | BD148: 0.85804032 | BE148: 0.54146496 | BF148: 72.2991232 | BH148: 34.56476482 | BI148: 1.00912 | BJ148: 1.9721088 | BK148: 20.164 | BL148: 52.248 | BM148: 0 | BN148: Buğday DDGS + % 20 SPP, Ambalajlı | BO148: 2.976 | BP148: 1.878 | BQ148: 28.832 | BR148: 25.076 | BS148: 52.248 | BT148: 20.164 | BU148: 47.808 | BV148: 0.35 | BW148: 0.684
BA149: Buğday Kepeği | BB149: 1 | BC149: 0.891 | BD149: 2.27205 | BE149: 1.43451 | BF149: 154.143 | BH149: 22.504878 | BI149: 1.1583 | BJ149: 10.5138 | BK149: 15.5 | BL149: 42.5 | BM149: 0 | BN149: Buğday Kepeği | BO149: 2.55 | BP149: 1.61 | BQ149: 89.1 | BR149: 17.3 | BS149: 42.5 | BT149: 15.5 | BU149: 14.6 | BV149: 0.13 | BW149: 1.18
BA150: Buğday Kepeği, Razmol | BB150: 1 | BC150: 0.895 | BD150: 2.3628 | BE150: 1.49465 | BF150: 165.575 | BH150: 29.306775 | BI150: 1.432 | BJ150: 9.129 | BK150: 12.1 | BL150: 36.7 | BM150: 0 | BN150: Buğday Kepeği, Razmol | BO150: 2.64 | BP150: 1.67 | BQ150: 89.5 | BR150: 18.5 | BS150: 36.7 | BT150: 12.1 | BU150: 17.7 | BV150: 0.16 | BW150: 1.02
BA151: Çikolata Yan Ürünleri | BB151: 1 | BC151: 0.952 | BD151: 3.58904 | BE151: 2.43712 | BF151: 113.288 | BH151: 16.653336 | BI151: 2.0944 | BJ151: 2.856 | BK151: 15.7 | BL151: 23.8 | BM151: 0 | BN151: Çikolata Yan Ürünleri | BO151: 3.77 | BP151: 2.56 | BQ151: 95.2 | BR151: 11.9 | BS151: 23.8 | BT151: 15.7 | BU151: 14.7 | BV151: 0.22 | BW151: 0.3
BA152: Domates Kurusu | BB152: 1 | BC152: 0.8618 | BD152: 1.98214 | BE152: 1.2927 | BF152: 119.53166 | BH152: 28.92666172 | BI152: 1.89596 | BJ152: 4.05046 | BK152: 35 | BL152: 40 | BM152: 0 | BN152: Domates Kurusu | BO152: 2.3 | BP152: 1.5 | BQ152: 86.18 | BR152: 13.87 | BS152: 40 | BT152: 35 | BU152: 24.2 | BV152: 0.22 | BW152: 0.47
BA153: Domates Posası, Yaş | BB153: 1 | BC153: 0.247 | BD153: 0.58539 | BE153: 0.37544 | BF153: 47.671 | BH153: 11.536382 | BI153: 0.5434 | BJ153: 1.1609 | BK153: 47.6 | BL153: 60 | BM153: 0 | BN153: Domates Posası, Yaş | BO153: 2.37 | BP153: 1.52 | BQ153: 24.7 | BR153: 19.3 | BS153: 60 | BT153: 47.6 | BU153: 24.2 | BV153: 0.22 | BW153: 0.47
BA154: Elma Posası, Yaş | BB154: 1 | BC154: 0.22 | BD154: 0.5478 | BE154: 0.275 | BF154: 11.88 | BH154: 2.87496 | BI154: 0.506 | BJ154: 0.242 | BK154: 28 | BL154: 48 | BM154: 0 | BN154: Elma Posası, Yaş | BO154: 2.49 | BP154: 1.25 | BQ154: 22 | BR154: 5.4 | BS154: 48 | BT154: 28 | BU154: 24.2 | BV154: 0.23 | BW154: 0.11
BA155: Fırıncılık Yan Ürünleri, Bisküvi Artığı | BB155: 1 | BC155: 0.901 | BD155: 3.0634 | BE155: 2.01824 | BF155: 87.397 | BH155: 15.469269 | BI155: 2.0723 | BJ155: 2.6129 | BK155: 6.5 | BL155: 12.7 | BM155: 0 | BN155: Fırıncılık Yan Ürünleri, Bisküvi Artığı | BO155: 3.4 | BP155: 2.24 | BQ155: 90.1 | BR155: 9.7 | BS155: 12.7 | BT155: 6.5 | BU155: 17.7 | BV155: 0.23 | BW155: 0.29
BA156: Fırıncılık Yan Ürünleri, Ekmak Artığı | BB156: 1 | BC156: 0.683 | BD156: 2.21975 | BE156: 1.42747 | BF156: 102.45 | BH156: 18.13365 | BI156: 0.9562 | BJ156: 1.366 | BK156: 3.1 | BL156: 8.9 | BM156: 0 | BN156: Fırıncılık Yan Ürünleri, Ekmak Artığı | BO156: 3.25 | BP156: 2.09 | BQ156: 68.3 | BR156: 15 | BS156: 8.9 | BT156: 3.1 | BU156: 17.7 | BV156: 0.14 | BW156: 0.2
BA157: Fırıncılık Yan Ürünleri, Tahıl Artığı | BB157: 1 | BC157: 0.885 | BD157: 2.71695 | BE157: 1.74345 | BF157: 80.535 | BH157: 11.75811 | BI157: 1.5045 | BJ157: 2.5665 | BK157: 3.9 | BL157: 10 | BM157: 0 | BN157: Fırıncılık Yan Ürünleri, Tahıl Artığı | BO157: 3.07 | BP157: 1.97 | BQ157: 88.5 | BR157: 9.1 | BS157: 10 | BT157: 3.9 | BU157: 14.6 | BV157: 0.17 | BW157: 0.29
BA158: Fırıncılık Yan Ürünleri,Un Artığı | BB158: 1 | BC158: 0.847 | BD158: 2.85439 | BE158: 1.87187 | BF158: 105.875 | BH158: 18.739875 | BI158: 1.694 | BJ158: 3.0492 | BK158: 6.5 | BL158: 13.9 | BM158: 0 | BN158: Fırıncılık Yan Ürünleri,Un Artığı | BO158: 3.37 | BP158: 2.21 | BQ158: 84.7 | BR158: 12.5 | BS158: 13.9 | BT158: 6.5 | BU158: 17.7 | BV158: 0.2 | BW158: 0.36
BA159: Havuç Posası , Yaş | BB159: 1 | BC159: 0.14 | BD159: 0.3486 | BE159: 0.1764 | BF159: 8.4 | BH159: 5.5608 | BI159: 0.56 | BJ159: 0.49 | BK159: 23 | BL159: 40 | BM159: 0 | BN159: Havuç Posası , Yaş | BO159: 2.49 | BP159: 1.26 | BQ159: 14 | BR159: 6 | BS159: 40 | BT159: 23 | BU159: 66.2 | BV159: 0.4 | BW159: 0.35
BA160: İncir Kurusu | BB160: 1 | BC160: 0.8518 | BD160: 1.925068 | BE160: 1.36288 | BF160: 38.07546 | BH160: 7.615092 | BI160: 0 | BJ160: 0 | BK160: 8.02 | BL160: 8.9 | BM160: 0 | BN160: İncir Kurusu | BO160: 2.26 | BP160: 1.6 | BQ160: 85.18 | BR160: 4.47 | BS160: 8.9 | BT160: 8.02 | BU160: 20 | BV160: 0 | BW160: 0
BA161: Mısır DDGS, Kuru | BB161: 1 | BC161: 0.902 | BD161: 2.73306 | BE161: 1.77694 | BF161: 267.894 | BH161: 113.051268 | BI161: 1.9844 | BJ161: 7.4866 | BK161: 19.7 | BL161: 38.8 | BM161: 0 | BN161: Mısır DDGS, Kuru | BO161: 3.03 | BP161: 1.97 | BQ161: 90.2 | BR161: 29.7 | BS161: 38.8 | BT161: 19.7 | BU161: 42.2 | BV161: 0.22 | BW161: 0.83
BA162: Mısır Gluten Yemi | BB162: 1 | BC162: 0.894 | BD162: 2.44062 | BE162: 1.54662 | BF162: 212.772 | BH162: 51.06528 | BI162: 0.6258 | BJ162: 8.94 | BK162: 12.1 | BL162: 35.5 | BM162: 0 | BN162: Mısır Gluten Yemi | BO162: 2.73 | BP162: 1.73 | BQ162: 89.4 | BR162: 23.8 | BS162: 35.5 | BT162: 12.1 | BU162: 24 | BV162: 0.07 | BW162: 1
BA163: Mısır Hasat Artıkları(fodder) | BB163: 1 | BC163: 0.8 | BD163: 1.784 | BE163: 1.056 | BF163: 72 | BH163: 32.4 | BI163: 4 | BJ163: 2 | BK163: 29 | BL163: 48 | BM163: 0 | BN163: Mısır Hasat Artıkları(fodder) | BO163: 2.23 | BP163: 1.32 | BQ163: 80 | BR163: 9 | BS163: 48 | BT163: 29 | BU163: 45 | BV163: 0.5 | BW163: 0.25
BA164: Mısır Hasat Artıkları(saplar)(stover) | BB164: 1 | BC164: 0.8 | BD164: 1.464 | BE164: 0.864 | BF164: 40 | BH164: 12 | BI164: 3.6 | BJ164: 1.2 | BK164: 43 | BL164: 70 | BM164: 0 | BN164: Mısır Hasat Artıkları(saplar)(stover) | BO164: 1.83 | BP164: 1.08 | BQ164: 80 | BR164: 5 | BS164: 70 | BT164: 43 | BU164: 30 | BV164: 0.45 | BW164: 0.15
BA165: Mısır Özü Küspesi | BB165: 1 | BC165: 0.93 | BD165: 2.7714 | BE165: 1.5717 | BF165: 198.834 | BH165: 126.657258 | BI165: 0.372 | BJ165: 5.115 | BK165: 14.18 | BL165: 47.91 | BM165: 0 | BN165: Mısır Özü Küspesi | BO165: 2.98 | BP165: 1.69 | BQ165: 93 | BR165: 21.38 | BS165: 47.91 | BT165: 14.18 | BU165: 63.7 | BV165: 0.04 | BW165: 0.55
BA166: Mısır Sömeği | BB166: 1 | BC166: 0.908 | BD166: 1.52544 | BE166: 0.89892 | BF166: 27.24 | BH166: 9.58848 | BI166: 0.908 | BJ166: 0.5448 | BK166: 42.2 | BL166: 86.2 | BM166: 0 | BN166: Mısır Sömeği | BO166: 1.68 | BP166: 0.99 | BQ166: 90.8 | BR166: 3 | BS166: 86.2 | BT166: 42.2 | BU166: 35.2 | BV166: 0.1 | BW166: 0.06
BA167: Pamuk Tohumu Kapçığı | BB167: 1 | BC167: 0.89 | BD167: 0.8455 | BE167: 0.4272 | BF167: 55.18 | BH167: 27.92108 | BI167: 1.602 | BJ167: 1.068 | BK167: 64.9 | BL167: 85 | BM167: 0 | BN167: Pamuk Tohumu Kapçığı | BO167: 0.95 | BP167: 0.48 | BQ167: 89 | BR167: 6.2 | BS167: 85 | BT167: 64.9 | BU167: 50.6 | BV167: 0.18 | BW167: 0.12
BA168: Patates Yan Ürünleri | BB168: 1 | BC168: 0.354 | BD168: 1.00536 | BE168: 0.6549 | BF168: 37.17 | BH168: 24.60654 | BI168: 1.7346 | BJ168: 1.0266 | BK168: 16.5 | BL168: 22.1 | BM168: 0 | BN168: Patates Yan Ürünleri | BO168: 2.84 | BP168: 1.85 | BQ168: 35.4 | BR168: 10.5 | BS168: 22.1 | BT168: 16.5 | BU168: 66.2 | BV168: 0.49 | BW168: 0.29
BA169: Pirinç Kepeği | BB169: 1 | BC169: 0.906 | BD169: 2.79954 | BE169: 1.8573 | BF169: 140.43 | BH169: 57.15501 | BI169: 0.6342 | BJ169: 16.1268 | BK169: 13.1 | BL169: 26.1 | BM169: 0 | BN169: Pirinç Kepeği | BO169: 3.09 | BP169: 2.05 | BQ169: 90.6 | BR169: 15.5 | BS169: 26.1 | BT169: 13.1 | BU169: 40.7 | BV169: 0.07 | BW169: 1.78
BA170: Soya Tohum Kabukları | BB170: 1 | BC170: 0.909 | BD170: 2.12706 | BE170: 1.32714 | BF170: 126.351 | BH170: 43.464744 | BI170: 5.7267 | BJ170: 1.5453 | BK170: 44.6 | BL170: 60.3 | BM170: 0 | BN170: Soya Tohum Kabukları | BO170: 2.34 | BP170: 1.46 | BQ170: 90.9 | BR170: 13.9 | BS170: 60.3 | BT170: 44.6 | BU170: 34.4 | BV170: 0.63 | BW170: 0.17
BA171: Şeker Pancarı Posası, Kuru | BB171: 1 | BC171: 0.883 | BD171: 2.08388 | BE171: 1.29801 | BF171: 88.3 | BH171: 58.4546 | BI171: 8.0353 | BJ171: 0.7947 | BK171: 23.1 | BL171: 45.8 | BM171: 0 | BN171: Şeker Pancarı Posası, Kuru | BO171: 2.36 | BP171: 1.47 | BQ171: 88.3 | BR171: 10 | BS171: 45.8 | BT171: 23.1 | BU171: 66.2 | BV171: 0.91 | BW171: 0.09
BA172: Şeker Pancarı Posası, Yaş | BB172: 1 | BC172: 0.17 | BD172: 0.4692 | BE172: 0.2635 | BF172: 19.04 | BH172: 12.60448 | BI172: 1.479 | BJ172: 0.17 | BK172: 23.1 | BL172: 45.8 | BM172: 0 | BN172: Şeker Pancarı Posası, Yaş | BO172: 2.76 | BP172: 1.55 | BQ172: 17 | BR172: 11.2 | BS172: 45.8 | BT172: 23.1 | BU172: 66.2 | BV172: 0.87 | BW172: 0.1
BA173: Şeker Pancarı Posası, Yaş, Ambalajlı | BB173: 1 | BC173: 0.19 | BD173: 0.5244 | BE173: 0.2945 | BF173: 21.09 | BH173: 13.96158 | BI173: 1.653 | BJ173: 0.19 | BK173: 23.1 | BL173: 45.8 | BM173: 0 | BN173: Şeker Pancarı Posası, Yaş, Ambalajlı | BO173: 2.76 | BP173: 1.55 | BQ173: 19 | BR173: 11.1 | BS173: 45.8 | BT173: 23.1 | BU173: 66.2 | BV173: 0.87 | BW173: 0.1
BA174: Turunçgil Posası, Kuru | BB174: 1 | BC174: 0.858 | BD174: 2.36808 | BE174: 1.51008 | BF174: 59.202 | BH174: 14.326884 | BI174: 16.4736 | BJ174: 1.0296 | BK174: 22.2 | BL174: 24.2 | BM174: 0 | BN174: Turunçgil Posası, Kuru | BO174: 2.76 | BP174: 1.76 | BQ174: 85.8 | BR174: 6.9 | BS174: 24.2 | BT174: 22.2 | BU174: 24.2 | BV174: 1.92 | BW174: 0.12
BA175: Üzüm Kurusu | BB175: 1 | BC175: 0.8644 | BD175: 1.64236 | BE175: 1.184228 | BF175: 48.31996 | BH175: 9.663992 | BI175: 5.01352 | BJ175: 1.46948 | BK175: 19.2 | BL175: 22.84 | BM175: 0 | BN175: Üzüm Kurusu | BO175: 1.9 | BP175: 1.37 | BQ175: 86.44 | BR175: 5.59 | BS175: 22.84 | BT175: 19.2 | BU175: 20 | BV175: 0.58 | BW175: 0.17
BA176: Üzüm Posası,Kuru | BB176: 1 | BC176: 0.9 | BD176: 0.657 | BE176: 0.387 | BF176: 120.6 | BH176: 29.1852 | BI176: 5.22 | BJ176: 1.53 | BK176: 54.4 | BL176: 53.2 | BM176: 0 | BN176: Üzüm Posası,Kuru | BO176: 0.73 | BP176: 0.43 | BQ176: 90 | BR176: 13.4 | BS176: 53.2 | BT176: 54.4 | BU176: 24.2 | BV176: 0.58 | BW176: 0.17
BA177: Zeytin Küspesi, Yağı Tam Alınmamış | BB177: 1 | BC177: 0.654 | BD177: 1.1445 | BE177: 0.69978 | BF177: 51.012 | BH177: 0 | BI177: 0 | BJ177: 0 | BK177: 60.1 | BL177: 67.8 | BM177: 0 | BN177: Zeytin Küspesi, Yağı Tam Alınmamış | BO177: 1.75 | BP177: 1.07 | BQ177: 65.4 | BR177: 7.8 | BS177: 67.8 | BT177: 60.1 | BU177: 0 | BV177: 0 | BW177: 0
BA178: Zeytin Küspesi, Yağı Tam Alınmış | BB178: 1 | BC178: 0.683 | BD178: 1.18159 | BE178: 0.71715 | BF178: 52.591 | BH178: 0 | BI178: 0 | BJ178: 0 | BK178: 61.9 | BL178: 72.4 | BM178: 0 | BN178: Zeytin Küspesi, Yağı Tam Alınmış | BO178: 1.73 | BP178: 1.05 | BQ178: 68.3 | BR178: 7.7 | BS178: 72.4 | BT178: 61.9 | BU178: 0 | BV178: 0 | BW178: 0
BA179: Buzağı Başlangıç Yemi | BB179: 1 | BC179: 0.9 | BD179: 2.952 | BE179: 1.467845304 | BF179: 162 | BH179: 40.5 | BI179: 6.3 | BJ179: 4.05 | BK179: 11.6 | BL179: 12.8 | BM179: 4000 | BN179: Buzağı Başlangıç Yemi | BO179: 3.28 | BP179: 1.630939227 | BQ179: 90 | BR179: 18 | BS179: 12.8 | BT179: 11.6 | BU179: 25 | BV179: 0.7 | BW179: 0.45 | BX179: 4000
BA180: Buzağı Büyütme Yemi | BB180: 1 | BC180: 0.9 | BD180: 2.916 | BE180: 1.449944751 | BF180: 144 | BH180: 30.24 | BI180: 5.4 | BJ180: 3.6 | BK180: 8 | BL180: 18 | BM180: 4000 | BN180: Buzağı Büyütme Yemi | BO180: 3.24 | BP180: 1.611049724 | BQ180: 90 | BR180: 16 | BS180: 18 | BT180: 8 | BU180: 21 | BV180: 0.6 | BW180: 0.4 | BX180: 4000
BA181: Düve Yemi 1. Sınıf (TS11110) | BB181: 1 | BC181: 0.891 | BD181: 2.77992 | BE181: 1.77309 | BF181: 171.072 | BH181: 44.8892928 | BI181: 10.5138 | BJ181: 5.6133 | BK181: 4.72 | BL181: 10.29 | BM181: 0 | BN181: Düve Yemi 1. Sınıf (TS11110) | BO181: 3.12 | BP181: 1.99 | BQ181: 89.1 | BR181: 19.2 | BS181: 10.29 | BT181: 4.72 | BU181: 26.24 | BV181: 1.18 | BW181: 0.63
BA182: Düve Yemi 2. Sınıf (TS11110) | BB182: 1 | BC182: 0.8991 | BD182: 2.715282 | BE182: 1.735263 | BF182: 161.838 | BH182: 36.0413226 | BI182: 10.51947 | BJ182: 5.84415 | BK182: 6.27 | BL182: 13.82 | BM182: 0 | BN182: Düve Yemi 2. Sınıf (TS11110) | BO182: 3.02 | BP182: 1.93 | BQ182: 89.91 | BR182: 18 | BS182: 13.82 | BT182: 6.27 | BU182: 22.27 | BV182: 1.17 | BW182: 0.65
BA183: Kazein | BB183: 1 | BC183: 0.91 | BD183: 4.6228 | BE183: 2.298629834 | BF183: 843.57 | BH183: 0 | BI183: 3.64 | BJ183: 3.185 | BK183: 0 | BL183: 0 | BM183: 0 | BN183: Kazein | BO183: 5.08 | BP183: 2.525966851 | BQ183: 91 | BR183: 92.7 | BS183: 0 | BT183: 0 | BU183: 0 | BV183: 0.4 | BW183: 0.35
BA184: Lor Altı Suyu-Fimar | BB184: 1 | BC184: 0.05 | BD184: 0.181 | BE184: 0.09 | BF184: 4.425 | BH184: 0 | BI184: 0.365 | BJ184: 0.325 | BK184: 0 | BL184: 0 | BM184: 0 | BN184: Lor Altı Suyu-Fimar | BO184: 3.62 | BP184: 1.8 | BQ184: 5 | BR184: 8.85 | BS184: 0 | BT184: 0 | BU184: 0 | BV184: 0.73 | BW184: 0.65
BA185: Peynir Altı Suyu | BB185: 1 | BC185: 0.07 | BD185: 0.2534 | BE185: 0.14 | BF185: 9.94 | BH185: 0 | BI185: 0.511 | BJ185: 0.455 | BK185: 0 | BL185: 0 | BM185: 0 | BN185: Peynir Altı Suyu | BO185: 3.62 | BP185: 2 | BQ185: 7 | BR185: 14.2 | BS185: 0 | BT185: 0 | BU185: 0 | BV185: 0.73 | BW185: 0.65
BA186: Peynir Altı Suyu Protein Konsantresi | BB186: 1 | BC186: 0.93 | BD186: 3.8781 | BE186: 2.142596685 | BF186: 345.03 | BH186: 0 | BI186: 5.022 | BJ186: 5.58 | BK186: 0 | BL186: 0 | BM186: 0 | BN186: Peynir Altı Suyu Protein Konsantresi | BO186: 4.17 | BP186: 2.303867403 | BQ186: 93 | BR186: 37.1 | BS186: 0 | BT186: 0 | BU186: 0 | BV186: 0.54 | BW186: 0.6
BA187: Peynir Altı Suyu Tozu | BB187: 1 | BC187: 0.98 | BD187: 3.3418 | BE187: 1.846298343 | BF187: 134.26 | BH187: 0 | BI187: 17.346 | BJ187: 9.506 | BK187: 0 | BL187: 0 | BM187: 0 | BN187: Peynir Altı Suyu Tozu | BO187: 3.41 | BP187: 1.883977901 | BQ187: 98 | BR187: 13.7 | BS187: 0 | BT187: 0 | BU187: 0 | BV187: 1.77 | BW187: 0.97
BA188: Peynir Altı Suyu Tozu, Düşük Laktozlu | BB188: 1 | BC188: 0.93 | BD188: 3.162 | BE188: 1.746961326 | BF188: 166.47 | BH188: 0 | BI188: 15.903 | BJ188: 10.416 | BK188: 0 | BL188: 0 | BM188: 0 | BN188: Peynir Altı Suyu Tozu, Düşük Laktozlu | BO188: 3.4 | BP188: 1.878453039 | BQ188: 93 | BR188: 17.9 | BS188: 0 | BT188: 0 | BU188: 0 | BV188: 1.71 | BW188: 1.12
BA189: Peynir Altı Suyu- Fimar | BB189: 1 | BC189: 0.05 | BD189: 0.181 | BE189: 0.1 | BF189: 5.175 | BH189: 0 | BI189: 0.365 | BJ189: 0.325 | BK189: 0 | BL189: 0 | BM189: 0 | BN189: Peynir Altı Suyu- Fimar | BO189: 3.62 | BP189: 2 | BQ189: 5 | BR189: 10.35 | BS189: 0 | BT189: 0 | BU189: 0 | BV189: 0.73 | BW189: 0.65
BA190: Sığır Besi Yemi | BB190: 1 | BC190: 0.89 | BD190: 2.5009 | BE190: 1.5842 | BF190: 130.474 | BH190: 31.6660398 | BI190: 10.591 | BJ190: 4.984 | BK190: 9.1 | BL190: 21.29 | BM190: 0 | BN190: Sığır Besi Yemi | BO190: 2.81 | BP190: 1.78 | BQ190: 89 | BR190: 14.66 | BS190: 21.29 | BT190: 9.1 | BU190: 24.27 | BV190: 1.19 | BW190: 0.56
BA191: Sığır Süt Yemi,16 HP, 2400 ME | BB191: 1 | BC191: 0.89 | BD191: 2.4119 | BE191: 1.5308 | BF191: 162.87 | BH191: 36.271149 | BI191: 10.591 | BJ191: 4.984 | BK191: 11.9 | BL191: 26.07 | BM191: 0 | BN191: Sığır Süt Yemi,16 HP, 2400 ME | BO191: 2.71 | BP191: 1.72 | BQ191: 89 | BR191: 18.3 | BS191: 26.07 | BT191: 11.9 | BU191: 22.27 | BV191: 1.19 | BW191: 0.56
BA192: Sığır Süt Yemi,16 HP, 2500 ME | BB192: 1 | BC192: 0.89 | BD192: 2.4564 | BE192: 1.5842 | BF192: 162.87 | BH192: 36.271149 | BI192: 10.591 | BJ192: 4.984 | BK192: 9.1 | BL192: 21 | BM192: 0 | BN192: Sığır Süt Yemi,16 HP, 2500 ME | BO192: 2.76 | BP192: 1.78 | BQ192: 89 | BR192: 18.3 | BS192: 21 | BT192: 9.1 | BU192: 22.27 | BV192: 1.19 | BW192: 0.56
BA193: Sığır Süt Yemi,16 HP, 2600 ME | BB193: 1 | BC193: 0.89 | BD193: 2.581 | BE193: 1.6732 | BF193: 162.87 | BH193: 36.271149 | BI193: 10.591 | BJ193: 4.984 | BK193: 8.7 | BL193: 19.3 | BM193: 0 | BN193: Sığır Süt Yemi,16 HP, 2600 ME | BO193: 2.9 | BP193: 1.88 | BQ193: 89 | BR193: 18.3 | BS193: 19.3 | BT193: 8.7 | BU193: 22.27 | BV193: 1.19 | BW193: 0.56
BA194: Sığır Süt Yemi,18 HP, 2400 ME | BB194: 1 | BC194: 0.89 | BD194: 2.4119 | BE194: 1.5308 | BF194: 181.56 | BH194: 40.433412 | BI194: 10.591 | BJ194: 4.984 | BK194: 11.9 | BL194: 26.07 | BM194: 0 | BN194: Sığır Süt Yemi,18 HP, 2400 ME | BO194: 2.71 | BP194: 1.72 | BQ194: 89 | BR194: 20.4 | BS194: 26.07 | BT194: 11.9 | BU194: 22.27 | BV194: 1.19 | BW194: 0.56
BA195: Sığır Süt Yemi,18 HP, 2500 ME | BB195: 1 | BC195: 0.89 | BD195: 2.4564 | BE195: 1.5842 | BF195: 181.738 | BH195: 40.4730526 | BI195: =BQ195*BV195/10 -> 10.591 | BJ195: 5.251 | BK195: 10.5 | BL195: 23.7 | BM195: 0 | BN195: Sığır Süt Yemi,18 HP, 2500 ME | BO195: 2.76 | BP195: 1.78 | BQ195: 89 | BR195: 20.42 | BS195: 23.7 | BT195: 10.5 | BU195: 22.27 | BV195: 1.19 | BW195: 0.59
BA196: =BN196 -> Sığır Süt Yemi,18 HP, 2600 ME | BB196: 1 | BC196: =BQ196*10/1000 -> 0.89 | BD196: =BO196*BQ196/100 -> 2.5899 | BE196: =BP196*BQ196/100 -> 1.6643 | BF196: =BR196*BQ196/10 -> 181.738 | BH196: =BF196*BU196/100 -> 40.4730526 | BI196: 10.591 | BJ196: =BW196*BQ196/10 -> 5.251 | BK196: =BT196 -> 8.17 | BL196: =BS196 -> 18.75 | BM196: =BX196 -> 0 | BN196: Sığır Süt Yemi,18 HP, 2600 ME | BO196: 2.91 | BP196: 1.87 | BQ196: 89 | BR196: 20.42 | BS196: 18.75 | BT196: 8.17 | BU196: 22.27 | BV196: 1.19 | BW196: 0.59
BA197: Sığır Süt Yemi, 18 HP, 2650 ME | BB197: =BB196 -> 1 | BC197: 0.89 | BD197: 2.5899 | BE197: 1.6643 | BF197: 181.738 | BH197: 40.4730526 | BI197: 10.591 | BJ197: 5.251 | BK197: 8.17 | BL197: 18.75 | BM197: 0 | BN197: Sığır Süt Yemi, 18 HP, 2650 ME | BO197: 2.91 | BP197: 1.87 | BQ197: 89 | BR197: 20.42 | BS197: 18.75 | BT197: 8.17 | BU197: 22.27 | BV197: 1.19 | BW197: 0.59
BA198: Sığır Süt Yemi, 19 HP, 2600 ME | BB198: 1 | BC198: 0.89 | BD198: 2.5899 | BE198: 1.6643 | BF198: 194.02 | BH198: 43.208254 | BI198: 10.591 | BJ198: 5.251 | BK198: 8.7 | BL198: 20.2 | BM198: 0 | BN198: Sığır Süt Yemi, 19 HP, 2600 ME | BO198: 2.91 | BP198: 1.87 | BQ198: 89 | BR198: 21.8 | BS198: 20.2 | BT198: 8.7 | BU198: 22.27 | BV198: 1.19 | BW198: 0.59
BA199: Sığır Süt Yemi, 19 HP, 2700 ME | BB199: 1 | BC199: 0.89 | BD199: 2.7323 | BE199: 1.7355 | BF199: 194.02 | BH199: 43.208254 | BI199: 10.591 | BJ199: 5.251 | BK199: 8.7 | BL199: 20.2 | BM199: 0 | BN199: Sığır Süt Yemi, 19 HP, 2700 ME | BO199: 3.07 | BP199: 1.95 | BQ199: 89 | BR199: 21.8 | BS199: 20.2 | BT199: 8.7 | BU199: 22.27 | BV199: 1.19 | BW199: 0.59
BA200: Sığır Süt Yemi, 19 HP, 2800 ME | BB200: 1 | BC200: 0.89 | BD200: 2.8035 | BE200: 1.8245 | BF200: 189.57 | BH200: 42.217239 | BI200: 10.502 | BJ200: 4.628 | BK200: 8.3 | BL200: 19.6 | BM200: 0 | BN200: Sığır Süt Yemi, 19 HP, 2800 ME | BO200: 3.15 | BP200: 2.05 | BQ200: 89 | BR200: 21.3 | BS200: 19.6 | BT200: 8.3 | BU200: 22.27 | BV200: 1.18 | BW200: 0.52
... 57 more rows

Sheet D.BUZAĞI-DÜVE
A1: Yem Adı | B1: Yem Birim Fiyatı (tl/kg) | C1: Yem Tüketimi (kg/gün/baş) | G1: Günlük Max Yem (kg/baş) | H1: Doğum Ağıtlığı | I1: Gebelik Süresi | L1: 90 gün > Dişi Buzağı | M1: 90 gün < Buzağı-Düve | N1: 1-180 Gün Gebe Düve | O1: 180-288 Gün Gebe Düve | P1: 180 gün<gebelikten gelen GCAA(g/gün) | V1: Kondisyon Skoru | AX1: KM | BA1: NE | BI1: KM (kg/gün) | BJ1: ME (Mcal/gün) | BK1: Nel (Mcal/gün) | BL1: HP (g/gün) | BM1: MBP (g/gün) | BN1: Rumende Yıkıma Dirençli Protein (g/gün) | BO1: Ca (g/gün) | BP1: P (g/gün) | BQ1: ADF (kg/gün) | BR1: NDF (kg/gün) | BT1: Rasyon özeti | BU1: Yem | BV1: KM | BW1: ME | BX1: NEl | BY1: HP | BZ1: MBP | CA1: Rumende Yıkıma Dirençli Protein | CB1: Ca | CC1: P | CD1: ADF | CE1: NDF | CF1: Vit A
C2: 90 gün > Dişi Buzağı | D2: 90 gün < Buzağı-Düve | E2: 1-180 Gün Gebe Düve | F2: 180-288 Gün Gebe Düve | H2: 36 | I2: 2 | J2: Hayvan sayısı | K2: Baş | L2: 44 | M2: 44 | N2: 44 | O2: 44 | U2: Başlangıç | V2: İNDİS | W2: =INDEX($Z$2:$Z$6,M11) -> 3 | X2: SATIR | Y2: =MATCH(M11,Z2:Z6,0) -> 3 | Z2: 1 | AW2: Gebelik | AX2: Başlangıç | AY2: Orta | AZ2: Bitiş | BA2: Başlangıç | BB2: Orta | BC2: Bitiş | BS2: Vit A IU | BT2: Yem maddeleri | BU2: kg/gün | BV2: kg/gün | BW2: Mcal/gün | BX2: Mcal/gün | BY2: g/gün | BZ2: (g/gün) | CA2: (g/gün) | CB2: g/gün | CC2: g/gün | CD2: kg/gün | CE2: kg/gün | CF2: IU | CG2: YEM MADDESİ | CH2: ME | CI2: NEI | CJ2: KM | CK2: HP | CL2: NDF | CM2: ADF | CN2: RUP | CO2: CA | CP2: P | CQ2: Vit A
A3: Çayır-Baklagil Kuru Otu, Orta Olgun, %47-53 NDF | B3: 1 | C3: 0 | D3: 0 | E3: 0 | F3: 0 | G3: 10 | H3: Canlı Ağırlık | K3: kg | L3: =H2+L5*L4/2/1000 -> 57 | M3: =O21+M5*M4/2/1000 -> 218 | N3: =(O23+N4*N5/2/1000) -> 420.3 | O3: =O25+O5*O4/2/1000 -> 536.6 | U3: Orta | V3: İNDİS | W3: =INDEX($Z$2:$Z$6,N11) -> 3 | X3: SATIR | Y3: =MATCH(N11,Z2:Z6,0) -> 3 | Z3: 2 | AW3: 0-7 ay gebe | AX3: =$AO6+$M3*$AO7+$M4*$AO8/1000 -> 5.443993123 | AY3: =$AO6+$N3*$AO7+$N4*$AO8/1000 -> 9.190404374 | AZ3: =$AO6+$O3*$AO7+$O4*$AO8/1000 -> 11.44606588 | BA3: =(0.086*(POWER(M3*0.96,3/4)*(0.8+(H2-1)*0.05)+(0.0007*(20-H2))*POWER(M3,0.75)))+0.0635*(POWER(0.96*M3,3/4))*(POWER(0.956*M4/1000,1.097)) -> 14.26075869 | BB3: =(0.086*(POWER(N3*0.96,3/4)*(0.8+(H2-1)*0.05)+(0.0007*(20-H2))*POWER(N3,0.75)))+0.0635*(POWER(0.96*N3,3/4))*(POWER(0.956*N4/1000,1.097)) -> 23.33295823 | BC3: =(0.086*(POWER(O3*0.96,3/4)*(0.8+(H2-1)*0.05)+(0.0007*(20-H2))*POWER(O3,0.75)))+0.0635*(POWER(0.96*O3,3/4))*(POWER(0.956*O4/1000,1.097)) -> 30.14074003 | BH3: =MATCH(A3,BT3:BT412,0) -> 16 | BI3: =(INDEX($BV$3:$BV$412,BH3)) -> 0.853 | BJ3: =(INDEX($BW$3:$BW$412,BH3)) -> 1.74865 | BK3: =(INDEX($BX$3:$BX$412,BH3)) -> 1.06625 | BL3: =INDEX($BY$3:$BY$412,BH3) -> 156.952 | BM3: =INDEX($BZ$3:$BZ$412,BH3) -> 0 | BN3: =INDEX($CA$3:$CA$394,BH3) -> 28.565264 | BO3: =INDEX($CB$3:$CB$412,BH3) -> 8.7006 | BP3: =INDEX($CC$3:$CC$412,BH3) -> 2.9002 | BQ3: =INDEX($CD$3:$CD$412,BH3) -> 31.8 | BR3: =INDEX($CE$3:$CE$412,BH3) -> 50.8 | BS3: =INDEX($CF$3:$CF$412,BH3) -> 0 | BT3: =CG3 -> Baklagil Kuru Otu | BU3: 1 | BV3: =CJ3*10/1000 -> 0.878 | BW3: =CH3*CJ3/100 -> 1.82624 | BX3: =CI3*CJ3/100 -> 1.11506 | BY3: =CK3*CJ3/10 -> 177.356 | CA3: =BY3*CN3/100 -> 33.342928 | CB3: =CJ3*CO3/10 -> 13.3456 | CC3: =CP3*CJ3/10 -> 2.2828 | CD3: =CM3 -> 31.2 | CE3: =CL3 -> 39.6 | CF3: =CQ3 -> 0 | CG3: Baklagil Kuru Otu | CH3: 2.08 | CI3: 1.27 | CJ3: 87.8 | CK3: 20.2 | CL3: 39.6 | CM3: 31.2 | CN3: 18.8 | CO3: 1.52 | CP3: 0.26
A4: Arpa , Ezme | B4: 1.5 | C4: 0 | D4: 1.393347521 | E4: 5.571037525 | F4: 8.31656157 | G4: 10 | H4: Günlük Canlı Ağırlık Artışı | K4: (g/gün) | L4: 700 | M4: 700 | N4: 700 | O4: 1000 | P4: =AJ29 -> 561 | Q4: =IF(AI31<=0,T24,0) -> 0 | U4: Bitiş | V4: İNDİS | W4: =INDEX($Z$2:$Z$6,O11) -> 3 | X4: SATIR | Y4: =MATCH(O11,Z2:Z6,0) -> 3 | Z4: 3 | AW4: 7>gebe | AX4: =($M3-$H2)*$AO10+$AO9+$AO11*$M4/1000 -> 4.777306 | AY4: =($N3-$H2)*$AO10+$AO9+$AO11*$N4/1000 -> 8.523717251 | AZ4: =($O3-$H2)*$AO10+$AO9+$AO11*$O4/1000 -> 10.77937876 | BA4: =(0.086*(POWER((AG3-AE1)*0.96,3/4)*(0.8+(AB2-1)*0.05)+0.0007*(20-AA2)*POWER(AG3,0.75)))+0.0635*(POWER(0.96*(AG3-AE1),3/4))*(POWER(0.956*AG6/2/1000,1.097))+((0.00318*AF17-0.0352)*(AE1/45))/0.218 -> 0 | BB4: =(0.086*(POWER((AG4-AE1)*0.96,3/4)*(0.8+(AB2-1)*0.05)+0.0007*(20-AA2)*POWER(AG4,0.75)))+0.0635*(POWER(0.96*(AG4-AE1),3/4))*(POWER(0.956*AG7/2/1000,1.097))+((0.00318*AF17-0.0352)*(AE1/45))/0.218 -> 0 | BC4: =(0.086*(POWER((AG5-AE1)*0.96,3/4)*(0.8+(AB2-1)*0.05)+0.0007*(20-AA2)*POWER(AG5,0.75)))+0.0635*(POWER(0.96*(AG5-AE1),3/4))*(POWER(0.956*AG8/2/1000,1.097))+((0.00318*AF17-0.0352)*(AE1/45))/0.218 -> 0 | BH4: =MATCH(A4,BT3:BT412,0) -> 114 | BI4: =(INDEX($BV$3:$BV$412,BH4)) -> 0.91 | BJ4: =(INDEX($BW$3:$BW$412,BH4)) -> 2.6572 | BK4: =(INDEX($BX$3:$BX$412,BH4)) -> 1.6926 | BL4: =INDEX($BY$3:$BY$412,BH4) -> 112.84 | BM4: =INDEX($BZ$3:$BZ$412,BH4) -> 0 | BN4: =INDEX($CA$3:$CA$394,BH4) -> 20.42404 | BO4: =INDEX($CB$3:$CB$412,BH4) -> 0.546 | BP4: =INDEX($CC$3:$CC$412,BH4) -> 3.549 | BQ4: =INDEX($CD$3:$CD$412,BH4) -> 7.2 | BR4: =INDEX($CE$3:$CE$412,BH4) -> 20.8 | BS4: =INDEX($CF$3:$CF$412,BH4) -> 0 | BT4: =CG4 -> Baklagil Kuru Otu, Körpe < %40 NDF | BU4: =BU3 -> 1 | BV4: =CJ4*10/1000 -> 0.842 | BW4: =CH4*CJ4/100 -> 1.87766 | BX4: =CI4*CJ4/100 -> 1.16196 | BY4: =CK4*CJ4/10 -> 191.976 | CA4: =BY4*CN4/100 -> 31.292088 | CB4: 13.1352 | CC4: =CP4*CJ4/10 -> 2.6102 | CD4: =CM4 -> 28.6 | CE4: =CL4 -> 36.3 | CF4: =CQ4 -> 0 | CG4: Baklagil Kuru Otu, Körpe < %40 NDF | CH4: 2.23 | CI4: 1.38 | CJ4: 84.2 | CK4: 22.8 | CL4: 36.3 | CM4: 28.6 | CN4: 16.3 | CO4: 1.56 | CP4: 0.31
A5: Yonca Kuru Otu, 2. Kalite %19-21 HP, <%37-40 NDF | B5: 1 | C5: 0 | D5: 1.494115019 | E5: 0 | F5: 0 | G5: 10 | H5: Bakım Süresi | K5: (gün) | L5: 60 | M5: 400 | N5: 178 | O5: 108 | P5: 1 KG HAYVANSAL PROTEİN İÇİN TÜKETİLEN YEM METABOLİK ENERJİSİ (MJ) | U5: Buzağı | V5: İNDİS | W5: =INDEX($Z$2:$Z$6,L11) -> 3 | X5: SATIR | Y5: =MATCH(L11,Z2:Z6,0) -> 3 | Z5: 4 | AM5: KM | AN5: dm düve reg | AW5: SATIR | AX5: =MATCH(I2,AW3:AW4,0) ->  | AY5: =MATCH(I2,AW3:AW4,0) ->  | AZ5: =MATCH(I2,AW3:AW4,0) ->  | BA5: =MATCH(AC2,AW3:AW4,0) ->  | BB5: =MATCH(AC2,AW3:AW4,0) ->  | BC5: =MATCH(AC2,AW3:AW4,0) ->  | BH5: =MATCH(A5,BT3:BT412,0) -> 30 | BI5: =(INDEX($BV$3:$BV$412,BH5)) -> 0.8797 | BJ5: 1.741806 | BK5: 1.05564 | BL5: 177.6994 | BM5: 0 | BN5: 51.7105254 | BO5: 12.40377 | BP5: 1.93534 | BQ5: 29.4 | BR5: 39.6 | BS5: 0 | BT5: Baklagil Kuru Otu, Olgun >%46 NDF | BU5: =BU4 -> 1 | BV5: 0.838 | BW5: 1.57544 | BX5: 0.94694 | BY5: 188.55 | CA5: 33.5619 | CB5: 10.2236 | CC5: 2.3464 | CD5: 39.5 | CE5: 50.9 | CF5: 0 | CG5: Baklagil Kuru Otu, Olgun >%46 NDF | CH5: 1.88 | CI5: 1.13 | CJ5: 83.8 | CK5: 22.5 | CL5: 50.9 | CM5: 39.5 | CN5: 17.8 | CO5: 1.22 | CP5: 0.28
A6: Buzağı Başlangıç Yemi | B6: 2.8 | C6: 0 | D6: 0 | E6: 0 | F6: 0 | G6: 10 | H6: Satılan Hayvan | K6: Baş | L6: 0 | M6: 0 | N6: 0 | O6: 19 | Z6: 5 | AM6: gebelik öncesi | AN6: (Constant) | AO6: 1.169084874 | AW6: İNDİS | AX6: =INDEX($AX$3:$AX4,AX5) ->  | AY6: =INDEX($AY$3:$AY4,AY5) ->  | AZ6: =INDEX($AZ$3:$AZ$4,AZ5) ->  | BA6: =INDEX($AG$3:$AG4,BA5) ->  | BB6: =INDEX($AH$3:$AH4,BB5) ->  | BC6: =INDEX($AI$3:$AI$4,BC5) ->  | BH6: =MATCH(A6,BT3:BT412,0) -> 177 | BI6: 0.9 | BJ6: 2.952 | BK6: 1.467845304 | BL6: 162 | BM6: 0 | BN6: 40.5 | BO6: 6.3 | BP6: 4.05 | BQ6: 11.6 | BR6: 12.8 | BS6: 4000 | BT6: Baklagil Kuru Otu, Orta Olgun, %40-46 NDF | BU6: 1 | BV6: 0.839 | BW6: 1.75351 | BX6: 1.07392 | BY6: 174.512 | CA6: 30.714112 | CB6: 11.4943 | CC6: 2.517 | CD6: 33.4 | CE6: 42.9 | CF6: 0 | CG6: Baklagil Kuru Otu, Orta Olgun, %40-46 NDF | CH6: 2.09 | CI6: 1.28 | CJ6: 83.9 | CK6: 20.8 | CL6: 42.9 | CM6: 33.4 | CN6: 17.6 | CO6: 1.37 | CP6: 0.3
A7: Buzağı Büyütme Yemi | B7: 2.5 | C7: 0 | D7: 0 | E7: 0 | F7: 0 | G7: 10 | H7: Karkas Ranıman | K7: % | L7: 50 | M7: 50 | N7: 55 | O7: 55 | P7: =HESAP!FY9 -> 407.4232517 | AN7: ca | AO7: 0.01851908676 | AX7: ME | BA7: MP | BH7: =MATCH(A7,BT3:BT412,0) -> 178 | BI7: 0.9 | BJ7: 2.916 | BK7: 1.449944751 | BL7: 144 | BM7: 0 | BN7: 30.24 | BO7: 5.4 | BP7: 3.6 | BQ7: 8 | BR7: 18 | BS7: 4000 | BT7: Buğday Kuru Otu, Başaklı | BU7: 1 | BV7: 0.868 | BW7: 1.48428 | BX7: 0.87668 | BY7: 81.592 | CA7: 30.107448 | CB7: 2.6908 | CC7: 1.736 | CD7: 38.1 | CE7: 61.1 | CF7: 0 | CG7: Buğday Kuru Otu, Başaklı | CH7: 1.71 | CI7: 1.01 | CJ7: 86.8 | CK7: 9.4 | CL7: 61.1 | CM7: 38.1 | CN7: 36.9 | CO7: 0.31 | CP7: 0.2
A8: Düve Yemi 1. Sınıf (TS11110) | B8: 2 | C8: 0.05334200739 | D8: 0 | E8: 0 | F8: 0 | G8: 10 | H8: Karkas Et Oranı | K8: % | L8: 80 | M8: 80 | N8: 80 | O8: 80 | P8: 1 KG HAYVANSAL PROTEİN İÇİN METAN SALINIMI (MJ) | AN8: gcdd | AO8: 0.339639052 | AW8: Gebelik | AX8: Başlangıç | AY8: Orta | AZ8: Bitiş | BA8: Başlangıç | BB8: Orta | BC8: Bitiş | BH8: =MATCH(A8,BT3:BT412,0) -> 179 | BI8: 0.891 | BJ8: 2.77992 | BK8: 1.77309 | BL8: 171.072 | BM8: 0 | BN8: 44.8892928 | BO8: 10.5138 | BP8: 5.6133 | BQ8: 4.72 | BR8: 10.29 | BS8: 0 | BT8: Buğday Samanı | BU8: 1 | BV8: 0.927 | BW8: 1.33488 | BX8: 0.76014 | BY8: 44.496 | CA8: 7.386336 | CB8: 3.3372 | CC8: 3.2445 | CD8: 35.2 | CE8: 73 | CF8: 0 | CG8: Buğday Samanı | CH8: 1.44 | CI8: 0.82 | CJ8: 92.7 | CK8: 4.8 | CL8: 73 | CM8: 35.2 | CN8: 16.6 | CO8: 0.36 | CP8: 0.35
A9: Düve Yemi 2. Sınıf (TS11110) | B9: 2 | C9: 0 | D9: 0 | E9: 0 | F9: 0 | G9: 10 | H9: Et Protein Oranı | K9: % | L9: 20 | M9: 20 | N9: 20 | O9: 20 | AM9: gebelik dönemi | AN9: (Constant) | AO9: 1.169084874 | AW9: 0-7 ay gebe | AX9: =BA3*1.56 -> 22.24678356 | AY9: 36.39941483 | AZ9: 47.01955444 | BA9: =4.1*POWER(AG3,1/2)+(AG6/1000*(268-(29.4*((0.0635*(POWER((0.96*0.891*(478/(0.96*AG3))*(0.96*AG3-20)),3/4)*(POWER((0.956*AG6/1000),1.097))))/AG6/1000))))/0.28908 ->  | BB9: =4.1*POWER(AG4,1/2)+(AG7/1000*(268-(29.4*((0.0635*(POWER((0.96*0.891*(478/(0.96*AG4))*(0.96*AG4-20)),3/4)*(POWER((0.956*AG7/1000),1.097))))/AG7/1000))))/0.28908 ->  | BC9: =4.1*POWER(AG5,1/2)+(AG8/1000*(268-(29.4*((0.0635*(POWER((0.96*0.891*(478/(0.96*AG5))*(0.96*AG5-20)),3/4)*(POWER((0.956*AG8/1000),1.097))))/AG8/1000))))/0.28908 ->  | BH9: =MATCH(A9,BT3:BT412,0) -> 180 | BI9: 0.8991 | BJ9: 2.715282 | BK9: 1.735263 | BL9: 161.838 | BM9: 0 | BN9: 36.0413226 | BO9: 10.51947 | BP9: 5.84415 | BQ9: 6.27 | BR9: 13.82 | BS9: 0 | BT9: Çayır Kuru Otu, Soğuk Mevsim | BU9: 1 | BV9: 0.881 | BW9: 1.63866 | BX9: 0.98672 | BY9: 93.386 | CA9: 21.385394 | CB9: 3.3478 | CC9: 2.5549 | CD9: 37.6 | CE9: 64.4 | CF9: 0 | CG9: Çayır Kuru Otu, Soğuk Mevsim | CH9: 1.86 | CI9: 1.12 | CJ9: 88.1 | CK9: 10.6 | CL9: 64.4 | CM9: 37.6 | CN9: 22.9 | CO9: 0.38 | CP9: 0.29
A10: Yonca Kuru Otu, 1. Kalite >%21 HP, <%37 NDF | B10: 1 | C10: 0 | D10: 0 | E10: 0 | F10: 0 | G10: 10 | H10: Birim İşçiye düşen hayvan say | K10: Baş | L10: 70 | M10: 70 | N10: 70 | O10: 70 | P10: =HESAP!GH9 -> 31.16414265 | AN10: ca | AO10: 0.01851908676 | AW10: 7>gebe | AX10: 0 | AY10: 0 | AZ10: 0 | BA10: =4.1*POWER(AG3,1/2)+(((0.69*AF17)-69.2)*AE1/45)/0.33+(AG6/2/1000*(268-(29.4*((0.0635*(POWER((0.96*0.891*(478/(0.96*AG3))*(0.96*AG3-20)),3/4)*(POWER((0.956*AG6/1000),1.097))))/AG6/2/1000))))/0.28908 ->  | BB10: =4.1*POWER(AG4,1/2)+(((0.69*AF17)-69.2)*AE1/45)/0.33+(AG7/2/1000*(268-(29.4*((0.0635*(POWER((0.96*0.891*(478/(0.96*AG4))*(0.96*AG4-20)),3/4)*(POWER((0.956*AG7/1000),1.097))))/AG7/2/1000))))/0.28908 ->  | BC10: =4.1*POWER(AG5,1/2)+(((0.69*AF17)-69.2)*AE1/45)/0.33+(AG8/2/1000*(268-(29.4*((0.0635*(POWER((0.96*0.891*(478/(0.96*AG5))*(0.96*AG5-20)),3/4)*(POWER((0.956*AG8/1000),1.097))))/AG8/2/1000))))/0.28908 ->  | BH10: =MATCH(A10,BT3:BT412,0) -> 29 | BI10: 0.846 | BJ10: 1.74276 | BK10: 1.06596 | BL10: 192.8034 | BM10: 0 | BN10: 37.7894664 | BO10: 11.9286 | BP10: 1.8612 | BQ10: 27.2 | BR10: 36.8 | BS10: 0 | BT10: Çayır Kuru Otu, Soğuk Mevsim, Körpe <%55 NDF | BU10: 1 | BV10: 0.84 | BW10: 1.8648 | BX10: 1.1508 | BY10: 151.2 | CA10: 36.7416 | CB10: 3.612 | CC10: 3.528 | CD10: 34.9 | CE10: 49.6 | CF10: 0 | CG10: Çayır Kuru Otu, Soğuk Mevsim, Körpe <%55 NDF | CH10: 2.22 | CI10: 1.37 | CJ10: 84 | CK10: 18 | CL10: 49.6 | CM10: 34.9 | CN10: 24.3 | CO10: 0.43 | CP10: 0.42
A11: Çayır Merası, Soğuk Mevsim, Bakımlı | B11: 0.01 | C11: 0 | D11: 0 | E11: 0 | F11: 0 | G11: 100 | H11: Vücut Kondisyon Skoru | K11: puan | L11: 3 | M11: 3 | N11: 3 | O11: 3 | P11: 1 KG CAA YEM MALİYETİ (TL/KG) | Z11: COAT | AN11: gcdd | AO11: 0.339639052 | AW11: SATIR | AX11: =MATCH(I2,AW9:AW10,0) ->  | AY11: =MATCH(I2,AW9:AW10,0) ->  | AZ11: =MATCH(I2,AW9:AW10,0) ->  | BA11: =MATCH(AC2,AW9:AW10,0) ->  | BB11: =MATCH(AC2,AW9:AW10,0) ->  | BC11: =MATCH(AC2,AW9:AW10,0) ->  | BH11: =MATCH(A11,BT3:BT412,0) -> 48 | BI11: 0.201 | BJ11: 0.49446 | BK11: 0.30954 | BL11: 53.265 | BM11: 0 | BN11: 11.82483 | BO11: 1.1256 | BP11: 0.8844 | BQ11: 25 | BR11: 45.8 | BS11: 0 | BT11: Çayır Kuru Otu , Soğuk Mevsim,Olgun >%60 NDF | BU11: 1 | BV11: 0.844 | BW11: 1.5614 | BX11: 0.93684 | BY11: 91.152 | CA11: 20.235744 | CB11: =CJ11*CO11/10 -> 3.9668 | CC11: 3.7136 | CD11: 25 | CE11: 69.1 | CF11: 0 | CG11: Çayır Kuru Otu , Soğuk Mevsim,Olgun >%60 NDF | CH11: 1.85 | CI11: 1.11 | CJ11: 84.4 | CK11: 10.8 | CL11: 69.1 | CM11: 25 | CN11: 22.2 | CO11: 0.47 | CP11: 0.44
A12: Çayır Kuru Otu, Soğuk Mevsim | B12: 1 | C12: 0 | D12: 2.732928585 | E12: 0 | F12: 0 | G12: 10 | H12: Dış İzolasyon | L12: Kuru-temiz | M12: Kuru-temiz | N12: Kuru-temiz | O12: Kuru-temiz | P12: 90 gün > Dişi Buzağı | Q12: =AB88 -> 17.94674386 | T12: Başlangıç | U12: İNDİS | V12: =INDEX($Z$12:$Z$15,X12) -> 1 | W12: SATIR | X12: =MATCH(M12,Y12:Y15,0) -> 1 | Y12: Kuru-temiz | Z12: 1 | AM12: Ca | AN12: Ca düve reg | AW12: İNDİS | AX12: =INDEX($AX$9:$AX10,AX11) ->  | AY12: =INDEX($AY$9:$AY10,AY11) ->  | AZ12: =INDEX($AZ$9:$AZ$10,AZ11) ->  | BA12: =INDEX($AG$9:$AG10,BA11) ->  | BB12: =INDEX($AH$9:$AH10,BB11) ->  | BC12: =INDEX($AI$9:$AI$10,BC11) ->  | BH12: =MATCH(A12,BT3:BT412,0) -> 7 | BI12: 0.881 | BJ12: 1.63866 | BK12: 0.98672 | BL12: 93.386 | BM12: 0 | BN12: 21.385394 | BO12: 3.3478 | BP12: 2.5549 | BQ12: 37.6 | BR12: 64.4 | BS12: 0 | BT12: Çayır Kuru Otu , Soğuk Mevsim,Orta Olgun.,%55-60 NDF | BU12: 1 | BV12: 0.838 | BW12: 1.69276 | BX12: 1.03074 | BY12: 111.454 | CA12: 27.640592 | CB12: 4.609 | CC12: 2.4302 | CD12: 40.3 | CE12: 57.7 | CF12: 0 | CG12: Çayır Kuru Otu , Soğuk Mevsim,Orta Olgun.,%55-60 NDF | CH12: 2.02 | CI12: 1.23 | CJ12: 83.8 | CK12: 13.3 | CL12: 57.7 | CM12: 40.3 | CN12: 24.8 | CO12: 0.55 | CP12: 0.29
A13: Yağ, Bitkisel | B13: 15 | C13: 0.3081182442 | D13: 0 | E13: 0.1740171825 | F13: 0.2097236389 | G13: 1 | H13: Rüzgar | K13: km/saat | L13: 1 | M13: 0.6 | N13: 1 | O13: 1 | P13: 90 gün < Buzağı-Düve | Q13: =AC88 -> 12.65374819 | T13: Orta | U13: İNDİS | V13: =INDEX($Z$12:$Z$15,X13) -> 1 | W13: SATIR | X13: =MATCH(N12,Y12:Y15,0) -> 1 | Y13: Bacaklar çamur | Z13: 0.8 | AM13: gebelik öncesi | AN13: (Constant) | AO13: 3.190757955 | AX13: Ca | BA13: P | BH13: =MATCH(A13,BT3:BT412,0) -> 132 | BI13: 1 | BJ13: 7.07 | BK13: 5.65 | BL13: 0 | BM13: 0 | BN13: 0 | BO13: 0 | BP13: 0 | BQ13: 0 | BR13: 0 | BS13: =INDEX($CF$3:$CF$412,BH13) -> 0 | BT13: Çayır-Baklagil Kuru Otu (Baklagil Yoğun), Körpe <%44 NDF | BU13: 1 | BV13: 0.838 | BW13: 1.8017 | BX13: 1.10616 | BY13: 171.79 | CA13: 32.81189 | CB13: 4.7766 | CC13: 3.0168 | CD13: 32.9 | CE13: 41.7 | CF13: 0 | CG13: Çayır-Baklagil Kuru Otu (Baklagil Yoğun), Körpe <%44 NDF | CH13: 2.15 | CI13: 1.32 | CJ13: 83.8 | CK13: 20.5 | CL13: 41.7 | CM13: 32.9 | CN13: 19.1 | CO13: 0.57 | CP13: 0.36
A14: Mısır Silajı, %29-33 KM | B14: 0.5 | C14: 0 | D14: 0 | E14: 0.7872339289 | F14: 4.962889221 | G14: 30 | H14: Kıl Kalınlığı | K14: cm | L14: 0.6 | M14: 0.6 | N14: 0.67 | O14: 1 | P14: 1-180 Gün Gebe Düve | Q14: =AD88 -> 19.52408359 | T14: Bitiş | U14: İNDİS | V14: =INDEX($Z$12:$Z$15,X14) -> 1 | W14: SATIR | X14: =MATCH(O12,Y12:Y15,0) -> 1 | Y14: Islak-paspaslı | Z14: 0.5 | AN14: ca | AO14: 0.02328881279 | AQ14: ='NET GELİR'!E7 -> 560375.4977 | AW14: Gebelik | AX14: Başlangıç | AY14: Orta | AZ14: Bitiş | BA14: Başlangıç | BB14: Orta | BC14: Bitiş | BH14: =MATCH(A14,BT3:BT412,0) -> 64 | BI14: 0.313 | BJ14: 0.63852 | BK14: 0.38812 | BL14: 22.536 | BM14: 0 | BN14: 6.715728 | BO14: 0.8764 | BP14: 0.8138 | BQ14: 31.1 | BR14: 52.9 | BS14: 0 | BT14: Çayır-Baklagil kUru Otu (Çayır OtuYoğun), Körpe <%51NDF | BU14: 1 | BV14: 0.843 | BW14: 1.83774 | BX14: 1.12962 | BY14: 155.112 | CA14: 51.031848 | CB14: 4.7208 | CC14: 2.6133 | CD14: 41.1 | CE14: 49.6 | CF14: 0 | CG14: Çayır-Baklagil kUru Otu (Çayır OtuYoğun), Körpe <%51NDF | CH14: 2.18 | CI14: 1.34 | CJ14: 84.3 | CK14: 18.4 | CL14: 49.6 | CM14: 41.1 | CN14: 32.9 | CO14: 0.56 | CP14: 0.31
A15: Buğday Samanı | B15: 0.6 | C15: 0 | D15: 0 | E15: 3.74424598 | F15: 2.716879669 | G15: 10 | H15: Mevcut Çevre Isısı | K15: 0C | L15: 5 | M15: 5 | N15: 15 | O15: -20 | P15: 180-288 Gün Gebe Düve | Q15: =AE88 -> 19.83459738 | T15: Buzağı | U15: İNDİS | V15: =INDEX($Z$12:$Z$15,X15) -> 1 | W15: SATIR | X15: =MATCH(L12,Y12:Y15,0) -> 1 | Y15: Kar-çamur kaplı | Z15: 0.2 | AN15: gcdd | AO15: 31.48795934 | AW15: 0-7 ay gebe | AX15: =(AO13+AO14*M3+AO15*M4/1000) -> 30.30929068 | AY15: =(AO13+AO14*N3+AO15*N4/1000) -> 35.02061751 | AZ15: =(AO13+AO14*O3+AO15*O4/1000) -> 47.17549423 | BA15: =(AO20+AO21*M3+AO22*M4/1000) -> 14.43871323 | BB15: =(AO20+AO21*N3+AO22*N4/1000) -> 18.33206449 | BC15: =(AO23+AO24*O3+AO25*O4/1000) -> 25.79857143 | BH15: =MATCH(A15,BT3:BT412,0) -> 6 | BI15: 0.927 | BJ15: 1.33488 | BK15: 0.76014 | BL15: 44.496 | BM15: 0 | BN15: 7.386336 | BO15: 3.3372 | BP15: 3.2445 | BQ15: 35.2 | BR15: 73 | BS15: 0 | BT15: Çayır-Baklagil Kuru Otu , Olgun> %50 NDF | BU15: 1 | BV15: 0.843 | BW15: 1.55112 | BX15: 0.9273 | BY15: 144.996 | CA15: 33.639072 | CB15: 5.058 | CC15: 3.0348 | CD15: 35.2 | CE15: 53.6 | CF15: 0 | CG15: Çayır-Baklagil Kuru Otu , Olgun> %50 NDF | CH15: 1.84 | CI15: 1.1 | CJ15: 84.3 | CK15: 17.2 | CL15: 53.6 | CM15: 35.2 | CN15: 23.2 | CO15: 0.6 | CP15: 0.36
A16: Soya Küspesi , Solvent, %51 | B16: 5 | C16: 0.414852605 | D16: 0.4960901034 | E16: 0 | F16: 0 | G16: 2 | H16: Önceden Maruz Kaldığı Çevre Isısı | K16: 0C | L16: 5 | M16: 5 | N16: 5 | O16: 15 | P16: GENEL | Q16: =AF88 -> 15.99648408 | AM16: gebelik dönemi | AN16: (Constant) | AO16: 4.6 | AW16: 7>gebe | AX16: =(AO16+AO17*M3+AO18*M4/1000) -> 29.70057143 | AY16: =(AO16+AO17*N3+AO18*N4/1000) -> 36.28977143 | AZ16: =(AO16+AO17*O3+AO18*O4/1000) -> 47.79211429 | BA16: =(AO23+AO24*M3+AO25*M4/1000) -> 16.52857143 | BB16: =(AO23+AO24*N3+AO25*N4/1000) -> 20.86357143 | BC16: =(AO23+AO24*O3+AO25*O4/1000) -> 25.79857143 | BH16: =MATCH(A16,BT3:BT412,0) -> 107 | BI16: 0.895 | BJ16: 3.05195 | BK16: 1.97795 | BL16: 510.15 | BM16: 0 | BN16: 157.1262 | BO16: 3.1325 | BP16: 6.265 | BQ16: 6.2 | BR16: 9.8 | BS16: 0 | BT16: Çayır-Baklagil Kuru Otu, Olgun> %53 NDF | BU16: 1 | BV16: 0.897 | BW16: 1.66842 | BX16: 1.00464 | BY16: 163.254 | CA16: 27.589926 | CB16: 10.4052 | CC16: 3.2292 | CD16: 31.1 | CE16: 56 | CF16: 0 | CG16: Çayır-Baklagil Kuru Otu, Olgun> %53 NDF | CH16: 1.86 | CI16: 1.12 | CJ16: 89.7 | CK16: 18.2 | CL16: 56 | CM16: 31.1 | CN16: 16.9 | CO16: 1.16 | CP16: 0.36
A17: Amonyum Fosfat (Dibazik), (NH4) 2HPO4 | B17: 1 | C17: 0 | D17: 0.06010833022 | E17: 0.01184920399 | F17: 0.0261769977 | G17: 1 | H17: Meradan Ahıra Olan Mesafe | K17: m | N17: 1000 | P17: BİRİM YEM MALİYETİ(TL) | AN17: ca | AO17: 0.03257142857 | AW17: SATIR | AX17: =MATCH(G20,AW15:AW16,0) -> 1 | AY17: =MATCH(H20,AW15:AW16,0) -> 1 | AZ17: =MATCH(I20,AW15:AW16,0) -> 2 | BA17: =MATCH(G20,AW15:AW16,0) -> 1 | BB17: =MATCH(G20,AW15:AW16,0) -> 1 | BC17: =MATCH(G20,AW15:AW16,0) -> 1 | BH17: =MATCH(A17,BT3:BT412,0) -> 218 | BI17: 1 | BJ17: 0 | BK17: 0 | BL17: 1159 | BM17: 0 | BN17: 0 | BO17: 5.2 | BP17: 206 | BQ17: 0 | BR17: 0 | BS17: 0 | BT17: Çayır-Baklagil Kuru Otu, Olgun> %57 NDF | BU17: 1 | BV17: 0.847 | BW17: 1.62624 | BX17: 0.98252 | BY17: 112.651 | CA17: 19.713925 | CB17: 9.1476 | CC17: 2.9645 | CD17: 30.8 | CE17: 62.5 | CF17: 0 | CG17: Çayır-Baklagil Kuru Otu, Olgun> %57 NDF | CH17: 1.92 | CI17: 1.16 | CJ17: 84.7 | CK17: 13.3 | CL17: 62.5 | CM17: 30.8 | CN17: 17.5 | CO17: 1.08 | CP17: 0.35
A18: Kalsiyum Karbonat, CaCO3 | B18: 1 | C18: 0 | D18: 0 | E18: 0.04803073236 | F18: 0.07615103676 | G18: 1 | H18: Meradan Ahıra Günlük Seyahat Sayısı | K18: adet | N18: 2 | P18: 90 gün > Dişi Buzağı | Q18: =AB87 -> 3.435898731 | T18: YPMP | U18: BüyümeMP | V18: GebelikMP | W18: GebelikMP2 | X18: YPME | Y18: toplamMP | AN18: gebe | AO18: 25.71428571 | AW18: İNDİS | AX18: =INDEX($AX$15:$AX16,AX17) -> 30.30929068 | AY18: =INDEX($AY$15:$AY16,AY17) -> 35.02061751 | AZ18: =INDEX($AZ$15:$AZ$16,AZ17) -> 47.79211429 | BA18: =INDEX($BA$15:$BA16,BA17) -> 14.43871323 | BB18: =INDEX($BB$15:$BB16,BB17) -> 18.33206449 | BC18: =INDEX($BC$15:$BC$16,BC17) -> 25.79857143 | BH18: =MATCH(A18,BT3:BT412,0) -> 230 | BI18: 1 | BJ18: 0 | BK18: 0 | BL18: 0 | BM18: 0 | BN18: 0 | BO18: 390 | BP18: 0.4 | BQ18: 0 | BR18: 0 | BS18: 0 | BT18: Çayır-Baklagil Kuru Otu, Orta Olgun, %47-53 NDF | BU18: 1 | BV18: 0.853 | BW18: 1.74865 | BX18: 1.06625 | BY18: 156.952 | CA18: 28.565264 | CB18: 8.7006 | CC18: 2.9002 | CD18: 31.8 | CE18: 50.8 | CF18: 0 | CG18: Çayır-Baklagil Kuru Otu, Orta Olgun, %47-53 NDF | CH18: 2.05 | CI18: 1.25 | CJ18: 85.3 | CK18: 18.4 | CL18: 50.8 | CM18: 31.8 | CN18: 18.2 | CO18: 1.02 | CP18: 0.34
A19: Süt | B19: 2 | C19: 2.88 | G19: Gebelik durumu | H19: Gebelik durumu | I19: Gebelik durumu | J19: Otluyormu? | L19: hayır | M19: hayır | N19: evet | O19: hayır | P19: 90 gün < Buzağı-Düve | Q19: =AC87 -> 1.434063839 | S19: Başlangıç | T19: =3.8*POWER(M3,0.75) -> 215.5886866 | U19: =(AH29+AD21)*(268-(29.4*0.0635*POWER((0.96*0.891*(478/(0.96*M3))*(0.96*M3-20)),3/4)*POWER((0.956*(AH29+AD21)),1.097)/(AH29+AD21)))/0.28908 -> 298.4430222 | X19: =0.133*(POWER((M3-IF(U24>0,U24,0)),3/4)) -> 7.545604032 | Y19: =T19+U19+W19 -> 514.0317089 | AM19: P | AN19: P düve reg | BH19: =MATCH(A19,BT212:BT219,0) -> 1 | BI19: =(INDEX($BV$212:$BV$219,BH19)) -> 0.125 | BJ19: =(INDEX($BW$212:$BW$219,BH19)) -> 0.67125 | BK19: =(INDEX($BX$212:$BX$219,BH19)) -> 0.604125 | BL19: =(INDEX($BY$212:$BY$219,BH19)) -> 31.75 | BM19: =(INDEX($BZ$212:$BZ$219,BH19)) -> 0 | BN19: =(INDEX($CA$212:$CA$219,BH19)) -> 0 | BO19: =(INDEX($CB$212:$CB$219,BH19)) -> 1.25 | BP19: =(INDEX($CC$212:$CC$219,BH19)) -> 0.9375 | BQ19: =(INDEX($CD$212:$CD$219,BH19)) -> 0 | BR19: =(INDEX($CE$212:$CE$219,BH19)) -> 0 | BS19: =(INDEX($CF$212:$CF$219,BH19)) -> 9230 | BT19: Çayır-Baklagil Silajı, Orta Olgun> %51-57 NDF | BU19: 1 | BV19: 0.873 | BW19: 1.80711 | BX19: 1.09998 | BY19: 151.902 | CA19: 42.988266 | CB19: 9.2538 | CC19: 2.8809 | CD19: 42.1 | CE19: 55.1 | CF19: 0 | CG19: Çayır-Baklagil Silajı, Orta Olgun> %51-57 NDF | CH19: 2.07 | CI19: 1.26 | CJ19: 87.3 | CK19: 17.4 | CL19: 55.1 | CM19: 42.1 | CN19: 28.3 | CO19: 1.06 | CP19: 0.33
A20: Süt İkamesi, 18 HP, 20 YAĞ | B20: 1 | C20: 0 | G20: 0-7 ay gebe | H20: 0-7 ay gebe | I20: 7>gebe | J20: Mera eğimi varmı? | L20: yok | M20: var | N20: yok | O20: yok | P20: 1-180 Gün Gebe Düve | Q20: =AD87 -> 1.322204953 | S20: Orta | T20: =3.8*POWER(N3,0.75) -> 352.7387236 | U20: =(AH30+AD21)*(268-(29.4*0.0635*POWER((0.96*0.891*(478/(0.96*N3))*(0.96*N3-20)),3/4)*POWER((0.956*(AH30+AD21)),1.097))/(AH30+AD21))/0.28908 -> 285.1564251 | X20: =0.133*(POWER((N3-IF(U27>0,U27,0)),3/4)) -> 12.34585533 | Y20: =T20+U20+W20 -> 637.8951487 | AM20: gebelik öncesi | AN20: (Constant) | AO20: 2.616971987 | BH20: =MATCH(A20,BT212:BT219,0) -> 2 | BI20: =(INDEX($BV$212:$BV$219,BH20)) -> 0.125 | BJ20: =(INDEX($BW$212:$BW$219,BH20)) -> 0.59 | BK20: =(INDEX($BX$212:$BX$219,BH20)) -> 0.531 | BL20: =(INDEX($BY$212:$BY$219,BH20)) -> 22.5 | BM20: =(INDEX($BZ$212:$BZ$219,BH20)) -> 0 | BN20: =(INDEX($CA$212:$CA$219,BH20)) -> 0 | BO20: =(INDEX($CB$212:$CB$219,BH20)) -> 1.25 | BP20: =(INDEX($CC$212:$CC$219,BH20)) -> 0.875 | BQ20: =(INDEX($CD$212:$CD$219,BH20)) -> 0 | BR20: =(INDEX($CE$212:$CE$219,BH20)) -> 0 | BS20: =(INDEX($CF$212:$CF$219,BH20)) -> 9000 | BT20: Çayır-Baklagil Silajı, Orta Olgun> %44-50 NDF | BU20: 1 | BV20: 0.842 | BW20: 1.70084 | BX20: 1.03566 | BY20: 160.822 | CA20: 42.457008 | CB20: 9.8514 | CC20: 2.7786 | CD20: 41.6 | CE20: 47.2 | CF20: 0 | CG20: Çayır-Baklagil Silajı, Orta Olgun> %44-50 NDF | CH20: 2.02 | CI20: 1.23 | CJ20: 84.2 | CK20: 19.1 | CL20: 47.2 | CM20: 41.6 | CN20: 26.4 | CO20: 1.17 | CP20: 0.33
B21: 90 gün > Dişi Buzağı | E21: 90 gün < Buzağı-Düve Başlangıç | H21: 1-180 Gün Gebe Düve | K21: 180-288 Gün Gebe Düve | N21: 90 gün buzağı CA (kg) | O21: =H2+L4*L5/1000 -> 78 | P21: 180-288 Gün Gebe Düve | Q21: =AE87 -> 1.216221034 | S21: Bitiş | T21: =3.8*POWER(O3,0.75) -> 423.6640347 | U21: =(IF(V27>0,(AI31+AD21),(AH31+AD21))*(268-(29.4*((0.0635*(POWER((0.96*0.891*(478/(0.96*O3))*(0.96*O3-20)),3/4)*(POWER((0.956*IF(V27>0,(AI31+AD21),(AH31+AD21))),1.097))))/IF(V27>0,(AI31+AD21),(AH31+AD21))))))/0.28908 -> 187.8384064 | V21: =IF((I2+N5+O5)>180,((((0.69*(I2+N5+O5))-69.2)*H2/45)/0.33),0) -> 313.9878788 | W21: =IF(V27>0,V21,0) -> 313.9878788 | X21: =0.133*(POWER((O3-IF(V27>0,V27,0)),3/4)) -> 14.07907506 | Y21: =T21+U21+W21 -> 925.4903199 | AD21: 1e-11 | AN21: ca | AO21: 0.01924543379 | BT21: Fiğ Kuru Otu | BU21: 1 | BV21: 0.91 | BW21: 1.9565 | BX21: 1.2285 | BY21: 159.25 | CA21: 28.028 | CB21: 12.467 | CC21: 2.73 | CD21: 31.4 | CE21: 42.9 | CF21: 0 | CG21: Fiğ Kuru Otu | CH21: 2.15 | CI21: 1.35 | CJ21: 91 | CK21: 17.5 | CL21: 42.9 | CM21: 31.4 | CN21: 17.6 | CO21: 1.37 | CP21: 0.3
B22: İHTİYAÇ | C22: RASYON | E22: İHTİYAÇ | F22: RASYON | H22: İHTİYAÇ | I22: RASYON | K22: İHTİYAÇ | L22: RASYON | P22: GENEL | Q22: =AF87 -> 1.505626772 | S22: Buzağı | AA22: =1/1.1 -> 0.9090909091 | AB22: TAMAM | AN22: gcdd | AO22: 10.89462383 | BT22: Fiğ Kuru Otu, Erken Biçim | BU22: 1 | BV22: 0.91 | BW22: 2.1112 | BX22: 1.2558 | BY22: 184.73 | CA22: 32.51248 | CB22: 12.467 | CC22: 2.73 | CD22: 31.4 | CE22: 42.9 | CF22: 0 | CG22: Fiğ Kuru Otu, Erken Biçim | CH22: 2.32 | CI22: 1.38 | CJ22: 91 | CK22: 20.3 | CL22: 42.9 | CM22: 31.4 | CN22: 17.6 | CO22: 1.37 | CP22: 0.3
N23: Düve Aşım CA (kg) | O23: =O21+M4*M5/1000 -> 358 | P23: BİRİM YEM KM MALİYETİ (TL) | AA23: 1.1 | AB23: FAZLA | AD23: Dişi Buzağı | AE23: Düve Başlangıç | AF23: Düve Besleme Ortası | AG23: Düve Bitiş | AM23: gebelik dönemi | AN23: (Constant) | AO23: 6.157142857 | BT23: Fiğ Kuru Otu, Geç Biçim | BU23: 1 | BV23: 0.91 | BW23: 1.8018 | BX23: 1.183 | BY23: 146.51 | CA23: 22.85556 | CB23: 12.467 | CC23: 2.73 | CD23: 31.4 | CE23: 42.9 | CF23: 0 | CG23: Fiğ Kuru Otu, Geç Biçim | CH23: 1.98 | CI23: 1.3 | CJ23: 91 | CK23: 16.1 | CL23: 42.9 | CM23: 31.4 | CN23: 15.6 | CO23: 1.37 | CP23: 0.3
A24: KM (kg/gün) | B24: =T32 -> 1.086939054 | C24: =C3*BI3+C4*BI4+C5*BI5+C6*BI6+C7*BI7+C8*BI8+C9*BI9+C10*BI10+C11*BI11+C12*BI12+C13*BI13+C14*BI14+C15*BI15+C16*BI16+C17*BI17+C18*BI18+C19*BI19+C20*BI20 -> 1.086939054 | D24: =IF(AP36<$AQ$49,$AR$51,IF(AND(AP36>$AQ$50),$AR$50,IF(AND(AP36=$AQ$50),$AR$49,IF(AND(AP36=$AQ$49),$AR$49,IF(AND(AP36<$AQ$50,AP36>$AQ$49),$AR$49,0))))) -> TAMAM | E24: =T29 -> 5.494138283 | F24: =D3*BI3+D4*BI4+D5*BI5+D6*BI6+D7*BI7+D8*BI8+D9*BI9+D10*BI10+D11*BI11+D12*BI12+D13*BI13+D14*BI14+D15*BI15+D16*BI16+D17*BI17+D18*BI18+D19*BI19+D20*BI20 -> 5.494138283 | G24: =IF(AQ36<$AQ$49,$AR$51,IF(AND(AQ36>$AQ$50),$AR$50,IF(AND(AQ36=$AQ$50),$AR$49,IF(AND(AQ36=$AQ$49),$AR$49,IF(AND(AQ36<$AQ$50,AQ36>$AQ$49),$AR$49,0))))) -> TAMAM | H24: =T30 -> 9.020861515 | I24: =E3*BI3+E4*BI4+E5*BI5+E6*BI6+E7*BI7+E8*BI8+E9*BI9+E10*BI10+E11*BI11+E12*BI12+E13*BI13+E14*BI14+E15*BI15+E16*BI16+E17*BI17+E18*BI18+E19*BI19+E20*BI20 -> 9.020861509 | J24: =IF(AR36<$AQ$49,$AR$51,IF(AND(AR36>$AQ$50),$AR$50,IF(AND(AR36=$AQ$50),$AR$49,IF(AND(AR36=$AQ$49),$AR$49,IF(AND(AR36<$AQ$50,AR36>$AQ$49),$AR$49,0))))) -> TAMAM | K24: =T31 -> 11.95205448 | L24: =F3*BI3+F4*BI4+F5*BI5+F6*BI6+F7*BI7+F8*BI8+F9*BI9+F10*BI10+F11*BI11+F12*BI12+F13*BI13+F14*BI14+F15*BI15+F16*BI16+F17*BI17+F18*BI18+F19*BI19+F20*BI20 -> 11.95205448 | M24: =IF(AS36<$AQ$49,$AR$51,IF(AND(AS36>$AQ$50),$AR$50,IF(AND(AS36=$AQ$50),$AR$49,IF(AND(AS36=$AQ$49),$AR$49,IF(AND(AS36<$AQ$50,AS36>$AQ$49),$AR$49,0))))) -> TAMAM | P24: 90 gün > Dişi Buzağı | Q24: =AH87 -> 6.709938794 | T24: hesaplanamaz | V24: =1.7111*H2-(280-IF(I2>0,(I2+N5+O5/2),0))*0.7*H2/45 -> 35.8396 | W24: KM Tahmin | AA24: 2 | AB24: EKSİK | AC24: yemmph | AD24: =C25*36.5 -> 201.6987046 | AE24: =F25*36.5 -> 448.8494237 | AF24: =I25*36.5 -> 786.0072816 | AG24: =L25*36.5 -> 1108.765095 | AN24: ca | AO24: 0.02142857143 | BT24: Karışık Çayır-Baklagil Kuru Otu,Körpe<%47NDF | BU24: 1 | BV24: 0.831 | BW24: 1.8282 | BX24: 1.12185 | BY24: 163.707 | CA24: 29.303553 | CB24: 9.972 | CC24: 2.5761 | CD24: 30.8 | CE24: 45.4 | CF24: 0 | CG24: Karışık Çayır-Baklagil Kuru Otu,Körpe<%47NDF | CH24: 2.2 | CI24: 1.35 | CJ24: 83.1 | CK24: 19.7 | CL24: 45.4 | CM24: 30.8 | CN24: 17.9 | CO24: 1.2 | CP24: 0.31
A25: ME (Mcal/gün) | B25: =V32 -> 5.525991907 | C25: =C3*BJ3+C4*BJ4+C5*BJ5+C6*BJ6+C7*BJ7+C8*BJ8+C9*BJ9+C10*BJ10+C11*BJ11+C12*BJ12+C13*BJ13+C14*BJ14+C15*BJ15+C16*BJ16+C17*BJ17+C18*BJ18+C19*BJ19+C20*BJ20 -> 5.525991907 | D25: =IF(AP37<$AQ$49,$AR$51,IF(AND(AP37>$AQ$50),$AR$50,IF(AND(AP37=$AQ$50),$AR$49,IF(AND(AP37=$AQ$49),$AR$49,IF(AND(AP37<$AQ$50,AP37>$AQ$49),$AR$49,0))))) -> TAMAM | E25: =V29 -> 12.67026256 | F25: =D3*BJ3+D4*BJ4+D5*BJ5+D6*BJ6+D7*BJ7+D8*BJ8+D9*BJ9+D10*BJ10+D11*BJ11+D12*BJ12+D13*BJ13+D14*BJ14+D15*BJ15+D16*BJ16+D17*BJ17+D18*BJ18+D19*BJ19+D20*BJ20 -> 12.29724448 | G25: TAMAM | H25: =V30 -> 22.43633731 | I25: =E3*BJ3+E4*BJ4+E5*BJ5+E6*BJ6+E7*BJ7+E8*BJ8+E9*BJ9+E10*BJ10+E11*BJ11+E12*BJ12+E13*BJ13+E14*BJ14+E15*BJ15+E16*BJ16+E17*BJ17+E18*BJ18+E19*BJ19+E20*BJ20 -> 21.53444607 | J25: TAMAM | K25: =V31 -> 31.41623475 | L25: =F3*BJ3+F4*BJ4+F5*BJ5+F6*BJ6+F7*BJ7+F8*BJ8+F9*BJ9+F10*BJ10+F11*BJ11+F12*BJ12+F13*BJ13+F14*BJ14+F15*BJ15+F16*BJ16+F17*BJ17+F18*BJ18+F19*BJ19+F20*BJ20 -> 30.37712589 | M25: TAMAM | N25: Düve 180 günlük Gebe CA(kg) | O25: =O23+N4*N5/1000 -> 482.6 | P25: 90 gün < Buzağı-Düve | Q25: =AI87 -> 1.438644892 | W25: Sabit | X25: -0.2912500366 | AC25: yemmphp | AD25: =(C27-C30) -> 312.2023803 | AE25: =(F27-F30) -> 758.579101 | AF25: =(I27-I30) -> 679.9879736 | AG25: =(L27-L30) -> 978.2589108 | AN25: gebe | AO25: 8.142857143 | BT25: Köpek Dişi (Bermudagrass) Kuru Otu, Başak, Başı | BU25: 1 | BV25: 0.871 | BW25: 1.50683 | BX25: 0.88842 | BY25: 90.584 | CA25: 25.001184 | CB25: 4.2679 | CC25: 2.3517 | CD25: 36.8 | CE25: 73.3 | CF25: 0 | CG25: Köpek Dişi (Bermudagrass) Kuru Otu, Başak, Başı | CH25: 1.73 | CI25: 1.02 | CJ25: 87.1 | CK25: 10.4 | CL25: 73.3 | CM25: 36.8 | CN25: 27.6 | CO25: 0.49 | CP25: 0.27
A26: NE (Mcal/gün) | B26: =W32 -> 3.588875935 | C26: =C3*BK3+C4*BK4+C5*BK5+C6*BK6+C7*BK7+C8*BK8+C9*BK9+C10*BK10+C11*BK11+C12*BK12+C13*BK13+C14*BK14+C15*BK15+C16*BK16+C17*BK17+C18*BK18+C19*BK19+C20*BK20 -> 4.395885969 | D26: =IF(AP38<$AQ$49,$AR$51,IF(AND(AP38>$AQ$50),$AR$50,IF(AND(AP38=$AQ$50),$AR$49,IF(AND(AP38=$AQ$49),$AR$49,IF(AND(AP38<$AQ$50,AP38>$AQ$49),$AR$49,0))))) -> FAZLA | E26: =W29 -> 7.613504306 | F26: =D3*BK3+D4*BK4+D5*BK5+D6*BK6+D7*BK7+D8*BK8+D9*BK9+D10*BK10+D11*BK11+D12*BK12+D13*BK13+D14*BK14+D15*BK15+D16*BK16+D17*BK17+D18*BK18+D19*BK19+D20*BK20 -> 7.613504306 | G26: TAMAM | H26: =W30 -> 13.56442758 | I26: =E3*BK3+E4*BK4+E5*BK5+E6*BK6+E7*BK7+E8*BK8+E9*BK9+E10*BK10+E11*BK11+E12*BK12+E13*BK13+E14*BK14+E15*BK15+E16*BK16+E17*BK17+E18*BK18+E19*BK19+E20*BK20 -> 13.56442757 | J26: TAMAM | K26: =W31 -> 19.25295888 | L26: =F3*BK3+F4*BK4+F5*BK5+F6*BK6+F7*BK7+F8*BK8+F9*BK9+F10*BK10+F11*BK11+F12*BK12+F13*BK13+F14*BK14+F15*BK15+F16*BK16+F17*BK17+F18*BK18+F19*BK19+F20*BK20 -> 19.25295615 | M26: TAMAM | P26: 1-180 Gün Gebe Düve | Q26: =AJ87 -> 1.383499304 | W26: ma | X26: 0.09771450723 | AE26: KURU | BT26: Köpek Dişi (Bermudagrass,Tifton-85) Kuru Otu, 3-4 | BU26: 1 | BV26: 0.873 | BW26: 1.62378 | BX26: 0.97776 | BY26: 119.601 | CA26: 32.770674 | CB26: 3.4047 | CC26: 1.9206 | CD26: 36.2 | CE26: 76.9 | CF26: 0 | CG26: Köpek Dişi (Bermudagrass,Tifton-85) Kuru Otu, 3-4 | CH26: 1.86 | CI26: 1.12 | CJ26: 87.3 | CK26: 13.7 | CL26: 76.9 | CM26: 36.2 | CN26: 27.4 | CO26: 0.39 | CP26: 0.22
A27: HP (g/gün) | B27: =6.25*((1/0.7)*(0.2*POWER(L3,0.75)+L4/1000*30+3.3*T32)-3.3*T32)/0.75 -> 312.2023803 | C27: =C3*BL3+C4*BL4+C5*BL5+C6*BL6+C7*BL7+C8*BL8+C9*BL9+C10*BL10+C11*BL11+C12*BL12+C13*BL13+C14*BL14+C15*BL15+C16*BL16+C17*BL17+C18*BL18+C19*BL19+C20*BL20 -> 312.2023803 | D27: =IF(AP39<$AQ$49,$AR$51,IF(AND(AP39>$AQ$50),$AR$50,IF(AND(AP39=$AQ$50),$AR$49,IF(AND(AP39=$AQ$49),$AR$49,IF(AND(AP39<$AQ$50,AP39>$AQ$49),$AR$49,0))))) -> TAMAM | E27: =E30+E29 -> 687.5683993 | F27: =D3*BL3+D4*BL4+D5*BL5+D6*BL6+D7*BL7+D8*BL8+D9*BL9+D10*BL10+D11*BL11+D12*BL12+D13*BL13+D14*BL14+D15*BL15+D16*BL16+D17*BL17+D18*BL18+D19*BL19+D20*BL20 -> 1000.691867 | G27: FAZLA | H27: =H30+H29 -> 818.9363118 | I27: =E3*BL3+E4*BL4+E5*BL5+E6*BL6+E7*BL7+E8*BL8+E9*BL9+E10*BL10+E11*BL11+E12*BL12+E13*BL13+E14*BL14+E15*BL15+E16*BL16+E17*BL17+E18*BL18+E19*BL19+E20*BL20 -> 826.7141746 | J27: TAMAM | K27: =K30+K29 -> 1159.415483 | L27: =F3*BL3+F4*BL4+F5*BL5+F6*BL6+F7*BL7+F8*BL8+F9*BL9+F10*BL10+F11*BL11+F12*BL12+F13*BL13+F14*BL14+F15*BL15+F16*BL16+F17*BL17+F18*BL18+F19*BL19+F20*BL20 -> 1201.513897 | M27: TAMAM | N27: Düve Gebelik Sonu CA (kg) | O27: =O25+O5*O4/1000 -> 590.6 | P27: 180-288 Gün Gebe Düve | Q27: =AK87 -> 1.41298802 | S27: Fötüs ağırlığı | V27: =V24 -> 35.8396 | W27: gcaa | X27: 0.3452380952 | Y27: ME sıcaklık stres | AC27: önceki sıcaklık NE | AE27: 1.lak | AG27: NE Süt verimi | BT27: Mercimek Samanı | BU27: 1 | BV27: 0.929 | BW27: 1.66291 | BX27: 0.8361 | BY27: 65.03 | CA27: 32.515 | CB27: 21.4599 | CC27: 1.3006 | CD27: 39.8 | CE27: 60.6 | CF27: 0 | CG27: Mercimek Samanı | CH27: 1.79 | CI27: 0.9 | CJ27: 92.9 | CK27: 7 | CL27: 60.6 | CM27: 39.8 | CN27: 50 | CO27: 2.31 | CP27: 0.14
A28: Metabolik Protein | E28: =Y19 -> 514.0317089 | F28: =F29*0.8+F30*0.64 -> 514.0317089 | G28: TAMAM | H28: =Y20 -> 637.8951487 | I28: =I29*0.8+I30*0.64 -> 637.8951475 | J28: TAMAM | K28: =Y21 -> 925.4903199 | L28: =L29*0.8+L30*0.64 -> 925.4903199 | M28: TAMAM | P28: GENEL | Q28: =AL87 -> 1.617401637 | T28: KM | U28: ME | V28: ME | W28: NE | X28: Nem | Y28: 28 | Z28: 31 | AA28: Sıcaklık stres | AB28: SCSTME | AD28: NE gebelik | AE28: NE büyüme | BT28: Nohut Samanı | BU28: 1 | BV28: 0.904 | BW28: 1.31984 | BX28: 0.74128 | BY28: 48.816 | CA28: 24.408 | CB28: 8.4976 | CC28: 1.4464 | CD28: 46.9 | CE28: 65.6 | CF28: 0 | CG28: Nohut Samanı | CH28: 1.46 | CI28: 0.82 | CJ28: 90.4 | CK28: 5.4 | CL28: 65.6 | CM28: 46.9 | CN28: 50 | CO28: 0.94 | CP28: 0.16
A29: Rumende Yıkılabilir protein (g/gün) | E29: =E25*36.5 -> 462.4645833 | F29: =IF(AE24<AE25,AE24,AE25) -> 448.8494237 | G29: TAMAM | H29: =H25*36.5 -> 818.9263118 | I29: =IF(AF24<AF25,AF24,AF25) -> 679.9879736 | J29: EKSİK | K29: =K25*36.5 -> 1146.692568 | L29: =IF(AG24<AG25,AG24,AG25) -> 978.2589108 | M29: EKSİK | N29: NET GELİR (TL) | P29: DÜVE NET GELİR (TL) | S29: Başlangıç | T29: =(X25+X26*POWER(M3,3/4)+X27*AH29)*(1-(IF(M15<-5,M15*0.006,0))) -> 5.494138283 | U29: =X19+AE29/AB36+AD29/AB36 -> 10.81911875 | V29: =U29+AB29+AC29/AB36+IF(M17>0,AD36/AB36,0)+AF36/AB36+AC41 -> 12.67026256 | W29: =X29+IF(M17>0,AD36,0)+AC29+AD29+AE29+AC36+AF36+AF41 -> 7.613504306 | X29: =(0.08*POWER((M3-IF(I2>180,T27,0)),3/4)) -> 4.538709192 | Y29: =X29*AA29/AB36 -> 0.5295160725 | Z29: =X29*AA30/AB36 -> 1.361612758 | AA29: 0.07 | AB29: =IF(M15<$Z$36,$AA$36,IF(AND(M15=$Y$28),$Y$29,IF(AND($Y$28<M15,M15<$Z$28),$Y$29,IF(AND($Z$28=M15),$Z$29,IF(AND(M15>$Z$28),$Z$29,0))))) -> 0.8583011652 | AC29: =(0.0007*(20-M16))*POWER(M3,0.75) -> 0.5957055815 | AE29: =0.0635*(POWER(0.96*(M3-H2),3/4))*POWER((0.956*AH29),1.097) -> 1.964108833 | AH29: =M4/1000 -> 0.7 | AI29: =((M4+1)-700*H2/45)/1000 -> 0.141 | AJ29: =1+700*H2/45 -> 561 | BT29: Sorgum, Sudan Kuru Otu | BU29: 1 | BV29: 0.865 | BW29: 1.53105 | BX29: 0.90825 | BY29: 81.31 | CA29: 33.66234 | CB29: 4.671 | CC29: 1.73 | CD29: 40 | CE29: 64.8 | CF29: 0 | CG29: Sorgum, Sudan Kuru Otu | CH29: 1.77 | CI29: 1.05 | CJ29: 86.5 | CK29: 9.4 | CL29: 64.8 | CM29: 40 | CN29: 41.4 | CO29: 0.54 | CP29: 0.2
A30: Rumende Yıkıma Dirençli Protein (g/gün) | E30: =IF((E28-E29*0.8)/0.64>0,(E28-E29*0.8)/0.64,0)+0.01 -> 225.103816 | F30: =D3*BN3+D4*BN4+D5*BN5+D6*BN6+D7*BN7+D8*BN8+D9*BN9+D10*BN10+D11*BN11+D12*BN12+D13*BN13+D14*BN14+D15*BN15+D16*BN16+D17*BN17+D18*BN18+D19*BN19+D20*BN20 -> 242.1127655 | G30: TAMAM | H30: =IF((H28-H29*0.8)/0.64>0,(H28-H29*0.8)/0.64,0)+0.01 -> 0.01 | I30: =E3*BN3+E4*BN4+E5*BN5+E6*BN6+E7*BN7+E8*BN8+E9*BN9+E10*BN10+E11*BN11+E12*BN12+E13*BN13+E14*BN14+E15*BN15+E16*BN16+E17*BN17+E18*BN18+E19*BN19+E20*BN20 -> 146.7262011 | J30: FAZLA | K30: =IF((K28-K29*0.8)/0.64>0,(K28-K29*0.8)/0.64,0)+0.01 -> 12.72291442 | L30: =F3*BN3+F4*BN4+F5*BN5+F6*BN6+F7*BN7+F8*BN8+F9*BN9+F10*BN10+F11*BN11+F12*BN12+F13*BN13+F14*BN14+F15*BN15+F16*BN16+F17*BN17+F18*BN18+F19*BN19+F20*BN20 -> 223.2549864 | M30: FAZLA | S30: Orta | T30: =(X25+X26*POWER(N3,3/4)+X27*AH30)*(1-(IF(N15<-5,N15*0.006,0))) -> 9.020861515 | U30: =X20+AE30/AB37+AD30/AB37 -> 18.07993266 | V30: =U30+AB30+AC30/AB37+IF(N17>0,AD37/AB37,0)+AF37/AB37+AC42 -> 22.43633731 | W30: =X30+IF(N17>0,AD37,0)+AC30+AD30+AE30+AC37+AF37+AF42 -> 13.56442758 | X30: =(0.08*POWER((N3-IF(U27>0,U27,0)),3/4)) -> 7.426078393 | Y30: =X30*AA29/AB37 -> 0.8663758125 | Z30: =X30*AA30/AB37 -> 2.227823518 | AA30: 0.18 | AB30: =IF(N15<$Z$37,$AA$37,IF(AND(N15=$Y$28),$Y$30,IF(AND($Y$28<N15,N15<$Z$28),$Y$30,IF(AND($Z$28=N15),$Z$30,IF(AND(N15>$Z$28),$Z$30,0))))) -> 0 | AC30: =(0.0007*(20-N16))*POWER(N3,0.75) -> 0.974672789 | AE30: =0.0635*POWER(0.96*(N3-H2),3/4)*POWER(0.956*AH30,1.097) -> 3.4404464 | AG30: =I4*(0.3512+0.0962*I7*100) -> 0 | AH30: =N4/1000 -> 0.7 | AI30: =(((N4+1)-700*H2/45))/1000 -> 0.141 | AJ30: =1+700*H2/45 -> 561 | BT30: Yerfıstığı Sapı | BU30: 1 | BV30: 0.89 | BW30: 1.7978 | BX30: 1.1125 | BY30: 97.9 | CA30: 27.8036 | CB30: 10.947 | CC30: 1.513 | CD30: 35 | CE30: 60 | CF30: 0 | CG30: Yerfıstığı Sapı | CH30: 2.02 | CI30: 1.25 | CJ30: 89 | CK30: 11 | CL30: 60 | CM30: 35 | CN30: 28.4 | CO30: 1.23 | CP30: 0.17
A31: Ca (g/gün) | E31: =AX18 -> 30.30929068 | F31: =D3*BO3+D4*BO4+D5*BO5+D6*BO6+D7*BO7+D8*BO8+D9*BO9+D10*BO10+D11*BO11+D12*BO12+D13*BO13+D14*BO14+D15*BO15+D16*BO16+D17*BO17+D18*BO18+D19*BO19+D20*BO20 -> 30.30929068 | G31: TAMAM | H31: =AY18 -> 35.02061751 | I31: =E3*BO3+E4*BO4+E5*BO5+E6*BO6+E7*BO7+E8*BO8+E9*BO9+E10*BO10+E11*BO11+E12*BO12+E13*BO13+E14*BO14+E15*BO15+E16*BO16+E17*BO17+E18*BO18+E19*BO19+E20*BO20 -> 35.02061747 | J31: TAMAM | K31: =AZ18 -> 47.79211429 | L31: =F3*BO3+F4*BO4+F5*BO5+F6*BO6+F7*BO7+F8*BO8+F9*BO9+F10*BO10+F11*BO11+F12*BO12+F13*BO13+F14*BO14+F15*BO15+F16*BO16+F17*BO17+F18*BO18+F19*BO19+F20*BO20 -> 47.79211429 | M31: TAMAM | N31: ='NET GELİR'!E7 -> 560375.4977 | P31: =HESAP!GN3+HESAP!GN15+HESAP!GN16+HESAP!GN17+HESAP!GN18 -> -103234.8675 | S31: Bitiş | T31: =(X25+X26*POWER((O3-IF(V27>0,T29,0)),3/4)+X27*(IF(T29>0,AI31,AH31)))*(1-(IF(O15<-5,O15*0.006,0))) -> 11.95205448 | U31: =X21+AE31/AB38+AD31/AB38 -> 23.44870066 | V31: =U31+AB31+AC31/AB38+IF(O17>0,AD38/AB38,0)+AF38/AB38+AC43 -> 31.41623475 | W31: =X31+IF(O17>0,AD38,0)+AC31+AD31+AE31+AC38+AF38+AF43 -> 19.25295888 | X31: =(0.08*POWER((O3-IF(V27>0,T29,0)),3/4)) -> 8.850663066 | Y31: =X31*AA29/AB38 -> 1.032577358 | Z31: =X31*AA30/AB38 -> 2.65519892 | AB31: =IF(O15<$Z$38,$AA$38,IF(AND(O15=$Y$28),$Y$31,IF(AND($Y$28<O15,O15<$Z$28),$Y$31,IF(AND($Z$28=O15),$Z$31,IF(AND(O15>$Z$28),$Z$31,0))))) -> 7.31717263 | AC31: =(0.0007*(20-O16))*POWER(O3,0.75) -> 0.3902168741 | AD31: =IF(V27>0,(((0.00318*(I2+N5+O5)-0.0352)*(H2/45))/0.218),0) -> 3.231706422 | AE31: =0.0635*(POWER(0.96*((O3-IF(V27>0,V27,0)-H2)),3/4))*(POWER(0.956*IF(V27>0,AI31,AH31),1.097)) -> 2.39006894 | AG31: =J4*(0.3512+0.0962*J7*100) -> 0 | AH31: =O4/1000 -> 1 | AI31: =(((O4+1)-700*H2/45))/1000 -> 0.441 | AJ31: =1+700*H2/45 -> 561 | BT31: Yonca Kuru Otu, 1. Kalite >%21 HP, <%37 NDF | BU31: 1 | BV31: 0.846 | BW31: 1.74276 | BX31: 1.06596 | BY31: 192.8034 | CA31: 37.7894664 | CB31: 11.9286 | CC31: 1.8612 | CD31: 27.2 | CE31: 36.8 | CF31: 0 | CG31: Yonca Kuru Otu, 1. Kalite >%21 HP, <%37 NDF | CH31: 2.06 | CI31: 1.26 | CJ31: 84.6 | CK31: 22.79 | CL31: 36.8 | CM31: 27.2 | CN31: 19.6 | CO31: 1.41 | CP31: 0.22
A32: P (g/gün) | E32: =BA18 -> 14.43871323 | F32: =D3*BP3+D4*BP4+D5*BP5+D6*BP6+D7*BP7+D8*BP8+D9*BP9+D10*BP10+D11*BP11+D12*BP12+D13*BP13+D14*BP14+D15*BP15+D16*BP16+D17*BP17+D18*BP18+D19*BP19+D20*BP20+AD21 -> 30.30929068 | G32: FAZLA | H32: =BB18 -> 18.33206449 | I32: =E3*BP3+E4*BP4+E5*BP5+E6*BP6+E7*BP7+E8*BP8+E9*BP9+E10*BP10+E11*BP11+E12*BP12+E13*BP13+E14*BP14+E15*BP15+E16*BP16+E17*BP17+E18*BP18+E19*BP19+E20*BP20+AD21 -> 35.02061754 | J32: FAZLA | K32: =BC18 -> 25.79857143 | L32: =F3*BP3+F4*BP4+F5*BP5+F6*BP6+F7*BP7+F8*BP8+F9*BP9+F10*BP10+F11*BP11+F12*BP12+F13*BP13+F14*BP14+F15*BP15+F16*BP16+F17*BP17+F18*BP18+F19*BP19+F20*BP20+AD21 -> 47.79211429 | M32: FAZLA | S32: Buzağı | T32: =U32/4.75*(1-(IF(L15<-5,L15*0.006,0))) -> 1.086939054 | U32: =0.086*POWER(L3,3/4)/0.75+0.84*POWER(L3,0.355)*POWER(L4/1000,1.2)*0.69/0.57 -> 5.162960507 | V32: =U32+AB32+AC32/AB39+IF(L17>0,AD39/AB39,0)+AF39/AB39+AC44 -> 5.525991907 | W32: =X32+AE32+IF(L17>0,AD39,0)+AF39+AC39+AF44+AC32 -> 3.588875935 | X32: =0.086*POWER(L3,3/4) -> 1.784040023 | Y32: =X32*AA29/AB39 -> 0.2081380026 | Z32: =X32*AA30/AB39 -> 0.5352120068 | AB32: =IF(L15<$Z$39,$AA$39,IF(AND(L15=$Y$28),$Y$32,IF(AND($Y$28<L15,L15<$Z$28),$Y$32,IF(AND($Z$28=L15),$Z$32,IF(AND(L15>$Z$28),$Z$32,0))))) -> 0 | AC32: =(0.0007*(20-L16))*POWER(L3,0.75) -> 0.21781884 | AE32: =0.84*POWER(L3,0.355)*POWER(L4/1000,1.2)*0.69 -> 1.587017072 | BT32: Yonca Kuru Otu, 2. Kalite %19-21 HP, <%37-40 NDF | BU32: 1 | BV32: 0.8797 | BW32: 1.741806 | BX32: 1.05564 | BY32: 177.6994 | CA32: 51.7105254 | CB32: 12.40377 | CC32: 1.93534 | CD32: 29.4 | CE32: 39.6 | CF32: 0 | CG32: Yonca Kuru Otu, 2. Kalite %19-21 HP, <%37-40 NDF | CH32: 1.98 | CI32: 1.2 | CJ32: 87.97 | CK32: 20.2 | CL32: 39.6 | CM32: 29.4 | CN32: 29.1 | CO32: 1.41 | CP32: 0.22
A33: Ca/P | E33: 1:1-1:2 | F33: =F31/F32 -> 1 | G33: =IF(F33<$T$42,$U$43,IF(AND(F33>$T$43),$U$42,IF(AND(F33=$T$42),$U$41,IF(AND(F33=$T$43),$U$41,IF(AND(F33<$T$43,F33>$T$42),$U$41,0))))) -> TAMAM | H33: 1:1-1:2 | I33: =I31/I32+AD21 -> 0.9999999979 | J33: =IF(I33<$T$42,$U$43,IF(AND(I33>$T$43),$U$42,IF(AND(I33=$T$42),$U$41,IF(AND(I33=$T$43),$U$41,IF(AND(I33<$T$43,I33>$T$42),$U$41,0))))) -> EKSİK | K33: 1:1-1:2 | L33: =L31/L32 -> 1 | M33: =IF(L33<$T$42,$U$43,IF(AND(L33>$T$43),$U$42,IF(AND(L33=$T$42),$U$41,IF(AND(L33=$T$43),$U$41,IF(AND(L33<$T$43,L33>$T$42),$U$41,0))))) -> TAMAM | AG33: var | AH33: var | BT33: Yonca Kuru Otu, 3. Kalite %17-19 HP, <%40-44 NDF | BU33: 1 | BV33: 0.9082 | BW33: 1.752826 | BX33: 1.035348 | BY33: 162.84026 | CA33: 51.13184164 | CB33: 12.44234 | CC33: 1.99804 | CD33: 32.3 | CE33: 43.4 | CF33: 0 | CG33: Yonca Kuru Otu, 3. Kalite %17-19 HP, <%40-44 NDF | CH33: 1.93 | CI33: 1.14 | CJ33: 90.82 | CK33: 17.93 | CL33: 43.4 | CM33: 32.3 | CN33: 31.4 | CO33: 1.37 | CP33: 0.22
A34: ADF (% KM en az) | E34: 19 | F34: =(D3*BQ3+D4*BQ4+D5*BQ5+D6*BQ6+D7*BQ7+D8*BQ8+D9*BQ9+D10*BQ10+D11*BQ11+D12*BQ12+D13*BQ13+D14*BQ14+D15*BQ15+D16*BQ16+D17*BQ17+D18*BQ18+D19*BQ19+D20*BQ20)/(D3+D4+D5+D6+D7+D8+D9+D10+D11+D12+D13+D14+D15+D16+D17+D18+D19+D20+AD21) -> 25.87074236 | G34: =IF(F34<$T$46,$U$43,IF(AND(F34>$T$46),$U$41,IF(AND(F34=$T$46),$U$41,0))) -> TAMAM | H34: 19 | I34: =(E3*BQ3+E4*BQ4+E5*BQ5+E6*BQ6+E7*BQ7+E8*BQ8+E9*BQ9+E10*BQ10+E11*BQ11+E12*BQ12+E13*BQ13+E14*BQ14+E15*BQ15+E16*BQ16+E17*BQ17+E18*BQ18+E19*BQ19+E20*BQ20)/(E3+E4+E5+E6+E7+E8+E9+E10+E11+E12+E13+E14+E15+E16+E17+E18+E19+E20+AD21) -> 19.00000265 | J34: =IF(I34<$T$46,$U$43,IF(AND(I34>$T$46),$U$41,IF(AND(I34=$T$46),$U$41,0))) -> TAMAM | K34: 19 | L34: =(F3*BQ3+F4*BQ4+F5*BQ5+F6*BQ6+F7*BQ7+F8*BQ8+F9*BQ9+F10*BQ10+F11*BQ11+F12*BQ12+F13*BQ13+F14*BQ14+F15*BQ15+F16*BQ16+F17*BQ17+F18*BQ18+F19*BQ19+F20*BQ20)/(F3+F4+F5+F6+F7+F8+F9+F10+F11+F12+F13+F14+F15+F16+F17+F18+F19+F20+AD21) -> 19.00000012 | M34: =IF(L34<$T$46,$U$43,IF(AND(L34>$T$46),$U$41,IF(AND(L34=$T$46),$U$41,0))) -> TAMAM | S34: ADF | T34: 19 | AB34: 1e-11 | AG34: yok | AH34: yok | BT34: Yonca Kuru Otu, 4. Kalite %15-17 HP, <%44-48 NDF | BU34: 1 | BV34: 0.9127 | BW34: 1.679368 | BX34: 1.00397 | BY34: 146.76216 | CA34: 46.9638912 | CB34: 10.86113 | CC34: 2.19048 | CD34: 37.7 | CE34: 47.4 | CF34: 0 | CG34: Yonca Kuru Otu, 4. Kalite %15-17 HP, <%44-48 NDF | CH34: 1.84 | CI34: 1.1 | CJ34: 91.27 | CK34: 16.08 | CL34: 47.4 | CM34: 37.7 | CN34: 32 | CO34: 1.19 | CP34: 0.24
A35: NDF (% KM en az) | E35: 27 | F35: =(D3*BR3+D4*BR4+D5*BR5+D6*BR6+D7*BR7+D8*BR8+D9*BR9+D10*BR10+D11*BR11+D12*BR12+D13*BR13+D14*BR14+D15*BR15+D16*BR16+D17*BR17+D18*BR18+D19*BR19+D20*BR20)/(D3+D4+D5+D6+D7+D8+D9+D10+D11+D12+D13+D14+D15+D16+D17+D18+D19+D20+AD21) -> 43.55330147 | G35: =IF(F35<$T$47,$U$43,IF(AND(F35>$T$47),$U$41,IF(AND(F35=$T$47),$U$41,0))) -> TAMAM | H35: 27 | I35: =(E3*BR3+E4*BR4+E5*BR5+E6*BR6+E7*BR7+E8*BR8+E9*BR9+E10*BR10+E11*BR11+E12*BR12+E13*BR13+E14*BR14+E15*BR15+E16*BR16+E17*BR17+E18*BR18+E19*BR19+E20*BR20)/(E3+E4+E5+E6+E7+E8+E9+E10+E11+E12+E13+E14+E15+E16+E17+E18+E19+E20+AD21) -> 41.68294622 | J35: =IF(I35<$T$47,$U$43,IF(AND(I35>$T$47),$U$41,IF(AND(I35=$T$47),$U$41,0))) -> TAMAM | K35: 27 | L35: =(F3*BR3+F4*BR4+F5*BR5+F6*BR6+F7*BR7+F8*BR8+F9*BR9+F10*BR10+F11*BR11+F12*BR12+F13*BR13+F14*BR14+F15*BR15+F16*BR16+F17*BR17+F18*BR18+F19*BR19+F20*BR20)/(F3+F4+F5+F6+F7+F8+F9+F10+F11+F12+F13+F14+F15+F16+F17+F18+F19+F20+AD21) -> 38.86673314 | M35: =IF(L35<$T$47,$U$43,IF(AND(L35>$T$47),$U$41,IF(AND(L35=$T$47),$U$41,0))) -> TAMAM | S35: NDF | T35: 27 | U35: SA | V35: HP | W35: EI | X35: TI | Y35: INS | Z35: LCT | AA35: MECS | AB35: km | AC35: NEMcs | AD35: NE Mesafe | AE35: NE topoğrafya | AF35: eğim durumu | AP35: Dişi Buzağı | AQ35: Düve Başlangıç | AR35: Düve Besleme Ortası | AS35: Düve Bitiş | BT35: Yonca Kuru Otu, 5. Kalite %13-15 HP, <%48-54 NDF | BU35: 1 | BV35: 0.9127 | BW35: 1.64286 | BX35: 0.976589 | BY35: 130.69864 | CA35: 41.95426344 | CB35: 10.76986 | CC35: 1.91667 | CD35: 41.8 | CE35: 52.7 | CF35: 0 | CG35: Yonca Kuru Otu, 5. Kalite %13-15 HP, <%48-54 NDF | CH35: 1.8 | CI35: 1.07 | CJ35: 91.27 | CK35: 14.32 | CL35: 52.7 | CM35: 41.8 | CN35: 32.1 | CO35: 1.18 | CP35: 0.21
A36: Vitamin A (IU) | B36: =110*L3 -> 6270 | C36: =(C3*BS3+C4*BS4+C5*BS5+C6*BS6+C7*BS7+C8*BS8+C9*BS9+C10*BS10+C11*BS11+C12*BS12+C13*BS13+C14*BS14+C15*BS15+C16*BS16+C17*BS17+C18*BS18+C19*BS19+C20*BS20) -> 26582.4 | D36: =IF(AP48<$AQ$49,$AR$51,IF(AND(AP48>$AQ$50),$AR$50,IF(AND(AP48=$AQ$50),$AR$49,IF(AND(AP48=$AQ$49),$AR$49,IF(AND(AP48<$AQ$50,AP48>$AQ$49),$AR$49,0))))) -> FAZLA | T36: Başlangıç | U36: =0.09*POWER((0.96*M3),0.67) -> 3.229461313 | V36: =((U29-AE29)/U36) -> 2.741946431 | W36: =((7.36-(0.296*M13)+2.55*M14))*V12*0.8 -> 6.96992 | X36: =5.1875+(0.3125*M11) -> 6.125 | Y36: =W36+X36 -> 13.09492 | Z36: =39-V36*Y36*0.85 -> 8.480266213 | AA36: =U36*(Z36-M15)/Y36 -> 0.8583011652 | AB36: 0.6 | AC36: =AB29*AB36 -> 0.5149806991 | AD36: =((M17/1000)*M18)*(0.00045*M3)+(0.0012*M3) -> 0.2616 | AE36: =0.006*M3*M17*M18/1000 -> 0 | AF36: =IF(AH36=AG33,AE36,0) -> 0 | AG36: İNDİS | AH36: =INDEX(AG33:AG34,AJ36) -> var | AI36: SATIR | AJ36: =MATCH(M20,AH33:AH34,0) -> 1 | AP36: =C24/$B24 -> 1 | AQ36: =F24/E24 -> 1 | AR36: =I24/H24 -> 0.9999999994 | AS36: =L24/K24 -> 1 | BT36: Yonca Kuru Otu, 6. Kalite <%13 HP, >%54 NDF | BU36: 1 | BV36: 0.936 | BW36: 1.60056 | BX36: 0.89856 | BY36: 116.4384 | CA36: 40.4041248 | CB36: 11.0448 | CC36: 1.9656 | CD36: 42.1 | CE36: 54.8 | CF36: 0 | CG36: Yonca Kuru Otu, 6. Kalite <%13 HP, >%54 NDF | CH36: 1.71 | CI36: 0.96 | CJ36: 93.6 | CK36: 12.44 | CL36: 54.8 | CM36: 42.1 | CN36: 34.7 | CO36: 1.18 | CP36: 0.21
T37: Orta | U37: =0.09*POWER((0.96*N3),0.67) -> 5.013592441 | V37: =((U30-(AE30))/U37) -> 2.919959377 | W37: =((7.36-(0.296*N13)+2.55*N14))*V13*0.8 -> 7.018 | X37: =5.1875+(0.3125*N11) -> 6.125 | Y37: =W37+X37 -> 13.143 | Z37: =39-V37*Y37*0.85 -> 6.37952782 | AA37: =U37*(Z37-N15)/Y37 -> -3.288407073 | AB37: 0.6 | AC37: =AB30*AB37 -> 0 | AD37: =((N17/1000)*N18)*(0.00045*N3)+(0.0012*N3) -> 0.88263 | AE37: =0.006*N3*N17*N18/1000 -> 5.0436 | AF37: =IF(AH37=AG33,AE37,0) -> 0 | AG37: İNDİS | AH37: =INDEX(AG33:AG34,AJ37) -> yok | AI37: SATIR | AJ37: =MATCH(N20,AH33:AH34,0) -> 2 | AP37: 1 | AQ37: =F25/E25 -> 0.9705595626 | AR37: 0.9598022073 | AS37: 0.9669244622 | BT37: Yonca Kuru Otu, Erken Vejetatif | BU37: 1 | BV37: 0.9381 | BW37: 2.542251 | BX37: 1.613532 | BY37: 281.61762 | CA37: 49.56470112 | CB37: 14.0715 | CC37: 3.09573 | CD37: 20.3 | CE37: 27 | CF37: 0 | CG37: Yonca Kuru Otu, Erken Vejetatif | CH37: 2.71 | CI37: 1.72 | CJ37: 93.81 | CK37: 30.02 | CL37: 27 | CM37: 20.3 | CN37: 17.6 | CO37: 1.5 | CP37: 0.33
T38: Bitiş | U38: =0.09*POWER((0.96*O3),0.67) -> 5.905139796 | V38: =((U31-(AE31))/U38) -> 3.566152953 | W38: =((7.36-(0.296*O13)+2.55*O14))*V14*0.8 -> 7.6912 | X38: =5.1875+(0.3125*O11) -> 6.125 | Y38: =W38+X38 -> 13.8162 | Z38: =39-V38*Y38*0.85 -> -2.880080067 | AA38: =U38*(Z38-O15)/Y38 -> 7.31717263 | AB38: 0.6 | AC38: =AB31*AB38 -> 4.390303578 | AD38: =((O17/1000)*O18)*(0.00045*O3)+(0.0012*O3) -> 0.64392 | AE38: =0.006*O3*O17*O18/1000 -> 0 | AF38: =IF(AH38=AG33,AE38,0) -> 0 | AG38: İNDİS | AH38: =INDEX(AG33:AG34,AJ38) -> yok | AI38: SATIR | AJ38: =MATCH(O20,AH33:AH34,0) -> 2 | AP38: 1.224864289 | AQ38: =F26/E26 -> 1 | AR38: 0.9999999989 | AS38: 0.9999998581 | BT38: Yonca Kuru Otu, Geç Vejetatif | BU38: 1 | BV38: 0.9373 | BW38: 2.090179 | BX38: 1.293474 | BY38: 218.29717 | CA38: 39.07519343 | CB38: 14.0595 | CC38: 3.09309 | CD38: 28.6 | CE38: 37.3 | CF38: 0 | CG38: Yonca Kuru Otu, Geç Vejetatif | CH38: 2.23 | CI38: 1.38 | CJ38: 93.73 | CK38: 23.29 | CL38: 37.3 | CM38: 28.6 | CN38: 17.9 | CO38: 1.5 | CP38: 0.33
T39: Buzağı | U39: =0.09*POWER((0.96*L3),0.67) -> 1.314620465 | V39: =((U32-AE32)/U39) -> 2.720133704 | W39: =((7.36-(0.296*L13)+2.55*L14))*V15*0.8 -> 6.8752 | X39: =(6.5*L11) -> 19.5 | Y39: =W39+X39 -> 26.3752 | Z39: =39-V39*Y39*0.85 -> -21.98245989 | AA39: =U39*(Z39-L15)/Y39 -> -1.344888152 | AB39: 0.6 | AC39: =AB32*AB39 -> 0 | AD39: =((L17/1000)*L18)*(0.00045*L3)+(0.0012*L3) -> 0.0684 | AE39: =0.006*L3*L17*L18/1000 -> 0 | AF39: =IF(AH39=AH33,AE39,0) -> 0 | AG39: İNDİS | AH39: =INDEX(AH33:AH34,AJ39) -> yok | AI39: SATIR | AJ39: =MATCH(L20,AH33:AH34,0) -> 2 | AP39: 0.9999999999 | AQ39: 1.455407008 | AR39: 1.009497519 | AS39: 1.036310033 | BT39: Yonca Kuru Otu, 6. Kalite <%13 HP, >%54 NDF | BU39: 1 | BV39: 0.936 | BW39: 1.60056 | BX39: 0.89856 | BY39: 116.4384 | CA39: 40.4041248 | CB39: 11.0448 | CC39: 1.9656 | CD39: 42.1 | CE39: 54.8 | CF39: 0 | CG39: Yonca Kuru Otu, 6. Kalite <%13 HP, >%54 NDF | CH39: 1.71 | CI39: 0.96 | CJ39: 93.6 | CK39: 12.44 | CL39: 54.8 | CM39: 42.1 | CN39: 34.7 | CO39: 1.18 | CP39: 0.21
AC40: ME mera | AE40: NE mera | AG40: Otluyormu | AQ40: 1 | AR40: 0.9999999981 | AS40: 1 | BT40: Yosun, Kurutulmuş | BU40: 1 | BV40: 0.91 | BW40: 0.91 | BX40: 0.5278 | BY40: 63.7 | CA40: 12.5489 | CB40: 24.752 | CC40: 2.821 | CD40: 10 | CE40: 25 | CF40: 0 | CG40: Yosun, Kurutulmuş | CH40: 1 | CI40: 0.58 | CJ40: 91 | CK40: 7 | CL40: 25 | CM40: 10 | CN40: 19.7 | CO40: 2.72 | CP40: 0.31
T41: 1 | U41: TAMAM | Z41: =U29-AO7 -> 10.80059967 | AB41: Başlangıç | AC41: =IF(AH41=AE45,AD41,0) -> 0 | AD41: =M3*0.003 -> 0.654 | AE41: =M3*0.002 -> 0.436 | AF41: =IF(AH41=AE45,AE41,0) -> 0 | AG41: İNDİS | AH41: =INDEX(AE45:AE46,AJ41) -> hayır | AI41: SATIR | AJ41: =MATCH(M19,AE45:AE46,0) -> 2 | AQ41: 0.9705595626 | AR41: 0.8303408546 | AS41: 0.8531135003 | BT41: Yulaf Kuru Otu, Başaklı | BU41: 1 | BV41: 0.919 | BW41: 1.68177 | BX41: 1.0109 | BY41: 83.629 | CA41: 31.026359 | CB41: 3.4003 | CC41: 2.0218 | CD41: 36.4 | CE41: 58 | CF41: 0 | CG41: Yulaf Kuru Otu, Başaklı | CH41: 1.83 | CI41: 1.1 | CJ41: 91.9 | CK41: 9.1 | CL41: 58 | CM41: 36.4 | CN41: 37.1 | CO41: 0.37 | CP41: 0.22
T42: 1 | U42: FAZLA | Z42: =U30-AE30 -> 14.63948626 | AB42: Orta | AC42: =IF(AH42=AE45,AD42,0) -> 1.2609 | AD42: =N3*0.003 -> 1.2609 | AE42: =N3*0.002 -> 0.8406 | AF42: =IF(AH42=AE45,AE42,0) -> 0.8406 | AG42: İNDİS | AH42: =INDEX(AE45:AE46,AJ42) -> evet | AI42: SATIR | AJ42: =MATCH(N19,AE45:AE46,0) -> 1 | AQ42: 1.075560467 | AR42: 14672.62011 | AS42: 17.54747214 | BT42: Arpa Silajı, Başaklı | BU42: 1 | BV42: 0.355 | BW42: 0.72065 | BX42: 0.4402 | BY42: 42.6 | CA42: 10.3518 | CB42: 1.704 | CC42: 1.065 | CD42: 34.5 | CE42: 56.3 | CF42: 0 | CG42: Arpa Silajı, Başaklı | CH42: 2.03 | CI42: 1.24 | CJ42: 35.5 | CK42: 12 | CL42: 56.3 | CM42: 34.5 | CN42: 24.3 | CO42: 0.48 | CP42: 0.3
T43: 2 | U43: EKSİK | AB43: Bitiş | AC43: =IF(AH43=AE45,AD43,0) -> 0 | AD43: =O3*0.003 -> 1.6098 | AE43: =O3*0.002 -> 1.0732 | AF43: =IF(AH43=AE45,AE43,0) -> 0 | AG43: İNDİS | AH43: =INDEX(AE45:AE46,AJ43) -> hayır | AI43: SATIR | AJ43: =MATCH(O19,AE45:AE46,0) -> 2 | AQ43: 1 | AR43: 0.9999999989 | AS43: 1 | BT43: Baklagil Merası,Bakımlı | BU43: 1 | BV43: 0.214 | BW43: 0.52644 | BX43: 0.32956 | BY43: 56.71 | CA43: 13.15672 | CB43: 2.8034 | CC43: 0.7918 | CD43: 23.9 | CE43: 33.1 | CF43: 0 | CG43: Baklagil Merası,Bakımlı | CH43: 2.46 | CI43: 1.54 | CJ43: 21.4 | CK43: 26.5 | CL43: 33.1 | CM43: 23.9 | CN43: 23.2 | CO43: 1.31 | CP43: 0.37
AB44: Buzağı | AC44: =IF(AH44=AE45,AD44,0) -> 0 | AD44: =O4*0.003 -> 3 | AE44: =L3*0.002 -> 0.114 | AF44: =IF(AH44=AF45,AE44,0) -> 0 | AG44: İNDİS | AH44: =INDEX(AF45:AF46,AJ44) -> hayır | AI44: SATIR | AJ44: =MATCH(L19,AF45:AF46,0) -> 2 | AQ44: 2.099168408 | AR44: 1.910347717 | AS44: 1.852510106 | BT44: Baklagil Silajı | BU44: 1 | BV44: 0.391 | BW44: 0.77418 | BX44: 0.4692 | BY44: 7.82 | CA44: 1.47798 | CB44: 5.2394 | CC44: 1.2512 | CD44: 37 | CE44: 45.7 | CF44: 0 | CG44: Baklagil Silajı | CH44: 1.98 | CI44: 1.2 | CJ44: 39.1 | CK44: 2 | CL44: 45.7 | CM44: 37 | CN44: 18.9 | CO44: 1.34 | CP44: 0.32
AE45: evet | AF45: evet | BT45: Baklagil Silajı, Körpe < %40 NDF | BU45: 1 | BV45: 0.412 | BW45: 0.89816 | BX45: 0.55208 | BY45: 95.584 | CA45: 15.77136 | CB45: 5.7268 | CC45: 1.4832 | CD45: 30.2 | CE45: 36.7 | CF45: 0 | CG45: Baklagil Silajı, Körpe < %40 NDF | CH45: 2.18 | CI45: 1.34 | CJ45: 41.2 | CK45: 23.2 | CL45: 36.7 | CM45: 30.2 | CN45: 16.5 | CO45: 1.39 | CP45: 0.36
T46: 19 | AE46: hayır | AF46: hayır | BT46: Baklagil Silajı, Olgun >%46 NDF | BU46: 1 | BV46: 0.426 | BW46: 0.78384 | BX46: 0.4686 | BY46: 86.478 | CA46: 21.360066 | CB46: 5.538 | CC46: 1.4058 | CD46: 40.9 | CE46: 50 | CF46: 0 | CG46: Baklagil Silajı, Olgun >%46 NDF | CH46: 1.84 | CI46: 1.1 | CJ46: 42.6 | CK46: 20.3 | CL46: 50 | CM46: 40.9 | CN46: 24.7 | CO46: 1.3 | CP46: 0.33
T47: 27 | AP47: =C35/$B35 ->  | AQ47: =F35/$E35 -> 1.61308524 | AR47: =I35/H35 -> 1.543812823 | AS47: =L35/K35 -> 1.439508635 | AT47: =AC35/AB35 ->  | AU47: =#REF!/#REF! ->  | AV47: =AF35/AE35 ->  | AW47: =AH35/#REF! ->  | BT47: Baklagil Silajı, Orta Olgun.. %40-46NDF | BU47: 1 | BV47: 0.429 | BW47: 0.86229 | BX47: 0.52338 | BY47: 93.951 | CA47: 15.595866 | CB47: 5.8344 | CC47: 1.5015 | CD47: 35.2 | CE47: 43.2 | CF47: 0 | CG47: Baklagil Silajı, Orta Olgun.. %40-46NDF | CH47: 2.01 | CI47: 1.22 | CJ47: 42.9 | CK47: 21.9 | CL47: 43.2 | CM47: 35.2 | CN47: 16.6 | CO47: 1.36 | CP47: 0.35
AP48: =C36/$B36 -> 4.239617225 | BT48: Buğday Silajı, Başak, Başı | BU48: 1 | BV48: 0.333 | BW48: 0.63603 | BX48: 0.38628 | BY48: 39.96 | CA48: 9.15084 | CB48: 1.2654 | CC48: 0.9657 | CD48: 37.6 | CE48: 59.9 | CF48: 0 | CG48: Buğday Silajı, Başak, Başı | CH48: 1.91 | CI48: 1.16 | CJ48: 33.3 | CK48: 12 | CL48: 59.9 | CM48: 37.6 | CN48: 22.9 | CO48: 0.38 | CP48: 0.29
AC49: ='NET GELİR'!E7 -> 560375.4977 | AQ49: 0.9 | AR49: TAMAM | BT49: Çavdar Silajı, Körpe | BU49: 1 | BV49: 0.297 | BW49: 0.61776 | BX49: 0.38016 | BY49: 47.817 | CA49: 11.619531 | CB49: 1.2771 | CC49: 1.2474 | CD49: 34.9 | CE49: 57.8 | CF49: 0 | CG49: Çavdar Silajı, Körpe | CH49: 2.08 | CI49: 1.28 | CJ49: 29.7 | CK49: 16.1 | CL49: 57.8 | CM49: 34.9 | CN49: 24.3 | CO49: 0.43 | CP49: 0.42
AQ50: 1.1 | AR50: FAZLA | BT50: Çayır Merası, Soğuk Mevsim, Bakımlı | BU50: 1 | BV50: 0.201 | BW50: 0.49446 | BX50: 0.30954 | BY50: 53.265 | CA50: 11.82483 | CB50: 1.1256 | CC50: 0.8844 | CD50: 25 | CE50: 45.8 | CF50: 0 | CG50: Çayır Merası, Soğuk Mevsim, Bakımlı | CH50: 2.46 | CI50: 1.54 | CJ50: 20.1 | CK50: 26.5 | CL50: 45.8 | CM50: 25 | CN50: 22.2 | CO50: 0.56 | CP50: 0.44
AR51: EKSİK | BT51: Çayır Silajı, Soğuk Mevsim | BU51: 1 | BV51: 0.365 | BW51: 0.6789 | BX51: 0.4088 | BY51: 46.72 | CA51: 11.58656 | CB51: 2.0075 | CC51: 1.0585 | CD51: 40.3 | CE51: 60.7 | CF51: 0 | CG51: Çayır Silajı, Soğuk Mevsim | CH51: 1.86 | CI51: 1.12 | CJ51: 36.5 | CK51: 12.8 | CL51: 60.7 | CM51: 40.3 | CN51: 24.8 | CO51: 0.55 | CP51: 0.29
AB52: KM (kg/gün) | AC52: =C26/B26 -> 1.224864289 | BT52: Çayır Silajı, Soğuk Mevsim,Körpe<%55 NDF | BU52: 1 | BV52: 0.362 | BW52: 0.7602 | BX52: 0.46698 | BY52: 60.816 | CA52: 11.615856 | CB52: 2.0634 | CC52: 1.3032 | CD52: 32.9 | CE52: 51 | CF52: 0 | CG52: Çayır Silajı, Soğuk Mevsim,Körpe<%55 NDF | CH52: 2.1 | CI52: 1.29 | CJ52: 36.2 | CK52: 16.8 | CL52: 51 | CM52: 32.9 | CN52: 19.1 | CO52: 0.57 | CP52: 0.36
AB53: ME (Mcal/gün) | AC53: 0.9999999999 | BT53: Çayır Silajı, Soğuk Mevsim, Olgun>%60 NDF | BU53: 1 | BV53: 0.387 | BW53: 0.68112 | BX53: 0.40635 | BY53: 49.149 | CA53: 16.170021 | CB53: 2.1672 | CC53: 1.1997 | CD53: 41.1 | CE53: 66.6 | CF53: 0 | CG53: Çayır Silajı, Soğuk Mevsim, Olgun>%60 NDF | CH53: 1.76 | CI53: 1.05 | CJ53: 38.7 | CK53: 12.7 | CL53: 66.6 | CM53: 41.1 | CN53: 32.9 | CO53: 0.56 | CP53: 0.31
AB54: Nel (Mcal/gün) | BT54: Çayır Silajı, Soğuk Mevsim, Orta Olgun..%55-60 NDF | BU54: 1 | BV54: 0.42 | BW54: 0.8064 | BX54: 0.4872 | BY54: 70.56 | CA54: 16.36992 | CB54: 2.52 | CC54: 1.512 | CD54: 35.2 | CE54: 58.2 | CF54: 0 | CG54: Çayır Silajı, Soğuk Mevsim, Orta Olgun..%55-60 NDF | CH54: 1.92 | CI54: 1.16 | CJ54: 42 | CK54: 16.8 | CL54: 58.2 | CM54: 35.2 | CN54: 23.2 | CO54: 0.6 | CP54: 0.36
AB55: HP (g/gün) | BT55: Çayır-Baklagil Silajı, Körpe< %44 NDF | BU55: 1 | BV55: 0.432 | BW55: 0.864 | BX55: 0.52704 | BY55: 86.4 | CA55: 14.6016 | CB55: 5.0112 | CC55: 1.5552 | CD55: 31.1 | CE55: 42.2 | CF55: 0 | CG55: Çayır-Baklagil Silajı, Körpe< %44 NDF | CH55: 2 | CI55: 1.22 | CJ55: 43.2 | CK55: 20 | CL55: 42.2 | CM55: 31.1 | CN55: 16.9 | CO55: 1.16 | CP55: 0.36
AB56: Metabolik Protein | BT56: Çayır-Baklagil Silajı, Körpe< %47 NDF | BU56: 1 | BV56: 0.459 | BW56: 0.9639 | BX56: 0.59211 | BY56: 93.177 | CA56: 16.305975 | CB56: 4.9572 | CC56: 1.6065 | CD56: 30.8 | CE56: 45.3 | CF56: 0 | CG56: Çayır-Baklagil Silajı, Körpe< %47 NDF | CH56: 2.1 | CI56: 1.29 | CJ56: 45.9 | CK56: 20.3 | CL56: 45.3 | CM56: 30.8 | CN56: 17.5 | CO56: 1.08 | CP56: 0.35
AB57: Rumende Yıkılabilir protein (g/gün) | BT57: Çayır-Baklagil Silajı, Körpe< %51 NDF | BU57: 1 | BV57: 0.471 | BW57: 1.00323 | BX57: 0.61701 | BY57: 84.78 | CA57: 15.42996 | CB57: 4.8042 | CC57: 1.6014 | CD57: 31.8 | CE57: 49.9 | CF57: 0 | CG57: Çayır-Baklagil Silajı, Körpe< %51 NDF | CH57: 2.13 | CI57: 1.31 | CJ57: 47.1 | CK57: 18 | CL57: 49.9 | CM57: 31.8 | CN57: 18.2 | CO57: 1.02 | CP57: 0.34
AB58: Rumende Yıkıma Dirençli Protein (g/gün) | BT58: Çayır-Baklagil Silajı, Olgun> %47 NDF | BU58: 1 | BV58: 0.428 | BW58: 0.78324 | BX58: 0.46652 | BY58: 74.472 | CA58: 21.075576 | CB58: 4.5368 | CC58: 1.4124 | CD58: 42.1 | CE58: 57.4 | CF58: 0 | CG58: Çayır-Baklagil Silajı, Olgun> %47 NDF | CH58: 1.83 | CI58: 1.09 | CJ58: 42.8 | CK58: 17.4 | CL58: 57.4 | CM58: 42.1 | CN58: 28.3 | CO58: 1.06 | CP58: 0.33
AB59: Ca (g/gün) | AD59: =F33/E33 ->  | BT59: Çayır-Baklagil Silajı, Olgun> %50 NDF | BU59: 1 | BV59: 0.429 | BW59: 0.75933 | BX59: 0.45045 | BY59: 78.507 | CA59: 20.725848 | CB59: 5.0193 | CC59: 1.4157 | CD59: 41.6 | CE59: 53.7 | CF59: 0 | CG59: Çayır-Baklagil Silajı, Olgun> %50 NDF | CH59: 1.77 | CI59: 1.05 | CJ59: 42.9 | CK59: 18.3 | CL59: 53.7 | CM59: 41.6 | CN59: 26.4 | CO59: 1.17 | CP59: 0.33
AB60: P (g/gün) | AD60: =F34/E34 -> 1.361618019 | BT60: Çayır-Baklagil Silajı, Olgun >%57 NDF | BU60: 1 | BV60: 0.385 | BW60: 0.693 | BX60: 0.4158 | BY60: 59.29 | CA60: 18.08345 | CB60: 3.2725 | CC60: 1.2705 | CD60: 42.2 | CE60: 61.7 | CF60: 0 | CG60: Çayır-Baklagil Silajı, Olgun >%57 NDF | CH60: 1.8 | CI60: 1.08 | CJ60: 38.5 | CK60: 15.4 | CL60: 61.7 | CM60: 42.2 | CN60: 30.5 | CO60: 0.85 | CP60: 0.33
AB61: Ca/P | AC61: =C33/C34 ->  | BT61: Çayır-Baklagil Silajı, Orta Olgun, %44-50 NDF | BU61: 1 | BV61: 0.433 | BW61: 0.83136 | BX61: 0.50228 | BY61: 82.27 | CA61: 14.56179 | CB61: 4.9362 | CC61: 1.4722 | CD61: 35.4 | CE61: 47 | CF61: 0 | CG61: Çayır-Baklagil Silajı, Orta Olgun, %44-50 NDF | CH61: 1.92 | CI61: 1.16 | CJ61: 43.3 | CK61: 19 | CL61: 47 | CM61: 35.4 | CN61: 17.7 | CO61: 1.14 | CP61: 0.34
AB62: ADF (% KM en az) | AC62: =C36/B36 -> 4.239617225 | BT62: Çayır-Baklagil Silajı, Orta Olgun, %47-53 NDF | BU62: 1 | BV62: 0.441 | BW62: 0.88641 | BX62: 0.54243 | BY62: 84.231 | CA62: 16.088121 | CB62: 4.8069 | CC62: 1.5435 | CD62: 35.4 | CE62: 50.4 | CF62: 0 | CG62: Çayır-Baklagil Silajı, Orta Olgun, %47-53 NDF | CH62: 2.01 | CI62: 1.23 | CJ62: 44.1 | CK62: 19.1 | CL62: 50.4 | CM62: 35.4 | CN62: 19.1 | CO62: 1.09 | CP62: 0.35
AB63: NDF (% KM en az) | AC63: =C37/B37 ->  | BT63: Çayır-Baklagil Silajı,Orta Olgun, %51-57 NDF | BU63: 1 | BV63: 0.445 | BW63: 0.8722 | BX63: 0.52955 | BY63: 78.32 | CA63: 16.36888 | CB63: 3.9605 | CC63: 1.602 | CD63: 35.7 | CE63: 54.5 | CF63: 0 | CG63: Çayır-Baklagil Silajı,Orta Olgun, %51-57 NDF | CH63: 1.96 | CI63: 1.19 | CJ63: 44.5 | CK63: 17.6 | CL63: 54.5 | CM63: 35.7 | CN63: 20.9 | CO63: 0.89 | CP63: 0.36
BT64: Mısır Silajı, % 23-26KM | BU64: 1 | BV64: 0.25 | BW64: 0.5025 | BX64: 0.305 | BY64: 18.25 | CA64: 5.621 | CB64: 0.725 | CC64: 0.6 | CD64: 32.5 | CE64: 55.8 | CF64: 0 | CG64: Mısır Silajı, % 23-26KM | CH64: 2.01 | CI64: 1.22 | CJ64: 25 | CK64: 7.3 | CL64: 55.8 | CM64: 32.5 | CN64: 30.8 | CO64: 0.29 | CP64: 0.24
AA65: YEM FİYATI X GÜNLÜK TÜKETİM | AG65: YEM FİTARI X GÜNLÜK KM TÜKETİM | BT65: Mısır Silajı, % 26-29KM | BU65: 1 | BV65: 0.278 | BW65: 0.57824 | BX65: 0.35584 | BY65: 20.016 | CA65: 6.0048 | CB65: 0.7784 | CC65: 0.7228 | CD65: 31.5 | CE65: 53 | CF65: 0 | CG65: Mısır Silajı, % 26-29KM | CH65: 2.08 | CI65: 1.28 | CJ65: 27.8 | CK65: 7.2 | CL65: 53 | CM65: 31.5 | CN65: 30 | CO65: 0.28 | CP65: 0.26
AB66: 90 gün > Dişi Buzağı | AC66: 90 gün < Buzağı-Düve | AD66: 1-180 Gün Gebe Düve | AE66: 180-288 Gün Gebe Düve | AH66: 90 gün > Dişi Buzağı | AI66: 90 gün < Buzağı-Düve | AJ66: 1-180 Gün Gebe Düve | AK66: 180-288 Gün Gebe Düve | AO66: 90 gün > Dişi Buzağı | AP66: 90 gün < Buzağı-Düve | AQ66: 1-180 Gün Gebe Düve | AR66: 180-288 Gün Gebe Düve | BT66: Mısır Silajı, %29-33 KM | BU66: 1 | BV66: 0.313 | BW66: 0.63852 | BX66: 0.38812 | BY66: 22.536 | CA66: 6.715728 | CB66: 0.8764 | CC66: 0.8138 | CD66: 31.1 | CE66: 52.9 | CF66: 0 | CG66: Mısır Silajı, %29-33 KM | CH66: 2.04 | CI66: 1.24 | CJ66: 31.3 | CK66: 7.2 | CL66: 52.9 | CM66: 31.1 | CN66: 29.8 | CO66: 0.28 | CP66: 0.26
AB67: =$B3*C3 -> 0 | AC67: 0 | AD67: 0 | AE67: 0 | AH67: =$B3*C3*$BI3 -> 0 | AI67: =$B3*D3*$BI3 -> 0 | AJ67: =$B3*E3*$BI3 -> 0 | AK67: =$B3*F3*$BI3 -> 0 | AO67: =C3*$BI3 -> 0 | AP67: =D3*$BI3 -> 0 | AQ67: =E3*$BI3 -> 0 | AR67: =F3*$BI3 -> 0 | BT67: Mısır Silajı, %33-40 KM | BU67: 1 | BV67: 0.355 | BW67: 0.72065 | BX67: 0.4402 | BY67: 25.915 | CA67: 8.75927 | CB67: =CJ67*CO67/10 -> 0.923 | CC67: 0.8875 | CD67: 29.8 | CE67: 51.6 | CF67: 0 | CG67: Mısır Silajı, %33-40 KM | CH67: 2.03 | CI67: 1.24 | CJ67: 35.5 | CK67: 7.3 | CL67: 51.6 | CM67: 29.8 | CN67: 33.8 | CO67: 0.26 | CP67: 0.25
AB68: 0 | AC68: 2.090021281 | AD68: 8.356556287 | AE68: 12.47484236 | AH68: =$B4*C4*$BI4 -> 0 | AI68: =$B4*D4*$BI4 -> 1.901919366 | AJ68: =$B4*E4*$BI4 -> 7.604466221 | AK68: =$B4*F4*$BI4 -> 11.35210654 | AO68: =C4*$BI4 -> 0 | AP68: =D4*$BI4 -> 1.267946244 | AQ68: =E4*$BI4 -> 5.069644147 | AR68: =F4*$BI4 -> 7.568071029 | BT68: =CG68 -> Sorgum Silajı | BU68: 1 | BV68: =CJ68*10/1000 -> 0.288 | BW68: =CH68*CJ68/100 -> 0.5328 | BX68: =CI68*CJ68/100 -> 0.31968 | BY68: =CK68*CJ68/10 -> 26.208 | CA68: =BY68*CN68/100 -> 10.325952 | CB68: 0 | CC68: =CP68*CJ68/10 -> 0 | CD68: =CM68 -> 38.7 | CE68: =CL68 -> 60.7 | CF68: =CQ68 -> 0 | CG68: Sorgum Silajı | CH68: 1.85 | CI68: 1.11 | CJ68: 28.8 | CK68: 9.1 | CL68: 60.7 | CM68: 38.7 | CN68: 39.4 | CO68: 0 | CP68: 0
AB69: 0 | AC69: 1.494115019 | AD69: 0 | AE69: 0 | AH69: 0 | AI69: 1.314372982 | AJ69: 0 | AK69: 0 | AO69: 0 | AP69: 1.314372982 | AQ69: 0 | AR69: 0 | BT69: Sorgum, Sudan Otu Silajı | BU69: =BU68 -> 1 | BV69: 0.288 | BW69: 0.51552 | BX69: 0.30816 | BY69: 31.104 | CA69: 15.116544 | CB69: 1.44 | CC69: 0.6048 | CD69: 40.7 | CE69: 63.3 | CF69: 0 | CG69: Sorgum, Sudan Otu Silajı | CH69: 1.79 | CI69: 1.07 | CJ69: 28.8 | CK69: 10.8 | CL69: 63.3 | CM69: 40.7 | CN69: 48.6 | CO69: 0.5 | CP69: 0.21
AB70: 0 | AC70: 0 | AD70: 0 | AE70: 0 | AH70: 0 | AI70: 0 | AJ70: 0 | AK70: 0 | AO70: 0 | AP70: 0 | AQ70: 0 | AR70: 0 | BT70: Soya Silajı, Körpe | BU70: 1 | BV70: 0.404 | BW70: 0.84436 | BX70: 0.52116 | BY70: 70.296 | CA70: 11.669136 | CB70: 2.5856 | CC70: 0.9696 | CD70: 36.9 | CE70: 46.6 | CF70: 0 | CG70: Soya Silajı, Körpe | CH70: 2.09 | CI70: 1.29 | CJ70: 40.4 | CK70: 17.4 | CL70: 46.6 | CM70: 36.9 | CN70: 16.6 | CO70: 0.64 | CP70: 0.24
AB71: 0 | AC71: 0 | AD71: 0 | AE71: 0 | AH71: 0 | AI71: 0 | AJ71: 0 | AK71: 0 | AO71: 0 | AP71: 0 | AQ71: 0 | AR71: 0 | BT71: Şalgam Yaprakları | BU71: 1 | BV71: 0.18 | BW71: 0.45 | BX71: 0.27 | BY71: 28.8 | CA71: 4.896 | CB71: 1.926 | CC71: 0.666 | CD71: 13 | CE71: 25 | CF71: 0 | CG71: Şalgam Yaprakları | CH71: 2.5 | CI71: 1.5 | CJ71: 18 | CK71: 16 | CL71: 25 | CM71: 13 | CN71: 17 | CO71: 1.07 | CP71: 0.37
AB72: 0.1066840148 | AC72: 0 | AD72: 0 | AE72: 0 | AH72: 0.09505545716 | AI72: 0 | AJ72: 0 | AK72: 0 | AO72: 0.04752772858 | AP72: 0 | AQ72: 0 | AR72: 0 | BT72: Şalgam, Yaprak-Kök | BU72: 1 | BV72: 0.1395 | BW72: 0.386415 | BX72: 0.2406375 | BY72: 19.809 | CA72: 6.8440095 | CB72: 4.464 | CC72: 0.43245 | CD72: 22.45 | CE72: 33.55 | CF72: 0 | CG72: Şalgam, Yaprak-Kök | CH72: 2.77 | CI72: 1.725 | CJ72: 13.95 | CK72: 14.2 | CL72: 33.55 | CM72: 22.45 | CN72: 34.55 | CO72: 3.2 | CP72: 0.31
AB73: 0 | AC73: 0 | AD73: 0 | AE73: 0 | AH73: 0 | AI73: 0 | AJ73: 0 | AK73: 0 | AO73: 0 | AP73: 0 | AQ73: 0 | AR73: 0 | BT73: Tritikale Silajı, Başaklı | BU73: 1 | BV73: 0.32 | BW73: 0.6208 | BX73: 0.3776 | BY73: 44.16 | CA73: 10.73088 | CB73: 6.64 | CC73: 1.024 | CD73: 39.6 | CE73: 59.7 | CF73: 0 | CG73: Tritikale Silajı, Başaklı | CH73: 1.94 | CI73: 1.18 | CJ73: 32 | CK73: 13.8 | CL73: 59.7 | CM73: 39.6 | CN73: 24.3 | CO73: 2.075 | CP73: 0.32
AB74: 0 | AC74: 0 | AD74: 0 | AE74: 0 | AH74: 0 | AI74: 0 | AJ74: 0 | AK74: 0 | AO74: 0 | AP74: 0 | AQ74: 0 | AR74: 0 | BT74: Tritikale-Bezelye Silajı(9-1) | BU74: 1 | BV74: 0.3434 | BW74: 0.6569242 | BX74: 0.3959402 | BY74: 44.60766 | CA74: 16.01861071 | CB74: 1.78568 | CC74: 1.06454 | CD74: 38.97 | CE74: 60.51 | CF74: 0 | CG74: Tritikale-Bezelye Silajı(9-1) | CH74: 1.913 | CI74: 1.153 | CJ74: 34.34 | CK74: 12.99 | CL74: 60.51 | CM74: 38.97 | CN74: 35.91 | CO74: 0.52 | CP74: 0.31
AB75: 0 | AC75: 0 | AD75: 0 | AE75: 0 | AH75: 0 | AI75: 0 | AJ75: 0 | AK75: 0 | AO75: 0 | AP75: 0 | AQ75: 0 | AR75: 0 | BT75: Tritikale-Bezelye Silajı (APAK) | BU75: 1 | BV75: 0.3639 | BW75: 0.876999 | BX75: 0.54585 | BY75: 36.06249 | CA75: 10.47975959 | CB75: 1.01892 | CC75: 0.94614 | CD75: 28.03 | CE75: 43.97 | CF75: 0 | CG75: Tritikale-Bezelye Silajı (APAK) | CH75: 2.41 | CI75: 1.5 | CJ75: 36.39 | CK75: 9.91 | CL75: 43.97 | CM75: 28.03 | CN75: 29.06 | CO75: 0.28 | CP75: 0.26
AB76: 0 | AC76: 2.732928585 | AD76: 0 | AE76: 0 | AH76: 0 | AI76: 2.407710084 | AJ76: 0 | AK76: 0 | AO76: 0 | AP76: 2.407710084 | AQ76: 0 | AR76: 0 | BT76: Yulaf Silajı, Başaklı | BU76: 1 | BV76: 0.346 | BW76: 0.66086 | BX76: 0.3979 | BY76: 119.716 | CA76: 44.534352 | CB76: 1.9722 | CC76: 1.1418 | CD76: 38.9 | CE76: 60.6 | CF76: 0 | CG76: Yulaf Silajı, Başaklı | CH76: 1.91 | CI76: 1.15 | CJ76: 34.6 | CK76: 34.6 | CL76: 60.6 | CM76: 38.9 | CN76: 37.2 | CO76: 0.57 | CP76: 0.33
AB77: 4.621773662 | AC77: 0 | AD77: 2.610257737 | AE77: 3.145854583 | AH77: 4.621773662 | AI77: 0 | AJ77: 2.610257737 | AK77: 3.145854583 | AO77: 0.3081182442 | AP77: 0 | AQ77: 0.1740171825 | AR77: 0.2097236389 | BT77: Aminoplus | BU77: 1 | BV77: 0.88 | BW77: 0 | BX77: 1.936 | BY77: 454.96 | CA77: 121.01936 | CB77: 3.344 | CC77: 6.336 | CD77: 7.44 | CE77: 11.8 | CF77: 0 | CG77: Aminoplus | CH77: 0 | CI77: 2.2 | CJ77: 88 | CK77: 51.7 | CL77: 11.8 | CM77: 7.44 | CN77: 26.6 | CO77: 0.38 | CP77: 0.72
AB78: 0 | AC78: 0 | AD78: 0.3936169645 | AE78: 2.48144461 | AH78: 0 | AI78: 0 | AJ78: 0.1232021099 | AK78: 0.7766921631 | AO78: 0 | AP78: 0 | AQ78: 0.2464042198 | AR78: 1.553384326 | BT78: Aspir Küspesi, Solvent | BU78: 1 | BV78: 0.935 | BW78: 1.8326 | BX78: 1.11265 | BY78: 271.15 | CA78: 31.9957 | CB78: 4.488 | CC78: 9.35 | CD78: 39.1 | CE78: 53.8 | CF78: 0 | CG78: Aspir Küspesi, Solvent | CH78: 1.96 | CI78: 1.19 | CJ78: 93.5 | CK78: 29 | CL78: 53.8 | CM78: 39.1 | CN78: 11.8 | CO78: 0.48 | CP78: 1
AB79: 0 | AC79: 0 | AD79: 2.246547588 | AE79: 1.630127801 | AH79: 0 | AI79: 0 | AJ79: 2.082549614 | AK79: 1.511128472 | AO79: 0 | AP79: 0 | AQ79: 3.470916023 | AR79: 2.518547453 | BT79: Ayçiçeği Küspesi, Solvent, %25 HP | BU79: 1 | BV79: 0.922 | BW79: 2.06528 | BX79: 1.27236 | BY79: 261.848 | CA79: 48.180032 | CB79: 4.4256 | CC79: 9.22 | CD79: 30 | CE79: 40.3 | CF79: 0 | CG79: Ayçiçeği Küspesi, Solvent, %25 HP | CH79: 2.24 | CI79: 1.38 | CJ79: 92.2 | CK79: 28.4 | CL79: 40.3 | CM79: 30 | CN79: 18.4 | CO79: 0.48 | CP79: 1
AB80: 2.074263025 | AC80: 2.480450517 | AD80: 0 | AE80: 0 | AH80: 1.856465407 | AI80: 2.220003213 | AJ80: 0 | AK80: 0 | AO80: 0.3712930815 | AP80: 0.4440006426 | AQ80: 0 | AR80: 0 | BT80: Ayçiçeği Küspesi, Solvent, %28 HP | BU80: 1 | BV80: 0.922 | BW80: 2.10216 | BX80: 1.383 | BY80: 285.82 | CA80: 52.59088 | CB80: 4.4256 | CC80: 9.22 | CD80: 28 | CE80: 38 | CF80: 0 | CG80: Ayçiçeği Küspesi, Solvent, %28 HP | CH80: 2.28 | CI80: 1.5 | CJ80: 92.2 | CK80: 31 | CL80: 38 | CM80: 28 | CN80: 18.4 | CO80: 0.48 | CP80: 1
AB81: 0 | AC81: 0.06010833022 | AD81: 0.01184920399 | AE81: 0.0261769977 | AH81: 0 | AI81: 0.06010833022 | AJ81: 0.01184920399 | AK81: 0.0261769977 | AO81: 0 | AP81: 0.06010833022 | AQ81: 0.01184920399 | AR81: 0.0261769977 | BT81: Ayçiçeği Küspesi, Solvent, %32 HP | BU81: 1 | BV81: 0.922 | BW81: 2.2128 | BX81: 1.4752 | BY81: 328.232 | CA81: 60.394688 | CB81: 4.4256 | CC81: 9.22 | CD81: 26 | CE81: 36 | CF81: 0 | CG81: Ayçiçeği Küspesi, Solvent, %32 HP | CH81: 2.4 | CI81: 1.6 | CJ81: 92.2 | CK81: 35.6 | CL81: 36 | CM81: 26 | CN81: 18.4 | CO81: 0.48 | CP81: 1
AB82: 0 | AC82: 0 | AD82: 0.04803073236 | AE82: 0.07615103676 | AH82: 0 | AI82: 0 | AJ82: 0.04803073236 | AK82: 0.07615103676 | AO82: 0 | AP82: 0 | AQ82: 0.04803073236 | AR82: 0.07615103676 | BT82: Ayçiçeği Küspesi, Solvent, %34 HP | BU82: 1 | BV82: 0.922 | BW82: 2.2128 | BX82: 1.4752 | BY82: 346.672 | CA82: 63.787648 | CB82: 4.4256 | CC82: 9.22 | CD82: 24 | CE82: 34 | CF82: 0 | CG82: Ayçiçeği Küspesi, Solvent, %34 HP | CH82: 2.4 | CI82: 1.6 | CJ82: 92.2 | CK82: 37.6 | CL82: 34 | CM82: 24 | CN82: 18.4 | CO82: 0.48 | CP82: 1
AB83: =$B19*C19 -> 5.76 | AC83: 0 | AD83: 0 | AE83: 0 | AH83: 0.72 | AI83: 0 | AJ83: 0 | AK83: 0 | AO83: 0.36 | AP83: 0 | AQ83: 0 | AR83: 0 | BT83: Ayçiçeği Küspesi, Solvent, %36 HP | BU83: 1 | BV83: 0.922 | BW83: 2.3972 | BX83: 1.5674 | BY83: 368.8 | CA83: 67.8592 | CB83: 4.4256 | CC83: 9.22 | CD83: 22 | CE83: 32 | CF83: 0 | CG83: Ayçiçeği Küspesi, Solvent, %36 HP | CH83: 2.6 | CI83: 1.7 | CJ83: 92.2 | CK83: 40 | CL83: 32 | CM83: 22 | CN83: 18.4 | CO83: 0.48 | CP83: 1
AB84: 0 | AC84: 0 | AD84: 0 | AE84: 0 | AF84: GENEL | AH84: 0 | AI84: 0 | AJ84: 0 | AK84: 0 | AL84: GENEL | AO84: 0 | AP84: 0 | AQ84: 0 | AR84: 0 | BT84: Ayçiçeği Tohumu | BU84: 1 | BV84: 0.918 | BW84: 4.32378 | BX84: 3.10284 | BY84: 176.256 | CA84: 32.431104 | CB84: 6.5178 | CC84: 4.6818 | CD84: 16.7 | CE84: 24 | CF84: 0 | CG84: Ayçiçeği Tohumu | CH84: 4.71 | CI84: 3.38 | CJ84: 91.8 | CK84: 19.2 | CL84: 24 | CM84: 16.7 | CN84: 18.4 | CO84: 0.71 | CP84: 0.51
AA85: TOPLAM GÜNLÜK YEM MASRAFI | AB85: =SUM(AB67:AB84) -> 12.5627207 | AC85: =SUM(AC67:AC84) -> 8.857623733 | AD85: =SUM(AD67:AD84) -> 13.66685851 | AE85: =SUM(AE67:AE84) -> 19.83459738 | AF85: =SUM(AB85:AE85) -> 54.92180033 | AG85: TOPLAM GÜNLÜK YEM MASRAFI | AH85: =SUM(AH67:AH84) -> 7.293294527 | AI85: =SUM(AI67:AI84) -> 7.904113975 | AJ85: =SUM(AJ67:AJ84) -> 12.48035562 | AK85: =SUM(AK67:AK84) -> 16.8881098 | AL85: =SUM(AH85:AK85) -> 44.56587392 | BT85: Balık Unu, Hamsi | BU85: 1 | BV85: 0.92 | BW85: 3.1464 | BX85: 2.0424 | BY85: 655.04 | CA85: 335.38048 | CB85: 37.352 | CC85: 24.748 | CD85: 0 | CE85: 0 | CF85: 0 | CG85: Balık Unu, Hamsi | CH85: 3.42 | CI85: 2.22 | CJ85: 92 | CK85: 71.2 | CL85: 0 | CM85: 0 | CN85: 51.2 | CO85: 4.06 | CP85: 2.69
AA86: TOPLAM YEMTÜKETİM | AB86: =SUM(C3:C20) -> 3.656312857 | AC86: =SUM(D3:D20) -> 6.176589559 | AD86: =SUM(E3:E20) -> 10.33641455 | AE86: =SUM(F3:F20) -> 16.30838213 | AF86: =SUM(AB86:AE86) -> 36.4776991 | AG86: TOPLAM YEMTÜKETİM | AH86: =SUM(AO67:AO84) -> 1.086939054 | AI86: =SUM(AP67:AP84) -> 5.494138283 | AJ86: =SUM(AQ67:AQ84) -> 9.020861509 | AK86: =SUM(AR67:AR84) -> 11.95205448 | AL86: =SUM(AH86:AK86) -> 27.55399333 | BT86: Balık Unu, Ringa | BU86: 1 | BV86: 0.912 | BW86: 3.21024 | BX86: 2.12496 | BY86: 624.72 | CA86: 369.20952 | CB86: 48.7008 | CC86: 27.816 | CD86: 0 | CE86: 0 | CF86: 0 | CG86: Balık Unu, Ringa | CH86: 3.52 | CI86: 2.33 | CJ86: 91.2 | CK86: 68.5 | CL86: 0 | CM86: 0 | CN86: 59.1 | CO86: 5.34 | CP86: 3.05
AA87: BİRİM YEM MALİYET | AB87: =AB85/AB86 -> 3.435898731 | AC87: =AC85/AC86 -> 1.434063839 | AD87: =AD85/AD86 -> 1.322204953 | AE87: =AE85/AE86 -> 1.216221034 | AF87: =AF85/AF86 -> 1.505626772 | AG87: BİRİM YEM MALİYET | AH87: =AH85/AH86 -> 6.709938794 | AI87: =AI85/AI86 -> 1.438644892 | AJ87: =AJ85/AJ86 -> 1.383499304 | AK87: =AK85/AK86 -> 1.41298802 | AL87: =AL85/AL86 -> 1.617401637 | BT87: Ecomass | BU87: 1 | BV87: 0.94 | BW87: 3.0644 | BX87: 1.8424 | BY87: 479.964 | CA87: 63.0192732 | CB87: 20.022 | CC87: 4.7 | CD87: 5.32 | CE87: 18.9 | CF87: 0 | CG87: Ecomass | CH87: 3.26 | CI87: 1.96 | CJ87: 94 | CK87: 51.06 | CL87: 18.9 | CM87: 5.32 | CN87: 13.13 | CO87: 2.13 | CP87: 0.5
AA88: BİRİM SÜTÜN YEM MALİYETİ | AB88: =AB85/L4*1000 -> 17.94674386 | AC88: =AC85/M4*1000 -> 12.65374819 | AD88: =AD85/N4*1000 -> 19.52408359 | AE88: =AE85/O4*1000 -> 19.83459738 | AF88: =(AB85*L5+AC85*M5+AD85*N5+AE85*O5)/(L4/1000*L5+M4/1000*M5+N4/1000*N5+O5*O4/1000) -> 15.99648408 | AG88: BİRİM SÜTÜN YEM MALİYETİ | AI88: =AI85/S6 ->  | AJ88: =AJ85/T6 ->  | AK88: =AK85/U6 ->  | AL88: =(AH85*R5+AI85*S5+AJ85*T5+AK85*U5)/(S6*S5+T6*T5+U6*U5) ->  | BT88: Et Unu | BU88: 1 | BV88: 0.939 | BW88: 3.14565 | BX88: 2.07519 | BY88: 540.864 | CA88: 224.45856 | CB88: 83.1954 | CC88: 39.438 | CD88: 0 | CE88: 0 | CF88: 0 | CG88: Et Unu | CH88: 3.35 | CI88: 2.21 | CJ88: 93.9 | CK88: 57.6 | CL88: 0 | CM88: 0 | CN88: 41.5 | CO88: 8.86 | CP88: 4.2
BT89: Et-Kemik Unu | BU89: 1 | BV89: 0.94 | BW89: 2.3876 | BX89: 1.5322 | BY89: 509.48 | CA89: 261.87272 | CB89: 99.64 | CC89: 44.462 | CD89: 0 | CE89: 0 | CF89: 0 | CG89: Et-Kemik Unu | CH89: 2.54 | CI89: 1.63 | CJ89: 94 | CK89: 54.2 | CL89: 0 | CM89: 0 | CN89: 51.4 | CO89: 10.6 | CP89: 4.73
BT90: Kan Unu, Püskürtmeli Kurutulmuş | BU90: 1 | BV90: 0.902 | BW90: 3.22916 | BX90: 2.10166 | BY90: 861.41 | CA90: 610.73969 | CB90: 2.706 | CC90: 2.706 | CD90: 0 | CE90: 0 | CF90: 0 | CG90: Kan Unu, Püskürtmeli Kurutulmuş | CH90: 3.58 | CI90: 2.33 | CJ90: 90.2 | CK90: 95.5 | CL90: 0 | CM90: 0 | CN90: 70.9 | CO90: 0.3 | CP90: 0.3
BT91: Kan Unu, Teknede Kurutulmuş | BU91: 1 | BV91: 0.902 | BW91: 2.74208 | BX91: 1.7589 | BY91: 861.41 | CA91: 610.73969 | CB91: 2.706 | CC91: 2.706 | CD91: 0 | CE91: 0 | CF91: 0 | CG91: Kan Unu, Teknede Kurutulmuş | CH91: 3.04 | CI91: 1.95 | CJ91: 90.2 | CK91: 95.5 | CL91: 0 | CM91: 0 | CN91: 70.9 | CO91: 0.3 | CP91: 0.3
BT92: Kanola Küspesi, Pres | BU92: 1 | BV92: 0.903 | BW92: 2.48325 | BX92: 1.58928 | BY92: 341.334 | CA92: 90.794844 | CB92: 6.7725 | CC92: 9.933 | CD92: 20.5 | CE92: 29.9 | CF92: 0 | CG92: Kanola Küspesi, Pres | CH92: 2.75 | CI92: 1.76 | CJ92: 90.3 | CK92: 37.8 | CL92: 29.9 | CM92: 20.5 | CN92: 26.6 | CO92: 0.75 | CP92: 1.1
BT93: Kanola Tohumu | BU93: 1 | BV93: 0.899 | BW93: 4.42308 | BX93: 3.16448 | BY93: 184.295 | CA93: 28.565725 | CB93: 3.9556 | CC93: 6.1132 | CD93: 11.6 | CE93: 17.8 | CF93: 0 | CG93: Kanola Tohumu | CH93: 4.92 | CI93: 3.52 | CJ93: 89.9 | CK93: 20.5 | CL93: 17.8 | CM93: 11.6 | CN93: 15.5 | CO93: 0.44 | CP93: 0.68
BT94: Keten Tohumu Küspesi, Solvent | BU94: 1 | BV94: 0.903 | BW94: 2.26653 | BX94: 1.41771 | BY94: 294.378 | CA94: 126.58254 | CB94: 3.612 | CC94: 7.4949 | CD94: 22.1 | CE94: 36.1 | CF94: 0 | CG94: Keten Tohumu Küspesi, Solvent | CH94: 2.51 | CI94: 1.57 | CJ94: 90.3 | CK94: 32.6 | CL94: 36.1 | CM94: 22.1 | CN94: 43 | CO94: 0.4 | CP94: 0.83
BT95: Mısır Gluteni,44 | BU95: 1 | BV95: 0.864 | BW95: 2.62656 | BX95: 1.6848 | BY95: 404.352 | CA95: 250.3747584 | CB95: 0.5184 | CC95: 5.184 | CD95: 8.2 | CE95: 11.1 | CF95: 0 | CG95: Mısır Gluteni,44 | CH95: 3.04 | CI95: 1.95 | CJ95: 86.4 | CK95: 46.8 | CL95: 11.1 | CM95: 8.2 | CN95: 61.92 | CO95: 0.06 | CP95: 0.6
BT96: MIsır Gluteni,63 | BU96: 1 | BV96: 0.864 | BW96: 3.16224 | BX96: 2.05632 | BY96: 561.6 | CA96: 358.3008 | CB96: 0.5184 | CC96: 5.184 | CD96: 8.2 | CE96: 11.1 | CF96: 0 | CG96: MIsır Gluteni,63 | CH96: 3.66 | CI96: 2.38 | CJ96: 86.4 | CK96: 65 | CL96: 11.1 | CM96: 8.2 | CN96: 63.8 | CO96: 0.06 | CP96: 0.6
BT97: Pamuk Tohumu Küspesi, Pres, % 25 HP | BU97: 1 | BV97: 0.905 | BW97: 2.0815 | BX97: 1.267 | BY97: 249.78 | CA97: 104.9076 | CB97: 1.81 | CC97: 9.05 | CD97: 30 | CE97: 40 | CF97: 0 | CG97: Pamuk Tohumu Küspesi, Pres, % 25 HP | CH97: 2.3 | CI97: 1.4 | CJ97: 90.5 | CK97: 27.6 | CL97: 40 | CM97: 30 | CN97: 42 | CO97: 0.2 | CP97: 1
BT98: Pamuk Tohumu Küspesi, Pres, % 28 HP | BU98: 1 | BV98: 0.905 | BW98: 2.172 | BX98: 1.3575 | BY98: 279.645 | CA98: 117.4509 | CB98: 1.81 | CC98: 9.05 | CD98: 28 | CE98: 38 | CF98: 0 | CG98: Pamuk Tohumu Küspesi, Pres, % 28 HP | CH98: 2.4 | CI98: 1.5 | CJ98: 90.5 | CK98: 30.9 | CL98: 38 | CM98: 28 | CN98: 42 | CO98: 0.2 | CP98: 1
BT99: Pamuk Tohumu Küspesi, Pres, % 41 HP | BU99: 1 | BV99: 0.905 | BW99: 2.6245 | BX99: 1.629 | BY99: 406.345 | CA99: 203.1725 | CB99: 1.5385 | CC99: 5.43 | CD99: 18 | CE99: 31 | CF99: 0 | CG99: Pamuk Tohumu Küspesi, Pres, % 41 HP | CH99: 2.9 | CI99: 1.8 | CJ99: 90.5 | CK99: 44.9 | CL99: 31 | CM99: 18 | CN99: 50 | CO99: 0.17 | CP99: 0.6
BT100: Pamuk Tohumu Küspesi, Solvent, % 32 HP | BU100: 1 | BV100: 0.905 | BW100: 2.2625 | BX100: 1.448 | BY100: 320.37 | CA100: 128.148 | CB100: 1.81 | CC100: 9.05 | CD100: 26 | CE100: 36 | CF100: 0 | CG100: Pamuk Tohumu Küspesi, Solvent, % 32 HP | CH100: 2.5 | CI100: 1.6 | CJ100: 90.5 | CK100: 35.4 | CL100: 36 | CM100: 26 | CN100: 40 | CO100: 0.2 | CP100: 1
BT101: Pamuk Tohumu Küspesi, Solvent, % 36 HP | BU101: 1 | BV101: 0.905 | BW101: 2.353 | BX101: 1.49325 | BY101: 360.19 | CA101: 144.076 | CB101: 1.81 | CC101: 9.05 | CD101: 22 | CE101: 32 | CF101: 0 | CG101: Pamuk Tohumu Küspesi, Solvent, % 36 HP | CH101: 2.6 | CI101: 1.65 | CJ101: 90.5 | CK101: 39.8 | CL101: 32 | CM101: 22 | CN101: 40 | CO101: 0.2 | CP101: 1
BT102: Pamuk Tohumu Küspesi, Solvent, % 41 HP | BU102: 1 | BV102: 0.905 | BW102: 2.4435 | BX102: 1.54755 | BY102: 406.345 | CA102: 162.538 | CB102: 1.81 | CC102: 10.4075 | CD102: 19.9 | CE102: 30.8 | CF102: 0 | CG102: Pamuk Tohumu Küspesi, Solvent, % 41 HP | CH102: 2.7 | CI102: 1.71 | CJ102: 90.5 | CK102: 44.9 | CL102: 30.8 | CM102: 19.9 | CN102: 40 | CO102: 0.2 | CP102: 1.15
BT103: Pamuk Tohumu, Lintli | BU103: 1 | BV103: 0.901 | BW103: 2.62191 | BX103: 1.74794 | BY103: 211.735 | CA103: 37.477095 | CB103: 1.5317 | CC103: 5.406 | CD103: 40.1 | CE103: 50.3 | CF103: 0 | CG103: Pamuk Tohumu, Lintli | CH103: 2.91 | CI103: 1.94 | CJ103: 90.1 | CK103: 23.5 | CL103: 50.3 | CM103: 40.1 | CN103: 17.7 | CO103: 0.17 | CP103: 0.6
BT104: Peynir Altı Suyu, Sığır | BU104: 1 | BV104: 0.208 | BW104: 0.60736 | BX104: 0.38688 | BY104: 30.368 | CA104: 1.396928 | CB104: 2.8496 | CC104: 2.1632 | CD104: 0 | CE104: 0 | CF104: 0 | CG104: Peynir Altı Suyu, Sığır | CH104: 2.92 | CI104: 1.86 | CJ104: 20.8 | CK104: 14.6 | CL104: 0 | CM104: 0 | CN104: 4.6 | CO104: 1.37 | CP104: 1.04
BT105: Soya Fasülyesi | BU105: 1 | BV105: 0.9 | BW105: 3.645 | BX105: 2.475 | BY105: 352.8 | CA105: 75.852 | CB105: 2.88 | CC105: 5.4 | CD105: 13.1 | CE105: 19.5 | CF105: 0 | CG105: Soya Fasülyesi | CH105: 4.05 | CI105: 2.75 | CJ105: 90 | CK105: 39.2 | CL105: 19.5 | CM105: 13.1 | CN105: 21.5 | CO105: 0.32 | CP105: 0.6
BT106: Soya Küspesi , Solvent, %44 | BU106: 1 | BV106: 0.891 | BW106: 2.673 | BX106: 1.6929 | BY106: 436.59 | CA106: 106.09137 | CB106: 3.564 | CC106: 6.3261 | CD106: 15 | CE106: 20 | CF106: 0 | CG106: Soya Küspesi , Solvent, %44 | CH106: 3 | CI106: 1.9 | CJ106: 89.1 | CK106: 49 | CL106: 20 | CM106: 15 | CN106: 24.3 | CO106: 0.4 | CP106: 0.71
BT107: Soya Küspesi , Solvent, %46 | BU107: 1 | BV107: 0.891 | BW107: 2.673 | BX107: 1.6929 | BY107: 436.59 | CA107: 106.09137 | CB107: 3.564 | CC107: 6.3261 | CD107: 15 | CE107: 20 | CF107: 0 | CG107: Soya Küspesi , Solvent, %46 | CH107: 3 | CI107: 1.9 | CJ107: 89.1 | CK107: 49 | CL107: 20 | CM107: 15 | CN107: 24.3 | CO107: 0.4 | CP107: 0.71
BT108: Soya Küspesi , Solvent, %48 | BU108: 1 | BV108: 0.891 | BW108: 2.94921 | BX108: 1.89783 | BY108: 479.358 | CA108: 147.642264 | CB108: 3.1185 | CC108: 6.237 | CD108: 10 | CE108: 14.9 | CF108: 0 | CG108: Soya Küspesi , Solvent, %48 | CH108: 3.31 | CI108: 2.13 | CJ108: 89.1 | CK108: 53.8 | CL108: 14.9 | CM108: 10 | CN108: 30.8 | CO108: 0.35 | CP108: 0.7
BT109: Soya Küspesi , Solvent, %51 | BU109: 1 | BV109: 0.895 | BW109: 3.05195 | BX109: 1.97795 | BY109: 510.15 | CA109: 157.1262 | CB109: 3.1325 | CC109: 6.265 | CD109: 6.2 | CE109: 9.8 | CF109: 0 | CG109: Soya Küspesi , Solvent, %51 | CH109: 3.41 | CI109: 2.21 | CJ109: 89.5 | CK109: 57 | CL109: 9.8 | CM109: 6.2 | CN109: 30.8 | CO109: 0.35 | CP109: 0.7
BT110: Soya Küspesi, Ekspeller, %45 HP | BU110: 1 | BV110: 0.896 | BW110: 3.23456 | BX110: 2.13248 | BY110: 448 | CA110: 259.84 | CB110: 3.2256 | CC110: 5.9136 | CD110: 10.4 | CE110: 21.7 | CF110: 0 | CG110: Soya Küspesi, Ekspeller, %45 HP | CH110: 3.61 | CI110: 2.38 | CJ110: 89.6 | CK110: 50 | CL110: 21.7 | CM110: 10.4 | CN110: 58 | CO110: 0.36 | CP110: 0.66
BT111: Tam Yağlı Soya | BU111: 1 | BV111: 0.91 | BW111: 3.64 | BX111: 2.4752 | BY111: 391.3 | CA111: 113.8683 | CB111: 2.366 | CC111: 5.824 | CD111: 14.7 | CE111: 22.1 | CF111: 0 | CG111: Tam Yağlı Soya | CH111: 4 | CI111: 2.72 | CJ111: 91 | CK111: 43 | CL111: 22.1 | CM111: 14.7 | CN111: 29.1 | CO111: 0.26 | CP111: 0.64
BT112: Tüy Unu Hidrolize | BU112: 1 | BV112: 0.933 | BW112: 3.09756 | BX112: 2.00595 | BY112: 858.36 | CA112: 533.04156 | CB112: 3.0789 | CC112: 4.665 | CD112: 0 | CE112: 0 | CF112: 0 | CG112: Tüy Unu Hidrolize | CH112: 3.32 | CI112: 2.15 | CJ112: 93.3 | CK112: 92 | CL112: 0 | CM112: 0 | CN112: 62.1 | CO112: 0.33 | CP112: 0.5
BT113: Tüy Unu Hidrolize (+Biraz İç Organ ) | BU113: 1 | BV113: 0.915 | BW113: 3.2757 | BX113: 2.1594 | BY113: 777.75 | CA113: 482.98275 | CB113: 12.444 | CC113: 7.0455 | CD113: 0 | CE113: 0 | CF113: 0 | CG113: Tüy Unu Hidrolize (+Biraz İç Organ ) | CH113: 3.58 | CI113: 2.36 | CJ113: 91.5 | CK113: 85 | CL113: 0 | CM113: 0 | CN113: 62.1 | CO113: 1.36 | CP113: 0.77
BT114: Yer Fıstığı Küspesi, Solvent | BU114: 1 | BV114: 0.923 | BW114: 2.87976 | BX114: 1.846 | BY114: 478.114 | CA114: 43.986488 | CB114: 1.846 | CC114: 5.9072 | CD114: 13.5 | CE114: 21.4 | CF114: 0 | CG114: Yer Fıstığı Küspesi, Solvent | CH114: 3.12 | CI114: 2 | CJ114: 92.3 | CK114: 51.8 | CL114: 21.4 | CM114: 13.5 | CN114: 9.2 | CO114: 0.2 | CP114: 0.64
BT115: Yonca Unu,% 17 HP | BU115: 1 | BV115: 0.903 | BW115: 1.76988 | BX115: 1.07457 | BY115: 173.376 | CA115: 54.786816 | CB115: 13.2741 | CC115: 2.5284 | CD115: 32.8 | CE115: 41.6 | CF115: 0 | CG115: Yonca Unu,% 17 HP | CH115: 1.96 | CI115: 1.19 | CJ115: 90.3 | CK115: 19.2 | CL115: 41.6 | CM115: 32.8 | CN115: 31.6 | CO115: 1.47 | CP115: 0.28
BT116: Arpa , Ezme | BU116: 1 | BV116: 0.91 | BW116: 2.6572 | BX116: 1.6926 | BY116: 112.84 | CA116: 20.42404 | CB116: 0.546 | CC116: 3.549 | CD116: 7.2 | CE116: 20.8 | CF116: 0 | CG116: Arpa , Ezme | CH116: 2.92 | CI116: 1.86 | CJ116: 91 | CK116: 12.4 | CL116: 20.8 | CM116: 7.2 | CN116: 18.1 | CO116: 0.06 | CP116: 0.39
BT117: Buğday, Ezme | BU117: 1 | BV117: 0.894 | BW117: 2.7714 | BX117: 1.77906 | BY117: 126.948 | CA117: 24.881808 | CB117: 0.447 | CC117: 3.8442 | CD117: 4.4 | CE117: 13.4 | CF117: 0 | CG117: Buğday, Ezme | CH117: 3.1 | CI117: 1.99 | CJ117: 89.4 | CK117: 14.2 | CL117: 13.4 | CM117: 4.4 | CN117: 19.6 | CO117: 0.05 | CP117: 0.43
BT118: Havuç | BU118: 1 | BV118: 0.11 | BW118: 0.363 | BX118: 0.2079 | BY118: 11 | CA118: 7.282 | CB118: 0.44 | CC118: 0.385 | CD118: 8 | CE118: 9 | CF118: 0 | CG118: Havuç | CH118: 3.3 | CI118: 1.89 | CJ118: 11 | CK118: 10 | CL118: 9 | CM118: 8 | CN118: 66.2 | CO118: 0.4 | CP118: 0.35
BT119: Melas, Şeker Kamışı | BU119: 1 | BV119: 0.743 | BW119: 2.06554 | BX119: 1.30768 | BY119: 43.094 | CA119: 6.334818 | CB119: 7.43 | CC119: 0.743 | CD119: 0.2 | CE119: 0.4 | CF119: 0 | CG119: Melas, Şeker Kamışı | CH119: 2.78 | CI119: 1.76 | CJ119: 74.3 | CK119: 5.8 | CL119: 0.4 | CM119: 0.2 | CN119: 14.7 | CO119: 1 | CP119: 0.1
BT120: Melas, Şeker Pancarı | BU120: 1 | BV120: 0.779 | BW120: 2.24352 | BX120: 1.43336 | BY120: 66.215 | CA120: 9.733605 | CB120: 1.1685 | CC120: 0.2337 | CD120: 0.1 | CE120: 0.1 | CF120: 0 | CG120: Melas, Şeker Pancarı | CH120: 2.88 | CI120: 1.84 | CJ120: 77.9 | CK120: 8.5 | CL120: 0.1 | CM120: 0.1 | CN120: 14.7 | CO120: 0.15 | CP120: 0.03
BT121: Mısır Grizi | BU121: 1 | BV121: 0.885 | BW121: 2.6019 | BX121: 1.6638 | BY121: 105.315 | CA121: 25.591545 | CB121: 0.2655 | CC121: 5.7525 | CD121: 6.2 | CE121: 21.1 | CF121: 0 | CG121: Mısır Grizi | CH121: 2.94 | CI121: 1.88 | CJ121: 88.5 | CK121: 11.9 | CL121: 21.1 | CM121: 6.2 | CN121: 24.3 | CO121: 0.03 | CP121: 0.65
BT122: Mısır Koçanı(Taneli),Öğütülmüş | BU122: 1 | BV122: 0.892 | BW122: 2.59572 | BX122: 1.65912 | BY122: 76.712 | CA122: 25.161536 | CB122: 0.5352 | CC122: 2.5868 | CD122: 8 | CE122: 21.5 | CF122: 0 | CG122: Mısır Koçanı(Taneli),Öğütülmüş | CH122: 2.91 | CI122: 1.86 | CJ122: 89.2 | CK122: 8.6 | CL122: 21.5 | CM122: 8 | CN122: 32.8 | CO122: 0.06 | CP122: 0.29
BT123: Mısır Koçanı(Taneli),Öğütülmüş, Nemi Yüksek | BU123: 1 | BV123: 0.671 | BW123: 2.03313 | BX123: 1.30174 | BY123: 56.364 | CA123: 16.683744 | CB123: 0.3355 | CC123: 1.8788 | CD123: 9.4 | CE123: 21 | CF123: 0 | CG123: Mısır Koçanı(Taneli),Öğütülmüş, Nemi Yüksek | CH123: 3.03 | CI123: 1.94 | CJ123: 67.1 | CK123: 8.4 | CL123: 21 | CM123: 9.4 | CN123: 29.6 | CO123: 0.05 | CP123: 0.28
BT124: Mısır, Ezilmiş, Nemi Yüksek | BU124: 1 | BV124: 0.718 | BW124: 2.23298 | BX124: 1.44318 | BY124: 66.056 | CA124: 21.732424 | CB124: 0.2154 | CC124: 2.154 | CD124: 3.6 | CE124: 10.3 | CF124: 0 | CG124: Mısır, Ezilmiş, Nemi Yüksek | CH124: 3.11 | CI124: 2.01 | CJ124: 71.8 | CK124: 9.2 | CL124: 10.3 | CM124: 3.6 | CN124: 32.9 | CO124: 0.03 | CP124: 0.3
BT125: Mısır, Kırılmış, Kuru | BU125: 1 | BV125: 0.881 | BW125: 2.62538 | BX125: 1.68271 | BY125: 82.814 | CA125: 30.64118 | CB125: 0.3524 | CC125: 2.643 | CD125: 3.4 | CE125: 9.5 | CF125: 0 | CG125: Mısır, Kırılmış, Kuru | CH125: 2.98 | CI125: 1.91 | CJ125: 88.1 | CK125: 9.4 | CL125: 9.5 | CM125: 3.4 | CN125: 37 | CO125: 0.04 | CP125: 0.3
BT126: Mısır, Öğütülmüş , Kuru | BU126: 1 | BV126: 0.881 | BW126: 2.74872 | BX126: 1.77081 | BY126: 82.814 | CA126: 30.64118 | CB126: 0.3524 | CC126: 2.643 | CD126: 3.4 | CE126: 9.5 | CF126: 0 | CG126: Mısır, Öğütülmüş , Kuru | CH126: 3.12 | CI126: 2.01 | CJ126: 88.1 | CK126: 9.4 | CL126: 9.5 | CM126: 3.4 | CN126: 37 | CO126: 0.04 | CP126: 0.3
BT127: Mısır, Öğütülmüş , Nemi Yüksek | BU127: 1 | BV127: 0.718 | BW127: 2.31914 | BX127: 1.50062 | BY127: 66.056 | CA127: 21.732424 | CB127: 0.2154 | CC127: 2.154 | CD127: 3.6 | CE127: 10.3 | CF127: 0 | CG127: Mısır, Öğütülmüş , Nemi Yüksek | CH127: 3.23 | CI127: 2.09 | CJ127: 71.8 | CK127: 9.2 | CL127: 10.3 | CM127: 3.6 | CN127: 32.9 | CO127: 0.03 | CP127: 0.3
BT128: Mısır, Pul Haline Gelmiş | BU128: 1 | BV128: 0.881 | BW128: 2.85444 | BX128: 1.84129 | BY128: 82.814 | CA128: 52.752518 | CB128: 0.3524 | CC128: 2.643 | CD128: 3.4 | CE128: 9.5 | CF128: 0 | CG128: Mısır, Pul Haline Gelmiş | CH128: 3.24 | CI128: 2.09 | CJ128: 88.1 | CK128: 9.4 | CL128: 9.5 | CM128: 3.4 | CN128: 63.7 | CO128: 0.04 | CP128: 0.3
BT129: Patates | BU129: 1 | BV129: 0.24 | BW129: 0.7584 | BX129: 0.4368 | BY129: 22.32 | CA129: 14.77584 | CB129: 0.096 | CC129: 0.576 | CD129: 1.4 | CE129: 9 | CF129: 0 | CG129: Patates | CH129: 3.16 | CI129: 1.82 | CJ129: 24 | CK129: 9.3 | CL129: 9 | CM129: 1.4 | CN129: 66.2 | CO129: 0.04 | CP129: 0.24
BT130: Sorgum, Kuru Ezme | BU130: 1 | BV130: 0.886 | BW130: 2.50738 | BX130: 1.5948 | BY130: 102.776 | CA130: 36.99936 | CB130: 0.6202 | CC130: 3.101 | CD130: 5.9 | CE130: 10.9 | CF130: 0 | CG130: Sorgum, Kuru Ezme | CH130: 2.83 | CI130: 1.8 | CJ130: 88.6 | CK130: 11.6 | CL130: 10.9 | CM130: 5.9 | CN130: 36 | CO130: 0.07 | CP130: 0.35
BT131: Sorgum, Pul Haline Getirilmiş | BU131: 1 | BV131: 0.886 | BW131: 2.80862 | BX131: 1.80744 | BY131: 102.776 | CA131: 60.226736 | CB131: =CJ131*CO131/10 -> 0.6202 | CC131: 3.101 | CD131: 5.9 | CE131: 10.9 | CF131: 0 | CG131: Sorgum, Pul Haline Getirilmiş | CH131: 3.17 | CI131: 2.04 | CJ131: 88.6 | CK131: 11.6 | CL131: 10.9 | CM131: 5.9 | CN131: 58.6 | CO131: 0.07 | CP131: 0.35
BT132: =CG132 -> Şeker Pancarı | BU132: 1 | BV132: =CJ132*10/1000 -> 0.185 | BW132: =CH132*CJ132/100 -> 0.555 | BX132: =CI132*CJ132/100 -> 0.32375 | BY132: =CK132*CJ132/10 -> 13.875 | CA132: =BY132*CN132/100 -> 9.18525 | CB132: 1.073 | CC132: =CP132*CJ132/10 -> 0.296 | CD132: =CM132 -> 1.4 | CE132: =CL132 -> 9 | CF132: =CQ132 -> 0 | CG132: Şeker Pancarı | CH132: 3 | CI132: 1.75 | CJ132: 18.5 | CK132: 7.5 | CL132: 9 | CM132: 1.4 | CN132: 66.2 | CO132: 0.58 | CP132: 0.16
BT133: Tritikale | BU133: =BU132 -> 1 | BV133: 0.89 | BW133: 2.8035 | BX133: 1.5753 | BY133: 118.37 | CA133: 23.20052 | CB133: 0.356 | CC133: 3.026 | CD133: 5.12 | CE133: 17.3 | CF133: 0 | CG133: Tritikale | CH133: 3.15 | CI133: 1.77 | CJ133: 89 | CK133: 13.3 | CL133: 17.3 | CM133: 5.12 | CN133: 19.6 | CO133: 0.04 | CP133: 0.34
BT134: Yağ, Bitkisel | BU134: 1 | BV134: 1 | BW134: 7.07 | BX134: 5.65 | BY134: 0 | CA134: 0 | CB134: 0 | CC134: 0 | CD134: 0 | CE134: 0 | CF134: 0 | CG134: Yağ, Bitkisel | CH134: 7.07 | CI134: 5.65 | CJ134: 100 | CK134: 0 | CL134: 0 | CM134: 0 | CN134: 0 | CO134: 0 | CP134: 0
BT135: Yağ, Ca Sabunları | BU135: 1 | BV135: 0.953 | BW135: 5.97531 | BX135: 4.78406 | BY135: 0 | CA135: 0 | CB135: 0 | CC135: 0 | CD135: 0 | CE135: 0 | CF135: 0 | CG135: Yağ, Ca Sabunları | CH135: 6.27 | CI135: 5.02 | CJ135: 95.3 | CK135: 0 | CL135: 0 | CM135: 0 | CN135: 0 | CO135: 0 | CP135: 0
BT136: Yağ, Hidrolize(Kuyruk Yağı Yağ Asitleri) | BU136: 1 | BV136: 0.998 | BW136: 6.74648 | BX136: 5.39918 | BY136: 0 | CA136: 0 | CB136: 0 | CC136: 0 | CD136: 0 | CE136: 0 | CF136: 0 | CG136: Yağ, Hidrolize(Kuyruk Yağı Yağ Asitleri) | CH136: 6.76 | CI136: 5.41 | CJ136: 99.8 | CK136: 0 | CL136: 0 | CM136: 0 | CN136: 0 | CO136: 0 | CP136: 0
BT137: YAĞ,Kısmi Hidrojenize Kuyruk Yağı | BU137: 1 | BV137: 1 | BW137: 3.72 | BX137: 2.97 | BY137: 0 | CA137: 0 | CB137: 0 | CC137: 0 | CD137: 0 | CE137: 0 | CF137: 0 | CG137: YAĞ,Kısmi Hidrojenize Kuyruk Yağı | CH137: 3.72 | CI137: 2.97 | CJ137: 100 | CK137: 0 | CL137: 0 | CM137: 0 | CN137: 0 | CO137: 0 | CP137: 0
BT138: Yağ, Kuyruk | BU138: 1 | BV138: 0.998 | BW138: 5.64868 | BX138: 4.52094 | BY138: 0 | CA138: 0 | CB138: 0 | CC138: 0 | CD138: 0 | CE138: 0 | CF138: 0 | CG138: Yağ, Kuyruk | CH138: 5.66 | CI138: 4.53 | CJ138: 99.8 | CK138: 0 | CL138: 0 | CM138: 0 | CN138: 0 | CO138: 0 | CP138: 0
BT139: Yem Şalgamı | BU139: 1 | BV139: 0.09 | BW139: 0.279 | BX139: 0.18 | BY139: 10.8 | CA139: 6.048 | CB139: 0.63 | CC139: 0.306 | CD139: 34 | CE139: 44 | CF139: 0 | CG139: Yem Şalgamı | CH139: 3.1 | CI139: 2 | CJ139: 9 | CK139: 12 | CL139: 44 | CM139: 34 | CN139: 56 | CO139: 0.7 | CP139: 0.34
BT140: Yulaf, Ezme | BU140: 1 | BV140: 0.9 | BW140: 2.502 | BX140: 1.593 | BY140: 118.8 | CA140: 13.7808 | CB140: 0.99 | CC140: 3.6 | CD140: 14.6 | CE140: 30 | CF140: 0 | CG140: Yulaf, Ezme | CH140: 2.78 | CI140: 1.77 | CJ140: 90 | CK140: 13.2 | CL140: 30 | CM140: 14.6 | CN140: 11.6 | CO140: 0.11 | CP140: 0.4
BT141: Arpa, Malt Cili | BU141: 1 | BV141: 0.905 | BW141: 2.1539 | BX141: 1.34845 | BY141: 181.905 | CA141: 38.56386 | CB141: 2.172 | CC141: 4.6155 | CD141: 21.8 | CE141: 47 | CF141: 0 | CG141: Arpa, Malt Cili | CH141: 2.38 | CI141: 1.49 | CJ141: 90.5 | CK141: 20.1 | CL141: 47 | CM141: 21.8 | CN141: 21.2 | CO141: 0.24 | CP141: 0.51
BT142: Badem Kabukları | BU142: 1 | BV142: 0.869 | BW142: 1.64241 | BX142: 0.99066 | BY142: 56.485 | CA142: 28.58141 | CB142: 2.4332 | CC142: 1.1297 | CD142: 28.7 | CE142: 36.8 | CF142: 0 | CG142: Badem Kabukları | CH142: 1.89 | CI142: 1.14 | CJ142: 86.9 | CK142: 6.5 | CL142: 36.8 | CM142: 28.7 | CN142: 50.6 | CO142: 0.28 | CP142: 0.13
BT143: Bira Posası, Kuru | BU143: 1 | BV143: 0.907 | BW143: 2.43983 | BX143: 1.55097 | BY143: 264.844 | CA143: 125.8009 | CB143: 2.721 | CC143: 6.0769 | CD143: 22.2 | CE143: 47.4 | CF143: 0 | CG143: Bira Posası, Kuru | CH143: 2.69 | CI143: 1.71 | CJ143: 90.7 | CK143: 29.2 | CL143: 47.4 | CM143: 22.2 | CN143: 47.5 | CO143: 0.3 | CP143: 0.67
BT144: Bira Posası, Yaş | BU144: 1 | BV144: 0.218 | BW144: 0.58642 | BX144: 0.37278 | BY144: 61.912 | CA144: 18.202128 | CB144: 0.763 | CC144: 1.2862 | CD144: 23.1 | CE144: 47.1 | CF144: 0 | CG144: Bira Posası, Yaş | CH144: 2.69 | CI144: 1.71 | CJ144: 21.8 | CK144: 28.4 | CL144: 47.1 | CM144: 23.1 | CN144: 29.4 | CO144: 0.35 | CP144: 0.59
BT145: Bon Kalite | BU145: 1 | BV145: 0.88 | BW145: 3.0536 | BX145: 1.6896 | BY145: 154.88 | CA145: 27.41376 | CB145: 1.408 | CC145: 8.976 | CD145: 6 | CE145: 20 | CF145: 0 | CG145: Bon Kalite | CH145: 3.47 | CI145: 1.92 | CJ145: 88 | CK145: 17.6 | CL145: 20 | CM145: 6 | CN145: 17.7 | CO145: 0.16 | CP145: 1.02
BT146: Buğday, DDGS, APAK | BU146: 1 | BV146: 0.3198 | BW146: 0.889044 | BX146: 0.57564 | BY146: 78.0312 | CA146: 30.042012 | CB146: 0.70356 | CC146: 2.65434 | CD146: 24.72 | CE146: 47.78 | CF146: 0 | CG146: Buğday, DDGS, APAK | CH146: 2.78 | CI146: 1.8 | CJ146: 31.98 | CK146: 24.4 | CL146: 47.78 | CM146: 24.72 | CN146: 38.5 | CO146: 0.22 | CP146: 0.83
BT147: Buğday, DDGS, Yas | BU147: 1 | BV147: 0.3154 | BW147: 0.955662 | BX147: 0.618184 | BY147: 90.10978 | CA147: 38.93643594 | CB147: 0.69388 | CC147: 2.61782 | CD147: 19.43 | CE147: 54.04 | CF147: 0 | CG147: Buğday, DDGS, Yas | CH147: 3.03 | CI147: 1.96 | CJ147: 31.54 | CK147: 28.57 | CL147: 54.04 | CM147: 19.43 | CN147: 43.21 | CO147: 0.22 | CP147: 0.83
BT148: Buğday DDGS + % 20 SPP, Ambalajlı | BU148: 1 | BV148: 0.28832 | BW148: 0.85804032 | BX148: 0.54146496 | BY148: 72.2991232 | CA148: 34.56476482 | CB148: 1.00912 | CC148: 1.9721088 | CD148: 20.164 | CE148: 52.248 | CF148: 0 | CG148: Buğday DDGS + % 20 SPP, Ambalajlı | CH148: 2.976 | CI148: 1.878 | CJ148: 28.832 | CK148: 25.076 | CL148: 52.248 | CM148: 20.164 | CN148: 47.808 | CO148: 0.35 | CP148: 0.684
BT149: Buğday Kepeği | BU149: 1 | BV149: 0.891 | BW149: 2.27205 | BX149: 1.43451 | BY149: 154.143 | CA149: 22.504878 | CB149: 1.1583 | CC149: 10.5138 | CD149: 15.5 | CE149: 42.5 | CF149: 0 | CG149: Buğday Kepeği | CH149: 2.55 | CI149: 1.61 | CJ149: 89.1 | CK149: 17.3 | CL149: 42.5 | CM149: 15.5 | CN149: 14.6 | CO149: 0.13 | CP149: 1.18
BT150: Buğday Kepeği, Razmol | BU150: 1 | BV150: 0.895 | BW150: 2.3628 | BX150: 1.49465 | BY150: 165.575 | CA150: 29.306775 | CB150: 1.432 | CC150: 9.129 | CD150: 12.1 | CE150: 36.7 | CF150: 0 | CG150: Buğday Kepeği, Razmol | CH150: 2.64 | CI150: 1.67 | CJ150: 89.5 | CK150: 18.5 | CL150: 36.7 | CM150: 12.1 | CN150: 17.7 | CO150: 0.16 | CP150: 1.02
BT151: Çikolata Yan Ürünleri | BU151: 1 | BV151: 0.952 | BW151: 3.58904 | BX151: 2.43712 | BY151: 113.288 | CA151: 16.653336 | CB151: 2.0944 | CC151: 2.856 | CD151: 15.7 | CE151: 23.8 | CF151: 0 | CG151: Çikolata Yan Ürünleri | CH151: 3.77 | CI151: 2.56 | CJ151: 95.2 | CK151: 11.9 | CL151: 23.8 | CM151: 15.7 | CN151: 14.7 | CO151: 0.22 | CP151: 0.3
BT152: Domates Kurusu | BU152: 1 | BV152: 0.8618 | BW152: 1.98214 | BX152: 1.2927 | BY152: 119.53166 | CA152: 28.92666172 | CB152: 1.89596 | CC152: 4.05046 | CD152: 35 | CE152: 40 | CF152: 0 | CG152: Domates Kurusu | CH152: 2.3 | CI152: 1.5 | CJ152: 86.18 | CK152: 13.87 | CL152: 40 | CM152: 35 | CN152: 24.2 | CO152: 0.22 | CP152: 0.47
BT153: Domates Posası, Yaş | BU153: 1 | BV153: 0.247 | BW153: 0.58539 | BX153: 0.37544 | BY153: 47.671 | CA153: 11.536382 | CB153: 0.5434 | CC153: 1.1609 | CD153: 47.6 | CE153: 60 | CF153: 0 | CG153: Domates Posası, Yaş | CH153: 2.37 | CI153: 1.52 | CJ153: 24.7 | CK153: 19.3 | CL153: 60 | CM153: 47.6 | CN153: 24.2 | CO153: 0.22 | CP153: 0.47
BT154: Elma Posası, Yaş | BU154: 1 | BV154: 0.22 | BW154: 0.5478 | BX154: 0.275 | BY154: 11.88 | CA154: 2.87496 | CB154: 0.506 | CC154: 0.242 | CD154: 28 | CE154: 48 | CF154: 0 | CG154: Elma Posası, Yaş | CH154: 2.49 | CI154: 1.25 | CJ154: 22 | CK154: 5.4 | CL154: 48 | CM154: 28 | CN154: 24.2 | CO154: 0.23 | CP154: 0.11
BT155: Fırıncılık Yan Ürünleri, Bisküvi Artığı | BU155: 1 | BV155: 0.901 | BW155: 3.0634 | BX155: 2.01824 | BY155: 87.397 | CA155: 15.469269 | CB155: 2.0723 | CC155: 2.6129 | CD155: 6.5 | CE155: 12.7 | CF155: 0 | CG155: Fırıncılık Yan Ürünleri, Bisküvi Artığı | CH155: 3.4 | CI155: 2.24 | CJ155: 90.1 | CK155: 9.7 | CL155: 12.7 | CM155: 6.5 | CN155: 17.7 | CO155: 0.23 | CP155: 0.29
BT156: Fırıncılık Yan Ürünleri, Ekmak Artığı | BU156: 1 | BV156: 0.683 | BW156: 2.21975 | BX156: 1.42747 | BY156: 102.45 | CA156: 18.13365 | CB156: 0.9562 | CC156: 1.366 | CD156: 3.1 | CE156: 8.9 | CF156: 0 | CG156: Fırıncılık Yan Ürünleri, Ekmak Artığı | CH156: 3.25 | CI156: 2.09 | CJ156: 68.3 | CK156: 15 | CL156: 8.9 | CM156: 3.1 | CN156: 17.7 | CO156: 0.14 | CP156: 0.2
BT157: Fırıncılık Yan Ürünleri, Tahıl Artığı | BU157: 1 | BV157: 0.885 | BW157: 2.71695 | BX157: 1.74345 | BY157: 80.535 | CA157: 11.75811 | CB157: 1.5045 | CC157: 2.5665 | CD157: 3.9 | CE157: 10 | CF157: 0 | CG157: Fırıncılık Yan Ürünleri, Tahıl Artığı | CH157: 3.07 | CI157: 1.97 | CJ157: 88.5 | CK157: 9.1 | CL157: 10 | CM157: 3.9 | CN157: 14.6 | CO157: 0.17 | CP157: 0.29
BT158: Fırıncılık Yan Ürünleri,Un Artığı | BU158: 1 | BV158: 0.847 | BW158: 2.85439 | BX158: 1.87187 | BY158: 105.875 | CA158: 18.739875 | CB158: 1.694 | CC158: 3.0492 | CD158: 6.5 | CE158: 13.9 | CF158: 0 | CG158: Fırıncılık Yan Ürünleri,Un Artığı | CH158: 3.37 | CI158: 2.21 | CJ158: 84.7 | CK158: 12.5 | CL158: 13.9 | CM158: 6.5 | CN158: 17.7 | CO158: 0.2 | CP158: 0.36
BT159: Havuç Posası , Yaş | BU159: 1 | BV159: 0.14 | BW159: 0.3486 | BX159: 0.1764 | BY159: 8.4 | CA159: 5.5608 | CB159: 0.56 | CC159: 0.49 | CD159: 23 | CE159: 40 | CF159: 0 | CG159: Havuç Posası , Yaş | CH159: 2.49 | CI159: 1.26 | CJ159: 14 | CK159: 6 | CL159: 40 | CM159: 23 | CN159: 66.2 | CO159: 0.4 | CP159: 0.35
BT160: İncir Kurusu | BU160: 1 | BV160: 0.8518 | BW160: 1.925068 | BX160: 1.36288 | BY160: 38.07546 | CA160: 7.615092 | CB160: 0 | CC160: 0 | CD160: 8.02 | CE160: 8.9 | CF160: 0 | CG160: İncir Kurusu | CH160: 2.26 | CI160: 1.6 | CJ160: 85.18 | CK160: 4.47 | CL160: 8.9 | CM160: 8.02 | CN160: 20 | CO160: 0 | CP160: 0
BT161: Mısır DDGS, Kuru | BU161: 1 | BV161: 0.902 | BW161: 2.73306 | BX161: 1.77694 | BY161: 267.894 | CA161: 113.051268 | CB161: 1.9844 | CC161: 7.4866 | CD161: 19.7 | CE161: 38.8 | CF161: 0 | CG161: Mısır DDGS, Kuru | CH161: 3.03 | CI161: 1.97 | CJ161: 90.2 | CK161: 29.7 | CL161: 38.8 | CM161: 19.7 | CN161: 42.2 | CO161: 0.22 | CP161: 0.83
BT162: Mısır Gluten Yemi | BU162: 1 | BV162: 0.894 | BW162: 2.44062 | BX162: 1.54662 | BY162: 212.772 | CA162: 51.06528 | CB162: 0.6258 | CC162: 8.94 | CD162: 12.1 | CE162: 35.5 | CF162: 0 | CG162: Mısır Gluten Yemi | CH162: 2.73 | CI162: 1.73 | CJ162: 89.4 | CK162: 23.8 | CL162: 35.5 | CM162: 12.1 | CN162: 24 | CO162: 0.07 | CP162: 1
BT163: Mısır Hasat Artıkları(fodder) | BU163: 1 | BV163: 0.8 | BW163: 1.784 | BX163: 1.056 | BY163: 72 | CA163: 32.4 | CB163: 4 | CC163: 2 | CD163: 29 | CE163: 48 | CF163: 0 | CG163: Mısır Hasat Artıkları(fodder) | CH163: 2.23 | CI163: 1.32 | CJ163: 80 | CK163: 9 | CL163: 48 | CM163: 29 | CN163: 45 | CO163: 0.5 | CP163: 0.25
BT164: Mısır Hasat Artıkları(saplar)(stover) | BU164: 1 | BV164: 0.8 | BW164: 1.464 | BX164: 0.864 | BY164: 40 | CA164: 12 | CB164: 3.6 | CC164: 1.2 | CD164: 43 | CE164: 70 | CF164: 0 | CG164: Mısır Hasat Artıkları(saplar)(stover) | CH164: 1.83 | CI164: 1.08 | CJ164: 80 | CK164: 5 | CL164: 70 | CM164: 43 | CN164: 30 | CO164: 0.45 | CP164: 0.15
BT165: Mısır Özü Küspesi | BU165: 1 | BV165: 0.93 | BW165: 2.7714 | BX165: 1.5717 | BY165: 198.834 | CA165: 126.657258 | CB165: 0.372 | CC165: 5.115 | CD165: 14.18 | CE165: 47.91 | CF165: 0 | CG165: Mısır Özü Küspesi | CH165: 2.98 | CI165: 1.69 | CJ165: 93 | CK165: 21.38 | CL165: 47.91 | CM165: 14.18 | CN165: 63.7 | CO165: 0.04 | CP165: 0.55
BT166: Mısır Sömeği | BU166: 1 | BV166: 0.908 | BW166: 1.52544 | BX166: 0.89892 | BY166: 27.24 | CA166: 9.58848 | CB166: 0.908 | CC166: 0.5448 | CD166: 42.2 | CE166: 86.2 | CF166: 0 | CG166: Mısır Sömeği | CH166: 1.68 | CI166: 0.99 | CJ166: 90.8 | CK166: 3 | CL166: 86.2 | CM166: 42.2 | CN166: 35.2 | CO166: 0.1 | CP166: 0.06
BT167: Pamuk Tohumu Kapçığı | BU167: 1 | BV167: 0.89 | BW167: 0.8455 | BX167: 0.4272 | BY167: 55.18 | CA167: 27.92108 | CB167: 1.602 | CC167: 1.068 | CD167: 64.9 | CE167: 85 | CF167: 0 | CG167: Pamuk Tohumu Kapçığı | CH167: 0.95 | CI167: 0.48 | CJ167: 89 | CK167: 6.2 | CL167: 85 | CM167: 64.9 | CN167: 50.6 | CO167: 0.18 | CP167: 0.12
BT168: Patates Yan Ürünleri | BU168: 1 | BV168: 0.354 | BW168: 1.00536 | BX168: 0.6549 | BY168: 37.17 | CA168: 24.60654 | CB168: 1.7346 | CC168: 1.0266 | CD168: 16.5 | CE168: 22.1 | CF168: 0 | CG168: Patates Yan Ürünleri | CH168: 2.84 | CI168: 1.85 | CJ168: 35.4 | CK168: 10.5 | CL168: 22.1 | CM168: 16.5 | CN168: 66.2 | CO168: 0.49 | CP168: 0.29
BT169: Pirinç Kepeği | BU169: 1 | BV169: 0.906 | BW169: 2.79954 | BX169: 1.8573 | BY169: 140.43 | CA169: 57.15501 | CB169: 0.6342 | CC169: 16.1268 | CD169: 13.1 | CE169: 26.1 | CF169: 0 | CG169: Pirinç Kepeği | CH169: 3.09 | CI169: 2.05 | CJ169: 90.6 | CK169: 15.5 | CL169: 26.1 | CM169: 13.1 | CN169: 40.7 | CO169: 0.07 | CP169: 1.78
BT170: Soya Tohum Kabukları | BU170: 1 | BV170: 0.909 | BW170: 2.12706 | BX170: 1.32714 | BY170: 126.351 | CA170: 43.464744 | CB170: 5.7267 | CC170: 1.5453 | CD170: 44.6 | CE170: 60.3 | CF170: 0 | CG170: Soya Tohum Kabukları | CH170: 2.34 | CI170: 1.46 | CJ170: 90.9 | CK170: 13.9 | CL170: 60.3 | CM170: 44.6 | CN170: 34.4 | CO170: 0.63 | CP170: 0.17
BT171: Şeker Pancarı Posası, Kuru | BU171: 1 | BV171: 0.883 | BW171: 2.08388 | BX171: 1.29801 | BY171: 88.3 | CA171: 58.4546 | CB171: 8.0353 | CC171: 0.7947 | CD171: 23.1 | CE171: 45.8 | CF171: 0 | CG171: Şeker Pancarı Posası, Kuru | CH171: 2.36 | CI171: 1.47 | CJ171: 88.3 | CK171: 10 | CL171: 45.8 | CM171: 23.1 | CN171: 66.2 | CO171: 0.91 | CP171: 0.09
BT172: Şeker Pancarı Posası, Yaş | BU172: 1 | BV172: 0.17 | BW172: 0.4692 | BX172: 0.2635 | BY172: 19.04 | CA172: 12.60448 | CB172: 1.479 | CC172: 0.17 | CD172: 23.1 | CE172: 45.8 | CF172: 0 | CG172: Şeker Pancarı Posası, Yaş | CH172: 2.76 | CI172: 1.55 | CJ172: 17 | CK172: 11.2 | CL172: 45.8 | CM172: 23.1 | CN172: 66.2 | CO172: 0.87 | CP172: 0.1
BT173: Şeker Pancarı Posası, Yaş, Ambalajlı | BU173: 1 | BV173: 0.19 | BW173: 0.5244 | BX173: 0.2945 | BY173: 21.09 | CA173: 13.96158 | CB173: 1.653 | CC173: 0.19 | CD173: 23.1 | CE173: 45.8 | CF173: 0 | CG173: Şeker Pancarı Posası, Yaş, Ambalajlı | CH173: 2.76 | CI173: 1.55 | CJ173: 19 | CK173: 11.1 | CL173: 45.8 | CM173: 23.1 | CN173: 66.2 | CO173: 0.87 | CP173: 0.1
BT174: Turunçgil Posası, Kuru | BU174: 1 | BV174: 0.858 | BW174: 2.36808 | BX174: 1.51008 | BY174: 59.202 | CA174: 14.326884 | CB174: 16.4736 | CC174: 1.0296 | CD174: 22.2 | CE174: 24.2 | CF174: 0 | CG174: Turunçgil Posası, Kuru | CH174: 2.76 | CI174: 1.76 | CJ174: 85.8 | CK174: 6.9 | CL174: 24.2 | CM174: 22.2 | CN174: 24.2 | CO174: 1.92 | CP174: 0.12
BT175: Üzüm Kurusu | BU175: 1 | BV175: 0.8644 | BW175: 1.64236 | BX175: 1.184228 | BY175: 48.31996 | CA175: 9.663992 | CB175: 5.01352 | CC175: 1.46948 | CD175: 19.2 | CE175: 22.84 | CF175: 0 | CG175: Üzüm Kurusu | CH175: 1.9 | CI175: 1.37 | CJ175: 86.44 | CK175: 5.59 | CL175: 22.84 | CM175: 19.2 | CN175: 20 | CO175: 0.58 | CP175: 0.17
BT176: Üzüm Posası,Kuru | BU176: 1 | BV176: 0.9 | BW176: 0.657 | BX176: 0.387 | BY176: 120.6 | CA176: 29.1852 | CB176: 5.22 | CC176: 1.53 | CD176: 54.4 | CE176: 53.2 | CF176: 0 | CG176: Üzüm Posası,Kuru | CH176: 0.73 | CI176: 0.43 | CJ176: 90 | CK176: 13.4 | CL176: 53.2 | CM176: 54.4 | CN176: 24.2 | CO176: 0.58 | CP176: 0.17
BT177: Zeytin Küspesi, Yağı Tam Alınmamış | BU177: 1 | BV177: 0.654 | BW177: 1.1445 | BX177: 0.69978 | BY177: 51.012 | CA177: 0 | CB177: 0 | CC177: 0 | CD177: 60.1 | CE177: 67.8 | CF177: 0 | CG177: Zeytin Küspesi, Yağı Tam Alınmamış | CH177: 1.75 | CI177: 1.07 | CJ177: 65.4 | CK177: 7.8 | CL177: 67.8 | CM177: 60.1 | CN177: 0 | CO177: 0 | CP177: 0
BT178: Zeytin Küspesi, Yağı Tam Alınmış | BU178: 1 | BV178: 0.683 | BW178: 1.18159 | BX178: 0.71715 | BY178: 52.591 | CA178: 0 | CB178: 0 | CC178: 0 | CD178: 61.9 | CE178: 72.4 | CF178: 0 | CG178: Zeytin Küspesi, Yağı Tam Alınmış | CH178: 1.73 | CI178: 1.05 | CJ178: 68.3 | CK178: 7.7 | CL178: 72.4 | CM178: 61.9 | CN178: 0 | CO178: 0 | CP178: 0
BT179: Buzağı Başlangıç Yemi | BU179: 1 | BV179: 0.9 | BW179: 2.952 | BX179: 1.467845304 | BY179: 162 | CA179: 40.5 | CB179: 6.3 | CC179: 4.05 | CD179: 11.6 | CE179: 12.8 | CF179: 4000 | CG179: Buzağı Başlangıç Yemi | CH179: 3.28 | CI179: 1.630939227 | CJ179: 90 | CK179: 18 | CL179: 12.8 | CM179: 11.6 | CN179: 25 | CO179: 0.7 | CP179: 0.45 | CQ179: 4000
BT180: Buzağı Büyütme Yemi | BU180: 1 | BV180: 0.9 | BW180: 2.916 | BX180: 1.449944751 | BY180: 144 | CA180: 30.24 | CB180: 5.4 | CC180: 3.6 | CD180: 8 | CE180: 18 | CF180: 4000 | CG180: Buzağı Büyütme Yemi | CH180: 3.24 | CI180: 1.611049724 | CJ180: 90 | CK180: 16 | CL180: 18 | CM180: 8 | CN180: 21 | CO180: 0.6 | CP180: 0.4 | CQ180: 4000
BT181: Düve Yemi 1. Sınıf (TS11110) | BU181: 1 | BV181: 0.891 | BW181: 2.77992 | BX181: 1.77309 | BY181: 171.072 | CA181: 44.8892928 | CB181: 10.5138 | CC181: 5.6133 | CD181: 4.72 | CE181: 10.29 | CF181: 0 | CG181: Düve Yemi 1. Sınıf (TS11110) | CH181: 3.12 | CI181: 1.99 | CJ181: 89.1 | CK181: 19.2 | CL181: 10.29 | CM181: 4.72 | CN181: 26.24 | CO181: 1.18 | CP181: 0.63
BT182: Düve Yemi 2. Sınıf (TS11110) | BU182: 1 | BV182: 0.8991 | BW182: 2.715282 | BX182: 1.735263 | BY182: 161.838 | CA182: 36.0413226 | CB182: 10.51947 | CC182: 5.84415 | CD182: 6.27 | CE182: 13.82 | CF182: 0 | CG182: Düve Yemi 2. Sınıf (TS11110) | CH182: 3.02 | CI182: 1.93 | CJ182: 89.91 | CK182: 18 | CL182: 13.82 | CM182: 6.27 | CN182: 22.27 | CO182: 1.17 | CP182: 0.65
BT183: Kazein | BU183: 1 | BV183: 0.91 | BW183: 4.6228 | BX183: 2.298629834 | BY183: 843.57 | CA183: 0 | CB183: 3.64 | CC183: 3.185 | CD183: 0 | CE183: 0 | CF183: 0 | CG183: Kazein | CH183: 5.08 | CI183: 2.525966851 | CJ183: 91 | CK183: 92.7 | CL183: 0 | CM183: 0 | CN183: 0 | CO183: 0.4 | CP183: 0.35
BT184: Lor Altı Suyu-Fimar | BU184: 1 | BV184: 0.05 | BW184: 0.181 | BX184: 0.09 | BY184: 4.425 | CA184: 0 | CB184: 0.365 | CC184: 0.325 | CD184: 0 | CE184: 0 | CF184: 0 | CG184: Lor Altı Suyu-Fimar | CH184: 3.62 | CI184: 1.8 | CJ184: 5 | CK184: 8.85 | CL184: 0 | CM184: 0 | CN184: 0 | CO184: 0.73 | CP184: 0.65
BT185: Peynir Altı Suyu | BU185: 1 | BV185: 0.07 | BW185: 0.2534 | BX185: 0.14 | BY185: 9.94 | CA185: 0 | CB185: 0.511 | CC185: 0.455 | CD185: 0 | CE185: 0 | CF185: 0 | CG185: Peynir Altı Suyu | CH185: 3.62 | CI185: 2 | CJ185: 7 | CK185: 14.2 | CL185: 0 | CM185: 0 | CN185: 0 | CO185: 0.73 | CP185: 0.65
BT186: Peynir Altı Suyu Protein Konsantresi | BU186: 1 | BV186: 0.93 | BW186: 3.8781 | BX186: 2.142596685 | BY186: 345.03 | CA186: 0 | CB186: 5.022 | CC186: 5.58 | CD186: 0 | CE186: 0 | CF186: 0 | CG186: Peynir Altı Suyu Protein Konsantresi | CH186: 4.17 | CI186: 2.303867403 | CJ186: 93 | CK186: 37.1 | CL186: 0 | CM186: 0 | CN186: 0 | CO186: 0.54 | CP186: 0.6
BT187: Peynir Altı Suyu Tozu | BU187: 1 | BV187: 0.98 | BW187: 3.3418 | BX187: 1.846298343 | BY187: 134.26 | CA187: 0 | CB187: 17.346 | CC187: 9.506 | CD187: 0 | CE187: 0 | CF187: 0 | CG187: Peynir Altı Suyu Tozu | CH187: 3.41 | CI187: 1.883977901 | CJ187: 98 | CK187: 13.7 | CL187: 0 | CM187: 0 | CN187: 0 | CO187: 1.77 | CP187: 0.97
BT188: Peynir Altı Suyu Tozu, Düşük Laktozlu | BU188: 1 | BV188: 0.93 | BW188: 3.162 | BX188: 1.746961326 | BY188: 166.47 | CA188: 0 | CB188: 15.903 | CC188: 10.416 | CD188: 0 | CE188: 0 | CF188: 0 | CG188: Peynir Altı Suyu Tozu, Düşük Laktozlu | CH188: 3.4 | CI188: 1.878453039 | CJ188: 93 | CK188: 17.9 | CL188: 0 | CM188: 0 | CN188: 0 | CO188: 1.71 | CP188: 1.12
BT189: Peynir Altı Suyu- Fimar | BU189: 1 | BV189: 0.05 | BW189: 0.181 | BX189: 0.1 | BY189: 5.175 | CA189: 0 | CB189: 0.365 | CC189: 0.325 | CD189: 0 | CE189: 0 | CF189: 0 | CG189: Peynir Altı Suyu- Fimar | CH189: 3.62 | CI189: 2 | CJ189: 5 | CK189: 10.35 | CL189: 0 | CM189: 0 | CN189: 0 | CO189: 0.73 | CP189: 0.65
BT190: Sığır Besi Yemi | BU190: 1 | BV190: 0.89 | BW190: 2.5009 | BX190: 1.5842 | BY190: 130.474 | CA190: 31.6660398 | CB190: 10.591 | CC190: 4.984 | CD190: 9.1 | CE190: 21.29 | CF190: 0 | CG190: Sığır Besi Yemi | CH190: 2.81 | CI190: 1.78 | CJ190: 89 | CK190: 14.66 | CL190: 21.29 | CM190: 9.1 | CN190: 24.27 | CO190: 1.19 | CP190: 0.56
BT191: Sığır Süt Yemi,16 HP, 2400 ME | BU191: 1 | BV191: 0.89 | BW191: 2.4119 | BX191: 1.5308 | BY191: 162.87 | CA191: 36.271149 | CB191: 10.591 | CC191: 4.984 | CD191: 11.9 | CE191: 26.07 | CF191: 0 | CG191: Sığır Süt Yemi,16 HP, 2400 ME | CH191: 2.71 | CI191: 1.72 | CJ191: 89 | CK191: 18.3 | CL191: 26.07 | CM191: 11.9 | CN191: 22.27 | CO191: 1.19 | CP191: 0.56
BT192: Sığır Süt Yemi,16 HP, 2500 ME | BU192: 1 | BV192: 0.89 | BW192: 2.4564 | BX192: 1.5842 | BY192: 162.87 | CA192: 36.271149 | CB192: 10.591 | CC192: 4.984 | CD192: 9.1 | CE192: 21 | CF192: 0 | CG192: Sığır Süt Yemi,16 HP, 2500 ME | CH192: 2.76 | CI192: 1.78 | CJ192: 89 | CK192: 18.3 | CL192: 21 | CM192: 9.1 | CN192: 22.27 | CO192: 1.19 | CP192: 0.56
BT193: Sığır Süt Yemi,16 HP, 2600 ME | BU193: 1 | BV193: 0.89 | BW193: 2.581 | BX193: 1.6732 | BY193: 162.87 | CA193: 36.271149 | CB193: 10.591 | CC193: 4.984 | CD193: 8.7 | CE193: 19.3 | CF193: 0 | CG193: Sığır Süt Yemi,16 HP, 2600 ME | CH193: 2.9 | CI193: 1.88 | CJ193: 89 | CK193: 18.3 | CL193: 19.3 | CM193: 8.7 | CN193: 22.27 | CO193: 1.19 | CP193: 0.56
BT194: Sığır Süt Yemi,18 HP, 2400 ME | BU194: 1 | BV194: 0.89 | BW194: 2.4119 | BX194: 1.5308 | BY194: 181.56 | CA194: 40.433412 | CB194: 10.591 | CC194: 4.984 | CD194: 11.9 | CE194: 26.07 | CF194: 0 | CG194: Sığır Süt Yemi,18 HP, 2400 ME | CH194: 2.71 | CI194: 1.72 | CJ194: 89 | CK194: 20.4 | CL194: 26.07 | CM194: 11.9 | CN194: 22.27 | CO194: 1.19 | CP194: 0.56
BT195: Sığır Süt Yemi,18 HP, 2500 ME | BU195: 1 | BV195: 0.89 | BW195: 2.4564 | BX195: 1.5842 | BY195: 181.738 | CA195: 40.4730526 | CB195: =CJ195*CO195/10 -> 10.591 | CC195: 5.251 | CD195: 10.5 | CE195: 23.7 | CF195: 0 | CG195: Sığır Süt Yemi,18 HP, 2500 ME | CH195: 2.76 | CI195: 1.78 | CJ195: 89 | CK195: 20.42 | CL195: 23.7 | CM195: 10.5 | CN195: 22.27 | CO195: 1.19 | CP195: 0.59
BT196: =CG196 -> Sığır Süt Yemi,18 HP, 2600 ME | BU196: 1 | BV196: =CJ196*10/1000 -> 0.89 | BW196: =CH196*CJ196/100 -> 2.5899 | BX196: =CI196*CJ196/100 -> 1.6643 | BY196: =CK196*CJ196/10 -> 181.738 | CA196: =BY196*CN196/100 -> 40.4730526 | CB196: 10.591 | CC196: =CP196*CJ196/10 -> 5.251 | CD196: =CM196 -> 8.17 | CE196: =CL196 -> 18.75 | CF196: =CQ196 -> 0 | CG196: Sığır Süt Yemi,18 HP, 2600 ME | CH196: 2.91 | CI196: 1.87 | CJ196: 89 | CK196: 20.42 | CL196: 18.75 | CM196: 8.17 | CN196: 22.27 | CO196: 1.19 | CP196: 0.59
BT197: Sığır Süt Yemi, 18 HP, 2650 ME | BU197: =BU196 -> 1 | BV197: 0.89 | BW197: 2.5899 | BX197: 1.6643 | BY197: 181.738 | CA197: 40.4730526 | CB197: 10.591 | CC197: 5.251 | CD197: 8.17 | CE197: 18.75 | CF197: 0 | CG197: Sığır Süt Yemi, 18 HP, 2650 ME | CH197: 2.91 | CI197: 1.87 | CJ197: 89 | CK197: 20.42 | CL197: 18.75 | CM197: 8.17 | CN197: 22.27 | CO197: 1.19 | CP197: 0.59
BT198: Sığır Süt Yemi, 19 HP, 2600 ME | BU198: 1 | BV198: 0.89 | BW198: 2.5899 | BX198: 1.6643 | BY198: 194.02 | CA198: 43.208254 | CB198: 10.591 | CC198: 5.251 | CD198: 8.7 | CE198: 20.2 | CF198: 0 | CG198: Sığır Süt Yemi, 19 HP, 2600 ME | CH198: 2.91 | CI198: 1.87 | CJ198: 89 | CK198: 21.8 | CL198: 20.2 | CM198: 8.7 | CN198: 22.27 | CO198: 1.19 | CP198: 0.59
BT199: Sığır Süt Yemi, 19 HP, 2700 ME | BU199: 1 | BV199: 0.89 | BW199: 2.7323 | BX199: 1.7355 | BY199: 194.02 | CA199: 43.208254 | CB199: 10.591 | CC199: 5.251 | CD199: 8.7 | CE199: 20.2 | CF199: 0 | CG199: Sığır Süt Yemi, 19 HP, 2700 ME | CH199: 3.07 | CI199: 1.95 | CJ199: 89 | CK199: 21.8 | CL199: 20.2 | CM199: 8.7 | CN199: 22.27 | CO199: 1.19 | CP199: 0.59
BT200: Sığır Süt Yemi, 19 HP, 2800 ME | BU200: 1 | BV200: 0.89 | BW200: 2.8035 | BX200: 1.8245 | BY200: 189.57 | CA200: 42.217239 | CB200: 10.502 | CC200: 4.628 | CD200: 8.3 | CE200: 19.6 | CF200: 0 | CG200: Sığır Süt Yemi, 19 HP, 2800 ME | CH200: 3.15 | CI200: 2.05 | CJ200: 89 | CK200: 21.3 | CL200: 19.6 | CM200: 8.3 | CN200: 22.27 | CO200: 1.18 | CP200: 0.52
... 57 more rows

Sheet E.BUZAĞI-TOSUN
A1: Yem Adı | B1: Yem Birim Fiyatı (tl/kg) | C1: Yem Tüketimi (kg/gün/baş) | G1: Günlük Max Yem (kg/baş) | H1: Kondisyon Skoru | J1: Doğum Ağıtlığı | K1: 44 | L1: Erkek Buzağı | M1: 90 gün < Buzağı-Tosun | N1: Besleme Ortası Canlı Ağırlık | O1: Bitiş Canlı Ağırlık | P1: 1 KG HAYVANSAL PROTEİN İÇİN TÜKETİLEN YEM METABOLİK ENERJİSİ (MJ) | Y1: Kondisyon Skoru | AC1: 1e-11 | AS1: KM (kg/gün) | AT1: ME (Mcal/gün) | AU1: Nel (Mcal/gün) | AV1: HP (g/gün) | AW1: MBP (g/gün) | AX1: Rumende Yıkıma Dirençli Protein (g/gün) | AY1: Ca (g/gün) | AZ1: P (g/gün) | BA1: ADF (kg/gün) | BB1: NDF (kg/gün) | BD1: Rasyon özeti | BE1: Yem | BF1: KM | BG1: ME | BH1: NEl | BI1: HP | BJ1: MBP | BK1: Rumende Yıkıma Dirençli Protein | BL1: Ca | BM1: P | BN1: ADF | BO1: NDF | BP1: Vit A
C2: Erkek Buzağı | D2: Tosun Başlangıç | E2: Tosun Besleme Ortası | F2: Tosun Bitiş | H2: 4 | I2: Hayvan Sayısı | K2: Baş | L2: 40 | M2: 40 | N2: 40 | O2: 40 | Y2: SATIR | Z2: =MATCH(H2,AB2:AB6,0) -> 4 | AA2: 1 | AB2: 1 | BC2: Vit A IU | BD2: Yem maddeleri | BE2: kg/gün | BF2: kg/gün | BG2: Mcal/gün | BH2: Mcal/gün | BI2: g/gün | BJ2: (g/gün) | BK2: (g/gün) | BL2: g/gün | BM2: g/gün | BN2: kg/gün | BO2: kg/gün | BP2: IU | BQ2: YEM MADDESİ | BR2: ME | BS2: NEI | BT2: KM | BU2: HP | BV2: NDF | BW2: ADF | BX2: RUP | BY2: CA | BZ2: P | CA2: Vit A
A3: Çayır-Baklagil Kuru Otu, Olgun> %53 NDF | B3: 1 | C3: 0 | D3: 0 | E3: 0 | F3: 0 | G3: 10 | H3: Başlangıç Canlı Ağırlık | K3: kg | L3: =K1+L5*L4/2/1000 -> 66.5 | M3: =O21+M5*M4/2/1000 -> 140 | N3: =(O23+N4*N5/2/1000) -> 281 | O3: =O25+O5*O4/2/1000 -> 431 | P3: =HESAP!FY9 -> 407.4232517 | Y3: İNDİS | Z3: =INDEX($AA$2:$AA$6,H2) -> 4 | AA3: 2 | AB3: 2 | AR3: =MATCH(A3,BD3:BD412,0) -> 14 | AS3: =(INDEX($BF$3:$BF$412,AR3)) -> 0.897 | AT3: =(INDEX($BG$3:$BG$412,AR3)) -> 1.66842 | AU3: =(INDEX($BH$3:$BH$412,AR3)) -> 1.00464 | AV3: =INDEX($BI$3:$BI$412,AR3) -> 163.254 | AW3: =INDEX($BJ$3:$BJ$412,AR3) -> 0 | AX3: =INDEX($BK$3:$BK$394,AR3) -> 27.589926 | AY3: =INDEX($BL$3:$BL$412,AR3) -> 10.4052 | AZ3: =INDEX($BM$3:$BM$412,AR3) -> 3.2292 | BA3: =INDEX($BN$3:$BN$412,AR3) -> 31.1 | BB3: =INDEX($BO$3:$BO$412,AR3) -> 56 | BC3: =INDEX($BP$3:$BP$412,AR3) -> 0 | BD3: =BQ3 -> Baklagil Kuru Otu | BE3: 1 | BF3: =BT3*10/1000 -> 0.878 | BG3: =BR3*BT3/100 -> 1.82624 | BH3: =BS3*BT3/100 -> 1.11506 | BI3: =BU3*BT3/10 -> 177.356 | BK3: =BI3*BX3/100 -> 33.342928 | BL3: =BT3*BY3/10 -> 13.3456 | BM3: =BZ3*BT3/10 -> 2.2828 | BN3: =BW3 -> 31.2 | BO3: =BV3 -> 39.6 | BP3: =CA3 -> 0 | BQ3: Baklagil Kuru Otu | BR3: 2.08 | BS3: 1.27 | BT3: 87.8 | BU3: 20.2 | BV3: 39.6 | BW3: 31.2 | BX3: 18.8 | BY3: 1.52 | BZ3: 0.26
A4: Yağ, Ca Sabunları | B4: 15 | C4: 0.3160167121 | D4: 0.7728106164 | E4: 0 | F4: 0.9224594806 | G4: 10 | H4: Başlangıç Günlük Canlı Ağırlık Artışı | K4: (g/gün) | L4: 750 | M4: 850 | N4: 1000 | O4: 1200 | P4: 1 KG HAYVANSAL PROTEİN İÇİN METAN SALINIMI (MJ) | AA4: 3 | AB4: 3 | AR4: =MATCH(A4,BD3:BD412,0) -> 133 | AS4: =(INDEX($BF$3:$BF$412,AR4)) -> 0.953 | AT4: =(INDEX($BG$3:$BG$412,AR4)) -> 5.97531 | AU4: =(INDEX($BH$3:$BH$412,AR4)) -> 4.78406 | AV4: =INDEX($BI$3:$BI$412,AR4) -> 0 | AW4: =INDEX($BJ$3:$BJ$412,AR4) -> 0 | AX4: =INDEX($BK$3:$BK$394,AR4) -> 0 | AY4: =INDEX($BL$3:$BL$412,AR4) -> 0 | AZ4: =INDEX($BM$3:$BM$412,AR4) -> 0 | BA4: =INDEX($BN$3:$BN$412,AR4) -> 0 | BB4: =INDEX($BO$3:$BO$412,AR4) -> 0 | BC4: =INDEX($BP$3:$BP$412,AR4) -> 0 | BD4: =BQ4 -> Baklagil Kuru Otu, Körpe < %40 NDF | BE4: =BE3 -> 1 | BF4: =BT4*10/1000 -> 0.842 | BG4: =BR4*BT4/100 -> 1.87766 | BH4: =BS4*BT4/100 -> 1.16196 | BI4: =BU4*BT4/10 -> 191.976 | BK4: =BI4*BX4/100 -> 31.292088 | BL4: 13.1352 | BM4: =BZ4*BT4/10 -> 2.6102 | BN4: =BW4 -> 28.6 | BO4: =BV4 -> 36.3 | BP4: =CA4 -> 0 | BQ4: Baklagil Kuru Otu, Körpe < %40 NDF | BR4: 2.23 | BS4: 1.38 | BT4: 84.2 | BU4: 22.8 | BV4: 36.3 | BW4: 28.6 | BX4: 16.3 | BY4: 1.56 | BZ4: 0.31
A5: Buğday, Ezme | B5: 1.5 | C5: 0 | D5: 1.602710586 | E5: 0 | F5: 2 | G5: 2 | H5: Başlangıç Bakım Süresi | K5: (gün) | L5: 60 | M5: 120 | N5: 180 | O5: 100 | AA5: 4 | AB5: 4 | AR5: =MATCH(A5,BD3:BD412,0) -> 115 | AS5: =(INDEX($BF$3:$BF$412,AR5)) -> 0.894 | AT5: 2.7714 | AU5: 1.77906 | AV5: 126.948 | AW5: 0 | AX5: 24.881808 | AY5: 0.447 | AZ5: 3.8442 | BA5: 4.4 | BB5: 13.4 | BC5: 0 | BD5: Baklagil Kuru Otu, Olgun >%46 NDF | BE5: =BE4 -> 1 | BF5: 0.838 | BG5: 1.57544 | BH5: 0.94694 | BI5: 188.55 | BK5: 33.5619 | BL5: 10.2236 | BM5: 2.3464 | BN5: 39.5 | BO5: 50.9 | BP5: 0 | BQ5: Baklagil Kuru Otu, Olgun >%46 NDF | BR5: 1.88 | BS5: 1.13 | BT5: 83.8 | BU5: 22.5 | BV5: 50.9 | BW5: 39.5 | BX5: 17.8 | BY5: 1.22 | BZ5: 0.28
A6: Buzağı Başlangıç Yemi | B6: 2.5 | C6: 0 | D6: 0 | E6: 0 | F6: 0 | G6: 10 | H6: Satılan Hayvan | K6: Baş | L6: 0 | M6: 0 | N6: 0 | O6: 40 | P6: =HESAP!GH9 -> 31.16414265 | AA6: 5 | AB6: 5 | AR6: =MATCH(A6,BD3:BD415,0) -> 177 | AS6: 0.9 | AT6: 2.952 | AU6: 1.467845304 | AV6: 162 | AW6: 0 | AX6: 40.5 | AY6: 6.3 | AZ6: 4.05 | BA6: 11.6 | BB6: 12.8 | BC6: 4000 | BD6: Baklagil Kuru Otu, Orta Olgun, %40-46 NDF | BE6: 1 | BF6: 0.839 | BG6: 1.75351 | BH6: 1.07392 | BI6: 174.512 | BK6: 30.714112 | BL6: 11.4943 | BM6: 2.517 | BN6: 33.4 | BO6: 42.9 | BP6: 0 | BQ6: Baklagil Kuru Otu, Orta Olgun, %40-46 NDF | BR6: 2.09 | BS6: 1.28 | BT6: 83.9 | BU6: 20.8 | BV6: 42.9 | BW6: 33.4 | BX6: 17.6 | BY6: 1.37 | BZ6: 0.3
A7: Buzağı Büyütme Yemi | B7: 3 | C7: 0 | D7: 0 | E7: 0 | F7: 0 | G7: 10 | H7: Karkas Ranıman | K7: % | L7: 50 | M7: 55 | N7: 60 | O7: 62 | P7: 1 KG CAA YEM MALİYETİ (TL/KG) | AR7: =MATCH(A7,BD3:BD416,0) -> 178 | AS7: 0.9 | AT7: 2.916 | AU7: 1.449944751 | AV7: 144 | AW7: 0 | AX7: 30.24 | AY7: 5.4 | AZ7: 3.6 | BA7: 8 | BB7: 18 | BC7: 4000 | BD7: Buğday Kuru Otu, Başaklı | BE7: 1 | BF7: 0.868 | BG7: 1.48428 | BH7: 0.87668 | BI7: 81.592 | BK7: 30.107448 | BL7: 2.6908 | BM7: 1.736 | BN7: 38.1 | BO7: 61.1 | BP7: 0 | BQ7: Buğday Kuru Otu, Başaklı | BR7: 1.71 | BS7: 1.01 | BT7: 86.8 | BU7: 9.4 | BV7: 61.1 | BW7: 38.1 | BX7: 36.9 | BY7: 0.31 | BZ7: 0.2
A8: Sığır Besi Yemi | B8: 2 | C8: 0 | D8: 0 | E8: 0 | F8: 0 | G8: 10 | H8: Karkas Et Oranı | K8: % | L8: 80 | M8: 80 | N8: 80 | O8: 80 | P8: Erkek Buzağı | Q8: =AB88 -> 21.00239741 | AA8: 1 | AB8: TAMAM | AR8: =MATCH(A8,BD3:BD417,0) -> 188 | AS8: 0.89 | AT8: 2.5009 | AU8: 1.5842 | AV8: =INDEX($BI$3:$BI$412,AR8) -> 130.474 | AW8: 0 | AX8: 31.6660398 | AY8: 10.591 | AZ8: 4.984 | BA8: 9.1 | BB8: 21.29 | BC8: 0 | BD8: Buğday Samanı | BE8: 1 | BF8: 0.927 | BG8: 1.33488 | BH8: 0.76014 | BI8: 44.496 | BK8: 7.386336 | BL8: 3.3372 | BM8: 3.2445 | BN8: 35.2 | BO8: 73 | BP8: 0 | BQ8: Buğday Samanı | BR8: 1.44 | BS8: 0.82 | BT8: 92.7 | BU8: 4.8 | BV8: 73 | BW8: 35.2 | BX8: 16.6 | BY8: 0.36 | BZ8: 0.35
A9: Mısır Silajı, %33-40 KM | B9: 0.6 | C9: 0 | D9: 4.307233898 | E9: 0 | F9: 8.624264245 | G9: 10 | H9: Et Protein Oranı | K9: % | L9: 20 | M9: 20 | N9: 20 | O9: 20 | P9: 90 gün < Buzağı-Tosun | Q9: =AC88 -> 23.82212007 | Y9: COAT | AA9: 1 | AB9: FAZLA | AR9: =MATCH(A9,BD3:BD418,0) -> 65 | AS9: 0.355 | AT9: 0.72065 | AU9: 0.4402 | AV9: 25.915 | AW9: 0 | AX9: 8.75927 | AY9: 0.923 | AZ9: 0.8875 | BA9: 29.8 | BB9: 51.6 | BC9: 0 | BD9: Çayır Kuru Otu, Soğuk Mevsim | BE9: 1 | BF9: 0.881 | BG9: 1.63866 | BH9: 0.98672 | BI9: 93.386 | BK9: 21.385394 | BL9: 3.3478 | BM9: 2.5549 | BN9: 37.6 | BO9: 64.4 | BP9: 0 | BQ9: Çayır Kuru Otu, Soğuk Mevsim | BR9: 1.86 | BS9: 1.12 | BT9: 88.1 | BU9: 10.6 | BV9: 64.4 | BW9: 37.6 | BX9: 22.9 | BY9: 0.38 | BZ9: 0.29
A10: Çayır Merası, Soğuk Mevsim, Bakımlı | B10: 0.01 | C10: 0 | D10: 0 | E10: 25 | F10: 0 | G10: 0 | H10: Birim İşçiye düşen hayvan say | K10: Baş | L10: 70 | M10: 70 | N10: 70 | O10: 70 | P10: Besleme Ortası Canlı Ağırlık | Q10: =AD88 -> 4.06576389 | S10: Başlangıç | T10: İNDİS | U10: =INDEX($Y$10:$Y$13,W10) -> 1 | V10: SATIR | W10: =MATCH(M12,X10:X13,0) -> 1 | X10: Kuru-temiz | Y10: 1 | AA10: 2 | AB10: EKSİK | AR10: =MATCH(A10,BD3:BD419,0) -> 48 | AS10: 0.201 | AT10: 0.49446 | AU10: 0.30954 | AV10: 53.265 | AW10: 0 | AX10: 11.82483 | AY10: 1.1256 | AZ10: 0.8844 | BA10: 25 | BB10: 45.8 | BC10: 0 | BD10: Çayır Kuru Otu, Soğuk Mevsim, Körpe <%55 NDF | BE10: 1 | BF10: 0.84 | BG10: 1.8648 | BH10: 1.1508 | BI10: 151.2 | BK10: 36.7416 | BL10: 3.612 | BM10: 3.528 | BN10: 34.9 | BO10: 49.6 | BP10: 0 | BQ10: Çayır Kuru Otu, Soğuk Mevsim, Körpe <%55 NDF | BR10: 2.22 | BS10: 1.37 | BT10: 84 | BU10: 18 | BV10: 49.6 | BW10: 34.9 | BX10: 24.3 | BY10: 0.43 | BZ10: 0.42
A11: Soya Küspesi, Ekspeller, %45 HP | B11: 5 | C11: 0.4423094356 | D11: 0.7090434246 | E11: 0 | F11: 0.4030662785 | G11: 2 | H11: Vücut Kondisyon Skoru | K11: puan | L11: 3 | M11: 4 | N11: 4 | O11: 3 | P11: Bitiş Canlı Ağırlık | Q11: =AE88 -> 24.48097121 | S11: Orta | T11: İNDİS | U11: =INDEX($Y$10:$Y$13,W11) -> 1 | V11: SATIR | W11: =MATCH(N12,X10:X13,0) -> 1 | X11: Bacaklar çamur | Y11: 0.8 | AR11: =MATCH(A11,BD3:BD420,0) -> 108 | AS11: 0.896 | AT11: 3.23456 | AU11: 2.13248 | AV11: 448 | AW11: 0 | AX11: 259.84 | AY11: 3.2256 | AZ11: 5.9136 | BA11: 10.4 | BB11: 21.7 | BC11: 0 | BD11: Çayır Kuru Otu , Soğuk Mevsim,Olgun >%60 NDF | BE11: 1 | BF11: 0.844 | BG11: 1.5614 | BH11: 0.93684 | BI11: 91.152 | BK11: 20.235744 | BL11: =BT11*BY11/10 -> 3.9668 | BM11: 3.7136 | BN11: 25 | BO11: 69.1 | BP11: 0 | BQ11: Çayır Kuru Otu , Soğuk Mevsim,Olgun >%60 NDF | BR11: 1.85 | BS11: 1.11 | BT11: 84.4 | BU11: 10.8 | BV11: 69.1 | BW11: 25 | BX11: 22.2 | BY11: 0.47 | BZ11: 0.44
